Workbook

Sheet Börja här
E1: Jämför hållbarhet mellan olika renoveringsalternativ
A2: Detta är ett verktyg för utvärdering av hållbarhet vid renovering av fastigheter.
A3: Verktyget har utvecklats av RISE Research Institutes of Sweden. Användare ansvarar för indata.
A5: Version: | C5: Renobuild Skola 3.0 - anpassat för hållbarhetsutvärdering vid renovering av skolor.
A6: Senast uppdaterat: | C6: 2018-04-06
A7: Utförlig användarmanual och ytterligare information finns på www.renobuild.se.
A9: Så här fungerar det:
A11: 1. Definiera ett antal alternativ, som vart och ett kan bestå av en eller flera renoveringsåtgärder. Alternativ 1 måste vara reserverat för ett referensfall, som kan vara antingen att ingen renovering genomförs eller ett minimialternativ där nödvändiga åtgärder som förekommer i alla alternativ ingår. Dock kan kostnader för underhåll m.m. påföras. Sociala konsekvenser av detta kan också utredas. | Q11: Projektinformation
A12: 2. Ange grundläggande projektinformation i dialogrutan med hjälp av knappen nedan. | Q12: Projektnamn:
Q13: Projektledare:
Q14: Datum:
Q15: Antal alternativ:
Q16: Beräkningsperiod:
A17: 3. Namnge gärna alternativen i tabellen till höger.
A18: 4. Samla in data om de alterantiv som ska jämföras. I respektive indataflik nedan förklaras närmare vilken indata som behövs.
A19: 5. Genomför analyser av respektive hållbarhetsaspekt. | Q19: Referensfall
Q20: =IF($R$15>1,"Alt. 2","") -> 
Q21: =IF($R$15>2,"Alt. 3","") -> 
Q22: =IF($R$15>3,"Alt. 4","") -> 
Q23: =IF($R$15>4,"Alt. 5","") -> 
A24: 6. Studera resultat och justera alternativ efter behov. | Q24: =IF($R$15>5,"Alt. 6","") -> 
Q25: =IF($R$15>6,"Alt. 7","") -> 
Q26: =IF($R$15>7,"Alt. 8","") -> 
Q27: =IF($R$15>8,"Alt. 9","") -> 
Q28: =IF($R$15>9,"Alt. 10","") -> 

Sheet Resultat Hållbarhet
D1: Resultat av hållbarhetsutvärdering
A2: I detta blad sammanfattas resultaten från de tre flikarna Ekonomi, Miljö och Socialt.
A3: Här jämförs de olika renoveringsalternativen. Resultaten från flikerna Ekonomi, Miljö och Socialt är samlade i den här sidan, graderade enligt en procentskala och representerade i ett diagram.
A4: Det alternativ med bäst värde på varje del värderas som 100% för Socialt och Miljö. Skalan i Ekonomi går från 100% (dyrast) to 1% (0 kronor). Bollarnas storlek i diagrammet är proportionella mot procentvärdet för Ekonomi: en mindre boll betyder att alternativet har lägre livscykelkostnad än en större. Sammanfattningsvis skulle en liten boll långt upp till höger i diagrammet vara det bästa alternativet.
A6: Projektinformation
A7: Projektnamn | B7: =IF('Börja här'!R12="","",'Börja här'!R12) -> 
A8: Ansvarig | B8: =IF('Börja här'!R13="","",'Börja här'!R13) -> 
A9: Datum | B9: =IF('Börja här'!R14="","",'Börja här'!R14) -> 
A10: Beräkningsperiod | B10: =IF('Börja här'!R16="","",'Börja här'!R16) -> 
A12: Resultat | C12: =IF('Börja här'!Q19="","",'Börja här'!Q19) -> Referensfall | D12: =IF('Börja här'!Q20="","",'Börja här'!Q20) ->  | E12: =IF('Börja här'!Q21="","",'Börja här'!Q21) ->  | F12: =IF('Börja här'!Q22="","",'Börja här'!Q22) ->  | G12: =IF('Börja här'!Q23="","",'Börja här'!Q23) ->  | H12: =IF('Börja här'!Q24="","",'Börja här'!Q24) ->  | I12: =IF('Börja här'!Q25="","",'Börja här'!Q25) ->  | J12: =IF('Börja här'!Q26="","",'Börja här'!Q26) ->  | K12: =IF('Börja här'!R26="","",'Börja här'!R26) ->  | L12: =IF('Börja här'!S26="","",'Börja här'!S26) -> 
A13: Beskrivning | C13: =IF('Börja här'!R19="","",'Börja här'!R19) ->  | D13: =IF('Börja här'!R20="","",'Börja här'!R20) ->  | E13: =IF('Börja här'!R21="","",'Börja här'!R21) ->  | F13: =IF('Börja här'!R22="","",'Börja här'!R22) ->  | G13: =IF('Börja här'!R23="","",'Börja här'!R23) ->  | H13: =IF('Börja här'!R24="","",'Börja här'!R24) ->  | I13: =IF('Börja här'!R25="","",'Börja här'!R25) ->  | J13: =IF('Börja här'!R26="","",'Börja här'!R26) ->  | K13: =IF('Börja här'!R27="","",'Börja här'!R27) ->  | L13: =IF('Börja här'!R28="","",'Börja här'!R28) -> 
A14: Ekonomi
A15: kr | D15: =IF(Ekonomi!F31=0, "",Ekonomi!F31) ->  | E15: =IF(Ekonomi!G31=0, "", Ekonomi!G31) ->  | F15: =IF(Ekonomi!H31=0, "",Ekonomi!H31) ->  | G15: =IF(Ekonomi!I31=0, "", Ekonomi!I31) ->  | H15: =IF(Ekonomi!J31=0, "", Ekonomi!J31) ->  | I15: =IF(Ekonomi!K31=0, "", Ekonomi!K31) ->  | J15: =IF(Ekonomi!L31=0, "", Ekonomi!L31) ->  | K15: =IF(Ekonomi!M31=0, "", Ekonomi!M31) ->  | L15: =IF(Ekonomi!N31=0, "", Ekonomi!N31) -> 
A16: % | C16: =IF(C15="","",IF(C15/(MAX($C$15:$L$15))=0,0.01,((C15/(MAX($C$15:$L$15)))))) ->  | D16: =IF(D15="","",IF(D15/(MAX($C$15:$L$15))=0,0.01,((D15/(MAX($C$15:$L$15)))))) ->  | K16: =IF(K15="","",IF(K15/(MAX($C$15:$L$15))=0,0.01,((K15/(MAX($C$15:$L$15)))))) ->  | L16: =IF(L15="","",IF(L15/(MAX($C$15:$L$15))=0,0.01,((L15/(MAX($C$15:$L$15)))))) -> 
A18: Miljö
A19: CO2-ekv | C19: =IF(Miljö!C30=0,"",Miljö!C30) ->  | D19: =IF(Miljö!D30=0,"",Miljö!D30) ->  | E19: =IF(Miljö!E30=0,"",Miljö!E30) ->  | F19: =IF(Miljö!F30=0,"",Miljö!F30) ->  | G19: =IF(Miljö!G30=0,"",Miljö!G30) ->  | H19: =IF(Miljö!H30=0,"",Miljö!H30) ->  | I19: =IF(Miljö!I30=0,"",Miljö!I30) ->  | J19: =IF(Miljö!J30=0,"",Miljö!J30) ->  | K19: =IF(Miljö!K30=0,"",Miljö!K30) ->  | L19: =IF(Miljö!L30=0,"",Miljö!L30) -> 
A20: % | C20: =IF(C19="","",IF(1-(C19-MIN($C$19:$L$19))/(0-MIN($C$19:$L$19))=0,0.01,(1-(C19-MIN($C$19:$L$19))/(0-MIN($C$19:$L$19))))) ->  | D20: =IF(D19="","",IF(1-(D19-MIN($C$19:$L$19))/(0-MIN($C$19:$L$19))=0,0.01,(1-(D19-MIN($C$19:$L$19))/(0-MIN($C$19:$L$19))))) -> 
A22: Socialt
A23: Poäng | C23: =IF(Socialt!E32=0,"",Socialt!E32) -> -15 | D23: =IF(Socialt!F32=0,"",Socialt!F32) ->  | E23: =IF(Socialt!G32=0,"",Socialt!G32) ->  | F23: =IF(Socialt!H32=0,"",Socialt!H32) ->  | G23: =IF(Socialt!I32=0,"",Socialt!I32) ->  | H23: =IF(Socialt!J32=0,"",Socialt!J32) ->  | I23: =IF(Socialt!K32=0,"",Socialt!K32) ->  | J23: =IF(Socialt!L32=0,"",Socialt!L32) ->  | K23: =IF(Socialt!M32=0,"",Socialt!M32) ->  | L23: =IF(Socialt!N32=0,"",Socialt!N32) -> 
A24: % | C24: =IF(C23="","",IF((C23+15)/(MAX($C$23:$J$23)+15)=0,0.01,((C23+15)/(MAX($C$23:$J$23)+15)))) ->  | D24: =IF(D23="","",IF((D23+15)/(MAX($C$23:$J$23)+15)=0,0.01,((D23+15)/(MAX($C$23:$J$23)+15)))) -> 

Sheet Ekonomi
E1: Ekonomisk analys
A2: Detta blad används för kostnadsutvärdering i livscykelperspektiv.
A4: Så här fungerar det:
A6: Ange indata i de gröna fälten.
A7: Extra förklaringar finns i vissa fall i kommentarsfält (röd triangel i höger hörn).
A10: 1. Grundförutsättningar | J10: 1.3 Kort beskrivning av alternativen
A11: 1.1 Grunddata | J11: Alt. nummer | L11: Beskrivning
A12: LCC-period för investering | D12: år | E12: ='Resultat Hållbarhet'!B10 ->  | J12: ='Börja här'!Q19 -> Referensfall
A13: Kalkylränta (real interest rate) | D13: % | E13: 0.05 | J13: =IF('Börja här'!Q20="","",'Börja här'!Q20) -> 
A14: Årlig uppräkning av kostnaderna | D14: % | E14: 0.02 | J14: =IF('Börja här'!Q21="","",'Börja här'!Q21) -> 
J15: =IF('Börja här'!Q22="","",'Börja här'!Q22) -> 
J16: =IF('Börja här'!Q23="","",'Börja här'!Q23) -> 
E17: OBS! Tryck på "Räkna LCC" varje gång för att få resultat! | J17: =IF('Börja här'!Q24="","",'Börja här'!Q24) -> 
J18: =IF('Börja här'!Q25="","",'Börja här'!Q25) -> 
J19: =IF('Börja här'!Q26="","",'Börja här'!Q26) -> 
J20: =IF('Börja här'!Q27="","",'Börja här'!Q27) -> 
J21: =IF('Börja här'!Q28="","",'Börja här'!Q28) -> 
A23: 2. Resultat
E25: =J12 -> Referensfall | F25: =J13 ->  | G25: =J14 ->  | H25: =J15 ->  | I25: =J16 ->  | J25: =J17 ->  | K25: =J18 ->  | L25: =J19 ->  | M25: =J20 ->  | N25: =J21 -> 
A26: Investeringar | D26: kr | E26: =E67 -> 0 | F26: 0 | G26: 0 | H26: 0 | I26: 0 | J26: 0 | K26: 0 | L26: 0 | M26: 0 | N26: 0
A27: Reinvesteringar/utbyte | D27: kr | E27: =E97 -> 
A28: Löpande drift/underhåll | D28: kr | E28: =E113 -> 
A29: Energi | D29: kr | E29: =E138 -> 
A31: Total LCC-kostnad | D31: kr | E31: =SUM(E26:E29) ->  | F31: =SUM(F26:F29) -> 
E60: =E25 -> Referensfall
A61: 3. Investeringar
A62: A, aktuell kostnad | D62: kr
A63: B, aktuell kostnad | D63: kr
A64: C, aktuell kostnad | D64: kr
A65: D, aktuell kostnad | D65: kr
A66: E, aktuell kostnad | D66: kr
A67: Summa | D67: kr | E67: =SUM(E62:E66) -> 0 | F67: =SUM(F62:F66) -> 0 | G67: 0 | H67: 0 | I67: 0 | J67: 0 | K67: 0 | L67: 0 | M67: 0 | N67: 0
A70: 2. Reinvesteringar/utbyte
A71: A, aktuell kostnad idag | D71: kr | E71: 0 | H71: 0 | I71: 0
A72: A, år där första byte sker | D72: år
A73: A, prisökning/minskning | D73: % | E73: =$E$14 -> 0.02 | F73: =$E$14 -> 0.02 | G73: 0.02 | H73: 0.02 | I73: 0.02 | J73: 0.02 | K73: 0.02 | L73: 0.02 | M73: 0.02 | N73: 0.02
A74: A, livslängd på installationen | D74: år | E74: 10 | F74: 10 | G74: 10 | H74: 10 | I74: 10 | J74: 10 | K74: 10 | L74: 10 | M74: 10 | N74: 10
A75: A, antal byten under LCC period | E75: =IF(INT(($E$12-E72)/E74)=0,1,INT(($E$12-E72)/E74)) ->  | F75: =IF(INT(($E$12-F72)/F74)=0,1,INT(($E$12-F72)/F74)) -> 
A76: A, restvärde (diskonterat) | D76: kr | E76: =E71*((1+E73)^($E$12))*ABS(($E$12-((E75*E74)+E72))/E74)*((1+IntReal)^(-$E$12)) -> 
A79: B, aktuell kostnad idag | D79: kr
A80: B, år där första byte sker
A81: B, prisökning/minskning | D81: % | E81: =$E$14 -> 0.02 | F81: =$E$14 -> 0.02 | G81: 0.02 | H81: 0.02 | I81: 0.02 | J81: 0.02 | K81: 0.02 | L81: 0.02 | M81: 0.02 | N81: 0.02
A82: B, livslängd på installationen | D82: år | E82: 10 | F82: 10 | G82: 10 | H82: 10 | I82: 10 | J82: 10 | K82: 10 | L82: 10 | M82: 10 | N82: 10
A83: B, antal byte under LCC period | E83: =IF(INT(($E$12-E80)/E82)=0,1,INT(($E$12-E80)/E82)) ->  | F83: =IF(INT(($E$12-F80)/F82)=0,1,INT(($E$12-F80)/F82)) -> 
A84: B, restvärde (diskonterat) | D84: kr | E84: =E79*((1+E81)^($E$12))*ABS(($E$12-((E83*E82)+E80))/E82)*((1+IntReal)^(-$E$12)) -> 
A87: C, aktuell kostnad idag | D87: kr
A88: C, år där första byte sker
A89: C, prisökning/minskning | D89: % | E89: =$E$14 -> 0.02 | F89: =$E$14 -> 0.02 | G89: 0.02 | H89: 0.02 | I89: 0.02 | J89: 0.02 | K89: 0.02 | L89: 0.02 | M89: 0.02 | N89: 0.02
A90: C, livslängd på installationen | D90: år | E90: 10 | F90: 10 | G90: 10 | H90: 10 | I90: 10 | J90: 10 | K90: 10 | L90: 10 | M90: 10 | N90: 10
A91: C, antal byte under LCC period | E91: =IF(INT(($E$12-E88)/E90)=0,1,INT(($E$12-E88)/E90)) ->  | F91: =IF(INT(($E$12-F88)/F90)=0,1,INT(($E$12-F88)/F90)) -> 
A92: C, restvärde (diskonterat) | D92: kr | E92: =E87*((1+E89)^($E$12))*ABS(($E$12-((E91*E90)+E88))/E90)*((1+IntReal)^(-$E$12)) -> 
A94: NPV, post A | D94: kr | E94: 0 | F94: 0 | G94: 0 | H94: 0 | I94: 0 | J94: 0 | K94: 0 | L94: 0 | M94: 0 | N94: 0
A95: NPV, post B | D95: kr | E95: 0 | F95: 0 | G95: 0 | H95: 0 | I95: 0 | J95: 0 | K95: 0 | L95: 0 | M95: 0 | N95: 0
A96: NPV, post C | D96: kr | E96: 0 | F96: 0 | G96: 0 | H96: 0 | I96: 0 | J96: 0 | K96: 0 | L96: 0 | M96: 0 | N96: 0
A97: Summa NPV | D97: kr | E97: =SUM(E94:E96)-(E76+E84+E92) ->  | F97: =SUM(F94:F96)-(F76+F84+F92) ->  | G97: =SUM(G94:G96)-(G76+G84+G92) -> 
A100: 3. Löpande drift/underhåll
A101: A, nuvarande årlig kostnad | D101: kr/år | E101: 0
A102: A, prisökning/minskning | D102: % | E102: =$E$14 -> 0.02 | F102: =$E$14 -> 0.02 | G102: 0.02 | H102: 0.02 | I102: 0.02 | J102: 0.02 | K102: 0.02 | L102: 0.02 | M102: 0.02 | N102: 0.02
A104: B, nuvarande årlig kostnad | D104: kr/år | E104: 0
A105: B, prisökning/minskning | D105: % | E105: =$E$14 -> 0.02 | F105: =$E$14 -> 0.02 | G105: 0.02 | H105: 0.02 | I105: 0.02 | J105: 0.02 | K105: 0.02 | L105: 0.02 | M105: 0.02 | N105: 0.02
A107: C, nuvarande årlig kostnad | D107: kr/år
A108: C, prisökning/minskning | D108: % | E108: =$E$14 -> 0.02 | F108: =$E$14 -> 0.02 | G108: 0.02 | H108: 0.02 | I108: 0.02 | J108: 0.02 | K108: 0.02 | L108: 0.02 | M108: 0.02 | N108: 0.02
A110: NPV, post A | D110: kr | E110: =IF(E102=$E$13, E101*(1+E102)*($E$12/(1+$E$13)), E101*(1+E102)*((1-((1+E102)^$E$12)*((1+$E$13)^(-$E$12)))/($E$13-E102))) ->  | F110: =IF(F102=$E$13, F101*(1+F102)*($E$12/(1+$E$13)), F101*(1+F102)*((1-((1+F102)^$E$12)*((1+$E$13)^(-$E$12)))/($E$13-F102))) ->  | G110: =IF(G102=$E$13, G101*(1+G102)*($E$12/(1+$E$13)), G101*(1+G102)*((1-((1+G102)^$E$12)*((1+$E$13)^(-$E$12)))/($E$13-G102))) ->  | H110: =IF(H102=$E$13, H101*(1+H102)*($E$12/(1+$E$13)), H101*(1+H102)*((1-((1+H102)^$E$12)*((1+$E$13)^(-$E$12)))/($E$13-H102))) ->  | I110: =IF(I102=$E$13, I101*(1+I102)*($E$12/(1+$E$13)), I101*(1+I102)*((1-((1+I102)^$E$12)*((1+$E$13)^(-$E$12)))/($E$13-I102))) ->  | J110: =IF(J102=$E$13, J101*(1+J102)*($E$12/(1+$E$13)), J101*(1+J102)*((1-((1+J102)^$E$12)*((1+$E$13)^(-$E$12)))/($E$13-J102))) -> 
A111: NPV, post B | D111: kr | E111: =IF(E105=$E$13, E104*(1+E105)*($E$12/(1+$E$13)), E104*(1+E105)*((1-((1+E105)^$E$12)*((1+$E$13)^(-$E$12)))/($E$13-E105))) ->  | F111: =IF(F105=$E$13, F104*(1+F105)*($E$12/(1+$E$13)), F104*(1+F105)*((1-((1+F105)^$E$12)*((1+$E$13)^(-$E$12)))/($E$13-F105))) -> 
A112: NPV, post C | D112: kr | E112: =IF(E108=$E$13, E107*(1+E108)*($E$12/(1+$E$13)), E107*(1+E108)*((1-((1+E108)^$E$12)*((1+$E$13)^(-$E$12)))/($E$13-E108))) ->  | F112: =IF(F108=$E$13, F107*(1+F108)*($E$12/(1+$E$13)), F107*(1+F108)*((1-((1+F108)^$E$12)*((1+$E$13)^(-$E$12)))/($E$13-F108))) -> 
A113: Summa | D113: kr | E113: =SUM(E110:E112) ->  | F113: =SUM(F110:F112) -> 
A116: 4. Energi
A117: 4.1 El
A118: Användande per år | D118: kWh/år
A119: Kostnad per kWh | D119: kr/kWh
A120: Prisökning/minskning, el | D120: % | E120: =$E$14 -> 0.02 | F120: =$E$14 -> 0.02 | G120: 0.02 | H120: 0.02 | I120: 0.02 | J120: 0.02 | K120: 0.02 | L120: 0.02 | M120: 0.02 | N120: 0.02
A121: Kostnad per år | D121: kr | E121: =E118*E119 -> 0 | F121: =F118*F119 -> 0 | G121: 0 | H121: 0 | I121: 0 | J121: 0 | K121: 0 | L121: 0 | M121: 0 | N121: 0
A122: NPV, el | D122: kr | E122: =IF(E120=$E$13, E121*(1+E120)*($E$12/(1+$E$13)), E121*(1+E120)*((1-((1+E120)^$E$12)*((1+$E$13)^(-$E$12)))/($E$13-E120))) ->  | F122: =IF(F120=$E$13, F121*(1+F120)*($E$12/(1+$E$13)), F121*(1+F120)*((1-((1+F120)^$E$12)*((1+$E$13)^(-$E$12)))/($E$13-F120))) -> 
A124: 4.2 Fjärrvärme
A125: Användande per år | D125: kWh/år
A126: Kostnad per kWh | D126: kr/kWh
A127: Prisökning/minskning, fjärrv | D127: % | E127: =$E$14 -> 0.02 | F127: =$E$14 -> 0.02 | G127: 0.02 | H127: 0.02 | I127: 0.02 | J127: 0.02 | K127: 0.02 | L127: 0.02 | M127: 0.02 | N127: 0.02
A128: Kostnad per år | D128: kr | E128: =E125*E126 -> 0 | F128: =F125*F126 -> 0 | G128: 0 | H128: 0 | I128: 0 | J128: 0 | K128: 0 | L128: 0 | M128: 0 | N128: 0
A129: NPV, fjärrvärme | D129: kr | E129: =IF(E127=$E$13, E128*(1+E127)*($E$12/(1+$E$13)), E128*(1+E127)*((1-((1+E127)^$E$12)*((1+$E$13)^(-$E$12)))/($E$13-E127))) ->  | F129: =IF(F127=$E$13, F128*(1+F127)*($E$12/(1+$E$13)), F128*(1+F127)*((1-((1+F127)^$E$12)*((1+$E$13)^(-$E$12)))/($E$13-F127))) -> 
A131: 4.3 Övrig energi
A132: Användande per år | D132: kWh/år
A133: Kostnad per kWh | D133: kr/kWh
A134: Prisökning/minskning, övrig energi | D134: % | E134: =$E$14 -> 0.02 | F134: =$E$14 -> 0.02 | G134: 0.02 | H134: 0.02 | I134: 0.02 | J134: 0.02 | K134: 0.02 | L134: 0.02 | M134: 0.02 | N134: 0.02
A135: Kostnad per år | D135: kr | E135: =E132*E133 -> 0 | F135: =F132*F133 -> 0 | G135: 0 | H135: 0 | I135: 0 | J135: 0 | K135: 0 | L135: 0 | M135: 0 | N135: 0
A136: NPV, värme/kyla | D136: kr | E136: =IF(E134=$E$13, E135*(1+E134)*($E$12/(1+$E$13)), E135*(1+E134)*((1-((1+E134)^$E$12)*((1+$E$13)^(-$E$12)))/($E$13-E134))) ->  | F136: =IF(F134=$E$13, F135*(1+F134)*($E$12/(1+$E$13)), F135*(1+F134)*((1-((1+F134)^$E$12)*((1+$E$13)^(-$E$12)))/($E$13-F134))) -> 
A138: Summa | D138: kr | E138: =E122+E129+E136 ->  | F138: =F122+F129+F136 -> 

Sheet Miljö
B1: Miljöanalys
A2: Detta blad används för miljömässig utvärdering i livscykelperspektiv.
A4: Så här fungerar det:
A6: Ange indata i de gröna fälten och välj i rullisterna.
A7: Beräkningarna avser jämförelse mot referensfall. Endast åtgärder som skiljer respektive alternativ mot referensfallet ska beskrivas och inga ev. åtgärder i referensfallet ska beskrivas.
A8: Extra förklaringar finns i vissa fall i kommentarsfält (röd triangel i höger hörn).
A11: 1. Grundförutsättningar | E11: 1.3 Kort beskrivning av alternativen
A12: 1.1 Allmänt | E12: Alt. nummer | G12: Beskrivning
A13: Projekt: | C13: =IF('Börja här'!R12="","",'Börja här'!R12) ->  | E13: ='Börja här'!Q19 -> Referensfall | F13: TRUE
A14: Datum: | E14: =IF('Börja här'!Q20="","",'Börja här'!Q20) ->  | F14: =IF('Börja här'!$R$15>1,TRUE,FALSE) -> FALSE
A15: Utförare | E15: =IF('Börja här'!Q21="","",'Börja här'!Q21) ->  | F15: =IF('Börja här'!$R$15>2,TRUE,FALSE) -> FALSE
A16: Beräkningsperiod: | B16: år | C16: ='Börja här'!R16 -> 0 | E16: =IF('Börja här'!Q22="","",'Börja här'!Q22) ->  | F16: =IF('Börja här'!$R$15>3,TRUE,FALSE) -> FALSE
E17: =IF('Börja här'!Q23="","",'Börja här'!Q23) ->  | F17: =IF('Börja här'!$R$15>4,TRUE,FALSE) -> FALSE
A18: 1.2 Miljödata för fjärrvärme | B18: Om alt. med fjärrvärme finns (före och/eller efter renovering) | E18: =IF('Börja här'!Q24="","",'Börja här'!Q24) ->  | F18: =IF('Börja här'!$R$15>5,TRUE,FALSE) -> FALSE
A19: Lokal miljöpåverkan fjärrvärme, se länken: | B19: Svensk Fjärrvärmes lokala miljövärden | E19: =IF('Börja här'!Q25="","",'Börja här'!Q25) ->  | F19: =IF('Börja här'!$R$15>6,TRUE,FALSE) -> FALSE
A20: Klimatpåverkan (Emission av växhusgaser) | B20: g CO2-ekv/kWh | C20: =Defaultvärden!C6 -> 83 | E20: =IF('Börja här'!Q26="","",'Börja här'!Q26) ->  | F20: =IF('Börja här'!$R$15>7,TRUE,FALSE) -> FALSE
A21: Primärenergifaktor | B21: kWh/kWh | C21: =Defaultvärden!C7 -> 0.79 | E21: =IF('Börja här'!Q27="","",'Börja här'!Q27) ->  | F21: =IF('Börja här'!$R$15>8,TRUE,FALSE) -> FALSE
E22: =IF('Börja här'!Q28="","",'Börja här'!Q28) ->  | F22: =IF('Börja här'!$R$15>9,TRUE,FALSE) -> FALSE
A24: 1.4 Storlek på byggnad | C24: =E13 -> Referensfall | D24: =E14 ->  | E24: =E15 ->  | F24: =E16 ->  | G24: =E17 ->  | H24: =E18 ->  | I24: =E19 ->  | J24: =E20 ->  | K24: =E21 ->  | L24: =E22 -> 
A25: Area, kvm | B25: m2, Atemp
A28: 2. Resultat, ändring i miljöpåverkan under angiven beräkningsperiod jämfört med referensfallet
A29: 2.1 Total ändring i miljöpåverkan | C29: =C24 -> Referensfall | D29: =D24 -> 
A30: Klimatpåverkan | B30: ton CO2-ekv | C30: 0 | D30: =IF(F14=TRUE,Calc!D139/1000,0) -> 0 | E30: =IF(F15=TRUE,Calc!E139/1000,0) -> 0 | F30: =IF(F16=TRUE,Calc!F139/1000,0) -> 0 | G30: =IF(F17=TRUE,Calc!G139/1000,0) -> 0 | H30: =IF(F18=TRUE,Calc!H139/1000,0) -> 0 | I30: =IF(F19=TRUE,Calc!I139/1000,0) -> 0 | J30: =IF(F20=TRUE,Calc!J139/1000,0) -> 0 | K30: =IF(F21=TRUE,Calc!K139/1000,0) -> 0 | L30: =IF(F22=TRUE,Calc!L139/1000,0) -> 0
A31: Primärenergi | B31: MWh primärenergi | C31: 0 | D31: =IF(F14=TRUE,Calc!D245/1000,0) -> 0 | E31: =IF(F15=TRUE,Calc!E245/1000,0) -> 0 | F31: =IF(F16=TRUE,Calc!F245/1000,0) -> 0 | G31: =IF(F17=TRUE,Calc!G245/1000,0) -> 0 | H31: =IF(F18=TRUE,Calc!H245/1000,0) -> 0 | I31: =IF(F19=TRUE,Calc!I245/1000,0) -> 0 | J31: =IF(F20=TRUE,Calc!J245/1000,0) -> 0 | K31: =IF(F21=TRUE,Calc!K245/1000,0) -> 0 | L31: =IF(F22=TRUE,Calc!L245/1000,0) -> 0
A33: 2.2 Klimatpåverkan fördelat på delprocesser
A34: Produktion | B34: ton CO2-ekv | C34: 0 | D34: =IF($F$14=TRUE,SUMPRODUCT(Calc!D$5:D$34,Calc!D38:D67)/1000-D35,0) -> 0 | E34: =IF($F$15=TRUE,SUMPRODUCT(Calc!E$5:E$34,Calc!E38:E67)/1000-E35,0) -> 0 | F34: =IF($F$16=TRUE,SUMPRODUCT(Calc!F$5:F$34,Calc!F38:F67)/1000-F35,0) -> 0 | G34: =IF($F$17=TRUE,SUMPRODUCT(Calc!G$5:G$34,Calc!G38:G67)/1000-G35,0) -> 0 | H34: =IF($F$18=TRUE,SUMPRODUCT(Calc!H$5:H$34,Calc!H38:H67)/1000-H35,0) -> 0 | I34: =IF($F$19=TRUE,SUMPRODUCT(Calc!I$5:I$34,Calc!I38:I67)/1000-I35,0) -> 0 | J34: =IF($F$20=TRUE,SUMPRODUCT(Calc!J$5:J$34,Calc!J38:J67)/1000-J35,0) -> 0 | K34: =IF($F$21=TRUE,SUMPRODUCT(Calc!K$5:K$34,Calc!K38:K67)/1000-K35,0) -> 0 | L34: =IF($F$22=TRUE,SUMPRODUCT(Calc!L$5:L$34,Calc!L38:L67)/1000-L35,0) -> 0
A35: Transport | B35: ton CO2-ekv | C35: 0 | D35: =IF($F$14=TRUE,(Calc!D$5*Trp!D135+Calc!D$6*Trp!D136+Calc!D$7*Trp!D137+Calc!D$8*Trp!D138+Calc!D$9*Trp!D139+Calc!D$10*Trp!D140+Calc!D$12*Trp!D141+Calc!D$13*Trp!D142+Calc!D$14*Trp!D143+Calc!D$15*Trp!D144+Calc!D34*Trp!D146+SUMPRODUCT(Calc!D16:D25,Trp!D147:D156)+Calc!D$26*Trp!D157+Calc!D$27*Trp!D158+Calc!D$28*Trp!D159+Calc!D$29*Trp!D160+Calc!D$30*Trp!D161+Calc!D$31*Trp!D162+Calc!D$32*Trp!D164+Calc!D$33*Trp!D165)/1000,0) -> 0 | E35: =IF($F$15=TRUE,(Calc!E$5*Trp!E135+Calc!E$6*Trp!E136+Calc!E$7*Trp!E137+Calc!E$8*Trp!E138+Calc!E$9*Trp!E139+Calc!E$10*Trp!E140+Calc!E$12*Trp!E141+Calc!E$13*Trp!E142+Calc!E$14*Trp!E143+Calc!E$15*Trp!E144+Calc!E34*Trp!E146+SUMPRODUCT(Calc!E16:E25,Trp!E147:E156)+Calc!E$26*Trp!E157+Calc!E$27*Trp!E158+Calc!E$28*Trp!E159+Calc!E$29*Trp!E160+Calc!E$30*Trp!E161+Calc!E$31*Trp!E162+Calc!E$32*Trp!E164+Calc!E$33*Trp!E165)/1000,0) -> 0 | F35: =IF($F$16=TRUE,(Calc!F$5*Trp!F135+Calc!F$6*Trp!F136+Calc!F$7*Trp!F137+Calc!F$8*Trp!F138+Calc!F$9*Trp!F139+Calc!F$10*Trp!F140+Calc!F$12*Trp!F141+Calc!F$13*Trp!F142+Calc!F$14*Trp!F143+Calc!F$15*Trp!F144+Calc!F34*Trp!F146+SUMPRODUCT(Calc!F16:F25,Trp!F147:F156)+Calc!F$26*Trp!F157+Calc!F$27*Trp!F158+Calc!F$28*Trp!F159+Calc!F$29*Trp!F160+Calc!F$30*Trp!F161+Calc!F$31*Trp!F162+Calc!F$32*Trp!F164+Calc!F$33*Trp!F165)/1000,0) -> 0 | G35: =IF($F$17=TRUE,(Calc!G$5*Trp!G135+Calc!G$6*Trp!G136+Calc!G$7*Trp!G137+Calc!G$8*Trp!G138+Calc!G$9*Trp!G139+Calc!G$10*Trp!G140+Calc!G$12*Trp!G141+Calc!G$13*Trp!G142+Calc!G$14*Trp!G143+Calc!G$15*Trp!G144+Calc!G34*Trp!G146+SUMPRODUCT(Calc!G16:G25,Trp!G147:G156)+Calc!G$26*Trp!G157+Calc!G$27*Trp!G158+Calc!G$28*Trp!G159+Calc!G$29*Trp!G160+Calc!G$30*Trp!G161+Calc!G$31*Trp!G162+Calc!G$32*Trp!G164+Calc!G$33*Trp!G165)/1000,0) -> 0 | H35: =IF($F$18=TRUE,(Calc!H$5*Trp!H135+Calc!H$6*Trp!H136+Calc!H$7*Trp!H137+Calc!H$8*Trp!H138+Calc!H$9*Trp!H139+Calc!H$10*Trp!H140+Calc!H$12*Trp!H141+Calc!H$13*Trp!H142+Calc!H$14*Trp!H143+Calc!H$15*Trp!H144+Calc!H34*Trp!H146+SUMPRODUCT(Calc!H16:H25,Trp!H147:H156)+Calc!H$26*Trp!H157+Calc!H$27*Trp!H158+Calc!H$28*Trp!H159+Calc!H$29*Trp!H160+Calc!H$30*Trp!H161+Calc!H$31*Trp!H162+Calc!H$32*Trp!H164+Calc!H$33*Trp!H165)/1000,0) -> 0 | I35: =IF($F$19=TRUE,(Calc!I$5*Trp!I135+Calc!I$6*Trp!I136+Calc!I$7*Trp!I137+Calc!I$8*Trp!I138+Calc!I$9*Trp!I139+Calc!I$10*Trp!I140+Calc!I$12*Trp!I141+Calc!I$13*Trp!I142+Calc!I$14*Trp!I143+Calc!I$15*Trp!I144+Calc!I34*Trp!I146+SUMPRODUCT(Calc!I16:I25,Trp!I147:I156)+Calc!I$26*Trp!I157+Calc!I$27*Trp!I158+Calc!I$28*Trp!I159+Calc!I$29*Trp!I160+Calc!I$30*Trp!I161+Calc!I$31*Trp!I162+Calc!I$32*Trp!I164+Calc!I$33*Trp!I165)/1000,0) -> 0 | J35: =IF($F$20=TRUE,(Calc!J$5*Trp!J135+Calc!J$6*Trp!J136+Calc!J$7*Trp!J137+Calc!J$8*Trp!J138+Calc!J$9*Trp!J139+Calc!J$10*Trp!J140+Calc!J$12*Trp!J141+Calc!J$13*Trp!J142+Calc!J$14*Trp!J143+Calc!J$15*Trp!J144+Calc!J34*Trp!J146+SUMPRODUCT(Calc!J16:J25,Trp!J147:J156)+Calc!J$26*Trp!J157+Calc!J$27*Trp!J158+Calc!J$28*Trp!J159+Calc!J$29*Trp!J160+Calc!J$30*Trp!J161+Calc!J$31*Trp!J162+Calc!J$32*Trp!J164+Calc!J$33*Trp!J165)/1000,0) -> 0 | K35: =IF($F$21=TRUE,(Calc!K$5*Trp!K135+Calc!K$6*Trp!K136+Calc!K$7*Trp!K137+Calc!K$8*Trp!K138+Calc!K$9*Trp!K139+Calc!K$10*Trp!K140+Calc!K$12*Trp!K141+Calc!K$13*Trp!K142+Calc!K$14*Trp!K143+Calc!K$15*Trp!K144+Calc!K34*Trp!K146+SUMPRODUCT(Calc!K16:K25,Trp!K147:K156)+Calc!K$26*Trp!K157+Calc!K$27*Trp!K158+Calc!K$28*Trp!K159+Calc!K$29*Trp!K160+Calc!K$30*Trp!K161+Calc!K$31*Trp!K162+Calc!K$32*Trp!K164+Calc!K$33*Trp!K165)/1000,0) -> 0 | L35: =IF($F$22=TRUE,(Calc!L$5*Trp!L135+Calc!L$6*Trp!L136+Calc!L$7*Trp!L137+Calc!L$8*Trp!L138+Calc!L$9*Trp!L139+Calc!L$10*Trp!L140+Calc!L$12*Trp!L141+Calc!L$13*Trp!L142+Calc!L$14*Trp!L143+Calc!L$15*Trp!L144+Calc!L34*Trp!L146+SUMPRODUCT(Calc!L16:L25,Trp!L147:L156)+Calc!L$26*Trp!L157+Calc!L$27*Trp!L158+Calc!L$28*Trp!L159+Calc!L$29*Trp!L160+Calc!L$30*Trp!L161+Calc!L$31*Trp!L162+Calc!L$32*Trp!L164+Calc!L$33*Trp!L165)/1000,0) -> 0
A36: Användningsfas | B36: ton CO2-ekv | C36: 0 | D36: =IF(F14=TRUE,(Calc!D75*$C$16)/1000,0) -> 0 | E36: =IF(F15=TRUE,(Calc!E75*$C$16)/1000,0) -> 0 | F36: =IF(F16=TRUE,(Calc!F75*$C$16)/1000,0) -> 0 | G36: =IF(F17=TRUE,(Calc!G75*$C$16)/1000,0) -> 0 | H36: =IF(F18=TRUE,(Calc!H75*$C$16)/1000,0) -> 0 | I36: =IF(F19=TRUE,(Calc!I75*$C$16)/1000,0) -> 0 | J36: =IF(F20=TRUE,(Calc!J75*$C$16)/1000,0) -> 0 | K36: =IF(F21=TRUE,(Calc!K75*$C$16)/1000,0) -> 0 | L36: =IF(F22=TRUE,(Calc!L75*$C$16)/1000,0) -> 0
A37: Avfallshantering | B37: ton CO2-ekv | C37: 0 | D37: =IF($F$14=TRUE,(SUMPRODUCT(Calc!D5:D10,Calc!D78:D83)+SUMPRODUCT(Calc!D12:D34,Calc!D84:D106))/1000,0) -> 0 | E37: =IF($F$15=TRUE,(SUMPRODUCT(Calc!E5:E10,Calc!E78:E83)+SUMPRODUCT(Calc!E12:E34,Calc!E84:E106))/1000,0) -> 0 | F37: =IF($F$16=TRUE,(SUMPRODUCT(Calc!F5:F10,Calc!F78:F83)+SUMPRODUCT(Calc!F12:F34,Calc!F84:F106))/1000,0) -> 0 | G37: =IF($F$17=TRUE,(SUMPRODUCT(Calc!G5:G10,Calc!G78:G83)+SUMPRODUCT(Calc!G12:G34,Calc!G84:G106))/1000,0) -> 0 | H37: =IF($F$18=TRUE,(SUMPRODUCT(Calc!H5:H10,Calc!H78:H83)+SUMPRODUCT(Calc!H12:H34,Calc!H84:H106))/1000,0) -> 0 | I37: =IF($F$19=TRUE,(SUMPRODUCT(Calc!I5:I10,Calc!I78:I83)+SUMPRODUCT(Calc!I12:I34,Calc!I84:I106))/1000,0) -> 0 | J37: =IF($F$20=TRUE,(SUMPRODUCT(Calc!J5:J10,Calc!J78:J83)+SUMPRODUCT(Calc!J12:J34,Calc!J84:J106))/1000,0) -> 0 | K37: =IF($F$21=TRUE,(SUMPRODUCT(Calc!K5:K10,Calc!K78:K83)+SUMPRODUCT(Calc!K12:K34,Calc!K84:K106))/1000,0) -> 0 | L37: =IF($F$22=TRUE,(SUMPRODUCT(Calc!L5:L10,Calc!L78:L83)+SUMPRODUCT(Calc!L12:L34,Calc!L84:L106))/1000,0) -> 0
A39: 2.3 Användning av primärenergi fördelat på delprocesser
A40: Produktion | B40: MWh primärenergi | C40: 0 | D40: =IF($F$14=TRUE,SUMPRODUCT(Calc!D$5:D$34,Calc!D145:D174)/1000-D41,0) -> 0 | E40: =IF($F$15=TRUE,SUMPRODUCT(Calc!E$5:E$34,Calc!E145:E174)/1000-E41,0) -> 0 | F40: =IF($F$16=TRUE,SUMPRODUCT(Calc!F$5:F$34,Calc!F145:F174)/1000-F41,0) -> 0 | G40: =IF($F$17=TRUE,SUMPRODUCT(Calc!G$5:G$34,Calc!G145:G174)/1000-G41,0) -> 0 | H40: =IF($F$18=TRUE,SUMPRODUCT(Calc!H$5:H$34,Calc!H145:H174)/1000-H41,0) -> 0 | I40: =IF($F$19=TRUE,SUMPRODUCT(Calc!I$5:I$34,Calc!I145:I174)/1000-I41,0) -> 0 | J40: =IF($F$20=TRUE,SUMPRODUCT(Calc!J$5:J$34,Calc!J145:J174)/1000-J41,0) -> 0 | K40: =IF($F$21=TRUE,SUMPRODUCT(Calc!K$5:K$34,Calc!K145:K174)/1000-K41,0) -> 0 | L40: =IF($F$22=TRUE,SUMPRODUCT(Calc!L$5:L$34,Calc!L145:L174)/1000-L41,0) -> 0
A41: Transport | B41: MWh primärenergi | C41: 0 | D41: =IF($F$14=TRUE,(Calc!D$5*Trp!D168+Calc!D$6*Trp!D169+Calc!D$7*Trp!D170+Calc!D$8*Trp!D171+Calc!D$9*Trp!D172+Calc!D$10*Trp!D173+Calc!D$12*Trp!D174+Calc!D$13*Trp!D175+Calc!D$14*Trp!D176+Calc!D$15*Trp!D177+Calc!D34*Trp!D179+SUMPRODUCT(Calc!D16:D25,Trp!D180:D189)+Calc!D$26*Trp!D190+Calc!D$27*Trp!D191+Calc!D$28*Trp!D192+Calc!D$29*Trp!D193+Calc!D$30*Trp!D194+Calc!D$31*Trp!D195+Calc!D$32*Trp!D197+Calc!D$33*Trp!D198)/1000,0) -> 0 | E41: =IF($F$15=TRUE,(Calc!E$5*Trp!E168+Calc!E$6*Trp!E169+Calc!E$7*Trp!E170+Calc!E$8*Trp!E171+Calc!E$9*Trp!E172+Calc!E$10*Trp!E173+Calc!E$12*Trp!E174+Calc!E$13*Trp!E175+Calc!E$14*Trp!E176+Calc!E$15*Trp!E177+Calc!E34*Trp!E179+SUMPRODUCT(Calc!E16:E25,Trp!E180:E189)+Calc!E$26*Trp!E190+Calc!E$27*Trp!E191+Calc!E$28*Trp!E192+Calc!E$29*Trp!E193+Calc!E$30*Trp!E194+Calc!E$31*Trp!E195+Calc!E$32*Trp!E197+Calc!E$33*Trp!E198)/1000,0) -> 0 | F41: =IF($F$16=TRUE,(Calc!F$5*Trp!F168+Calc!F$6*Trp!F169+Calc!F$7*Trp!F170+Calc!F$8*Trp!F171+Calc!F$9*Trp!F172+Calc!F$10*Trp!F173+Calc!F$12*Trp!F174+Calc!F$13*Trp!F175+Calc!F$14*Trp!F176+Calc!F$15*Trp!F177+Calc!F34*Trp!F179+SUMPRODUCT(Calc!F16:F25,Trp!F180:F189)+Calc!F$26*Trp!F190+Calc!F$27*Trp!F191+Calc!F$28*Trp!F192+Calc!F$29*Trp!F193+Calc!F$30*Trp!F194+Calc!F$31*Trp!F195+Calc!F$32*Trp!F197+Calc!F$33*Trp!F198)/1000,0) -> 0 | G41: =IF($F$17=TRUE,(Calc!G$5*Trp!G168+Calc!G$6*Trp!G169+Calc!G$7*Trp!G170+Calc!G$8*Trp!G171+Calc!G$9*Trp!G172+Calc!G$10*Trp!G173+Calc!G$12*Trp!G174+Calc!G$13*Trp!G175+Calc!G$14*Trp!G176+Calc!G$15*Trp!G177+Calc!G34*Trp!G179+SUMPRODUCT(Calc!G16:G25,Trp!G180:G189)+Calc!G$26*Trp!G190+Calc!G$27*Trp!G191+Calc!G$28*Trp!G192+Calc!G$29*Trp!G193+Calc!G$30*Trp!G194+Calc!G$31*Trp!G195+Calc!G$32*Trp!G197+Calc!G$33*Trp!G198)/1000,0) -> 0 | H41: =IF($F$18=TRUE,(Calc!H$5*Trp!H168+Calc!H$6*Trp!H169+Calc!H$7*Trp!H170+Calc!H$8*Trp!H171+Calc!H$9*Trp!H172+Calc!H$10*Trp!H173+Calc!H$12*Trp!H174+Calc!H$13*Trp!H175+Calc!H$14*Trp!H176+Calc!H$15*Trp!H177+Calc!H34*Trp!H179+SUMPRODUCT(Calc!H16:H25,Trp!H180:H189)+Calc!H$26*Trp!H190+Calc!H$27*Trp!H191+Calc!H$28*Trp!H192+Calc!H$29*Trp!H193+Calc!H$30*Trp!H194+Calc!H$31*Trp!H195+Calc!H$32*Trp!H197+Calc!H$33*Trp!H198)/1000,0) -> 0 | I41: =IF($F$19=TRUE,(Calc!I$5*Trp!I168+Calc!I$6*Trp!I169+Calc!I$7*Trp!I170+Calc!I$8*Trp!I171+Calc!I$9*Trp!I172+Calc!I$10*Trp!I173+Calc!I$12*Trp!I174+Calc!I$13*Trp!I175+Calc!I$14*Trp!I176+Calc!I$15*Trp!I177+Calc!I34*Trp!I179+SUMPRODUCT(Calc!I16:I25,Trp!I180:I189)+Calc!I$26*Trp!I190+Calc!I$27*Trp!I191+Calc!I$28*Trp!I192+Calc!I$29*Trp!I193+Calc!I$30*Trp!I194+Calc!I$31*Trp!I195+Calc!I$32*Trp!I197+Calc!I$33*Trp!I198)/1000,0) -> 0 | J41: =IF($F$20=TRUE,(Calc!J$5*Trp!J168+Calc!J$6*Trp!J169+Calc!J$7*Trp!J170+Calc!J$8*Trp!J171+Calc!J$9*Trp!J172+Calc!J$10*Trp!J173+Calc!J$12*Trp!J174+Calc!J$13*Trp!J175+Calc!J$14*Trp!J176+Calc!J$15*Trp!J177+Calc!J34*Trp!J179+SUMPRODUCT(Calc!J16:J25,Trp!J180:J189)+Calc!J$26*Trp!J190+Calc!J$27*Trp!J191+Calc!J$28*Trp!J192+Calc!J$29*Trp!J193+Calc!J$30*Trp!J194+Calc!J$31*Trp!J195+Calc!J$32*Trp!J197+Calc!J$33*Trp!J198)/1000,0) -> 0 | K41: =IF($F$21=TRUE,(Calc!K$5*Trp!K168+Calc!K$6*Trp!K169+Calc!K$7*Trp!K170+Calc!K$8*Trp!K171+Calc!K$9*Trp!K172+Calc!K$10*Trp!K173+Calc!K$12*Trp!K174+Calc!K$13*Trp!K175+Calc!K$14*Trp!K176+Calc!K$15*Trp!K177+Calc!K34*Trp!K179+SUMPRODUCT(Calc!K16:K25,Trp!K180:K189)+Calc!K$26*Trp!K190+Calc!K$27*Trp!K191+Calc!K$28*Trp!K192+Calc!K$29*Trp!K193+Calc!K$30*Trp!K194+Calc!K$31*Trp!K195+Calc!K$32*Trp!K197+Calc!K$33*Trp!K198)/1000,0) -> 0 | L41: =IF($F$22=TRUE,(Calc!L$5*Trp!L168+Calc!L$6*Trp!L169+Calc!L$7*Trp!L170+Calc!L$8*Trp!L171+Calc!L$9*Trp!L172+Calc!L$10*Trp!L173+Calc!L$12*Trp!L174+Calc!L$13*Trp!L175+Calc!L$14*Trp!L176+Calc!L$15*Trp!L177+Calc!L34*Trp!L179+SUMPRODUCT(Calc!L16:L25,Trp!L180:L189)+Calc!L$26*Trp!L190+Calc!L$27*Trp!L191+Calc!L$28*Trp!L192+Calc!L$29*Trp!L193+Calc!L$30*Trp!L194+Calc!L$31*Trp!L195+Calc!L$32*Trp!L197+Calc!L$33*Trp!L198)/1000,0) -> 0
A42: Användningsfas | B42: MWh primärenergi | C42: 0 | D42: =IF(F14=TRUE,(Calc!D182*$C$16)/1000,0) -> 0 | E42: =IF(F15=TRUE,(Calc!E182*$C$16)/1000,0) -> 0 | F42: =IF(F16=TRUE,(Calc!F182*$C$16)/1000,0) -> 0 | G42: =IF(F17=TRUE,(Calc!G182*$C$16)/1000,0) -> 0 | H42: =IF(F18=TRUE,(Calc!H182*$C$16)/1000,0) -> 0 | I42: =IF(F19=TRUE,(Calc!I182*$C$16)/1000,0) -> 0 | J42: =IF(F20=TRUE,(Calc!J182*$C$16)/1000,0) -> 0 | K42: =IF(F21=TRUE,(Calc!K182*$C$16)/1000,0) -> 0 | L42: =IF(F22=TRUE,(Calc!L182*$C$16)/1000,0) -> 0
A43: Avfallshantering | B43: MWh primärenergi | C43: 0 | D43: =IF($F$14=TRUE,(SUMPRODUCT(Calc!D5:D10,Calc!D185:D190)+SUMPRODUCT(Calc!D12:D34,Calc!D191:D213))/1000,0) -> 0 | E43: =IF($F$15=TRUE,(SUMPRODUCT(Calc!E5:E10,Calc!E185:E190)+SUMPRODUCT(Calc!E12:E34,Calc!E191:E213))/1000,0) -> 0 | F43: =IF($F$16=TRUE,(SUMPRODUCT(Calc!F5:F10,Calc!F185:F190)+SUMPRODUCT(Calc!F12:F34,Calc!F191:F213))/1000,0) -> 0 | G43: =IF($F$17=TRUE,(SUMPRODUCT(Calc!G5:G10,Calc!G185:G190)+SUMPRODUCT(Calc!G12:G34,Calc!G191:G213))/1000,0) -> 0 | H43: =IF($F$18=TRUE,(SUMPRODUCT(Calc!H5:H10,Calc!H185:H190)+SUMPRODUCT(Calc!H12:H34,Calc!H191:H213))/1000,0) -> 0 | I43: =IF($F$19=TRUE,(SUMPRODUCT(Calc!I5:I10,Calc!I185:I190)+SUMPRODUCT(Calc!I12:I34,Calc!I191:I213))/1000,0) -> 0 | J43: =IF($F$20=TRUE,(SUMPRODUCT(Calc!J5:J10,Calc!J185:J190)+SUMPRODUCT(Calc!J12:J34,Calc!J191:J213))/1000,0) -> 0 | K43: =IF($F$21=TRUE,(SUMPRODUCT(Calc!K5:K10,Calc!K185:K190)+SUMPRODUCT(Calc!K12:K34,Calc!K191:K213))/1000,0) -> 0 | L43: =IF($F$22=TRUE,(SUMPRODUCT(Calc!L5:L10,Calc!L185:L190)+SUMPRODUCT(Calc!L12:L34,Calc!L191:L213))/1000,0) -> 0
A45: 2.4 Pay-back-tid (miljö)
A46: Klimatpåverkan | B46: år | D46: =IF($F$14=TRUE,IF(Calc!D75<0,Calc!D140,999),0) -> 0 | E46: =IF($F$15=TRUE,IF(Calc!E75<0,Calc!E140,999),0) -> 0 | F46: =IF($F$16=TRUE,IF(Calc!F75<0,Calc!F140,999),0) -> 0 | G46: =IF($F$17=TRUE,IF(Calc!G75<0,Calc!G140,999),0) -> 0 | H46: =IF($F$18=TRUE,IF(Calc!H75<0,Calc!H140,999),0) -> 0 | I46: =IF($F$19=TRUE,IF(Calc!I75<0,Calc!I140,999),0) -> 0 | J46: =IF($F$20=TRUE,IF(Calc!J75<0,Calc!J140,999),0) -> 0 | K46: =IF($F$21=TRUE,IF(Calc!K75<0,Calc!K140,999),0) -> 0 | L46: =IF($F$22=TRUE,IF(Calc!L75<0,Calc!L140,999),0) -> 0
A47: Primärenergi | B47: år | D47: =IF($F$14=TRUE,IF(Calc!D182<0,Calc!D246,999),0) -> 0 | E47: =IF($F$15=TRUE,IF(Calc!E182<0,Calc!E246,999),0) -> 0 | F47: =IF($F$16=TRUE,IF(Calc!F182<0,Calc!F246,999),0) -> 0 | G47: =IF($F$17=TRUE,IF(Calc!G182<0,Calc!G246,999),0) -> 0 | H47: =IF($F$18=TRUE,IF(Calc!H182<0,Calc!H246,999),0) -> 0 | I47: =IF($F$19=TRUE,IF(Calc!I182<0,Calc!I246,999),0) -> 0 | J47: =IF($F$20=TRUE,IF(Calc!J182<0,Calc!J246,999),0) -> 0 | K47: =IF($F$21=TRUE,IF(Calc!K182<0,Calc!K246,999),0) -> 0 | L47: =IF($F$22=TRUE,IF(Calc!L182<0,Calc!L246,999),0) -> 0
D48: Pay-back-tid större än beräkningsperioden betyder att renoveringen inte ger någon besparing. Pay-back-tid större än någon investerings praktiska livslängd kan innehålla mindre fel.
A49: 2.5 Resultatdiagram
A90: 3. Energisystem
C91: =C$24 -> Referensfall | D91: =D$24 -> 
A92: 3.1 Energi för uppvärmning | D92: Fylls i för alla alternativ.
A93: Uppvärmningsform före renovering: | D93: 1 | E93: 1 | F93: 1 | G93: 1 | H93: 1 | I93: 1 | J93: 1 | K93: 1 | L93: 1
A94: Uppvärmningsform efter renovering: | D94: 1 | E94: 1 | F94: 1 | G94: 1 | H94: 1 | I94: 1 | J94: 1 | K94: 1 | L94: 1
A95: Årligt värmebehov efter renovering: | B95: kWh/år
A97: 3.2 Byte av uppvärmningsform | D97: Fylls i för alternativ där uppvärmningssystem byts.
A98: Inkludera byte av uppvärmningsform | D98: FALSE | E98: FALSE | F98: FALSE | G98: FALSE | H98: FALSE | I98: FALSE | J98: FALSE | K98: FALSE | L98: FALSE
A99: Investeringens praktiska livslängd | B99: år | D99: =INDEX(Defaultvärden!$A$15:$C$21,MATCH(Miljö!D94,Defaultvärden!$A$15:$A$21,0),3) -> 25 | E99: =INDEX(Defaultvärden!$A$15:$C$21,MATCH(Miljö!E94,Defaultvärden!$A$15:$A$21,0),3) -> 25 | F99: =INDEX(Defaultvärden!$A$15:$C$21,MATCH(Miljö!F94,Defaultvärden!$A$15:$A$21,0),3) -> 25 | G99: =INDEX(Defaultvärden!$A$15:$C$21,MATCH(Miljö!G94,Defaultvärden!$A$15:$A$21,0),3) -> 25 | H99: =INDEX(Defaultvärden!$A$15:$C$21,MATCH(Miljö!H94,Defaultvärden!$A$15:$A$21,0),3) -> 25 | I99: =INDEX(Defaultvärden!$A$15:$C$21,MATCH(Miljö!I94,Defaultvärden!$A$15:$A$21,0),3) -> 25 | J99: =INDEX(Defaultvärden!$A$15:$C$21,MATCH(Miljö!J94,Defaultvärden!$A$15:$A$21,0),3) -> 25 | K99: =INDEX(Defaultvärden!$A$15:$C$21,MATCH(Miljö!K94,Defaultvärden!$A$15:$A$21,0),3) -> 25 | L99: =INDEX(Defaultvärden!$A$15:$C$21,MATCH(Miljö!L94,Defaultvärden!$A$15:$A$21,0),3) -> 25
A100: Uppvärmningsform före renovering: | D100: =INDEX(Uppvärmning!$A$6:$F$12, MATCH(Miljö!D93,Uppvärmning!$A$6:$A$12, 0),2) -> Bergvärmepump | E100: =INDEX(Uppvärmning!$A$6:$F$12, MATCH(Miljö!E93,Uppvärmning!$A$6:$A$12, 0),2) -> Bergvärmepump | F100: =INDEX(Uppvärmning!$A$6:$F$12, MATCH(Miljö!F93,Uppvärmning!$A$6:$A$12, 0),2) -> Bergvärmepump | G100: =INDEX(Uppvärmning!$A$6:$F$12, MATCH(Miljö!G93,Uppvärmning!$A$6:$A$12, 0),2) -> Bergvärmepump | H100: =INDEX(Uppvärmning!$A$6:$F$12, MATCH(Miljö!H93,Uppvärmning!$A$6:$A$12, 0),2) -> Bergvärmepump | I100: =INDEX(Uppvärmning!$A$6:$F$12, MATCH(Miljö!I93,Uppvärmning!$A$6:$A$12, 0),2) -> Bergvärmepump | J100: =INDEX(Uppvärmning!$A$6:$F$12, MATCH(Miljö!J93,Uppvärmning!$A$6:$A$12, 0),2) -> Bergvärmepump | K100: =INDEX(Uppvärmning!$A$6:$F$12, MATCH(Miljö!K93,Uppvärmning!$A$6:$A$12, 0),2) -> Bergvärmepump | L100: =INDEX(Uppvärmning!$A$6:$F$12, MATCH(Miljö!L93,Uppvärmning!$A$6:$A$12, 0),2) -> Bergvärmepump
A101: Uppvärmningsform efter renoveringen: | D101: =INDEX(Uppvärmning!$A$6:$F$12, MATCH(Miljö!D94,Uppvärmning!$A$6:$A$12, 0),2) -> Bergvärmepump | E101: =INDEX(Uppvärmning!$A$6:$F$12, MATCH(Miljö!E94,Uppvärmning!$A$6:$A$12, 0),2) -> Bergvärmepump | F101: =INDEX(Uppvärmning!$A$6:$F$12, MATCH(Miljö!F94,Uppvärmning!$A$6:$A$12, 0),2) -> Bergvärmepump | G101: =INDEX(Uppvärmning!$A$6:$F$12, MATCH(Miljö!G94,Uppvärmning!$A$6:$A$12, 0),2) -> Bergvärmepump | H101: =INDEX(Uppvärmning!$A$6:$F$12, MATCH(Miljö!H94,Uppvärmning!$A$6:$A$12, 0),2) -> Bergvärmepump | I101: =INDEX(Uppvärmning!$A$6:$F$12, MATCH(Miljö!I94,Uppvärmning!$A$6:$A$12, 0),2) -> Bergvärmepump | J101: =INDEX(Uppvärmning!$A$6:$F$12, MATCH(Miljö!J94,Uppvärmning!$A$6:$A$12, 0),2) -> Bergvärmepump | K101: =INDEX(Uppvärmning!$A$6:$F$12, MATCH(Miljö!K94,Uppvärmning!$A$6:$A$12, 0),2) -> Bergvärmepump | L101: =INDEX(Uppvärmning!$A$6:$F$12, MATCH(Miljö!L94,Uppvärmning!$A$6:$A$12, 0),2) -> Bergvärmepump
A102: Dimensionerande värmeeffekt: | B102: kW
A103: Vikt för panna/värmepump/fjärrvärmecentral | B103: kg
A104: Transport till byggplatsen (Ange antal km från fabrik till byggplats för respektive transportslag)
A105: Lastbil | B105: km
A106: Tåg | B106: km
A107: Båt | B107: km
A108: För värmepumpar: Ange borrhålets djup | B108: m
A110: 3.3 Cirkulationspump värmesystem | D110: Fylls i om cirkulationspump byts ut
A111: Inkludera byte av pump i beräkningarna | D111: FALSE | E111: FALSE | F111: FALSE | G111: FALSE | H111: FALSE | I111: FALSE | J111: FALSE | K111: FALSE | L111: FALSE
A112: Investeringens praktiska livslängd | B112: år | D112: =Defaultvärden!$C$28 -> 12.5 | E112: =Defaultvärden!$C$28 -> 12.5 | F112: =Defaultvärden!$C$28 -> 12.5 | G112: =Defaultvärden!$C$28 -> 12.5 | H112: =Defaultvärden!$C$28 -> 12.5 | I112: =Defaultvärden!$C$28 -> 12.5 | J112: =Defaultvärden!$C$28 -> 12.5 | K112: =Defaultvärden!$C$28 -> 12.5 | L112: =Defaultvärden!$C$28 -> 12.5
A113: Vikt pump | B113: kg
A114: Transport till byggplatsen (Ange antal km från fabrik till byggplats för respektive transportslag)
A115: Lastbil | B115: km
A116: Tåg | B116: km
A117: Båt | B117: km
A119: 3.4 Ventilationsaggregat | D119: Fylls i om ventilationsaggregat byts ut
A120: Inkludera ventilationsaggregat i beräkningarna | D120: FALSE | E120: FALSE | F120: FALSE | G120: FALSE | H120: FALSE | I120: FALSE | J120: FALSE | K120: FALSE | L120: FALSE
A121: Investeringens praktiska livslängd | B121: år | D121: =Defaultvärden!$C$30 -> 15 | E121: =Defaultvärden!$C$30 -> 15 | F121: =Defaultvärden!$C$30 -> 15 | G121: =Defaultvärden!$C$30 -> 15 | H121: =Defaultvärden!$C$30 -> 15 | I121: =Defaultvärden!$C$30 -> 15 | J121: =Defaultvärden!$C$30 -> 15 | K121: =Defaultvärden!$C$30 -> 15 | L121: =Defaultvärden!$C$30 -> 15
A122: Val av ventilationsaggregat | D122: 1 | E122: 1 | F122: 1 | G122: 1 | H122: 1 | I122: 1 | J122: 1 | K122: 1 | L122: 1
A123: Dimensionerande luftflöde (frånluft) | B123: m3/h
A124: Transport till byggplatsen (Ange antal km från fabrik till byggplats för respektive transportslag)
A125: Lastbil | B125: km
A126: Tåg | B126: km
A127: Båt | B127: km
A129: 3.5 Egenproducerad el | D129: Fylls i om ny anläggning för egenproducerad el installeras
A130: Inkludera installation av egenproducerad el i beräkningarna | D130: FALSE | E130: FALSE | F130: FALSE | G130: FALSE | H130: FALSE | I130: FALSE | J130: FALSE | K130: FALSE | L130: FALSE
A131: Investeringens praktiska livslängd | B131: år | D131: =Defaultvärden!$C$32 -> 23 | E131: =Defaultvärden!$C$32 -> 23 | F131: =Defaultvärden!$C$32 -> 23 | G131: =Defaultvärden!$C$32 -> 23 | H131: =Defaultvärden!$C$32 -> 23 | I131: =Defaultvärden!$C$32 -> 23 | J131: =Defaultvärden!$C$32 -> 23 | K131: =Defaultvärden!$C$32 -> 23 | L131: =Defaultvärden!$C$32 -> 23
A132: Val av elproduktionsanläggning | D132: 1 | E132: 1 | F132: 1 | G132: 1 | H132: 1 | I132: 1 | J132: 1 | K132: 1 | L132: 1
A133: Anläggningens storlek | B133: m2
A134: Årlig egen elproduktion | B134: kWh/år
A135: Transport till byggplatsen (Ange antal km från fabrik till byggplats för respektive transportslag)
A136: Lastbil | B136: km
A137: Tåg | B137: km
A138: Båt | B138: km
A141: 4. Ändring i energianvändning
C142: =C$24 -> Referensfall | D142: =D$24 -> 
A143: 4.1 Ändring i energianvändning mot referensfall | D143: Ändringar till följd av åtgärder i ventilation, klimatskal, kyla, belysning m.m.
A144: Ändring i årligt värmebehov | B144: kWh/år
A145: Ändring i årligt elbehov, exkl ev el till värme | B145: kWh/år
A148: 5. Isolering, fönster och dörrar
C149: =C$24 -> Referensfall | D149: =D$24 -> 
A150: 5.1 Isolering material 1 t.ex. fasad (exkl. fasadsystem nedan) | D150: Tilläggsisolering av väggar, tak etc.
A151: Inkludera ny isolering i beräkningarna | D151: FALSE | E151: FALSE | F151: FALSE | G151: FALSE | H151: FALSE | I151: FALSE | J151: FALSE | K151: FALSE | L151: FALSE
A152: Investeringens praktiska livslängd | B152: år | D152: =Defaultvärden!$C$35 -> 40 | E152: =Defaultvärden!$C$35 -> 40 | F152: =Defaultvärden!$C$35 -> 40 | G152: =Defaultvärden!$C$35 -> 40 | H152: =Defaultvärden!$C$35 -> 40 | I152: =Defaultvärden!$C$35 -> 40 | J152: =Defaultvärden!$C$35 -> 40 | K152: =Defaultvärden!$C$35 -> 40 | L152: =Defaultvärden!$C$35 -> 40
A153: Val av isoleringsmaterial | D153: 1 | E153: 1 | F153: 1 | G153: 1 | H153: 1 | I153: 1 | J153: 1 | K153: 1 | L153: 1
A154: Antal kg isoleringsmaterial | B154: kg
A155: Transport till byggplatsen (Ange antal km från fabrik till byggplats för respektive transportslag)
A156: Lastbil | B156: km
A157: Tåg | B157: km
A158: Båt | B158: km
A160: 5.2 Isolering material 2 t.ex. vind/grund | D160: Möjlighet att ange ett andra isoleringsmaterial.
A161: Inkludera ny isolering i beräkningarna | D161: FALSE | E161: FALSE | F161: FALSE | G161: FALSE | H161: FALSE | I161: FALSE | J161: FALSE | K161: FALSE | L161: FALSE
A162: Investeringens praktiska livslängd | B162: år | D162: =Defaultvärden!$C$35 -> 40 | E162: =Defaultvärden!$C$35 -> 40 | F162: =Defaultvärden!$C$35 -> 40 | G162: =Defaultvärden!$C$35 -> 40 | H162: =Defaultvärden!$C$35 -> 40 | I162: =Defaultvärden!$C$35 -> 40 | J162: =Defaultvärden!$C$35 -> 40 | K162: =Defaultvärden!$C$35 -> 40 | L162: =Defaultvärden!$C$35 -> 40
A163: Val av isoleringsmaterial | D163: 1 | E163: 1 | F163: 1 | G163: 1 | H163: 1 | I163: 1 | J163: 1 | K163: 1 | L163: 1
A164: Antal kg isoleringsmaterial | B164: kg
A165: Transport till byggplatsen (Ange antal km från fabrik till byggplats för respektive transportslag)
A166: Lastbil | B166: km
A167: Tåg | B167: km
A168: Båt | B168: km
A170: 5.3 Fasadsystem för renovering och tilläggsisolering | D170: Prefabricerat fasadsystem inkl. isolering och ytbeläggning
A171: Inkludera nytt fasadsystem i beräkningarna | D171: FALSE | E171: FALSE | F171: FALSE | G171: FALSE | H171: FALSE | I171: FALSE | J171: FALSE | K171: FALSE | L171: FALSE
A172: Investeringens praktiska livslängd | B172: år | D172: =Defaultvärden!$C$38 -> 40 | E172: =Defaultvärden!$C$38 -> 40 | F172: =Defaultvärden!$C$38 -> 40 | G172: =Defaultvärden!$C$38 -> 40 | H172: =Defaultvärden!$C$38 -> 40 | I172: =Defaultvärden!$C$38 -> 40 | J172: =Defaultvärden!$C$38 -> 40 | K172: =Defaultvärden!$C$38 -> 40 | L172: =Defaultvärden!$C$38 -> 40
A173: Val av fasadmaterial | D173: 1 | E173: 1 | F173: 1 | G173: 1 | H173: 1 | I173: 1 | J173: 1 | K173: 1 | L173: 1
A174: Fasadarea | B174: m2
A175: Transport till byggplatsen (Ange antal km från fabrik till byggplats för respektive transportslag)
A176: Lastbil | B176: km
A177: Tåg | B177: km
A178: Båt | B178: km
A180: 5.4 Fönster | D180: Kan även inkludera dörrar bestående av mestadels glas såsom balkongdörrar.
A181: Inkludera byte av fönster i beräkningarna | D181: FALSE | E181: FALSE | F181: FALSE | G181: FALSE | H181: FALSE | I181: FALSE | J181: FALSE | K181: FALSE | L181: FALSE
A182: Investeringens praktiska livslängd | B182: år | D182: =Defaultvärden!$C$36 -> 40 | E182: =Defaultvärden!$C$36 -> 40 | F182: =Defaultvärden!$C$36 -> 40 | G182: =Defaultvärden!$C$36 -> 40 | H182: =Defaultvärden!$C$36 -> 40 | I182: =Defaultvärden!$C$36 -> 40 | J182: =Defaultvärden!$C$36 -> 40 | K182: =Defaultvärden!$C$36 -> 40 | L182: =Defaultvärden!$C$36 -> 40
A183: Välj typ av fönster | D183: 1 | E183: 1 | F183: 1 | G183: 1 | H183: 1 | I183: 1 | J183: 1 | K183: 1 | L183: 1
A184: Fönsterarea: | B184: m2
A185: Transport till byggplatsen (Ange antal km från fabrik till byggplats för respektive transportslag)
A186: Lastbil | B186: km
A187: Tåg | B187: km
A188: Båt | B188: km
A190: 5.5 Dörrar (ytter- och balkongdörrar)
A191: Inkludera byte av dörrar i beräkningarna | D191: FALSE | E191: FALSE | F191: FALSE | G191: FALSE | H191: FALSE | I191: FALSE | J191: FALSE | K191: FALSE | L191: FALSE
A192: Investeringens praktiska livslängd | B192: år | D192: =Defaultvärden!$C$37 -> 40 | E192: =Defaultvärden!$C$37 -> 40 | F192: =Defaultvärden!$C$37 -> 40 | G192: =Defaultvärden!$C$37 -> 40 | H192: =Defaultvärden!$C$37 -> 40 | I192: =Defaultvärden!$C$37 -> 40 | J192: =Defaultvärden!$C$37 -> 40 | K192: =Defaultvärden!$C$37 -> 40 | L192: =Defaultvärden!$C$37 -> 40
A193: Välj typ av dörr | D193: 1 | E193: 1 | F193: 1 | G193: 1 | H193: 1 | I193: 1 | J193: 1 | K193: 1 | L193: 1
A194: Antal dörrar | B194: st
A195: Transport till byggplatsen (Ange antal km från fabrik till byggplats för respektive transportslag)
A196: Lastbil | B196: km
A197: Tåg | B197: km
A198: Båt | B198: km
A201: 6. Byggmaterial
C202: =C$24 -> Referensfall | D202: =D$24 -> 
A203: 6.1 Trä - konstruktionsvirke
A204: Inkludera byggande av trästruktur i beräkningarna | D204: FALSE | E204: FALSE | F204: FALSE | G204: FALSE | H204: FALSE | I204: FALSE | J204: FALSE | K204: FALSE | L204: FALSE
A205: Investeringens praktiska livslängd | B205: år | D205: =Defaultvärden!$C$41 -> 60 | E205: =Defaultvärden!$C$41 -> 60 | F205: =Defaultvärden!$C$41 -> 60 | G205: =Defaultvärden!$C$41 -> 60 | H205: =Defaultvärden!$C$41 -> 60 | I205: =Defaultvärden!$C$41 -> 60 | J205: =Defaultvärden!$C$41 -> 60 | K205: =Defaultvärden!$C$41 -> 60 | L205: =Defaultvärden!$C$41 -> 60
A206: Mängd - volym | B206: m3
A207: Transport till byggplatsen (Ange antal km från fabrik till byggplats för respektive transportslag)
A208: Lastbil | B208: km
A209: Tåg | B209: km
A210: Båt | B210: km
A212: 6.2 Trä - målad träfasad
A213: Inkludera ny träfasad i beräkningarna | D213: FALSE | E213: FALSE | F213: FALSE | G213: FALSE | H213: FALSE | I213: FALSE | J213: FALSE | K213: FALSE | L213: FALSE
A214: Investeringens praktiska livslängd | B214: år | D214: =Defaultvärden!$C$42 -> 60 | E214: =Defaultvärden!$C$42 -> 60 | F214: =Defaultvärden!$C$42 -> 60 | G214: =Defaultvärden!$C$42 -> 60 | H214: =Defaultvärden!$C$42 -> 60 | I214: =Defaultvärden!$C$42 -> 60 | J214: =Defaultvärden!$C$42 -> 60 | K214: =Defaultvärden!$C$42 -> 60 | L214: =Defaultvärden!$C$42 -> 60
A215: Mängd - väggyta | B215: m2
A216: Transport till byggplatsen (Ange antal km från fabrik till byggplats för respektive transportslag)
A217: Lastbil | B217: km
A218: Tåg | B218: km
A219: Båt | B219: km
A221: 6.3 Trä - invändig träpanel
A222: Inkludera ny träfasad i beräkningarna | D222: FALSE | E222: FALSE | F222: FALSE | G222: FALSE | H222: FALSE | I222: FALSE | J222: FALSE | K222: FALSE | L222: FALSE
A223: Investeringens praktiska livslängd | B223: år | D223: =Defaultvärden!$C$43 -> 60 | E223: =Defaultvärden!$C$43 -> 60 | F223: =Defaultvärden!$C$43 -> 60 | G223: =Defaultvärden!$C$43 -> 60 | H223: =Defaultvärden!$C$43 -> 60 | I223: =Defaultvärden!$C$43 -> 60 | J223: =Defaultvärden!$C$43 -> 60 | K223: =Defaultvärden!$C$43 -> 60 | L223: =Defaultvärden!$C$43 -> 60
A224: Mängd - väggyta | B224: m2
A225: Transport till byggplatsen (Ange antal km från fabrik till byggplats för respektive transportslag)
A226: Lastbil | B226: km
A227: Tåg | B227: km
A228: Båt | B228: km
A230: 6.4 Betong - bjälklag
A231: Inkludera bjälklag i beräkningarna | D231: FALSE | E231: FALSE | F231: FALSE | G231: FALSE | H231: FALSE | I231: FALSE | J231: FALSE | K231: FALSE | L231: FALSE
A232: Investeringens praktiska livslängd | B232: år | D232: =Defaultvärden!$C$45 -> 80 | E232: =Defaultvärden!$C$45 -> 80 | F232: =Defaultvärden!$C$45 -> 80 | G232: =Defaultvärden!$C$45 -> 80 | H232: =Defaultvärden!$C$45 -> 80 | I232: =Defaultvärden!$C$45 -> 80 | J232: =Defaultvärden!$C$45 -> 80 | K232: =Defaultvärden!$C$45 -> 80 | L232: =Defaultvärden!$C$45 -> 80
A233: Välj typ av bjälklag | D233: 1 | E233: 1 | F233: 1 | G233: 1 | H233: 1 | I233: 1 | J233: 1 | K233: 1 | L233: 1
A234: Mängd - yta | B234: m2
A235: Transport till byggplatsen (Ange antal km från fabrik till byggplats för respektive transportslag)
A236: Lastbil | B236: km
A237: Tåg | B237: km
A238: Båt | B238: km
A240: 6.3 Betong - bärande ytterväggar
A241: Inkludera bärande ytterväggar i beräkningarna | D241: FALSE | E241: FALSE | F241: FALSE | G241: FALSE | H241: FALSE | I241: FALSE | J241: FALSE | K241: FALSE | L241: FALSE
A242: Investeringens praktiska livslängd | B242: år | D242: =Defaultvärden!$C$46 -> 80 | E242: =Defaultvärden!$C$46 -> 80 | F242: =Defaultvärden!$C$46 -> 80 | G242: =Defaultvärden!$C$46 -> 80 | H242: =Defaultvärden!$C$46 -> 80 | I242: =Defaultvärden!$C$46 -> 80 | J242: =Defaultvärden!$C$46 -> 80 | K242: =Defaultvärden!$C$46 -> 80 | L242: =Defaultvärden!$C$46 -> 80
A243: Välj tjocklek på väggar som sandwichelement | D243: 1 | E243: 1 | F243: 1 | G243: 1 | H243: 1 | I243: 1 | J243: 1 | K243: 1 | L243: 1
A244: Mängd - väggyta | B244: m2
A245: Transport till byggplatsen (Ange antal km från fabrik till byggplats för respektive transportslag)
A246: Lastbil | B246: km
A247: Tåg | B247: km
A248: Båt | B248: km
A250: 6.3 Betong - icke bärande ytterväggar
A251: Inkludera icke bärande ytterväggar i beräkningarna | D251: FALSE | E251: FALSE | F251: FALSE | G251: FALSE | H251: FALSE | I251: FALSE | J251: FALSE | K251: FALSE | L251: FALSE
A252: Investeringens praktiska livslängd | B252: år | D252: =Defaultvärden!$C$47 -> 80 | E252: =Defaultvärden!$C$47 -> 80 | F252: =Defaultvärden!$C$47 -> 80 | G252: =Defaultvärden!$C$47 -> 80 | H252: =Defaultvärden!$C$47 -> 80 | I252: =Defaultvärden!$C$47 -> 80 | J252: =Defaultvärden!$C$47 -> 80 | K252: =Defaultvärden!$C$47 -> 80 | L252: =Defaultvärden!$C$47 -> 80
A253: Mängd - väggyta | B253: m2
A254: Transport till byggplatsen (Ange antal km från fabrik till byggplats för respektive transportslag)
A255: Lastbil | B255: km
A256: Tåg | B256: km
A257: Båt | B257: km
A259: 6.3 Betong - innerväggar
A260: Inkludera innerväggar av betong i beräkningarna | D260: FALSE | E260: FALSE | F260: FALSE | G260: FALSE | H260: FALSE | I260: FALSE | J260: FALSE | K260: FALSE | L260: FALSE
A261: Investeringens praktiska livslängd | B261: år | D261: =Defaultvärden!$C$48 -> 80 | E261: =Defaultvärden!$C$48 -> 80 | F261: =Defaultvärden!$C$48 -> 80 | G261: =Defaultvärden!$C$48 -> 80 | H261: =Defaultvärden!$C$48 -> 80 | I261: =Defaultvärden!$C$48 -> 80 | J261: =Defaultvärden!$C$48 -> 80 | K261: =Defaultvärden!$C$48 -> 80 | L261: =Defaultvärden!$C$48 -> 80
A262: Välj tjocklek på väggar | D262: 1 | E262: 1 | F262: 1 | G262: 1 | H262: 1 | I262: 1 | J262: 1 | K262: 1 | L262: 1
A263: Mängd - väggyta | B263: m2
A264: Transport till byggplatsen (Ange antal km från fabrik till byggplats för respektive transportslag)
A265: Lastbil | B265: km
A266: Tåg | B266: km
A267: Båt | B267: km
A269: 6.5 Puts
A270: Inkludera puts i beräkningarna | D270: FALSE | E270: FALSE | F270: FALSE | G270: FALSE | H270: FALSE | I270: FALSE | J270: FALSE | K270: FALSE | L270: FALSE
A271: Investeringens praktiska livslängd | B271: år | D271: =Defaultvärden!$C$50 -> 40 | E271: =Defaultvärden!$C$50 -> 40 | F271: =Defaultvärden!$C$50 -> 40 | G271: =Defaultvärden!$C$50 -> 40 | H271: =Defaultvärden!$C$50 -> 40 | I271: =Defaultvärden!$C$50 -> 40 | J271: =Defaultvärden!$C$50 -> 40 | K271: =Defaultvärden!$C$50 -> 40 | L271: =Defaultvärden!$C$50 -> 40
... 111 more rows

Sheet Material (hidden)
A1: Material
H2: Samma livslängder har kopierats till defaultfliken. Det är de som kopplas till i Indatafliken
A3: Isolering | D3: Tillverkning | F3: Avfallshantering
A4: Nr. | B4: Isolermaterial | C4: Vikt | D4: GWP | E4: PE | F4: GWP | G4: PE | H4: Livslängd | I4: Underhåll | J4: Källa Tillverkning
D5: (kg CO2/kg) | E5: (kWh/kg) | F5: (kg CO2/kg) | G5: (kWh/kg) | H5: år
A6: 1 | B6: Cellulosafiber | D6: 0.36698482 | E6: 2.0710875 | F6: -0.18004158 | G6: -0.4158004158 | H6: 40 | J6: Cellulose fibre, inclusive blowing in, at plant/CH S (of project Ecoinvent system processes)
A7: 2 | B7: Glasull | D7: 1.4938895 | E7: 13.5870875 | F7: 0.004137492043 | G7: 0.01538298324 | H7: 40 | J7: Glass wool mat, at plant/CH S (of project Ecoinvent system processes)
A8: 3 | B8: Stenull | D8: 1.1318297 | E8: 5.399701944 | F8: 0.004137492043 | G8: 0.01538298324 | H8: 40 | J8: Rock wool, at plant/CH S (of project Ecoinvent system processes)
A9: 4 | B9: Cellplast | D9: 4.6600292 | E9: 31.66865 | F9: 1.511627907 | G9: -8.882428941 | H9: 40 | J9: Polystyrene foam slab, at plant/RER U (modifierad enbart CO2-blåst, bygger på en Ecoinvent system process)
A12: Fönster | D12: Tillverkning | F12: Avfallshantering
A13: Nr. | B13: Fönter | C13: Vikt | D13: GWP | E13: PE | F13: GWP | G13: PE | H13: Livslängd | J13: Källa Tillverkning
C14: (kg/m2) | D14: (kg CO2/m2) | E14: (kWh/m2) | F14: (kg CO2/m2) | G14: (kWh/m2) | H14: år
A15: 1 | B15: Fönster, Al-ram | C15: 50.7 | D15: 486.36356 | E15: 2277.607194 | F15: -12.33185178 | G15: 5.296521779 | H15: 40 | J15: Window frame, aluminium, U=1.6 W/m2K, at plant/RER S (of project Ecoinvent system processes)
A16: 2 | B16: Fönster, PVC-ram | C16: 94.5 | D16: 244.95407 | E16: 1609.566361 | F16: 98.89731105 | G16: -582.8851744 | H16: 40 | J16: Window frame, plastic (PVC), U=1.6 W/m2K, at plant/RER S (of project Ecoinvent system processes)
A17: 3 | B17: Fönster, trä/metall-ram | C17: 83.4 | D17: 245.36582 | E17: 1201.724111 | F17: -26.01105195 | G17: -95.23405483 | H17: 40 | J17: Window frame, wood-metal, U=1.6 W/m2K, at plant/RER S (of project Ecoinvent system processes)
A18: 4 | B18: Fönster, trä-ram | C18: 80.2 | D18: 130.80849 | E18: 685.0281944 | F18: -19.2254329 | G18: -199.9213564 | H18: 40 | J18: Window frame, wood, U=1.5 W/m2K, at plant/RER S (of project Ecoinvent system processes)
A21: Dörr | D21: Tillverkning | F21: Avfallshantering
A22: Nr. | B22: Dörr | C22: Vikt | D22: GWP | E22: PE | F22: GWP | G22: PE | H22: Livslängd | J22: Källa Tillverkning
C23: (kg/st) | D23: (kg CO2/st) | E23: (kWh/st) | F23: (kg CO2/st) | G23: (kWh/st) | H23: år
A24: 1 | B24: Dörr trä/aluminium | C24: =38.8*1.6 -> 62.08 | D24: 138.86671 | E24: 618.4938889 | F24: -30.66823665 | G24: -124.9911175 | H24: 40 | J24: Door, outer, wood-aluminium, at plant/RER S (of project Ecoinvent system processes)
A25: 2 | B25: Dörr trä/glas | C25: =36.5*1.6 -> 58.4 | D25: 143.22308 | E25: 634.2451667 | F25: -19.86958874 | G25: -223.1960077 | H25: 40 | J25: Door, outer, wood-glass, at plant/RER S (of project Ecoinvent system processes)
A26: 3 | B26: Balkongdörr glas trä-ram | C26: 103.5 | D26: 171 | E26: =4039/3.6 -> 1121.944444 | F26: -17.43973133 | G26: -96.91633297 | H26: 40 | J26: EPD NorDan Ntech Balcony security door 105/80 (NEPD 00258E)
A27: 4 | B27: Balkongdörr glas trä/alu-ram | C27: 106.8 | D27: 208 | E27: =4643/3.6 -> 1289.722222 | F27: -18.86742208 | G27: -95.11955267 | H27: 40 | J27: EPD NorDan Ntech Balcony security door 105/80 (NEPD 00258E)
A30: Fasad | D30: Tillverkning | F30: Avfallshantering
A31: Nr. | B31: Fasadsystem | C31: Vikt | D31: GWP | E31: PE | F31: GWP | G31: PE | H31: Livslängd | J31: Källa Tillverkning
C32: (kg/m2) | D32: (kg CO2/m2) | E32: (kWh/m2) | F32: (kg CO2/m2) | G32: (kWh/m2) | H32: år | J32: Mestadels Ecoinvent, några EPDer
A33: 1 | B33: 200 EPS/8-15/Ej vent | C33: 24.262535 | D33: 10.33603815 | E33: 147.8616682 | F33: 6.318227668 | G33: -36.32696028 | H33: 40
A34: 2 | B34: 200 Stenull+PIR/10-15/Ej vent | C34: 32.1356375 | D34: 33.5331342 | E34: 202.3495118 | F34: 7.399585771 | G34: -42.39618681 | H34: 40
A35: 3 | B35: 80-100 Stenull/4-8/Vent | C35: 23.25771867 | D35: 22.90403892 | E35: 91.23660625 | F35: -1.18279758 | G35: 1.220011099 | H35: 40
A36: 4 | B36: 80-100 Stenull/10-20/Ej vent | C36: 41.1891575 | D36: 16.43687876 | E36: 50.53861206 | F36: -0.1296169114 | G36: 0.7416641045 | H36: 40
A37: 5 | B37: 80-100 EPS/8-12/Ej vent | C37: 25.005 | D37: 12.87005478 | E37: 120.4471908 | F37: 4.254408221 | G37: -24.11591853 | H37: 40
A38: 6 | B38: 50 Stenull/4-8/Vent | C38: 20.79083333 | D38: 25.5466101 | E38: 111.3727501 | F38: -1.329380589 | G38: 1.64072434 | H38: 40
A39: 7 | B39: 50 Stenull/20/Ej vent | C39: 45.1164075 | D39: 9.613773764 | E39: 19.70721338 | F39: -0.3713518906 | G39: 0.8949844772 | H39: 40
A40: 8 | B40: 50 EPS/8-12/Ej vent | C40: 23.805 | D40: 11.90607562 | E40: 91.95256277 | F40: 2.251641558 | G40: -12.34255285 | H40: 40
A41: 9
A42: 10
A43: 11
A44: 12
A45: 13
A46: 14
A47: 15
A48: 16
A49: 17
A50: 18
A51: 19
A54: Byggmaterial (stomme mm) Trä | D54: Tillverkning | F54: Avfallshantering
A55: Nr. | C55: Vikt | D55: GWP | E55: PE | F55: GWP | G55: PE | H55: Livslängd | J55: Källa Tillverkning
C56: kg/enhet | D56: (kg CO2/enhet) | E56: (kWh/enhet) | F56: (kg CO2/enhet) | G56: (kWh/enhet) | H56: år
A57: 1 | B57: Trä: Konstruktionsvirke (enhet m3) | C57: 440 | D57: 108.6666667 | E57: 3306.574074 | F57: =MAX(-164.444444444444,-D57) -> -108.6666667 | G57: -1876.54321 | H57: 60 | J57: EPD Norge: Genomsnitt av limträbalk/konstruktionsvirke av gran/furu Sørlaminering+Treindustrien+Moelven
A58: 2 | B58: Trä: Fasad (målad) (enhet m2) | C58: 7.83 | D58: 1.21 | E58: 56.22222222 | F58: =MAX(-2.92636363636364,-D58) -> -1.21 | G58: -33.39393939 | H58: 60 | J58: EPD Norge: Treindustrien. Målad träfasad. 19*148 mm. Livslängd 60 år
A59: 3 | B59: Trä invändig träpanel enhet m2 | C59: 6.58 | D59: 0.78 | E59: 46 | F59: =MAX(-2.45919191919192,-D59) -> -0.78 | G59: -28.06285073 | H59: 60 | J59: EPD Norge: Solid softwood panelling for interior use. 1 m2 panel dim 14*120 mm / 0,014 m3 / 6,58 kg.
J60: Kommentar avfallshantering: Har gjort antagandet att avfallshanteringen inte kan "ge tillbaka" mer CO2 än från produktion - användningen i byggnad kan inte vara klimatnegativ jmf med att använda trä direkt för energi
A62: Byggmaterial (stomme mm) Betongbjälklag (m2) | D62: Tillverkning | F62: Avfallshantering
A63: Nr. | C63: Vikt | D63: GWP | E63: PE | F63: GWP | G63: PE | H63: Livslängd | J63: Källa Tillverkning
C64: kg/enhet | D64: (kg CO2/enhet) | E64: (kWh/enhet) | F64: (kg CO2/enhet) | G64: (kWh/enhet) | H64: år
A65: 1 | B65: Betongbjälklag håldäck | C65: 278.16 | D65: 31.18350937 | E65: 69.55107187 | F65: 1.150884787 | G65: 4.278930617 | H65: 80 | J65: EPD håldäck + EPD spännarmering
A66: 2 | B66: Betongbjälklag homogen | C66: 484.7 | D66: 52.48750937 | E66: 80.92218298 | F66: 2.005442393 | G66: 7.456131975 | H66: 80 | J66: EPD platsgjutet bjälklag+EPD Celsa stål
A67: 3 | B67: Betongbjälklag homogen klimatförbättrad | C67: 476 | D67: 45.88750937 | E67: 77.19996076 | F67: 1.969446213 | G67: 7.322300021 | H67: 80 | J67: EPD klimatförbättrad platsgjutet bjälklag+EPD Celsa stål
A68: 4
A71: Byggmaterial (stomme mm) betongvägg yttervägg sandwichelement | D71: Tillverkning | F71: Avfallshantering
A72: Nr. | C72: Vikt | D72: GWP | E72: PE | F72: GWP | G72: PE | H72: Livslängd | J72: Källa Tillverkning
C73: kg/enhet | D73: (kg CO2/enhet) | E73: (kWh/enhet) | F73: (kg CO2/enhet) | G73: (kWh/enhet) | H73: år
A74: 1 | B74: 200+75 mm | C74: 667.3 | D74: 79.96877342 | E74: 186.2637908 | F74: 2.76094844 | G74: 10.26506471 | H74: 80 | J74: EPD prefab sandwich+EPD Celsa stål
A75: 2 | B75: 150+75 mm | C75: 548.7 | D75: 72.01877342 | E75: 175.8707352 | F75: 2.270241884 | G75: 8.440642903 | H75: 80 | J75: EPD prefab sandwich+EPD Celsa stål
B77: Yttervägg sandwichelement 80+80 mm, ickebärande | C77: 384.52 | D77: 46.95625781 | E77: 109.8596895 | F77: 1.59094844 | G77: 5.915064715 | H77: 80 | J77: EPD prefab sandwich+EPD Celsa stål
A81: Byggmaterial (stomme mm) betongvägg innervägg | D81: Tillverkning | F81: Avfallshantering
A82: Nr. | C82: Vikt | D82: GWP | E82: PE | F82: GWP | G82: PE | H82: Livslängd | J82: Källa Tillverkning
C83: kg/enhet | D83: (kg CO2/enhet) | E83: (kWh/enhet) | F83: (kg CO2/enhet) | G83: (kWh/enhet) | H83: år
A84: 1 | B84: Innervägg 200 mm | C84: 476 | D84: 45.88750937 | E84: 77.19996076 | F84: 1.969446213 | G84: 7.322300021 | H84: 80 | J84: EPD klimatförbättrad platsgjutet bjälklag+EPD Celsa stål
A85: 2 | B85: Innervägg 150 mm | C85: 358.5 | D85: 34.98750937 | E85: 59.94996076 | F85: 1.483290898 | G85: 5.514799491 | H85: 80 | J85: EPD klimatförbättrad platsgjutet bjälklag+EPD Celsa stål
A87: Byggmaterial (stomme mm) Puts o gips | D87: Tillverkning | F87: Avfallshantering
A88: Nr. | C88: Vikt | D88: GWP | E88: PE | F88: GWP | G88: PE | H88: Livslängd | J88: Källa Tillverkning
C89: kg/enhet | D89: (kg CO2/enhet) | E89: (kWh/enhet) | F89: (kg CO2/enhet) | G89: (kWh/enhet) | H89: år
B90: Puts (enhet m2) | C90: 20 | D90: 5.400446668 | E90: 10.24011401 | F90: 0.08274984087 | G90: 0.3076596648 | H90: 40 | J90: Ecoinvent 3: Base plaster
B91: Gips: Gipsfiberplatta (enhet m2) | C91: 10 | D91: 3.08 | E91: 13.38055556 | F91: 0.04137492043 | G91: 0.1538298324 | H91: 60 | J91: Ökobau: Gipsfaserplatte nach DIN EN 15283-2 oder ETA
A95: Byggmaterial (stomme mm) Takbeläggning (m2) | D95: Tillverkning | F95: Avfallshantering
A96: Nr. | C96: Vikt | D96: GWP | E96: PE | F96: GWP | G96: PE | H96: Livslängd | J96: Källa Tillverkning
C97: kg/enhet | D97: (kg CO2/enhet) | E97: (kWh/enhet) | F97: (kg CO2/enhet) | G97: (kWh/enhet) | H97: år
A98: 1 | B98: Takpannor av tegel | C98: 46.6 | D98: 16.8226 | E98: 81.13577778 | F98: 0.1928071292 | G98: 0.7168470189 | H98: 60 | J98: IBU EPD: Tondachziegel CREATON AG Werk Dorfen/Bayern
A99: 2 | B99: Takpannor av betong | C99: 45 | D99: 10.395 | E99: 26.15888889 | F99: 0.1861871419 | G99: 0.6922342457 | H99: 40 | J99: IBU EPD: Betondachstein mit Beschichtung/Eternit Östereich GmbH + Betondachsteine/Dachziegelwerke Nelskamp GmbH
A100: 3 | B100: Takpaneler av fibercement | C100: 7.4 | D100: 7.18466 | E100: 21.78888889 | F100: 0.03061744112 | G100: 0.113834076 | H100: 30 | J100: IBU EPD: Fibre cement slates/Cembrit Holding A/S
A101: 4 | B101: Takpapp | C101: 6.975 | D101: 4.4225 | E101: 80.46388889 | F101: 0.028859007 | G101: 0.1072963081 | H101: 25 | J101: EPD Norge: Medelvärde av fyra typer Bitumen roof
A102: 5
A107: Ventilationskanaler | D107: Tillverkning | F107: Avfallshantering
A108: Nr. | B108: Kanalmaterial | C108: Vikt | D108: GWP | E108: PE | F108: GWP | G108: PE | H108: Livslängd | J108: Källa Tillverkning
D109: (kg CO2/kg) | E109: (kWh/kg) | F109: (kg CO2/kg) | G109: (kWh/kg) | H109: år
A110: 1 | B110: Stål | D110: 4.228093333 | E110: 20.03099259 | F110: -0.6142857143 | G110: 0.2380952381 | H110: 50 | J110: Ventilation duct, steel, 100x50 mm, at plant/RER S
A111: 2 | B111: Polyetenplast | D111: 2.973106061 | E111: 26.49824579 | F111: 1.511627907 | G111: -8.882428941 | H111: 50 | J111: Ventilation duct, PE corrugated tube, DN 75, at plant/RER S
A112: 3
A113: 4
A116: Ventilationsaggregat | D116: Tillverkning | F116: Avfallshantering
A117: Nr. | B117: Ventilationsaggregat | C117: Vikt | D117: GWP | E117: PE | F117: GWP | G117: PE | H117: Livslängd | J117: Källa Tillverkning
C118: kg/(m3/h) | D118: (kg CO2 /(m3/h)) | E118: (kWh /(m3/h)) | F118: (kg CO2 /(m3/h)) | G118: (kWh /(m3/h)) | H118: år
A119: 1 | B119: Frånluftsaggregat (centralt) | C119: =143/900 -> 0.1588888889 | D119: 0.8934418889 | E119: 4.133000926 | F119: -0.07795105938 | G119: 0.03075338729 | H119: 15 | J119: Ventilation equipment, central, 600-1200 m3/h, at plant/RER U
A120: 2 | B120: FTX-aggregat (centalt) | C120: =C119*2.5 -> 0.3972222222 | D120: =D119*2.5 -> 2.233604722 | E120: =E119*2.5 -> 10.33250231 | F120: -0.1948776484 | G120: 0.07688346822 | H120: 15 | J120: Miljöpåverkan från FTX agreegatet antags vara 2,5 muliplicerat med miljöpåverkan för frånluftsaggregatet. Uppskattning mha av Svein Ruud 13-11-27
A121: 3 | B121: Frånluftsvärmepump | C121: 0.36 | D121: 3.11 | E121: 7.07 | F121: -0.1766163863 | G121: 0.06967900336 | H121: 15 | J121: Samma som luft-vattenvärmepump
A122: 4
A125: Övriga ventilationskomponenter | D125: Tillverkning | F125: Avfallshantering
A126: Nr. | B126: Övriga ventilationskomponenter | C126: Vikt | D126: GWP | E126: PE | F126: GWP | G126: PE | H126: Livslängd | J126: Källa Tillverkning
C127: kg/st | D127: (kg CO2/st | E127: (kWh/st) | F127: (kg CO2/st) | G127: (kWh/st) | H127: år
A128: 1 | B128: Don och ljuddämpare | C128: =35.6/2 -> 17.8 | D128: =111.206198/2 -> 55.603099 | E128: =559.128172222222/2 -> 279.5640861 | F128: =-21.8685714285714/2 -> -10.93428571 | G128: =8.47619047619048/2 -> 4.238095238 | H128: 20 | J128: Air distribution housing, steel, 120 m3/h, at plant/CH S och Silencer, steel, DN 125, at plant/CH S
A129: 2
A130: 3
A131: 4
A134: Cirkulationspump för värmesystem | D134: Tillverkning | F134: Avfallshantering
A135: Nr. | C135: Vikt | D135: GWP | E135: PE | F135: GWP | G135: PE | H135: Livslängd | J135: Källa Tillverkning | K135: Referens materialinnehåll: | N135: Life Cycle Thinking - the case of Grundfos, Mikkel Thrane and Arne Remmen, Department of Development and Planning Aalborg University, Denmark
D136: (kg CO2/kg) | E136: (kWh/kg) | F136: (kg CO2/kg) | G136: (kWh/kg) | H136: år | K136: Referens materialdata: | N136: Cast iron, at plant/RER U | R136: Ecoinvent
A137: 1 | B137: Oreglerad pump | D137: 5.783317746 | E137: 28.14876115 | F137: -0.223880597 | G137: 0.2487562189 | H137: 15 | N137: Steel, low-alloyed, at plant/RER U
A138: 2 | B138: Varvtalsreglerad pump | D138: 13.268258 | E138: 66.79411528 | F138: -0.223880597 | G138: 0.2487562189 | H138: 12.5 | N138: Copper, at regional storage/RER U
A139: 3 | N139: Aluminium, production mix, at plant/RER U
A140: 4 | N140: Polystyrene, general purpose, GPPS, at plant/RER U
N141: Silicon, electronic grade, at plant/DE U
K142: Materialbehandling: | N142: Injection moulding/RER U
A143: Radiatorer | D143: Tillverkning | F143: Avfallshantering | N143: Wire drawing, copper/RER U
A144: Nr. | C144: Vikt | D144: GWP | E144: PE | F144: GWP | G144: PE | H144: Livslängd | J144: Källa Tillverkning | N144: Sheet rolling, steel/RER U
D145: (kg CO2/kg) | E145: (kWh/kg) | F145: (kg CO2/kg) | G145: (kWh/kg) | H145: år | N145: Sheet rolling, aluminium/RER U
A146: 1 | B146: Vattenburet | D146: 1.7762244 | E146: 8.010185833 | F146: -0.6142857143 | G146: 0.2380952381 | H146: 35 | J146: Materialinnehåll: Epecon Byggvarudeklaration BVD 3 Epecon Modul Compact, 2012. Materialdata: Steel, low-alloyed, at plant/RER U, Coating powder, at plant/RER U
A147: 2 | B147: Elradiator | D147: 1.7041306 | E147: 9.592992222 | F147: -0.2366850217 | G147: -1.360000903 | H147: 22.5 | J147: Materialinnehåll: Miljödeklaration Radiator PAX 3000
A148: 3
A149: 4
A152: Rör för vatten, avlopp och värmedistribution | D152: Tillverkning | F152: Avfallshantering
A153: Nr. | C153: Vikt | D153: GWP | E153: PE | F153: GWP | G153: PE | H153: Livslängd | J153: Källa Tillverkning
D154: (kg CO2/kg) | E154: (kWh/kg) | F154: (kg CO2/kg) | G154: (kWh/kg) | H154: år
A155: 1 | B155: Kopparrör | D155: 2.670769231 | E155: 10.4022792 | F155: -0.6142857143 | G155: 0.2380952381 | H155: 50 | J155: (För vatten) European copper insitute, A ‘cradle-to-gate‘ life-cycle assessment for copper tube
A156: 2 | B156: PEX-rör | D156: 4.239859016 | E156: 37.02189312 | F156: 1.511627907 | G156: -8.882428941 | H156: 50 | J156: (Vattenrör) The European Plastics Pipes and Fittings Association (TEPPFA)/Flemish Institute for Technological Research (VITO) (2011) EPD Environmental Product Declaration - PEX pipe system for hot and cold water in the building
A157: 3 | B157: PP-rör | D157: 4.18828379 | E157: 40.66507651 | F157: 1.511627907 | G157: -8.882428941 | H157: 50 | J157: (Avloppsrör)The European Plastics Pipes and Fittings Association (TEPPFA)/Flemish Institute for Technological Research (VITO) (2011) EPD Environmental Product Declaration - PP pipe system for soil and waste removal from the building
A158: 4 | B158: Gjutjärnsrör | D158: 1.774198384 | E158: 8.401617467 | F158: -0.6142857143 | G158: 0.2380952381 | H158: 50 | J158: (För avlopp) Gustavsberg rörsystem (2008), Cast iron, at plant/RER U, Epoxy resin, liquid, at plant/RER U, Degreasing, metal part in alkaline bath/RER U
A159: 5 | B159: Galvaniserade stålrör | D159: 2.653834512 | E159: 11.72261596 | F159: -0.6142857143 | G159: 0.2380952381 | H159: 50 | J159: (För värme) Geberit product catalogue (2013), Steel, low-alloyed, at plant/RER U, Welding, gas, steel/RER U, Zinc coating,pieces/RER U
A162: Relining | D162: Tillverkning | F162: Avfallshantering
A163: Nr. | C163: Vikt | D163: GWP | E163: PE | F163: GWP | G163: PE | H163: Livslängd | J163: Källa Tillverkning
D164: (kg CO2/kg) | E164: (kWh/kg) | F164: (kg CO2/kg) | G164: (kWh/kg) | H164: år
A165: 1 | B165: Glasfiberpolyester | D165: 4.8734041 | E165: 22.80616278 | F165: 0.607133658 | G165: -3.543741786 | H165: 35 | J165: Glass fibre reinforced plastic, polyester resin, hand lay-up, at plant/RER U (of project Ecoinvent unit processes)
A166: 2 | B166: PUR- och epoxipolyester
A167: 3
A168: 4
A171: Elsystem | D171: Tillverkning | F171: Avfallshantering
A172: Nr. | C172: Vikt | D172: GWP | E172: PE | F172: GWP | G172: PE | H172: Livslängd | J172: Källa Tillverkning
D173: (kg CO2/m) | E173: (kWh/m) | F173: (kg CO2/m) | G173: (kWh/m) | H173: år
A174: 1 | B174: Elledning | C174: 0.121 | D174: 0.4148 | E174: =(0.7441+7.783)/3.6 -> 2.368638889 | F174: 0.08772982392 | G174: -0.6664480343 | H174: 37.5 | J174: Oekobau: Kabel 3 adrig
A175: 2
A176: 3
A177: 4
A180: Egen elproduktion | D180: Tillverkning | F180: Avfallshantering
A181: Nr. | C181: Vikt | D181: GWP | E181: PE | F181: GWP | G181: PE | H181: Livslängd | J181: Källa Tillverkning
D182: (kg CO2/m2) | E182: (kWh/m2) | F182: (kg CO2/m2) | G182: (kWh/m2) | H182: år
A183: 1 | B183: Solel | C183: 14 | D183: 38.661914 | E183: =625.14598/3.6 -> 173.6516611 | H183: 23 | J183: 1 m2 Slanted-roof construction, mounted, on roof/RER/I S (of project Ecoinvent system processes) inkl. avfallshantering
A184: 2
A185: 3
A186: 4

Sheet Uppvärmning (hidden)
A2: Uppvärmning
A3: miljöpåverkan på per kWh uppvärmning
A4: Nr. | B4: Uppvärmning | C4: GWP | D4: PE | E4: Livslängd | F4: Livslängd kringmaterial borrhål etc
C5: (kg CO2-eq/kWh) | D5: (kWh/kWh) | E5: År | F5: År
A6: 1 | B6: Bergvärmepump | C6: =C11/3.6+F15 -> 0.03042300663 | D6: =D11/3.6 -> 0.4833333333 | E6: 25 | F6: 100 | G6: El nordisk mix enl Miljöfaktaboken, SPF 3,6 (test Energimynd), köldmedium R134a enl. SEPEMO
A7: 2 | B7: Luft-vattenvärmepump | C7: =C11/2.6+F15 -> 0.04081830578 | D7: =D11/2.6 -> 0.6692307692 | E7: 15 | G7: El nordisk mix enl Miljöfaktaboken, SPF 2,6 (test Energimynd), köldmedium R134a enl. SEPEMO
A8: 3 | B8: Fjärrvärme | C8: =Miljö!C20/1000 -> 0.083 | D8: =Miljö!C21 -> 0.79 | E8: 30 | F8: 50 | G8: Svensk Fjärrvärme (alt. användarens egna uppgifter)
A9: 4 | B9: Pelletspanna | C9: =0.01984/0.9 -> 0.02204444444 | D9: 1.23 | E9: 25 | F9: 50 | G9: Miljöfaktaboken
A10: 5 | B10: Oljepanna | C10: 0.3856 | D10: 1.48 | E10: 25 | F10: 50 | G10: Miljöfaktaboken
A11: 6 | B11: Elpanna | C11: 0.0973 | D11: 1.74 | E11: 25 | G11: Miljöfaktaboken, nordisk mix
A12: 7 | B12: Direktel | C12: =C11 -> 0.0973 | D12: =D11 -> 1.74 | G12: Miljöfaktaboken, nordisk mix
E15: Köldmedieutsläpp | F15: 0.003395228857 | G15: kg CO2-eq/kWh | H15: köldmedium R134a enl. SEPEMO
C16: Verkningsgrad (gammal) oljepanna | D16: 0.75
C17: Verkningsgrad pelletspanna | D17: 0.9
A19: Installation av ny uppvärmningsanläggning
C20: OBS använd delresultat med försiktighet, förhållandet mellan vikt och effekt skiljer mellan olika uppvärmningsformer
B21: Miljöbesparing, byte av uppvärmning | D21: =Miljö!C24 -> Referensfall | E21: =Miljö!D24 ->  | F21: =Miljö!E24 ->  | G21: =Miljö!F24 ->  | H21: =Miljö!G24 ->  | I21: =Miljö!H24 ->  | J21: =Miljö!I24 ->  | K21: =Miljö!J24 ->  | L21: =Miljö!K24 ->  | M21: =Miljö!L24 -> 
B22: Befintlig uppvärmningsform | D22: =INDEX(Uppvarmning1, MATCH(Miljö!C93,$A$6:$A$12, 0),2) ->  | E22: =INDEX(Uppvarmning1, MATCH(Miljö!D93,$A$6:$A$12, 0),2) -> Bergvärmepump | F22: =INDEX(Uppvarmning1, MATCH(Miljö!E93,$A$6:$A$12, 0),2) -> Bergvärmepump | G22: =INDEX(Uppvarmning1, MATCH(Miljö!F93,$A$6:$A$12, 0),2) -> Bergvärmepump | H22: =INDEX(Uppvarmning1, MATCH(Miljö!G93,$A$6:$A$12, 0),2) -> Bergvärmepump | I22: =INDEX(Uppvarmning1, MATCH(Miljö!H93,$A$6:$A$12, 0),2) -> Bergvärmepump | J22: =INDEX(Uppvarmning1, MATCH(Miljö!I93,$A$6:$A$12, 0),2) -> Bergvärmepump | K22: =INDEX(Uppvarmning1, MATCH(Miljö!J93,$A$6:$A$12, 0),2) -> Bergvärmepump | L22: =INDEX(Uppvarmning1, MATCH(Miljö!K93,$A$6:$A$12, 0),2) -> Bergvärmepump | M22: =INDEX(Uppvarmning1, MATCH(Miljö!L93,$A$6:$A$12, 0),2) -> Bergvärmepump
B23: Ny uppvärmningsform | D23: =INDEX(Uppvarmning1, MATCH(Miljö!C94,$A$6:$A$12, 0),2) ->  | E23: =INDEX(Uppvarmning1, MATCH(Miljö!D94,$A$6:$A$12, 0),2) -> Bergvärmepump | F23: =INDEX(Uppvarmning1, MATCH(Miljö!E94,$A$6:$A$12, 0),2) -> Bergvärmepump | G23: =INDEX(Uppvarmning1, MATCH(Miljö!F94,$A$6:$A$12, 0),2) -> Bergvärmepump | H23: =INDEX(Uppvarmning1, MATCH(Miljö!G94,$A$6:$A$12, 0),2) -> Bergvärmepump | I23: =INDEX(Uppvarmning1, MATCH(Miljö!H94,$A$6:$A$12, 0),2) -> Bergvärmepump | J23: =INDEX(Uppvarmning1, MATCH(Miljö!I94,$A$6:$A$12, 0),2) -> Bergvärmepump | K23: =INDEX(Uppvarmning1, MATCH(Miljö!J94,$A$6:$A$12, 0),2) -> Bergvärmepump | L23: =INDEX(Uppvarmning1, MATCH(Miljö!K94,$A$6:$A$12, 0),2) -> Bergvärmepump | M23: =INDEX(Uppvarmning1, MATCH(Miljö!L94,$A$6:$A$12, 0),2) -> Bergvärmepump
B24: Vikt | C24: kg | D24: =Miljö!C103 -> 0 | E24: =Miljö!D103 -> 0 | F24: =Miljö!E103 -> 0 | G24: =Miljö!F103 -> 0 | H24: =Miljö!G103 -> 0 | I24: =Miljö!H103 -> 0 | J24: =Miljö!I103 -> 0 | K24: =Miljö!J103 -> 0 | L24: =Miljö!K103 -> 0 | M24: =Miljö!L103 -> 0
B25: Dimensionerande värmeeffekt: | C25: kW | D25: =Miljö!C102 -> 0 | E25: =Miljö!D102 -> 0 | F25: =Miljö!E102 -> 0 | G25: =Miljö!F102 -> 0 | H25: =Miljö!G102 -> 0 | I25: =Miljö!H102 -> 0 | J25: =Miljö!I102 -> 0 | K25: =Miljö!J102 -> 0 | L25: =Miljö!K102 -> 0 | M25: =Miljö!L102 -> 0
B26: Djup borrhål | C26: m | D26: =Miljö!C108 -> 0 | E26: =Miljö!D108 -> 0 | F26: =Miljö!E108 -> 0 | G26: =Miljö!F108 -> 0 | H26: =Miljö!G108 -> 0 | I26: =Miljö!H108 -> 0 | J26: =Miljö!I108 -> 0 | K26: =Miljö!J108 -> 0 | L26: =Miljö!K108 -> 0 | M26: =Miljö!L108 -> 0
B27: Årlig energiförbrukning | C27: kWh | D27: =Miljö!C95 -> 0 | E27: =Miljö!D95 -> 0 | F27: =Miljö!E95 -> 0 | G27: =Miljö!F95 -> 0 | H27: =Miljö!G95 -> 0 | I27: =Miljö!H95 -> 0 | J27: =Miljö!I95 -> 0 | K27: =Miljö!J95 -> 0 | L27: =Miljö!K95 -> 0 | M27: =Miljö!L95 -> 0
A29: Nr. | B29: Växthuseffekt materialanvändning
A30: 1 | B30: Bergvärmepump | C30: kg CO2-eq/st | D30: =6.73*D24 -> 0 | E30: 0 | F30: 0 | G30: 0 | H30: 0 | I30: 0 | J30: 0 | K30: 0 | L30: 0 | M30: 0
A31: 2 | B31: Luft-vattenvärmepump | C31: kg CO2-eq/st | D31: =8.7*D24 -> 0 | E31: =8.7*E24 -> 0 | F31: 0 | G31: 0 | H31: 0 | I31: 0 | J31: 0 | K31: 0 | L31: 0 | M31: =8.7*M24 -> 0
A32: 3 | B32: Fjärrvärme | C32: kg CO2-eq/st | D32: =3.4880078*D24 -> 0 | E32: =3.4880078*E24 -> 0 | F32: 0 | G32: 0 | H32: 0 | I32: 0 | J32: 0 | K32: 0 | L32: 0 | M32: =3.4880078*M24 -> 0
A33: 4 | B33: Pelletspanna | C33: kg CO2-eq/st | D33: =12.361*D25+1049.6 -> 1049.6 | E33: =12.361*E25+1049.6 -> 1049.6 | F33: 1049.6 | G33: 1049.6 | H33: 1049.6 | I33: 1049.6 | J33: 1049.6 | K33: 1049.6 | L33: 1049.6 | M33: 1049.6
A34: 5 | B34: Oljepanna | C34: kg CO2-eq/st | D34: =11.95*D25+244.18 -> 244.18 | E34: =11.95*E25+244.18 -> 244.18 | F34: 244.18 | G34: 244.18 | H34: 244.18 | I34: 244.18 | J34: 244.18 | K34: 244.18 | L34: 244.18 | M34: =11.95*M25+244.18 -> 244.18
A35: 6 | B35: Elpanna | C35: kg CO2-eq/st | D35: =1363.4963*D24/64 -> 0 | E35: =1363.4963*E24/64 -> 0 | F35: =1363.4963*F24/64 -> 0 | G35: 0 | H35: 0 | I35: 0 | J35: 0 | K35: 0 | L35: 0 | M35: 0
A36: 7 | B36: Direktel | C36: kg CO2-eq/st | D36: 0 | E36: 0 | F36: 0 | G36: 0 | H36: 0 | I36: 0 | J36: 0 | K36: 0 | L36: 0 | M36: 0
A37: A | B37: Borrhål fär värmepump | C37: kg CO2-eq/st | D37: =19.13*D26 -> 0 | E37: =19.13*E26 -> 0 | F37: 0 | G37: 0 | H37: 0 | I37: 0 | J37: 0 | K37: 0 | L37: 0 | M37: 0
A38: B | B38: Anslutning fjv | C38: kg CO2-eq/st | D38: =0.0858*D27 -> 0 | E38: =0.0858*E27 -> 0 | F38: =0.0858*F27 -> 0 | G38: 0 | H38: 0 | I38: 0 | J38: 0 | K38: 0 | L38: 0 | M38: =0.0858*M27 -> 0
A39: C | B39: Skorsten + pelletsförvaring | C39: kg CO2-eq/st | D39: =59.713*D25+671.77 -> 671.77 | E39: =59.713*E25+671.77 -> 671.77 | F39: 671.77 | G39: 671.77 | H39: 671.77 | I39: 671.77 | J39: 671.77 | K39: 671.77 | L39: 671.77 | M39: 671.77
A40: D | B40: Oljetank | C40: kg CO2-eq/st | D40: =43.259*D25+540.74 -> 540.74 | E40: =43.259*E25+540.74 -> 540.74 | F40: 540.74 | G40: 540.74 | H40: 540.74 | I40: 540.74 | J40: 540.74 | K40: 540.74 | L40: 540.74 | M40: 540.74
A42: Nr. | B42: Primärenerg materialanvändning
A43: 1 | B43: Bergvärmepump | C43: kWh PE/st | D43: =8.98*D24 -> 0 | E43: 0 | F43: 0 | G43: 0 | H43: 0 | I43: 0 | J43: 0 | K43: 0 | L43: 0 | M43: 0
A44: 2 | B44: Luft-vattenvärmepump | C44: kWh PE/st | D44: =19.77*D24 -> 0 | E44: =19.77*E24 -> 0 | F44: 0 | G44: 0 | H44: 0 | I44: 0 | J44: 0 | K44: 0 | L44: 0 | M44: 0
A45: 3 | B45: Fjärrvärme | C45: kWh PE/st | D45: =12.4707544444444*D24 -> 0 | E45: =12.4707544444444*E24 -> 0 | F45: 0 | G45: 0 | H45: 0 | I45: 0 | J45: 0 | K45: 0 | L45: 0 | M45: =12.4707544444444*M24 -> 0
A46: 4 | B46: Pelletspanna | C46: kWh PE/st | D46: =71.925*D25+5328.1 -> 5328.1 | E46: =71.925*E25+5328.1 -> 5328.1 | F46: =71.925*F25+5328.1 -> 5328.1 | G46: 5328.1 | H46: 5328.1 | I46: 5328.1 | J46: 5328.1 | K46: 5328.1 | L46: 5328.1 | M46: 5328.1
A47: 5 | B47: Oljepanna | C47: kWh PE/st | D47: =60.603*D25+1248.8 -> 1248.8 | E47: =60.603*E25+1248.8 -> 1248.8 | F47: =60.603*F25+1248.8 -> 1248.8 | G47: 1248.8 | H47: 1248.8 | I47: 1248.8 | J47: 1248.8 | K47: =60.603*K25+1248.8 -> 1248.8 | L47: 1248.8 | M47: 1248.8
A48: 6 | B48: Elpanna | C48: kWh PE/st | D48: =2108.63483333333*D24/64 -> 0 | E48: =2108.63483333333*E24/64 -> 0 | F48: 0 | G48: 0 | H48: 0 | I48: 0 | J48: 0 | K48: 0 | L48: 0 | M48: 0
A49: 7 | B49: Direktel | C49: kWh PE/st | D49: 0 | E49: 0 | F49: 0 | G49: 0 | H49: 0 | I49: 0 | J49: 0 | K49: 0 | L49: 0 | M49: 0
A50: A | B50: Borrhål fär värmepump | C50: kWh PE/st | D50: =96.21*D26 -> 0 | E50: =96.21*E26 -> 0 | F50: 0 | G50: 0 | H50: 0 | I50: 0 | J50: 0 | K50: 0 | L50: 0 | M50: 0
A51: B | B51: Anslutning fjv | C51: kWh PE/st | D51: =0.348*D27 -> 0 | E51: 0 | F51: 0 | G51: 0 | H51: 0 | I51: 0 | J51: 0 | K51: 0 | L51: 0 | M51: 0
A52: C | B52: Skorsten + pelletsförvaring | C52: kWh PE/st | D52: =91.418*D25+1028.5 -> 1028.5 | E52: =91.418*E25+1028.5 -> 1028.5 | F52: =91.418*F25+1028.5 -> 1028.5 | G52: 1028.5 | H52: 1028.5 | I52: 1028.5 | J52: 1028.5 | K52: 1028.5 | L52: 1028.5 | M52: 1028.5
A53: D | B53: Oljetank | C53: kWh PE/st | D53: =190.94*D25+2386.8 -> 2386.8 | E53: =190.94*E25+2386.8 -> 2386.8 | F53: 2386.8 | G53: 2386.8 | H53: 2386.8 | I53: 2386.8 | J53: =190.94*J25+2386.8 -> 2386.8 | K53: 2386.8 | L53: 2386.8 | M53: 2386.8
B55: Växthuseffekt drift | C55: Negativa värden indikerar en miljöbesparing
B56: Miljöpåverkan, drift före renovering | C56: kg CO2-eq/kWh | D56: =INDEX(Uppvarmning1, MATCH(Miljö!C93,$A$6:$A$12, 0),3) ->  | E56: =INDEX(Uppvarmning1, MATCH(Miljö!D93,$A$6:$A$12, 0),3) -> 0.03042300663 | F56: =INDEX(Uppvarmning1, MATCH(Miljö!E93,$A$6:$A$12, 0),3) -> 0.03042300663 | G56: =INDEX(Uppvarmning1, MATCH(Miljö!F93,$A$6:$A$12, 0),3) -> 0.03042300663 | H56: =INDEX(Uppvarmning1, MATCH(Miljö!G93,$A$6:$A$12, 0),3) -> 0.03042300663 | I56: =INDEX(Uppvarmning1, MATCH(Miljö!H93,$A$6:$A$12, 0),3) -> 0.03042300663 | J56: =INDEX(Uppvarmning1, MATCH(Miljö!I93,$A$6:$A$12, 0),3) -> 0.03042300663 | K56: =INDEX(Uppvarmning1, MATCH(Miljö!J93,$A$6:$A$12, 0),3) -> 0.03042300663 | L56: =INDEX(Uppvarmning1, MATCH(Miljö!K93,$A$6:$A$12, 0),3) -> 0.03042300663 | M56: =INDEX(Uppvarmning1, MATCH(Miljö!L93,$A$6:$A$12, 0),3) -> 0.03042300663
B57: Miljöpåverkan, drift efter renovering | C57: kg CO2-eq/kWh | D57: =INDEX(Uppvarmning1, MATCH(Miljö!C94,$A6:$A12, 0),3) ->  | E57: =INDEX(Uppvarmning1, MATCH(Miljö!D94,$A6:$A12, 0),3) -> 0.03042300663 | F57: =INDEX(Uppvarmning1, MATCH(Miljö!E94,$A6:$A12, 0),3) -> 0.03042300663 | G57: =INDEX(Uppvarmning1, MATCH(Miljö!F94,$A6:$A12, 0),3) -> 0.03042300663 | H57: =INDEX(Uppvarmning1, MATCH(Miljö!G94,$A6:$A12, 0),3) -> 0.03042300663 | I57: =INDEX(Uppvarmning1, MATCH(Miljö!H94,$A6:$A12, 0),3) -> 0.03042300663 | J57: =INDEX(Uppvarmning1, MATCH(Miljö!I94,$A6:$A12, 0),3) -> 0.03042300663 | K57: =INDEX(Uppvarmning1, MATCH(Miljö!J94,$A6:$A12, 0),3) -> 0.03042300663 | L57: =INDEX(Uppvarmning1, MATCH(Miljö!K94,$A6:$A12, 0),3) -> 0.03042300663 | M57: =INDEX(Uppvarmning1, MATCH(Miljö!L94,$A6:$A12, 0),3) -> 0.03042300663
B58: Ändring | C58: kg CO2-eq/kWh | D58: =D57-D56 ->  | E58: =E57-E56 -> 0 | F58: 0 | G58: 0 | H58: 0 | I58: 0 | J58: 0 | K58: 0 | L58: 0 | M58: 0
B60: Primärenergi drift | C60: Negativa värden indikerar en miljöbesparing
B61: Miljöpåverkan, drift före renovering | C61: (kWh/kWh) | D61: =INDEX(Uppvarmning1, MATCH(Miljö!C93,$A6:$A12, 0),4) ->  | E61: =INDEX(Uppvarmning1, MATCH(Miljö!D93,$A6:$A12, 0),4) -> 0.4833333333 | F61: =INDEX(Uppvarmning1, MATCH(Miljö!E93,$A6:$A12, 0),4) -> 0.4833333333 | G61: =INDEX(Uppvarmning1, MATCH(Miljö!F93,$A6:$A12, 0),4) -> 0.4833333333 | H61: =INDEX(Uppvarmning1, MATCH(Miljö!G93,$A6:$A12, 0),4) -> 0.4833333333 | I61: =INDEX(Uppvarmning1, MATCH(Miljö!H93,$A6:$A12, 0),4) -> 0.4833333333 | J61: =INDEX(Uppvarmning1, MATCH(Miljö!I93,$A6:$A12, 0),4) -> 0.4833333333 | K61: =INDEX(Uppvarmning1, MATCH(Miljö!J93,$A6:$A12, 0),4) -> 0.4833333333 | L61: =INDEX(Uppvarmning1, MATCH(Miljö!K93,$A6:$A12, 0),4) -> 0.4833333333 | M61: =INDEX(Uppvarmning1, MATCH(Miljö!L93,$A6:$A12, 0),4) -> 0.4833333333
B62: Miljöpåverkan, drift efter renovering | C62: (kWh/kWh) | D62: =INDEX(Uppvarmning1, MATCH(Miljö!C94,$A6:$A12, 0),4) ->  | E62: =INDEX(Uppvarmning1, MATCH(Miljö!D94,$A6:$A12, 0),4) -> 0.4833333333 | F62: =INDEX(Uppvarmning1, MATCH(Miljö!E94,$A6:$A12, 0),4) -> 0.4833333333 | G62: =INDEX(Uppvarmning1, MATCH(Miljö!F94,$A6:$A12, 0),4) -> 0.4833333333 | H62: =INDEX(Uppvarmning1, MATCH(Miljö!G94,$A6:$A12, 0),4) -> 0.4833333333 | I62: =INDEX(Uppvarmning1, MATCH(Miljö!H94,$A6:$A12, 0),4) -> 0.4833333333 | J62: =INDEX(Uppvarmning1, MATCH(Miljö!I94,$A6:$A12, 0),4) -> 0.4833333333 | K62: =INDEX(Uppvarmning1, MATCH(Miljö!J94,$A6:$A12, 0),4) -> 0.4833333333 | L62: =INDEX(Uppvarmning1, MATCH(Miljö!K94,$A6:$A12, 0),4) -> 0.4833333333 | M62: =INDEX(Uppvarmning1, MATCH(Miljö!L94,$A6:$A12, 0),4) -> 0.4833333333
B63: Ändring | C63: (kWh/kWh) | D63: =D62-D61 ->  | E63: =E62-E61 -> 0 | F63: =F62-F61 -> 0 | G63: 0 | H63: 0 | I63: 0 | J63: 0 | K63: 0 | L63: 0 | M63: 0
A65: Nr. | B65: Växthuseffekt avfallshantering
A66: 1 | B66: Bergvärmepump | C66: kg CO2-eq/st | D66: =-0.223880597014925*D24 -> 0 | E66: =-0.223880597014925*E24 -> 0 | F66: 0 | G66: 0 | H66: 0 | I66: 0 | J66: 0 | K66: 0 | L66: 0 | M66: 0
A67: 2 | B67: Luft-vattenvärmepump | C67: kg CO2-eq/st | D67: =-0.223880597014925*D24 -> 0 | E67: =-0.223880597014925*E24 -> 0 | F67: 0 | G67: 0 | H67: 0 | I67: 0 | J67: 0 | K67: 0 | L67: 0 | M67: 0
A68: 3 | B68: Fjärrvärme | C68: kg CO2-eq/st | D68: =-0.223880597014925*D24 -> 0 | E68: =-0.223880597014925*E24 -> 0 | F68: 0 | G68: 0 | H68: 0 | I68: 0 | J68: 0 | K68: 0 | L68: 0 | M68: 0
A69: 4 | B69: Pelletspanna | C69: kg CO2-eq/st | D69: =(0.0619*D25+7.3596) +(-0.223880597014925*(3.14*D25+473)) -> -98.53592239 | E69: =(0.0619*E25+7.3596) +(-0.223880597014925*(3.14*E25+473)) -> -98.53592239 | F69: -98.53592239 | G69: -98.53592239 | H69: -98.53592239 | I69: -98.53592239 | J69: -98.53592239 | K69: -98.53592239 | L69: -98.53592239 | M69: -98.53592239
A70: 5 | B70: Oljepanna | C70: kg CO2-eq/st | D70: =(0.0707*D25+11.332)+(-0.223880597014925*(26*D25+350)) -> -67.02620896 | E70: =(0.0707*E25+11.332) + (-0.223880597014925*E24) -> 11.332 | F70: 11.332 | G70: =(0.0707*G25+11.332) + (-0.223880597014925*G24) -> 11.332 | H70: 11.332 | I70: 11.332 | J70: 11.332 | K70: 11.332 | L70: 11.332 | M70: 11.332
A71: 6 | B71: Elpanna | C71: kg CO2-eq/st | D71: =-0.223880597014925*D24 -> 0 | E71: =-0.223880597014925*E24 -> 0 | F71: 0 | G71: 0 | H71: 0 | I71: 0 | J71: 0 | K71: 0 | L71: 0 | M71: 0
A72: 7 | B72: Direktel | C72: kg CO2-eq/st | D72: 0 | E72: 0 | F72: 0 | G72: 0 | H72: 0 | I72: 0 | J72: 0 | K72: 0 | L72: 0 | M72: 0
A74: Nr. | B74: Primärenerg avfallshantering
A75: 1 | B75: Bergvärmepump | C75: kWh PE/st | D75: =0.248756218905473*D24 -> 0 | E75: =0.248756218905473*E24 -> 0 | F75: 0 | G75: 0 | H75: 0 | I75: 0 | J75: 0 | K75: 0 | L75: 0 | M75: =0.248756218905473*M24 -> 0
A76: 2 | B76: Luft-vattenvärmepump | C76: kWh PE/st | D76: =0.248756218905473*D24 -> 0 | E76: =0.248756218905473*E24 -> 0 | F76: 0 | G76: 0 | H76: 0 | I76: 0 | J76: 0 | K76: 0 | L76: 0 | M76: 0
A77: 3 | B77: Fjärrvärme | C77: kWh PE/st | D77: =0.248756218905473*D24 -> 0 | E77: =0.248756218905473*E24 -> 0 | F77: 0 | G77: 0 | H77: =0.248756218905473*H24 -> 0 | I77: 0 | J77: 0 | K77: 0 | L77: =0.248756218905473*L24 -> 0 | M77: 0
A78: 4 | B78: Pelletspanna | C78: kWh PE/st | D78: =0.1588*D25+25.275 + 0.248756218905473*(3.14*D25+473) -> 142.9366915 | E78: =0.1588*E25+25.275 + 0.248756218905473*(3.14*E25+473) -> 142.9366915 | F78: 142.9366915 | G78: 142.9366915 | H78: 142.9366915 | I78: 142.9366915 | J78: 142.9366915 | K78: 142.9366915 | L78: =0.1588*L25+25.275 + 0.248756218905473*(3.14*L25+473) -> 142.9366915 | M78: 142.9366915
A79: 5 | B79: Oljepanna | C79: kWh PE/st | D79: =0.1057*D25+15.924 + 0.248756218905473*(26*D25+350) -> 102.9886766 | E79: =0.1057*E25+15.924 + 0.248756218905473*(26*E25+350) -> 102.9886766 | F79: 102.9886766 | G79: 102.9886766 | H79: 102.9886766 | I79: 102.9886766 | J79: 102.9886766 | K79: =0.1057*K25+15.924 + 0.248756218905473*(26*K25+350) -> 102.9886766 | L79: 102.9886766 | M79: 102.9886766
A80: 6 | B80: Elpanna | C80: kWh PE/st | D80: =0.248756218905473*D24 -> 0 | E80: =0.248756218905473*E24 -> 0 | F80: 0 | G80: 0 | H80: 0 | I80: 0 | J80: 0 | K80: 0 | L80: 0 | M80: 0
A81: 7 | B81: Direktel | C81: kWh PE/st | D81: 0 | E81: 0 | F81: 0 | G81: 0 | H81: 0 | I81: 0 | J81: 0 | K81: 0 | L81: 0 | M81: 0

Sheet Trp (hidden)
A1: Transport
A3: Transport, mijlöpåverkan per tonkilometer
A4: Nr. | B4: Transport | C4: GWP | D4: PE | J4: Källa
C5: (kg CO2/tkm) | D5: (kWh/tkm)
A6: 1 | B6: Lastbil | C6: 0.10548455 | D6: 0.5060925833 | J6: Transport, lorry >32t, EURO4/RER S (of project Ecoinvent system processes)
A7: 2 | B7: Tåg (Nordisk el) | C7: 0.017526869 | D7: 0.1431136972 | J7: Transport, freight, rail/RER U (Modefierad med nordisk el, bygger på Ecoinvent system process)
A8: 3 | B8: Båt | C8: 0.046309972 | D8: 0.1817373583 | J8: Transport, barge/RER S (of project Ecoinvent system processes)
A9: 4
C11: =Miljö!C91 -> Referensfall | D11: =Miljö!D91 ->  | E11: =Miljö!E91 ->  | F11: =Miljö!F91 ->  | G11: =Miljö!G91 ->  | H11: =Miljö!H91 ->  | I11: =Miljö!I91 ->  | J11: =Miljö!J91 ->  | K11: =Miljö!K91 ->  | L11: =Miljö!L91 -> 
A12: Vikt
A13: Isolering 1 | B13: kg | C13: =IF(Miljö!C151=TRUE, Miljö!C154,0) -> 0 | D13: =IF(Miljö!D151=TRUE, Miljö!D154,0) -> 0 | E13: =IF(Miljö!E151=TRUE, Miljö!E154,0) -> 0 | F13: =IF(Miljö!F151=TRUE, Miljö!F154,0) -> 0 | G13: =IF(Miljö!G151=TRUE, Miljö!G154,0) -> 0 | H13: =IF(Miljö!H151=TRUE, Miljö!H154,0) -> 0 | I13: =IF(Miljö!I151=TRUE, Miljö!I154,0) -> 0 | J13: =IF(Miljö!J151=TRUE, Miljö!J154,0) -> 0 | K13: =IF(Miljö!K151=TRUE, Miljö!K154,0) -> 0 | L13: =IF(Miljö!L151=TRUE, Miljö!L154,0) -> 0
A14: Isolering 2 | B14: kg | C14: =IF(Miljö!C161=TRUE, Miljö!C164,0) -> 0 | D14: =IF(Miljö!D161=TRUE, Miljö!D164,0) -> 0 | E14: =IF(Miljö!E161=TRUE, Miljö!E164,0) -> 0 | F14: =IF(Miljö!F161=TRUE, Miljö!F164,0) -> 0 | G14: =IF(Miljö!G161=TRUE, Miljö!G164,0) -> 0 | H14: =IF(Miljö!H161=TRUE, Miljö!H164,0) -> 0 | I14: =IF(Miljö!I161=TRUE, Miljö!I164,0) -> 0 | J14: =IF(Miljö!J161=TRUE, Miljö!J164,0) -> 0 | K14: =IF(Miljö!K161=TRUE, Miljö!K164,0) -> 0 | L14: =IF(Miljö!L161=TRUE, Miljö!L164,0) -> 0
A15: Fasadsystem | B15: kg | C15: =IF(Miljö!C171=TRUE, INDEX(Material!$A33:$G51, MATCH(Miljö!C173,Material!$A33:$A51, 0),3)*Miljö!C174, 0) -> 0 | D15: =IF(Miljö!D171=TRUE, INDEX(Material!$A33:$G51, MATCH(Miljö!D173,Material!$A33:$A51, 0),3)*Miljö!D174, 0) -> 0 | E15: =IF(Miljö!E171=TRUE, INDEX(Material!$A33:$G51, MATCH(Miljö!E173,Material!$A33:$A51, 0),3)*Miljö!E174, 0) -> 0 | F15: =IF(Miljö!F171=TRUE, INDEX(Material!$A33:$G51, MATCH(Miljö!F173,Material!$A33:$A51, 0),3)*Miljö!F174, 0) -> 0 | G15: =IF(Miljö!G171=TRUE, INDEX(Material!$A33:$G51, MATCH(Miljö!G173,Material!$A33:$A51, 0),3)*Miljö!G174, 0) -> 0 | H15: =IF(Miljö!H171=TRUE, INDEX(Material!$A33:$G51, MATCH(Miljö!H173,Material!$A33:$A51, 0),3)*Miljö!H174, 0) -> 0 | I15: =IF(Miljö!I171=TRUE, INDEX(Material!$A33:$G51, MATCH(Miljö!I173,Material!$A33:$A51, 0),3)*Miljö!I174, 0) -> 0 | J15: =IF(Miljö!J171=TRUE, INDEX(Material!$A33:$G51, MATCH(Miljö!J173,Material!$A33:$A51, 0),3)*Miljö!J174, 0) -> 0 | K15: =IF(Miljö!K171=TRUE, INDEX(Material!$A33:$G51, MATCH(Miljö!K173,Material!$A33:$A51, 0),3)*Miljö!K174, 0) -> 0 | L15: =IF(Miljö!L171=TRUE, INDEX(Material!$A33:$G51, MATCH(Miljö!L173,Material!$A33:$A51, 0),3)*Miljö!L174, 0) -> 0
A16: Fönster | B16: kg | C16: =IF(Miljö!C181=TRUE, INDEX(Material!$A15:$G18, MATCH(Miljö!C183,Material!$A15:$A18, 0),3)*Miljö!C184, 0) -> 0 | D16: =IF(Miljö!D181=TRUE, INDEX(Material!$A15:$G18, MATCH(Miljö!D183,Material!$A15:$A18, 0),3)*Miljö!D184, 0) -> 0 | E16: =IF(Miljö!E181=TRUE, INDEX(Material!$A15:$G18, MATCH(Miljö!E183,Material!$A15:$A18, 0),3)*Miljö!E184, 0) -> 0 | F16: =IF(Miljö!F181=TRUE, INDEX(Material!$A15:$G18, MATCH(Miljö!F183,Material!$A15:$A18, 0),3)*Miljö!F184, 0) -> 0 | G16: =IF(Miljö!G181=TRUE, INDEX(Material!$A15:$G18, MATCH(Miljö!G183,Material!$A15:$A18, 0),3)*Miljö!G184, 0) -> 0 | H16: =IF(Miljö!H181=TRUE, INDEX(Material!$A15:$G18, MATCH(Miljö!H183,Material!$A15:$A18, 0),3)*Miljö!H184, 0) -> 0 | I16: =IF(Miljö!I181=TRUE, INDEX(Material!$A15:$G18, MATCH(Miljö!I183,Material!$A15:$A18, 0),3)*Miljö!I184, 0) -> 0 | J16: =IF(Miljö!J181=TRUE, INDEX(Material!$A15:$G18, MATCH(Miljö!J183,Material!$A15:$A18, 0),3)*Miljö!J184, 0) -> 0 | K16: =IF(Miljö!K181=TRUE, INDEX(Material!$A15:$G18, MATCH(Miljö!K183,Material!$A15:$A18, 0),3)*Miljö!K184, 0) -> 0 | L16: =IF(Miljö!L181=TRUE, INDEX(Material!$A15:$G18, MATCH(Miljö!L183,Material!$A15:$A18, 0),3)*Miljö!L184, 0) -> 0
A17: Dörr | B17: kg | C17: =IF(Miljö!C191=TRUE, INDEX(Material!$A24:$G27, MATCH(Miljö!C193,Material!$A15:$A18, 0),3)*Miljö!C194,0) -> 0 | D17: =IF(Miljö!D191=TRUE, INDEX(Material!$A24:$G27, MATCH(Miljö!D193,Material!$A15:$A18, 0),3)*Miljö!D194,0) -> 0 | E17: =IF(Miljö!E191=TRUE, INDEX(Material!$A24:$G27, MATCH(Miljö!E193,Material!$A15:$A18, 0),3)*Miljö!E194,0) -> 0 | F17: =IF(Miljö!F191=TRUE, INDEX(Material!$A24:$G27, MATCH(Miljö!F193,Material!$A15:$A18, 0),3)*Miljö!F194,0) -> 0 | G17: =IF(Miljö!G191=TRUE, INDEX(Material!$A24:$G27, MATCH(Miljö!G193,Material!$A15:$A18, 0),3)*Miljö!G194,0) -> 0 | H17: =IF(Miljö!H191=TRUE, INDEX(Material!$A24:$G27, MATCH(Miljö!H193,Material!$A15:$A18, 0),3)*Miljö!H194,0) -> 0 | I17: =IF(Miljö!I191=TRUE, INDEX(Material!$A24:$G27, MATCH(Miljö!I193,Material!$A15:$A18, 0),3)*Miljö!I194,0) -> 0 | J17: =IF(Miljö!J191=TRUE, INDEX(Material!$A24:$G27, MATCH(Miljö!J193,Material!$A15:$A18, 0),3)*Miljö!J194,0) -> 0 | K17: =IF(Miljö!K191=TRUE, INDEX(Material!$A24:$G27, MATCH(Miljö!K193,Material!$A15:$A18, 0),3)*Miljö!K194,0) -> 0 | L17: =IF(Miljö!L191=TRUE, INDEX(Material!$A24:$G27, MATCH(Miljö!L193,Material!$A15:$A18, 0),3)*Miljö!L194,0) -> 0
A18: Uppvärmning | B18: kg | C18: =IF(Miljö!C98=TRUE, IF(Miljö!C94=6,0,Miljö!C103),0) -> 0 | D18: =IF(Miljö!D98=TRUE, IF(Miljö!D94=6,0,Miljö!D103),0) -> 0 | E18: =IF(Miljö!E98=TRUE, IF(Miljö!E94=6,0,Miljö!E103),0) -> 0 | F18: =IF(Miljö!F98=TRUE, IF(Miljö!F94=6,0,Miljö!F103),0) -> 0 | G18: =IF(Miljö!G98=TRUE, IF(Miljö!G94=6,0,Miljö!G103),0) -> 0 | H18: =IF(Miljö!H98=TRUE, IF(Miljö!H94=6,0,Miljö!H103),0) -> 0 | I18: =IF(Miljö!I98=TRUE, IF(Miljö!I94=6,0,Miljö!I103),0) -> 0 | J18: =IF(Miljö!J98=TRUE, IF(Miljö!J94=6,0,Miljö!J103),0) -> 0 | K18: =IF(Miljö!K98=TRUE, IF(Miljö!K94=6,0,Miljö!K103),0) -> 0 | L18: =IF(Miljö!L98=TRUE, IF(Miljö!L94=6,0,Miljö!L103),0) -> 0
A19: Cirkulationspump | B19: kg | C19: =IF(Miljö!C111=TRUE,Miljö!C113,0) -> 0 | D19: =IF(Miljö!D111=TRUE,Miljö!D113,0) -> 0 | E19: =IF(Miljö!E111=TRUE,Miljö!E113,0) -> 0 | F19: =IF(Miljö!F111=TRUE,Miljö!F113,0) -> 0 | G19: =IF(Miljö!G111=TRUE,Miljö!G113,0) -> 0 | H19: =IF(Miljö!H111=TRUE,Miljö!H113,0) -> 0 | I19: =IF(Miljö!I111=TRUE,Miljö!I113,0) -> 0 | J19: =IF(Miljö!J111=TRUE,Miljö!J113,0) -> 0 | K19: =IF(Miljö!K111=TRUE,Miljö!K113,0) -> 0 | L19: =IF(Miljö!L111=TRUE,Miljö!L113,0) -> 0
A20: Vent. kanaler | B20: kg | C20: =IF(Miljö!C365=TRUE, Miljö!C368,0) -> 0 | D20: =IF(Miljö!D365=TRUE, Miljö!D368,0) -> 0 | E20: =IF(Miljö!E365=TRUE, Miljö!E368,0) -> 0 | F20: =IF(Miljö!F365=TRUE, Miljö!F368,0) -> 0 | G20: =IF(Miljö!G365=TRUE, Miljö!G368,0) -> 0 | H20: =IF(Miljö!H365=TRUE, Miljö!H368,0) -> 0 | I20: =IF(Miljö!I365=TRUE, Miljö!I368,0) -> 0 | J20: =IF(Miljö!J365=TRUE, Miljö!J368,0) -> 0 | K20: =IF(Miljö!K365=TRUE, Miljö!K368,0) -> 0 | L20: =IF(Miljö!L365=TRUE, Miljö!L368,0) -> 0
A21: luftflödesaggregat | B21: kg | C21: =IF(Miljö!C120=TRUE, INDEX(Material!$A$119:$G$122, MATCH(Miljö!C122,Material!$A$119:$A$122, 0),3)*Miljö!C123,0) -> 0 | D21: =IF(Miljö!D120=TRUE, INDEX(Material!$A$119:$G$122, MATCH(Miljö!D122,Material!$A$119:$A$122, 0),3)*Miljö!D123,0) -> 0 | E21: =IF(Miljö!E120=TRUE, INDEX(Material!$A$119:$G$122, MATCH(Miljö!E122,Material!$A$119:$A$122, 0),3)*Miljö!E123,0) -> 0 | F21: =IF(Miljö!F120=TRUE, INDEX(Material!$A$119:$G$122, MATCH(Miljö!F122,Material!$A$119:$A$122, 0),3)*Miljö!F123,0) -> 0 | G21: =IF(Miljö!G120=TRUE, INDEX(Material!$A$119:$G$122, MATCH(Miljö!G122,Material!$A$119:$A$122, 0),3)*Miljö!G123,0) -> 0 | H21: =IF(Miljö!H120=TRUE, INDEX(Material!$A$119:$G$122, MATCH(Miljö!H122,Material!$A$119:$A$122, 0),3)*Miljö!H123,0) -> 0 | I21: =IF(Miljö!I120=TRUE, INDEX(Material!$A$119:$G$122, MATCH(Miljö!I122,Material!$A$119:$A$122, 0),3)*Miljö!I123,0) -> 0 | J21: =IF(Miljö!J120=TRUE, INDEX(Material!$A$119:$G$122, MATCH(Miljö!J122,Material!$A$119:$A$122, 0),3)*Miljö!J123,0) -> 0 | K21: =IF(Miljö!K120=TRUE, INDEX(Material!$A$119:$G$122, MATCH(Miljö!K122,Material!$A$119:$A$122, 0),3)*Miljö!K123,0) -> 0 | L21: =IF(Miljö!L120=TRUE, INDEX(Material!$A$119:$G$122, MATCH(Miljö!L122,Material!$A$119:$A$122, 0),3)*Miljö!L123,0) -> 0
A22: don och dämpare | B22: kg | C22: =IF(Miljö!C375=TRUE, Miljö!C377*Material!$C$128,0) -> 0 | D22: =IF(Miljö!D375=TRUE, Miljö!D377*Material!$C$128,0) -> 0 | E22: =IF(Miljö!E375=TRUE, Miljö!E377*Material!$C$128,0) -> 0 | F22: =IF(Miljö!F375=TRUE, Miljö!F377*Material!$C$128,0) -> 0 | G22: =IF(Miljö!G375=TRUE, Miljö!G377*Material!$C$128,0) -> 0 | H22: =IF(Miljö!H375=TRUE, Miljö!H377*Material!$C$128,0) -> 0 | I22: =IF(Miljö!I375=TRUE, Miljö!I377*Material!$C$128,0) -> 0 | J22: =IF(Miljö!J375=TRUE, Miljö!J377*Material!$C$128,0) -> 0 | K22: =IF(Miljö!K375=TRUE, Miljö!K377*Material!$C$128,0) -> 0 | L22: =IF(Miljö!L375=TRUE, Miljö!L377*Material!$C$128,0) -> 0
A23: solel | B23: kg | C23: =IF(Miljö!C130=TRUE,Miljö!C133*Material!$C$183,0) -> 0 | D23: =IF(Miljö!D130=TRUE,Miljö!D133*Material!$C$183,0) -> 0 | E23: =IF(Miljö!E130=TRUE,Miljö!E133*Material!$C$183,0) -> 0 | F23: =IF(Miljö!F130=TRUE,Miljö!F133*Material!$C$183,0) -> 0 | G23: =IF(Miljö!G130=TRUE,Miljö!G133*Material!$C$183,0) -> 0 | H23: =IF(Miljö!H130=TRUE,Miljö!H133*Material!$C$183,0) -> 0 | I23: =IF(Miljö!I130=TRUE,Miljö!I133*Material!$C$183,0) -> 0 | J23: =IF(Miljö!J130=TRUE,Miljö!J133*Material!$C$183,0) -> 0 | K23: =IF(Miljö!K130=TRUE,Miljö!K133*Material!$C$183,0) -> 0 | L23: =IF(Miljö!L130=TRUE,Miljö!L133*Material!$C$183,0) -> 0
A24: Trä konstruktionsvirke | B24: kg | C24: =IF(Miljö!C204=TRUE, Miljö!C206*Material!$C$57,0) -> 0 | D24: =IF(Miljö!D204=TRUE, Miljö!D206*Material!$C$57,0) -> 0 | E24: =IF(Miljö!E204=TRUE, Miljö!E206*Material!$C$57,0) -> 0 | F24: =IF(Miljö!F204=TRUE, Miljö!F206*Material!$C$57,0) -> 0 | G24: =IF(Miljö!G204=TRUE, Miljö!G206*Material!$C$57,0) -> 0 | H24: =IF(Miljö!H204=TRUE, Miljö!H206*Material!$C$57,0) -> 0 | I24: =IF(Miljö!I204=TRUE, Miljö!I206*Material!$C$57,0) -> 0 | J24: =IF(Miljö!J204=TRUE, Miljö!J206*Material!$C$57,0) -> 0 | K24: =IF(Miljö!K204=TRUE, Miljö!K206*Material!$C$57,0) -> 0 | L24: =IF(Miljö!L204=TRUE, Miljö!L206*Material!$C$57,0) -> 0
A25: Trä målad träfasad | B25: kg | C25: =IF(Miljö!C213=TRUE, Miljö!C215*Material!$C$58,0) -> 0 | D25: =IF(Miljö!D213=TRUE, Miljö!D215*Material!$C$58,0) -> 0 | E25: =IF(Miljö!E213=TRUE, Miljö!E215*Material!$C$58,0) -> 0 | F25: =IF(Miljö!F213=TRUE, Miljö!F215*Material!$C$58,0) -> 0 | G25: =IF(Miljö!G213=TRUE, Miljö!G215*Material!$C$58,0) -> 0 | H25: =IF(Miljö!H213=TRUE, Miljö!H215*Material!$C$58,0) -> 0 | I25: =IF(Miljö!I213=TRUE, Miljö!I215*Material!$C$58,0) -> 0 | J25: =IF(Miljö!J213=TRUE, Miljö!J215*Material!$C$58,0) -> 0 | K25: =IF(Miljö!K213=TRUE, Miljö!K215*Material!$C$58,0) -> 0 | L25: =IF(Miljö!L213=TRUE, Miljö!L215*Material!$C$58,0) -> 0
A26: Trä invändig träpanel | B26: kg | C26: =IF(Miljö!C222=TRUE, Miljö!C224*Material!$C$59,0) -> 0 | D26: =IF(Miljö!D222=TRUE, Miljö!D224*Material!$C$59,0) -> 0 | E26: =IF(Miljö!E222=TRUE, Miljö!E224*Material!$C$59,0) -> 0 | F26: =IF(Miljö!F222=TRUE, Miljö!F224*Material!$C$59,0) -> 0 | G26: =IF(Miljö!G222=TRUE, Miljö!G224*Material!$C$59,0) -> 0 | H26: =IF(Miljö!H222=TRUE, Miljö!H224*Material!$C$59,0) -> 0 | I26: =IF(Miljö!I222=TRUE, Miljö!I224*Material!$C$59,0) -> 0 | J26: =IF(Miljö!J222=TRUE, Miljö!J224*Material!$C$59,0) -> 0 | K26: =IF(Miljö!K222=TRUE, Miljö!K224*Material!$C$59,0) -> 0 | L26: =IF(Miljö!L222=TRUE, Miljö!L224*Material!$C$59,0) -> 0
A27: Betong bjälklag | B27: kg | C27: =IF(Miljö!C231=TRUE, INDEX(Material!$A65:$G68, MATCH(Miljö!C233,Material!$A65:$A68, 0),3)*Miljö!C234, 0) -> 0 | D27: =IF(Miljö!D231=TRUE, INDEX(Material!$A65:$G68, MATCH(Miljö!D233,Material!$A65:$A68, 0),3)*Miljö!D234, 0) -> 0 | E27: =IF(Miljö!E231=TRUE, INDEX(Material!$A65:$G68, MATCH(Miljö!E233,Material!$A65:$A68, 0),3)*Miljö!E234, 0) -> 0 | F27: =IF(Miljö!F231=TRUE, INDEX(Material!$A65:$G68, MATCH(Miljö!F233,Material!$A65:$A68, 0),3)*Miljö!F234, 0) -> 0 | G27: =IF(Miljö!G231=TRUE, INDEX(Material!$A65:$G68, MATCH(Miljö!G233,Material!$A65:$A68, 0),3)*Miljö!G234, 0) -> 0 | H27: =IF(Miljö!H231=TRUE, INDEX(Material!$A65:$G68, MATCH(Miljö!H233,Material!$A65:$A68, 0),3)*Miljö!H234, 0) -> 0 | I27: =IF(Miljö!I231=TRUE, INDEX(Material!$A65:$G68, MATCH(Miljö!I233,Material!$A65:$A68, 0),3)*Miljö!I234, 0) -> 0 | J27: =IF(Miljö!J231=TRUE, INDEX(Material!$A65:$G68, MATCH(Miljö!J233,Material!$A65:$A68, 0),3)*Miljö!J234, 0) -> 0 | K27: =IF(Miljö!K231=TRUE, INDEX(Material!$A65:$G68, MATCH(Miljö!K233,Material!$A65:$A68, 0),3)*Miljö!K234, 0) -> 0 | L27: =IF(Miljö!L231=TRUE, INDEX(Material!$A65:$G68, MATCH(Miljö!L233,Material!$A65:$A68, 0),3)*Miljö!L234, 0) -> 0
A28: Betong bärande ytterväggar | B28: kg | C28: =IF(Miljö!C241=TRUE, INDEX(Material!$A74:$G75, MATCH(Miljö!C243,Material!$A74:$A75, 0),3)*Miljö!C244, 0) -> 0 | D28: =IF(Miljö!D241=TRUE, INDEX(Material!$A74:$G75, MATCH(Miljö!D243,Material!$A74:$A75, 0),3)*Miljö!D244, 0) -> 0 | E28: =IF(Miljö!E241=TRUE, INDEX(Material!$A74:$G75, MATCH(Miljö!E243,Material!$A74:$A75, 0),3)*Miljö!E244, 0) -> 0 | F28: =IF(Miljö!F241=TRUE, INDEX(Material!$A74:$G75, MATCH(Miljö!F243,Material!$A74:$A75, 0),3)*Miljö!F244, 0) -> 0 | G28: =IF(Miljö!G241=TRUE, INDEX(Material!$A74:$G75, MATCH(Miljö!G243,Material!$A74:$A75, 0),3)*Miljö!G244, 0) -> 0 | H28: =IF(Miljö!H241=TRUE, INDEX(Material!$A74:$G75, MATCH(Miljö!H243,Material!$A74:$A75, 0),3)*Miljö!H244, 0) -> 0 | I28: =IF(Miljö!I241=TRUE, INDEX(Material!$A74:$G75, MATCH(Miljö!I243,Material!$A74:$A75, 0),3)*Miljö!I244, 0) -> 0 | J28: =IF(Miljö!J241=TRUE, INDEX(Material!$A74:$G75, MATCH(Miljö!J243,Material!$A74:$A75, 0),3)*Miljö!J244, 0) -> 0 | K28: =IF(Miljö!K241=TRUE, INDEX(Material!$A74:$G75, MATCH(Miljö!K243,Material!$A74:$A75, 0),3)*Miljö!K244, 0) -> 0 | L28: =IF(Miljö!L241=TRUE, INDEX(Material!$A74:$G75, MATCH(Miljö!L243,Material!$A74:$A75, 0),3)*Miljö!L244, 0) -> 0
A29: Betong icke-bärande ytterväggar | B29: kg | C29: =IF(Miljö!C251=TRUE, Miljö!C253*Material!$C$77,0) -> 0 | D29: =IF(Miljö!D251=TRUE, Miljö!D253*Material!$C$77,0) -> 0 | E29: =IF(Miljö!E251=TRUE, Miljö!E253*Material!$C$77,0) -> 0 | F29: =IF(Miljö!F251=TRUE, Miljö!F253*Material!$C$77,0) -> 0 | G29: =IF(Miljö!G251=TRUE, Miljö!G253*Material!$C$77,0) -> 0 | H29: =IF(Miljö!H251=TRUE, Miljö!H253*Material!$C$77,0) -> 0 | I29: =IF(Miljö!I251=TRUE, Miljö!I253*Material!$C$77,0) -> 0 | J29: =IF(Miljö!J251=TRUE, Miljö!J253*Material!$C$77,0) -> 0 | K29: =IF(Miljö!K251=TRUE, Miljö!K253*Material!$C$77,0) -> 0 | L29: =IF(Miljö!L251=TRUE, Miljö!L253*Material!$C$77,0) -> 0
A30: Betong innerväggar | B30: kg | C30: =IF(Miljö!C260=TRUE, INDEX(Material!$A84:$G85, MATCH(Miljö!C262,Material!$A84:$A85, 0),3)*Miljö!C263, 0) -> 0 | D30: =IF(Miljö!D260=TRUE, INDEX(Material!$A84:$G85, MATCH(Miljö!D262,Material!$A84:$A85, 0),3)*Miljö!D263, 0) -> 0 | E30: =IF(Miljö!E260=TRUE, INDEX(Material!$A84:$G85, MATCH(Miljö!E262,Material!$A84:$A85, 0),3)*Miljö!E263, 0) -> 0 | F30: =IF(Miljö!F260=TRUE, INDEX(Material!$A84:$G85, MATCH(Miljö!F262,Material!$A84:$A85, 0),3)*Miljö!F263, 0) -> 0 | G30: =IF(Miljö!G260=TRUE, INDEX(Material!$A84:$G85, MATCH(Miljö!G262,Material!$A84:$A85, 0),3)*Miljö!G263, 0) -> 0 | H30: =IF(Miljö!H260=TRUE, INDEX(Material!$A84:$G85, MATCH(Miljö!H262,Material!$A84:$A85, 0),3)*Miljö!H263, 0) -> 0 | I30: =IF(Miljö!I260=TRUE, INDEX(Material!$A84:$G85, MATCH(Miljö!I262,Material!$A84:$A85, 0),3)*Miljö!I263, 0) -> 0 | J30: =IF(Miljö!J260=TRUE, INDEX(Material!$A84:$G85, MATCH(Miljö!J262,Material!$A84:$A85, 0),3)*Miljö!J263, 0) -> 0 | K30: =IF(Miljö!K260=TRUE, INDEX(Material!$A84:$G85, MATCH(Miljö!K262,Material!$A84:$A85, 0),3)*Miljö!K263, 0) -> 0 | L30: =IF(Miljö!L260=TRUE, INDEX(Material!$A84:$G85, MATCH(Miljö!L262,Material!$A84:$A85, 0),3)*Miljö!L263, 0) -> 0
A31: Puts | B31: kg | C31: =IF(Miljö!C270=TRUE, Miljö!C272*Material!$C$90,0) -> 0 | D31: =IF(Miljö!D270=TRUE, Miljö!D272*Material!$C$90,0) -> 0 | E31: =IF(Miljö!E270=TRUE, Miljö!E272*Material!$C$90,0) -> 0 | F31: =IF(Miljö!F270=TRUE, Miljö!F272*Material!$C$90,0) -> 0 | G31: =IF(Miljö!G270=TRUE, Miljö!G272*Material!$C$90,0) -> 0 | H31: =IF(Miljö!H270=TRUE, Miljö!H272*Material!$C$90,0) -> 0 | I31: =IF(Miljö!I270=TRUE, Miljö!I272*Material!$C$90,0) -> 0 | J31: =IF(Miljö!J270=TRUE, Miljö!J272*Material!$C$90,0) -> 0 | K31: =IF(Miljö!K270=TRUE, Miljö!K272*Material!$C$90,0) -> 0 | L31: =IF(Miljö!L270=TRUE, Miljö!L272*Material!$C$90,0) -> 0
A32: Gipsskivor | B32: kg | C32: =IF(Miljö!C279=TRUE, Miljö!C281*Material!$C$91,0) -> 0 | D32: =IF(Miljö!D279=TRUE, Miljö!D281*Material!$C$91,0) -> 0 | E32: =IF(Miljö!E279=TRUE, Miljö!E281*Material!$C$91,0) -> 0 | F32: =IF(Miljö!F279=TRUE, Miljö!F281*Material!$C$91,0) -> 0 | G32: =IF(Miljö!G279=TRUE, Miljö!G281*Material!$C$91,0) -> 0 | H32: =IF(Miljö!H279=TRUE, Miljö!H281*Material!$C$91,0) -> 0 | I32: =IF(Miljö!I279=TRUE, Miljö!I281*Material!$C$91,0) -> 0 | J32: =IF(Miljö!J279=TRUE, Miljö!J281*Material!$C$91,0) -> 0 | K32: =IF(Miljö!K279=TRUE, Miljö!K281*Material!$C$91,0) -> 0 | L32: =IF(Miljö!L279=TRUE, Miljö!L281*Material!$C$91,0) -> 0
A33: Takbeläggning | B33: kg | C33: =IF(Miljö!C288=TRUE, INDEX(Material!$A98:$G102, MATCH(Miljö!C290,Material!$A98:$A102, 0),3)*Miljö!C291, 0) -> 0 | D33: =IF(Miljö!D288=TRUE, INDEX(Material!$A98:$G102, MATCH(Miljö!D290,Material!$A98:$A102, 0),3)*Miljö!D291, 0) -> 0 | E33: =IF(Miljö!E288=TRUE, INDEX(Material!$A98:$G102, MATCH(Miljö!E290,Material!$A98:$A102, 0),3)*Miljö!E291, 0) -> 0 | F33: =IF(Miljö!F288=TRUE, INDEX(Material!$A98:$G102, MATCH(Miljö!F290,Material!$A98:$A102, 0),3)*Miljö!F291, 0) -> 0 | G33: =IF(Miljö!G288=TRUE, INDEX(Material!$A98:$G102, MATCH(Miljö!G290,Material!$A98:$A102, 0),3)*Miljö!G291, 0) -> 0 | H33: =IF(Miljö!H288=TRUE, INDEX(Material!$A98:$G102, MATCH(Miljö!H290,Material!$A98:$A102, 0),3)*Miljö!H291, 0) -> 0 | I33: =IF(Miljö!I288=TRUE, INDEX(Material!$A98:$G102, MATCH(Miljö!I290,Material!$A98:$A102, 0),3)*Miljö!I291, 0) -> 0 | J33: =IF(Miljö!J288=TRUE, INDEX(Material!$A98:$G102, MATCH(Miljö!J290,Material!$A98:$A102, 0),3)*Miljö!J291, 0) -> 0 | K33: =IF(Miljö!K288=TRUE, INDEX(Material!$A98:$G102, MATCH(Miljö!K290,Material!$A98:$A102, 0),3)*Miljö!K291, 0) -> 0 | L33: =IF(Miljö!L288=TRUE, INDEX(Material!$A98:$G102, MATCH(Miljö!L290,Material!$A98:$A102, 0),3)*Miljö!L291, 0) -> 0
A34: Radiatorer | B34: kg | C34: =IF(Miljö!C301=TRUE, Miljö!C304,0) -> 0 | D34: =IF(Miljö!D301=TRUE, Miljö!D304,0) -> 0 | E34: =IF(Miljö!E301=TRUE, Miljö!E304,0) -> 0 | F34: =IF(Miljö!F301=TRUE, Miljö!F304,0) -> 0 | G34: =IF(Miljö!G301=TRUE, Miljö!G304,0) -> 0 | H34: =IF(Miljö!H301=TRUE, Miljö!H304,0) -> 0 | I34: =IF(Miljö!I301=TRUE, Miljö!I304,0) -> 0 | J34: =IF(Miljö!J301=TRUE, Miljö!J304,0) -> 0 | K34: =IF(Miljö!K301=TRUE, Miljö!K304,0) -> 0 | L34: =IF(Miljö!L301=TRUE, Miljö!L304,0) -> 0
A35: Kopparrör | B35: kg | C35: =IF(Miljö!C311=TRUE, Miljö!C313,0) -> 0 | D35: =IF(Miljö!D311=TRUE, Miljö!D313,0) -> 0 | E35: =IF(Miljö!E311=TRUE, Miljö!E313,0) -> 0 | F35: =IF(Miljö!F311=TRUE, Miljö!F313,0) -> 0 | G35: =IF(Miljö!G311=TRUE, Miljö!G313,0) -> 0 | H35: =IF(Miljö!H311=TRUE, Miljö!H313,0) -> 0 | I35: =IF(Miljö!I311=TRUE, Miljö!I313,0) -> 0 | J35: =IF(Miljö!J311=TRUE, Miljö!J313,0) -> 0 | K35: =IF(Miljö!K311=TRUE, Miljö!K313,0) -> 0 | L35: =IF(Miljö!L311=TRUE, Miljö!L313,0) -> 0
A36: PEX-rör | B36: kg | C36: =IF(Miljö!C320=TRUE, Miljö!C322,0) -> 0 | D36: =IF(Miljö!D320=TRUE, Miljö!D322,0) -> 0 | E36: =IF(Miljö!E320=TRUE, Miljö!E322,0) -> 0 | F36: =IF(Miljö!F320=TRUE, Miljö!F322,0) -> 0 | G36: =IF(Miljö!G320=TRUE, Miljö!G322,0) -> 0 | H36: =IF(Miljö!H320=TRUE, Miljö!H322,0) -> 0 | I36: =IF(Miljö!I320=TRUE, Miljö!I322,0) -> 0 | J36: =IF(Miljö!J320=TRUE, Miljö!J322,0) -> 0 | K36: =IF(Miljö!K320=TRUE, Miljö!K322,0) -> 0 | L36: =IF(Miljö!L320=TRUE, Miljö!L322,0) -> 0
A37: PP-rör | B37: kg | C37: =IF(Miljö!C329=TRUE, Miljö!C331, 0) -> 0 | D37: =IF(Miljö!D329=TRUE, Miljö!D331, 0) -> 0 | E37: =IF(Miljö!E329=TRUE, Miljö!E331, 0) -> 0 | F37: =IF(Miljö!F329=TRUE, Miljö!F331, 0) -> 0 | G37: =IF(Miljö!G329=TRUE, Miljö!G331, 0) -> 0 | H37: =IF(Miljö!H329=TRUE, Miljö!H331, 0) -> 0 | I37: =IF(Miljö!I329=TRUE, Miljö!I331, 0) -> 0 | J37: =IF(Miljö!J329=TRUE, Miljö!J331, 0) -> 0 | K37: =IF(Miljö!K329=TRUE, Miljö!K331, 0) -> 0 | L37: =IF(Miljö!L329=TRUE, Miljö!L331, 0) -> 0
A38: Järnrör | B38: kg | C38: =IF(Miljö!C338=TRUE, Miljö!C340,0) -> 0 | D38: =IF(Miljö!D338=TRUE, Miljö!D340,0) -> 0 | E38: =IF(Miljö!E338=TRUE, Miljö!E340,0) -> 0 | F38: =IF(Miljö!F338=TRUE, Miljö!F340,0) -> 0 | G38: =IF(Miljö!G338=TRUE, Miljö!G340,0) -> 0 | H38: =IF(Miljö!H338=TRUE, Miljö!H340,0) -> 0 | I38: =IF(Miljö!I338=TRUE, Miljö!I340,0) -> 0 | J38: =IF(Miljö!J338=TRUE, Miljö!J340,0) -> 0 | K38: =IF(Miljö!K338=TRUE, Miljö!K340,0) -> 0 | L38: =IF(Miljö!L338=TRUE, Miljö!L340,0) -> 0
A39: Stålrör | B39: kg | C39: =IF(Miljö!C347=TRUE, Miljö!C349, 0) -> 0 | D39: =IF(Miljö!D347=TRUE, Miljö!D349, 0) -> 0 | E39: =IF(Miljö!E347=TRUE, Miljö!E349, 0) -> 0 | F39: =IF(Miljö!F347=TRUE, Miljö!F349, 0) -> 0 | G39: =IF(Miljö!G347=TRUE, Miljö!G349, 0) -> 0 | H39: =IF(Miljö!H347=TRUE, Miljö!H349, 0) -> 0 | I39: =IF(Miljö!I347=TRUE, Miljö!I349, 0) -> 0 | J39: =IF(Miljö!J347=TRUE, Miljö!J349, 0) -> 0 | K39: =IF(Miljö!K347=TRUE, Miljö!K349, 0) -> 0 | L39: =IF(Miljö!L347=TRUE, Miljö!L349, 0) -> 0
A40: Relining | B40: kg | C40: =IF(Miljö!C356=TRUE, Miljö!C358, 0) -> 0 | D40: =IF(Miljö!D356=TRUE, Miljö!D358, 0) -> 0 | E40: =IF(Miljö!E356=TRUE, Miljö!E358, 0) -> 0 | F40: =IF(Miljö!F356=TRUE, Miljö!F358, 0) -> 0 | G40: =IF(Miljö!G356=TRUE, Miljö!G358, 0) -> 0 | H40: =IF(Miljö!H356=TRUE, Miljö!H358, 0) -> 0 | I40: =IF(Miljö!I356=TRUE, Miljö!I358, 0) -> 0 | J40: =IF(Miljö!J356=TRUE, Miljö!J358, 0) -> 0 | K40: =IF(Miljö!K356=TRUE, Miljö!K358, 0) -> 0 | L40: =IF(Miljö!L356=TRUE, Miljö!L358, 0) -> 0
A41: Elledning | B41: kg | C41: =IF(Miljö!C384=TRUE, Miljö!C386*Material!$C$174, 0) -> 0 | D41: =IF(Miljö!D384=TRUE, Miljö!D386*Material!$C$174, 0) -> 0 | E41: =IF(Miljö!E384=TRUE, Miljö!E386*Material!$C$174, 0) -> 0 | F41: =IF(Miljö!F384=TRUE, Miljö!F386*Material!$C$174, 0) -> 0 | G41: =IF(Miljö!G384=TRUE, Miljö!G386*Material!$C$174, 0) -> 0 | H41: =IF(Miljö!H384=TRUE, Miljö!H386*Material!$C$174, 0) -> 0 | I41: =IF(Miljö!I384=TRUE, Miljö!I386*Material!$C$174, 0) -> 0 | J41: =IF(Miljö!J384=TRUE, Miljö!J386*Material!$C$174, 0) -> 0 | K41: =IF(Miljö!K384=TRUE, Miljö!K386*Material!$C$174, 0) -> 0 | L41: =IF(Miljö!L384=TRUE, Miljö!L386*Material!$C$174, 0) -> 0
A43: Avstånd
A44: Lastbil, isolering 1 | B44: km | C44: =Miljö!C156 -> 0 | D44: =Miljö!D156 -> 0 | E44: =Miljö!E156 -> 0 | F44: =Miljö!F156 -> 0 | G44: =Miljö!G156 -> 0 | H44: =Miljö!H156 -> 0 | I44: =Miljö!I156 -> 0 | J44: =Miljö!J156 -> 0 | K44: =Miljö!K156 -> 0 | L44: =Miljö!L156 -> 0
A45: Tåg, isolering 1 | B45: km | C45: =Miljö!C157 -> 0 | D45: =Miljö!D157 -> 0 | E45: =Miljö!E157 -> 0 | F45: =Miljö!F157 -> 0 | G45: =Miljö!G157 -> 0 | H45: =Miljö!H157 -> 0 | I45: =Miljö!I157 -> 0 | J45: =Miljö!J157 -> 0 | K45: =Miljö!K157 -> 0 | L45: =Miljö!L157 -> 0
A46: Båt, isolering 1 | B46: km | C46: =Miljö!C158 -> 0 | D46: =Miljö!D158 -> 0 | E46: =Miljö!E158 -> 0 | F46: =Miljö!F158 -> 0 | G46: =Miljö!G158 -> 0 | H46: =Miljö!H158 -> 0 | I46: =Miljö!I158 -> 0 | J46: =Miljö!J158 -> 0 | K46: =Miljö!K158 -> 0 | L46: =Miljö!L158 -> 0
A47: Lastbil, isolering 2 | B47: km | C47: =Miljö!C166 -> 0 | D47: =Miljö!D166 -> 0 | E47: =Miljö!E166 -> 0 | F47: =Miljö!F166 -> 0 | G47: =Miljö!G166 -> 0 | H47: =Miljö!H166 -> 0 | I47: =Miljö!I166 -> 0 | J47: =Miljö!J166 -> 0 | K47: =Miljö!K166 -> 0 | L47: =Miljö!L166 -> 0
A48: Tåg, isolering 2 | B48: km | C48: =Miljö!C167 -> 0 | D48: =Miljö!D167 -> 0 | E48: =Miljö!E167 -> 0 | F48: =Miljö!F167 -> 0 | G48: =Miljö!G167 -> 0 | H48: =Miljö!H167 -> 0 | I48: =Miljö!I167 -> 0 | J48: =Miljö!J167 -> 0 | K48: =Miljö!K167 -> 0 | L48: =Miljö!L167 -> 0
A49: Båt, isolering 2 | B49: km | C49: =Miljö!C168 -> 0 | D49: =Miljö!D168 -> 0 | E49: =Miljö!E168 -> 0 | F49: =Miljö!F168 -> 0 | G49: =Miljö!G168 -> 0 | H49: =Miljö!H168 -> 0 | I49: =Miljö!I168 -> 0 | J49: =Miljö!J168 -> 0 | K49: =Miljö!K168 -> 0 | L49: =Miljö!L168 -> 0
A50: Lastbil, fasad | B50: km | C50: =Miljö!C176 -> 0 | D50: =Miljö!D176 -> 0 | E50: =Miljö!E176 -> 0 | F50: =Miljö!F176 -> 0 | G50: =Miljö!G176 -> 0 | H50: =Miljö!H176 -> 0 | I50: =Miljö!I176 -> 0 | J50: =Miljö!J176 -> 0 | K50: =Miljö!K176 -> 0 | L50: =Miljö!L176 -> 0
A51: Tåg, fasad | B51: km | C51: =Miljö!C177 -> 0 | D51: =Miljö!D177 -> 0 | E51: =Miljö!E177 -> 0 | F51: =Miljö!F177 -> 0 | G51: =Miljö!G177 -> 0 | H51: =Miljö!H177 -> 0 | I51: =Miljö!I177 -> 0 | J51: =Miljö!J177 -> 0 | K51: =Miljö!K177 -> 0 | L51: =Miljö!L177 -> 0
A52: Båt, fasad | B52: km | C52: =Miljö!C178 -> 0 | D52: =Miljö!D178 -> 0 | E52: =Miljö!E178 -> 0 | F52: =Miljö!F178 -> 0 | G52: =Miljö!G178 -> 0 | H52: =Miljö!H178 -> 0 | I52: =Miljö!I178 -> 0 | J52: =Miljö!J178 -> 0 | K52: =Miljö!K178 -> 0 | L52: =Miljö!L178 -> 0
A53: Lastbil, fönster | B53: km | C53: =Miljö!C186 -> 0 | D53: =Miljö!D186 -> 0 | E53: =Miljö!E186 -> 0 | F53: =Miljö!F186 -> 0 | G53: =Miljö!G186 -> 0 | H53: =Miljö!H186 -> 0 | I53: =Miljö!I186 -> 0 | J53: =Miljö!J186 -> 0 | K53: =Miljö!K186 -> 0 | L53: =Miljö!L186 -> 0
A54: Tåg, fönster | B54: km | C54: =Miljö!C187 -> 0 | D54: =Miljö!D187 -> 0 | E54: =Miljö!E187 -> 0 | F54: =Miljö!F187 -> 0 | G54: =Miljö!G187 -> 0 | H54: =Miljö!H187 -> 0 | I54: =Miljö!I187 -> 0 | J54: =Miljö!J187 -> 0 | K54: =Miljö!K187 -> 0 | L54: =Miljö!L187 -> 0
A55: Båt, fönster | B55: km | C55: =Miljö!C188 -> 0 | D55: =Miljö!D188 -> 0 | E55: =Miljö!E188 -> 0 | F55: =Miljö!F188 -> 0 | G55: =Miljö!G188 -> 0 | H55: =Miljö!H188 -> 0 | I55: =Miljö!I188 -> 0 | J55: =Miljö!J188 -> 0 | K55: =Miljö!K188 -> 0 | L55: =Miljö!L188 -> 0
A56: Lastbil, dörrar | B56: km | C56: =Miljö!C196 -> 0 | D56: =Miljö!D196 -> 0 | E56: =Miljö!E196 -> 0 | F56: =Miljö!F196 -> 0 | G56: =Miljö!G196 -> 0 | H56: =Miljö!H196 -> 0 | I56: =Miljö!I196 -> 0 | J56: =Miljö!J196 -> 0 | K56: =Miljö!K196 -> 0 | L56: =Miljö!L196 -> 0
A57: Tåg, dörrar | B57: km | C57: =Miljö!C197 -> 0 | D57: =Miljö!D197 -> 0 | E57: =Miljö!E197 -> 0 | F57: =Miljö!F197 -> 0 | G57: =Miljö!G197 -> 0 | H57: =Miljö!H197 -> 0 | I57: =Miljö!I197 -> 0 | J57: =Miljö!J197 -> 0 | K57: =Miljö!K197 -> 0 | L57: =Miljö!L197 -> 0
A58: Båt, dörrar | B58: km | C58: =Miljö!C198 -> 0 | D58: =Miljö!D198 -> 0 | E58: =Miljö!E198 -> 0 | F58: =Miljö!F198 -> 0 | G58: =Miljö!G198 -> 0 | H58: =Miljö!H198 -> 0 | I58: =Miljö!I198 -> 0 | J58: =Miljö!J198 -> 0 | K58: =Miljö!K198 -> 0 | L58: =Miljö!L198 -> 0
A59: Lastbil, uppvärmning | B59: km | C59: =Miljö!C105 -> 0 | D59: =Miljö!D105 -> 0 | E59: =Miljö!E105 -> 0 | F59: =Miljö!F105 -> 0 | G59: =Miljö!G105 -> 0 | H59: =Miljö!H105 -> 0 | I59: =Miljö!I105 -> 0 | J59: =Miljö!J105 -> 0 | K59: =Miljö!K105 -> 0 | L59: =Miljö!L105 -> 0
A60: Tåg, uppvärmning | B60: km | C60: =Miljö!C106 -> 0 | D60: =Miljö!D106 -> 0 | E60: =Miljö!E106 -> 0 | F60: =Miljö!F106 -> 0 | G60: =Miljö!G106 -> 0 | H60: =Miljö!H106 -> 0 | I60: =Miljö!I106 -> 0 | J60: =Miljö!J106 -> 0 | K60: =Miljö!K106 -> 0 | L60: =Miljö!L106 -> 0
A61: Båt, uppvärmning | B61: km | C61: =Miljö!C107 -> 0 | D61: =Miljö!D107 -> 0 | E61: =Miljö!E107 -> 0 | F61: =Miljö!F107 -> 0 | G61: =Miljö!G107 -> 0 | H61: =Miljö!H107 -> 0 | I61: =Miljö!I107 -> 0 | J61: =Miljö!J107 -> 0 | K61: =Miljö!K107 -> 0 | L61: =Miljö!L107 -> 0
A62: Lastbil, cirk.pump | B62: km | C62: =Miljö!C115 -> 0 | D62: =Miljö!D115 -> 0 | E62: =Miljö!E115 -> 0 | F62: =Miljö!F115 -> 0 | G62: =Miljö!G115 -> 0 | H62: =Miljö!H115 -> 0 | I62: =Miljö!I115 -> 0 | J62: =Miljö!J115 -> 0 | K62: =Miljö!K115 -> 0 | L62: =Miljö!L115 -> 0
A63: Tåg, cirk.pump | B63: km | C63: =Miljö!C116 -> 0 | D63: =Miljö!D116 -> 0 | E63: =Miljö!E116 -> 0 | F63: =Miljö!F116 -> 0 | G63: =Miljö!G116 -> 0 | H63: =Miljö!H116 -> 0 | I63: =Miljö!I116 -> 0 | J63: =Miljö!J116 -> 0 | K63: =Miljö!K116 -> 0 | L63: =Miljö!L116 -> 0
A64: Båt, cirk.pump | B64: km | C64: =Miljö!C117 -> 0 | D64: =Miljö!D117 -> 0 | E64: =Miljö!E117 -> 0 | F64: =Miljö!F117 -> 0 | G64: =Miljö!G117 -> 0 | H64: =Miljö!H117 -> 0 | I64: =Miljö!I117 -> 0 | J64: =Miljö!J117 -> 0 | K64: =Miljö!K117 -> 0 | L64: =Miljö!L117 -> 0
A65: Lastbil, vent kanaler | B65: km | C65: =Miljö!C370 -> 0 | D65: =Miljö!D370 -> 0 | E65: =Miljö!E370 -> 0 | F65: =Miljö!F370 -> 0 | G65: =Miljö!G370 -> 0 | H65: =Miljö!H370 -> 0 | I65: =Miljö!I370 -> 0 | J65: =Miljö!J370 -> 0 | K65: =Miljö!K370 -> 0 | L65: =Miljö!L370 -> 0
A66: Tåg, vent kanaler | B66: km | C66: =Miljö!C371 -> 0 | D66: =Miljö!D371 -> 0 | E66: =Miljö!E371 -> 0 | F66: =Miljö!F371 -> 0 | G66: =Miljö!G371 -> 0 | H66: =Miljö!H371 -> 0 | I66: =Miljö!I371 -> 0 | J66: =Miljö!J371 -> 0 | K66: =Miljö!K371 -> 0 | L66: =Miljö!L371 -> 0
A67: Båt, vent kanaler | B67: km | C67: =Miljö!C372 -> 0 | D67: =Miljö!D372 -> 0 | E67: =Miljö!E372 -> 0 | F67: =Miljö!F372 -> 0 | G67: =Miljö!G372 -> 0 | H67: =Miljö!H372 -> 0 | I67: =Miljö!I372 -> 0 | J67: =Miljö!J372 -> 0 | K67: =Miljö!K372 -> 0 | L67: =Miljö!L372 -> 0
A68: Lastbil, luftflödesaggregat | B68: km | C68: =Miljö!C125 -> 0 | D68: =Miljö!D125 -> 0 | E68: =Miljö!E125 -> 0 | F68: =Miljö!F125 -> 0 | G68: =Miljö!G125 -> 0 | H68: =Miljö!H125 -> 0 | I68: =Miljö!I125 -> 0 | J68: =Miljö!J125 -> 0 | K68: =Miljö!K125 -> 0 | L68: =Miljö!L125 -> 0
A69: Tåg, luftflödsaggregat | B69: km | C69: =Miljö!C126 -> 0 | D69: =Miljö!D126 -> 0 | E69: =Miljö!E126 -> 0 | F69: =Miljö!F126 -> 0 | G69: =Miljö!G126 -> 0 | H69: =Miljö!H126 -> 0 | I69: =Miljö!I126 -> 0 | J69: =Miljö!J126 -> 0 | K69: =Miljö!K126 -> 0 | L69: =Miljö!L126 -> 0
A70: Båt, luftflödesaggregat | B70: km | C70: =Miljö!C127 -> 0 | D70: =Miljö!D127 -> 0 | E70: =Miljö!E127 -> 0 | F70: =Miljö!F127 -> 0 | G70: =Miljö!G127 -> 0 | H70: =Miljö!H127 -> 0 | I70: =Miljö!I127 -> 0 | J70: =Miljö!J127 -> 0 | K70: =Miljö!K127 -> 0 | L70: =Miljö!L127 -> 0
A71: Lastbil, don och dämpare | B71: km | C71: =Miljö!C379 -> 0 | D71: =Miljö!D379 -> 0 | E71: =Miljö!E379 -> 0 | F71: =Miljö!F379 -> 0 | G71: =Miljö!G379 -> 0 | H71: =Miljö!H379 -> 0 | I71: =Miljö!I379 -> 0 | J71: =Miljö!J379 -> 0 | K71: =Miljö!K379 -> 0 | L71: =Miljö!L379 -> 0
A72: Tåg, don och dämpare | B72: km | C72: =Miljö!C380 -> 0 | D72: =Miljö!D380 -> 0 | E72: =Miljö!E380 -> 0 | F72: =Miljö!F380 -> 0 | G72: =Miljö!G380 -> 0 | H72: =Miljö!H380 -> 0 | I72: =Miljö!I380 -> 0 | J72: =Miljö!J380 -> 0 | K72: =Miljö!K380 -> 0 | L72: =Miljö!L380 -> 0
A73: Båt, don och dämpare | B73: km | C73: =Miljö!C381 -> 0 | D73: =Miljö!D381 -> 0 | E73: =Miljö!E381 -> 0 | F73: =Miljö!F381 -> 0 | G73: =Miljö!G381 -> 0 | H73: =Miljö!H381 -> 0 | I73: =Miljö!I381 -> 0 | J73: =Miljö!J381 -> 0 | K73: =Miljö!K381 -> 0 | L73: =Miljö!L381 -> 0
A74: Lastbil, solel | B74: km | C74: =Miljö!C136 -> 0 | D74: =Miljö!D136 -> 0 | E74: =Miljö!E136 -> 0 | F74: =Miljö!F136 -> 0 | G74: =Miljö!G136 -> 0 | H74: =Miljö!H136 -> 0 | I74: =Miljö!I136 -> 0 | J74: =Miljö!J136 -> 0 | K74: =Miljö!K136 -> 0 | L74: =Miljö!L136 -> 0
A75: Tåg, solel | B75: km | C75: =Miljö!C137 -> 0 | D75: =Miljö!D137 -> 0 | E75: =Miljö!E137 -> 0 | F75: =Miljö!F137 -> 0 | G75: =Miljö!G137 -> 0 | H75: =Miljö!H137 -> 0 | I75: =Miljö!I137 -> 0 | J75: =Miljö!J137 -> 0 | K75: =Miljö!K137 -> 0 | L75: =Miljö!L137 -> 0
A76: Båt, solel | B76: km | C76: =Miljö!C138 -> 0 | D76: =Miljö!D138 -> 0 | E76: =Miljö!E138 -> 0 | F76: =Miljö!F138 -> 0 | G76: =Miljö!G138 -> 0 | H76: =Miljö!H138 -> 0 | I76: =Miljö!I138 -> 0 | J76: =Miljö!J138 -> 0 | K76: =Miljö!K138 -> 0 | L76: =Miljö!L138 -> 0
A77: Lastbil, trä konstruktionsvirke | B77: km | C77: =Miljö!C208 -> 0 | D77: =Miljö!D208 -> 0 | E77: =Miljö!E208 -> 0 | F77: =Miljö!F208 -> 0 | G77: =Miljö!G208 -> 0 | H77: =Miljö!H208 -> 0 | I77: =Miljö!I208 -> 0 | J77: =Miljö!J208 -> 0 | K77: =Miljö!K208 -> 0 | L77: =Miljö!L208 -> 0
A78: Tåg, trä konstruktionsvirke | B78: km | C78: =Miljö!C209 -> 0 | D78: =Miljö!D209 -> 0 | E78: =Miljö!E209 -> 0 | F78: =Miljö!F209 -> 0 | G78: =Miljö!G209 -> 0 | H78: =Miljö!H209 -> 0 | I78: =Miljö!I209 -> 0 | J78: =Miljö!J209 -> 0 | K78: =Miljö!K209 -> 0 | L78: =Miljö!L209 -> 0
A79: Båt, trä konstruktionsvirke | B79: km | C79: =Miljö!C210 -> 0 | D79: =Miljö!D210 -> 0 | E79: =Miljö!E210 -> 0 | F79: =Miljö!F210 -> 0 | G79: =Miljö!G210 -> 0 | H79: =Miljö!H210 -> 0 | I79: =Miljö!I210 -> 0 | J79: =Miljö!J210 -> 0 | K79: =Miljö!K210 -> 0 | L79: =Miljö!L210 -> 0
A80: Lastbil, träfasad | B80: km | C80: =Miljö!C217 -> 0 | D80: =Miljö!D217 -> 0 | E80: =Miljö!E217 -> 0 | F80: =Miljö!F217 -> 0 | G80: =Miljö!G217 -> 0 | H80: =Miljö!H217 -> 0 | I80: =Miljö!I217 -> 0 | J80: =Miljö!J217 -> 0 | K80: =Miljö!K217 -> 0 | L80: =Miljö!L217 -> 0
A81: Tåg, träfasad | B81: km | C81: =Miljö!C218 -> 0 | D81: =Miljö!D218 -> 0 | E81: =Miljö!E218 -> 0 | F81: =Miljö!F218 -> 0 | G81: =Miljö!G218 -> 0 | H81: =Miljö!H218 -> 0 | I81: =Miljö!I218 -> 0 | J81: =Miljö!J218 -> 0 | K81: =Miljö!K218 -> 0 | L81: =Miljö!L218 -> 0
A82: Båt, träfasad | B82: km | C82: =Miljö!C219 -> 0 | D82: =Miljö!D219 -> 0 | E82: =Miljö!E219 -> 0 | F82: =Miljö!F219 -> 0 | G82: =Miljö!G219 -> 0 | H82: =Miljö!H219 -> 0 | I82: =Miljö!I219 -> 0 | J82: =Miljö!J219 -> 0 | K82: =Miljö!K219 -> 0 | L82: =Miljö!L219 -> 0
A83: Lastbil, invändig träpanel | B83: km | C83: =Miljö!C226 -> 0 | D83: =Miljö!D226 -> 0 | E83: =Miljö!E226 -> 0 | F83: =Miljö!F226 -> 0 | G83: =Miljö!G226 -> 0 | H83: =Miljö!H226 -> 0 | I83: =Miljö!I226 -> 0 | J83: =Miljö!J226 -> 0 | K83: =Miljö!K226 -> 0 | L83: =Miljö!L226 -> 0
A84: Tåg, invändig träpanel | B84: km | C84: =Miljö!C227 -> 0 | D84: =Miljö!D227 -> 0 | E84: =Miljö!E227 -> 0 | F84: =Miljö!F227 -> 0 | G84: =Miljö!G227 -> 0 | H84: =Miljö!H227 -> 0 | I84: =Miljö!I227 -> 0 | J84: =Miljö!J227 -> 0 | K84: =Miljö!K227 -> 0 | L84: =Miljö!L227 -> 0
A85: Båt, invändig träpanel | B85: km | C85: =Miljö!C228 -> 0 | D85: =Miljö!D228 -> 0 | E85: =Miljö!E228 -> 0 | F85: =Miljö!F228 -> 0 | G85: =Miljö!G228 -> 0 | H85: =Miljö!H228 -> 0 | I85: =Miljö!I228 -> 0 | J85: =Miljö!J228 -> 0 | K85: =Miljö!K228 -> 0 | L85: =Miljö!L228 -> 0
A86: Lastbil, Betong bjälklag | B86: km | C86: =Miljö!C236 -> 0 | D86: =Miljö!D236 -> 0 | E86: =Miljö!E236 -> 0 | F86: =Miljö!F236 -> 0 | G86: =Miljö!G236 -> 0 | H86: =Miljö!H236 -> 0 | I86: =Miljö!I236 -> 0 | J86: =Miljö!J236 -> 0 | K86: =Miljö!K236 -> 0 | L86: =Miljö!L236 -> 0
A87: Tåg, Betong bjälklag | B87: km | C87: =Miljö!C237 -> 0 | D87: =Miljö!D237 -> 0 | E87: =Miljö!E237 -> 0 | F87: =Miljö!F237 -> 0 | G87: =Miljö!G237 -> 0 | H87: =Miljö!H237 -> 0 | I87: =Miljö!I237 -> 0 | J87: =Miljö!J237 -> 0 | K87: =Miljö!K237 -> 0 | L87: =Miljö!L237 -> 0
A88: Båt, Betong bjälklag | B88: km | C88: =Miljö!C238 -> 0 | D88: =Miljö!D238 -> 0 | E88: =Miljö!E238 -> 0 | F88: =Miljö!F238 -> 0 | G88: =Miljö!G238 -> 0 | H88: =Miljö!H238 -> 0 | I88: =Miljö!I238 -> 0 | J88: =Miljö!J238 -> 0 | K88: =Miljö!K238 -> 0 | L88: =Miljö!L238 -> 0
A89: Lastbil,Betong bärande ytterväggar | B89: km | C89: =Miljö!C246 -> 0 | D89: =Miljö!D246 -> 0 | E89: =Miljö!E246 -> 0 | F89: =Miljö!F246 -> 0 | G89: =Miljö!G246 -> 0 | H89: =Miljö!H246 -> 0 | I89: =Miljö!I246 -> 0 | J89: =Miljö!J246 -> 0 | K89: =Miljö!K246 -> 0 | L89: =Miljö!L246 -> 0
A90: Tåg, Betong bärande ytterväggar | B90: km | C90: =Miljö!C247 -> 0 | D90: =Miljö!D247 -> 0 | E90: =Miljö!E247 -> 0 | F90: =Miljö!F247 -> 0 | G90: =Miljö!G247 -> 0 | H90: =Miljö!H247 -> 0 | I90: =Miljö!I247 -> 0 | J90: =Miljö!J247 -> 0 | K90: =Miljö!K247 -> 0 | L90: =Miljö!L247 -> 0
A91: Båt,Betong bärande ytterväggar | B91: km | C91: =Miljö!C248 -> 0 | D91: =Miljö!D248 -> 0 | E91: =Miljö!E248 -> 0 | F91: =Miljö!F248 -> 0 | G91: =Miljö!G248 -> 0 | H91: =Miljö!H248 -> 0 | I91: =Miljö!I248 -> 0 | J91: =Miljö!J248 -> 0 | K91: =Miljö!K248 -> 0 | L91: =Miljö!L248 -> 0
A92: Lastbil, Betong icke-bärande ytterväggar | B92: km | C92: =Miljö!C255 -> 0 | D92: =Miljö!D255 -> 0 | E92: =Miljö!E255 -> 0 | F92: =Miljö!F255 -> 0 | G92: =Miljö!G255 -> 0 | H92: =Miljö!H255 -> 0 | I92: =Miljö!I255 -> 0 | J92: =Miljö!J255 -> 0 | K92: =Miljö!K255 -> 0 | L92: =Miljö!L255 -> 0
A93: Tåg, Betong icke-bärande ytterväggar | B93: km | C93: =Miljö!C256 -> 0 | D93: =Miljö!D256 -> 0 | E93: =Miljö!E256 -> 0 | F93: =Miljö!F256 -> 0 | G93: =Miljö!G256 -> 0 | H93: =Miljö!H256 -> 0 | I93: =Miljö!I256 -> 0 | J93: =Miljö!J256 -> 0 | K93: =Miljö!K256 -> 0 | L93: =Miljö!L256 -> 0
A94: Båt, Betong icke-bärande ytterväggar | B94: km | C94: =Miljö!C257 -> 0 | D94: =Miljö!D257 -> 0 | E94: =Miljö!E257 -> 0 | F94: =Miljö!F257 -> 0 | G94: =Miljö!G257 -> 0 | H94: =Miljö!H257 -> 0 | I94: =Miljö!I257 -> 0 | J94: =Miljö!J257 -> 0 | K94: =Miljö!K257 -> 0 | L94: =Miljö!L257 -> 0
A95: Lastbil, Betong innerväggar | B95: km | C95: =Miljö!C265 -> 0 | D95: =Miljö!D265 -> 0 | E95: =Miljö!E265 -> 0 | F95: =Miljö!F265 -> 0 | G95: =Miljö!G265 -> 0 | H95: =Miljö!H265 -> 0 | I95: =Miljö!I265 -> 0 | J95: =Miljö!J265 -> 0 | K95: =Miljö!K265 -> 0 | L95: =Miljö!L265 -> 0
A96: Tåg, Betong innerväggar | B96: km | C96: =Miljö!C266 -> 0 | D96: =Miljö!D266 -> 0 | E96: =Miljö!E266 -> 0 | F96: =Miljö!F266 -> 0 | G96: =Miljö!G266 -> 0 | H96: =Miljö!H266 -> 0 | I96: =Miljö!I266 -> 0 | J96: =Miljö!J266 -> 0 | K96: =Miljö!K266 -> 0 | L96: =Miljö!L266 -> 0
A97: Båt, Betong innerväggar | B97: km | C97: =Miljö!C267 -> 0 | D97: =Miljö!D267 -> 0 | E97: =Miljö!E267 -> 0 | F97: =Miljö!F267 -> 0 | G97: =Miljö!G267 -> 0 | H97: =Miljö!H267 -> 0 | I97: =Miljö!I267 -> 0 | J97: =Miljö!J267 -> 0 | K97: =Miljö!K267 -> 0 | L97: =Miljö!L267 -> 0
A98: Lastbil, Puts | B98: km | C98: =Miljö!C274 -> 0 | D98: =Miljö!D274 -> 0 | E98: =Miljö!E274 -> 0 | F98: =Miljö!F274 -> 0 | G98: =Miljö!G274 -> 0 | H98: =Miljö!H274 -> 0 | I98: =Miljö!I274 -> 0 | J98: =Miljö!J274 -> 0 | K98: =Miljö!K274 -> 0 | L98: =Miljö!L274 -> 0
A99: Tåg, Puts | B99: km | C99: =Miljö!C275 -> 0 | D99: =Miljö!D275 -> 0 | E99: =Miljö!E275 -> 0 | F99: =Miljö!F275 -> 0 | G99: =Miljö!G275 -> 0 | H99: =Miljö!H275 -> 0 | I99: =Miljö!I275 -> 0 | J99: =Miljö!J275 -> 0 | K99: =Miljö!K275 -> 0 | L99: =Miljö!L275 -> 0
A100: Båt, Puts | B100: km | C100: =Miljö!C276 -> 0 | D100: =Miljö!D276 -> 0 | E100: =Miljö!E276 -> 0 | F100: =Miljö!F276 -> 0 | G100: =Miljö!G276 -> 0 | H100: =Miljö!H276 -> 0 | I100: =Miljö!I276 -> 0 | J100: =Miljö!J276 -> 0 | K100: =Miljö!K276 -> 0 | L100: =Miljö!L276 -> 0
A101: Lastbil, gipsskivor | B101: km | C101: =Miljö!C283 -> 0 | D101: =Miljö!D283 -> 0 | E101: =Miljö!E283 -> 0 | F101: =Miljö!F283 -> 0 | G101: =Miljö!G283 -> 0 | H101: =Miljö!H283 -> 0 | I101: =Miljö!I283 -> 0 | J101: =Miljö!J283 -> 0 | K101: =Miljö!K283 -> 0 | L101: =Miljö!L283 -> 0
A102: Tåg, gipsskivor | B102: km | C102: =Miljö!C284 -> 0 | D102: =Miljö!D284 -> 0 | E102: =Miljö!E284 -> 0 | F102: =Miljö!F284 -> 0 | G102: =Miljö!G284 -> 0 | H102: =Miljö!H284 -> 0 | I102: =Miljö!I284 -> 0 | J102: =Miljö!J284 -> 0 | K102: =Miljö!K284 -> 0 | L102: =Miljö!L284 -> 0
A103: Båt, gipsskivor | B103: km | C103: =Miljö!C285 -> 0 | D103: =Miljö!D285 -> 0 | E103: =Miljö!E285 -> 0 | F103: =Miljö!F285 -> 0 | G103: =Miljö!G285 -> 0 | H103: =Miljö!H285 -> 0 | I103: =Miljö!I285 -> 0 | J103: =Miljö!J285 -> 0 | K103: =Miljö!K285 -> 0 | L103: =Miljö!L285 -> 0
A104: Lastbil, takbeläggning | B104: km | C104: =Miljö!C293 -> 0 | D104: =Miljö!D293 -> 0 | E104: =Miljö!E293 -> 0 | F104: =Miljö!F293 -> 0 | G104: =Miljö!G293 -> 0 | H104: =Miljö!H293 -> 0 | I104: =Miljö!I293 -> 0 | J104: =Miljö!J293 -> 0 | K104: =Miljö!K293 -> 0 | L104: =Miljö!L293 -> 0
A105: Tåg, takbeläggning | B105: km | C105: =Miljö!C294 -> 0 | D105: =Miljö!D294 -> 0 | E105: =Miljö!E294 -> 0 | F105: =Miljö!F294 -> 0 | G105: =Miljö!G294 -> 0 | H105: =Miljö!H294 -> 0 | I105: =Miljö!I294 -> 0 | J105: =Miljö!J294 -> 0 | K105: =Miljö!K294 -> 0 | L105: =Miljö!L294 -> 0
A106: Båt, takbeläggning | B106: km | C106: =Miljö!C295 -> 0 | D106: =Miljö!D295 -> 0 | E106: =Miljö!E295 -> 0 | F106: =Miljö!F295 -> 0 | G106: =Miljö!G295 -> 0 | H106: =Miljö!H295 -> 0 | I106: =Miljö!I295 -> 0 | J106: =Miljö!J295 -> 0 | K106: =Miljö!K295 -> 0 | L106: =Miljö!L295 -> 0
A107: Lastbil, radiatorer | B107: km | C107: =Miljö!C306 -> 0 | D107: =Miljö!D306 -> 0 | E107: =Miljö!E306 -> 0 | F107: =Miljö!F306 -> 0 | G107: =Miljö!G306 -> 0 | H107: =Miljö!H306 -> 0 | I107: =Miljö!I306 -> 0 | J107: =Miljö!J306 -> 0 | K107: =Miljö!K306 -> 0 | L107: =Miljö!L306 -> 0
A108: Tåg, radiatorer | B108: km | C108: =Miljö!C307 -> 0 | D108: =Miljö!D307 -> 0 | E108: =Miljö!E307 -> 0 | F108: =Miljö!F307 -> 0 | G108: =Miljö!G307 -> 0 | H108: =Miljö!H307 -> 0 | I108: =Miljö!I307 -> 0 | J108: =Miljö!J307 -> 0 | K108: =Miljö!K307 -> 0 | L108: =Miljö!L307 -> 0
A109: Båt, radiatorer | B109: km | C109: =Miljö!C308 -> 0 | D109: =Miljö!D308 -> 0 | E109: =Miljö!E308 -> 0 | F109: =Miljö!F308 -> 0 | G109: =Miljö!G308 -> 0 | H109: =Miljö!H308 -> 0 | I109: =Miljö!I308 -> 0 | J109: =Miljö!J308 -> 0 | K109: =Miljö!K308 -> 0 | L109: =Miljö!L308 -> 0
A110: Lastbil, kopparrör | B110: km | C110: =Miljö!C315 -> 0 | D110: =Miljö!D315 -> 0 | E110: =Miljö!E315 -> 0 | F110: =Miljö!F315 -> 0 | G110: =Miljö!G315 -> 0 | H110: =Miljö!H315 -> 0 | I110: =Miljö!I315 -> 0 | J110: =Miljö!J315 -> 0 | K110: =Miljö!K315 -> 0 | L110: =Miljö!L315 -> 0
A111: Tåg, kopparrör | B111: km | C111: =Miljö!C316 -> 0 | D111: =Miljö!D316 -> 0 | E111: =Miljö!E316 -> 0 | F111: =Miljö!F316 -> 0 | G111: =Miljö!G316 -> 0 | H111: =Miljö!H316 -> 0 | I111: =Miljö!I316 -> 0 | J111: =Miljö!J316 -> 0 | K111: =Miljö!K316 -> 0 | L111: =Miljö!L316 -> 0
A112: Båt, kopparrör | B112: km | C112: =Miljö!C317 -> 0 | D112: =Miljö!D317 -> 0 | E112: =Miljö!E317 -> 0 | F112: =Miljö!F317 -> 0 | G112: =Miljö!G317 -> 0 | H112: =Miljö!H317 -> 0 | I112: =Miljö!I317 -> 0 | J112: =Miljö!J317 -> 0 | K112: =Miljö!K317 -> 0 | L112: =Miljö!L317 -> 0
A113: Lastbil, PEX-rör | B113: km | C113: =Miljö!C324 -> 0 | D113: =Miljö!D324 -> 0 | E113: =Miljö!E324 -> 0 | F113: =Miljö!F324 -> 0 | G113: =Miljö!G324 -> 0 | H113: =Miljö!H324 -> 0 | I113: =Miljö!I324 -> 0 | J113: =Miljö!J324 -> 0 | K113: =Miljö!K324 -> 0 | L113: =Miljö!L324 -> 0
A114: Tåg, PEX-rör | B114: km | C114: =Miljö!C325 -> 0 | D114: =Miljö!D325 -> 0 | E114: =Miljö!E325 -> 0 | F114: =Miljö!F325 -> 0 | G114: =Miljö!G325 -> 0 | H114: =Miljö!H325 -> 0 | I114: =Miljö!I325 -> 0 | J114: =Miljö!J325 -> 0 | K114: =Miljö!K325 -> 0 | L114: =Miljö!L325 -> 0
A115: Båt, PEX-rör | B115: km | C115: =Miljö!C326 -> 0 | D115: =Miljö!D326 -> 0 | E115: =Miljö!E326 -> 0 | F115: =Miljö!F326 -> 0 | G115: =Miljö!G326 -> 0 | H115: =Miljö!H326 -> 0 | I115: =Miljö!I326 -> 0 | J115: =Miljö!J326 -> 0 | K115: =Miljö!K326 -> 0 | L115: =Miljö!L326 -> 0
A116: Lastbil, pp-rör | B116: km | C116: =Miljö!C333 -> 0 | D116: =Miljö!D333 -> 0 | E116: =Miljö!E333 -> 0 | F116: =Miljö!F333 -> 0 | G116: =Miljö!G333 -> 0 | H116: =Miljö!H333 -> 0 | I116: =Miljö!I333 -> 0 | J116: =Miljö!J333 -> 0 | K116: =Miljö!K333 -> 0 | L116: =Miljö!L333 -> 0
A117: Tåg, pp-rör | B117: km | C117: =Miljö!C334 -> 0 | D117: =Miljö!D334 -> 0 | E117: =Miljö!E334 -> 0 | F117: =Miljö!F334 -> 0 | G117: =Miljö!G334 -> 0 | H117: =Miljö!H334 -> 0 | I117: =Miljö!I334 -> 0 | J117: =Miljö!J334 -> 0 | K117: =Miljö!K334 -> 0 | L117: =Miljö!L334 -> 0
A118: Båt, pp-rör | B118: km | C118: =Miljö!C335 -> 0 | D118: =Miljö!D335 -> 0 | E118: =Miljö!E335 -> 0 | F118: =Miljö!F335 -> 0 | G118: =Miljö!G335 -> 0 | H118: =Miljö!H335 -> 0 | I118: =Miljö!I335 -> 0 | J118: =Miljö!J335 -> 0 | K118: =Miljö!K335 -> 0 | L118: =Miljö!L335 -> 0
A119: Lastbil, järnrör | B119: km | C119: =Miljö!C342 -> 0 | D119: =Miljö!D342 -> 0 | E119: =Miljö!E342 -> 0 | F119: =Miljö!F342 -> 0 | G119: =Miljö!G342 -> 0 | H119: =Miljö!H342 -> 0 | I119: =Miljö!I342 -> 0 | J119: =Miljö!J342 -> 0 | K119: =Miljö!K342 -> 0 | L119: =Miljö!L342 -> 0
A120: Tåg, järnrör | B120: km | C120: =Miljö!C343 -> 0 | D120: =Miljö!D343 -> 0 | E120: =Miljö!E343 -> 0 | F120: =Miljö!F343 -> 0 | G120: =Miljö!G343 -> 0 | H120: =Miljö!H343 -> 0 | I120: =Miljö!I343 -> 0 | J120: =Miljö!J343 -> 0 | K120: =Miljö!K343 -> 0 | L120: =Miljö!L343 -> 0
A121: Båt, järnrör | B121: km | C121: =Miljö!C344 -> 0 | D121: =Miljö!D344 -> 0 | E121: =Miljö!E344 -> 0 | F121: =Miljö!F344 -> 0 | G121: =Miljö!G344 -> 0 | H121: =Miljö!H344 -> 0 | I121: =Miljö!I344 -> 0 | J121: =Miljö!J344 -> 0 | K121: =Miljö!K344 -> 0 | L121: =Miljö!L344 -> 0
A122: Lastbil, stålrör | B122: km | C122: =Miljö!C351 -> 0 | D122: =Miljö!D351 -> 0 | E122: =Miljö!E351 -> 0 | F122: =Miljö!F351 -> 0 | G122: =Miljö!G351 -> 0 | H122: =Miljö!H351 -> 0 | I122: =Miljö!I351 -> 0 | J122: =Miljö!J351 -> 0 | K122: =Miljö!K351 -> 0 | L122: =Miljö!L351 -> 0
A123: Tåg, stålrör | B123: km | C123: =Miljö!C352 -> 0 | D123: =Miljö!D352 -> 0 | E123: =Miljö!E352 -> 0 | F123: =Miljö!F352 -> 0 | G123: =Miljö!G352 -> 0 | H123: =Miljö!H352 -> 0 | I123: =Miljö!I352 -> 0 | J123: =Miljö!J352 -> 0 | K123: =Miljö!K352 -> 0 | L123: =Miljö!L352 -> 0
A124: Båt, stålrör | B124: km | C124: =Miljö!C353 -> 0 | D124: =Miljö!D353 -> 0 | E124: =Miljö!E353 -> 0 | F124: =Miljö!F353 -> 0 | G124: =Miljö!G353 -> 0 | H124: =Miljö!H353 -> 0 | I124: =Miljö!I353 -> 0 | J124: =Miljö!J353 -> 0 | K124: =Miljö!K353 -> 0 | L124: =Miljö!L353 -> 0
A125: Lastbil, relining | B125: km | C125: =Miljö!C360 -> 0 | D125: =Miljö!D360 -> 0 | E125: =Miljö!E360 -> 0 | F125: =Miljö!F360 -> 0 | G125: =Miljö!G360 -> 0 | H125: =Miljö!H360 -> 0 | I125: =Miljö!I360 -> 0 | J125: =Miljö!J360 -> 0 | K125: =Miljö!K360 -> 0 | L125: =Miljö!L360 -> 0
A126: Tåg, relining | B126: km | C126: =Miljö!C361 -> 0 | D126: =Miljö!D361 -> 0 | E126: =Miljö!E361 -> 0 | F126: =Miljö!F361 -> 0 | G126: =Miljö!G361 -> 0 | H126: =Miljö!H361 -> 0 | I126: =Miljö!I361 -> 0 | J126: =Miljö!J361 -> 0 | K126: =Miljö!K361 -> 0 | L126: =Miljö!L361 -> 0
A127: Båt, relining | B127: km | C127: =Miljö!C362 -> 0 | D127: =Miljö!D362 -> 0 | E127: =Miljö!E362 -> 0 | F127: =Miljö!F362 -> 0 | G127: =Miljö!G362 -> 0 | H127: =Miljö!H362 -> 0 | I127: =Miljö!I362 -> 0 | J127: =Miljö!J362 -> 0 | K127: =Miljö!K362 -> 0 | L127: =Miljö!L362 -> 0
A128: Lastbil, elledning | B128: km | C128: =Miljö!C388 -> 0 | D128: =Miljö!D388 -> 0 | E128: =Miljö!E388 -> 0 | F128: =Miljö!F388 -> 0 | G128: =Miljö!G388 -> 0 | H128: =Miljö!H388 -> 0 | I128: =Miljö!I388 -> 0 | J128: =Miljö!J388 -> 0 | K128: =Miljö!K388 -> 0 | L128: =Miljö!L388 -> 0
A129: Tåg, elledning | B129: km | C129: =Miljö!C389 -> 0 | D129: =Miljö!D389 -> 0 | E129: =Miljö!E389 -> 0 | F129: =Miljö!F389 -> 0 | G129: =Miljö!G389 -> 0 | H129: =Miljö!H389 -> 0 | I129: =Miljö!I389 -> 0 | J129: =Miljö!J389 -> 0 | K129: =Miljö!K389 -> 0 | L129: =Miljö!L389 -> 0
A130: Båt, elledning | B130: km | C130: =Miljö!C390 -> 0 | D130: =Miljö!D390 -> 0 | E130: =Miljö!E390 -> 0 | F130: =Miljö!F390 -> 0 | G130: =Miljö!G390 -> 0 | H130: =Miljö!H390 -> 0 | I130: =Miljö!I390 -> 0 | J130: =Miljö!J390 -> 0 | K130: =Miljö!K390 -> 0 | L130: =Miljö!L390 -> 0
A134: Växthuseffekt
A135: Trp, isolering 1 | B135: kg CO2-eq/trp | C135: =C13/1000*(C44*$C$6+C45*$C$7+C46*$C$8) -> 0 | D135: 0 | E135: 0 | F135: 0 | G135: 0 | H135: 0 | I135: 0 | J135: 0 | K135: 0 | L135: 0
A136: Trp, isolering 2 | B136: kg CO2-eq/trp | C136: =C14/1000*(C47*$C$6+C48*$C$7+C49*$C$8) -> 0 | D136: 0 | E136: 0 | F136: 0 | G136: 0 | H136: 0 | I136: 0 | J136: 0 | K136: 0 | L136: 0
A137: Trp, fasad | B137: kg CO2-eq/trp | C137: =C15/1000*(C50*$C$6+C51*$C$7+C52*$C$8) -> 0 | D137: 0 | E137: 0 | F137: 0 | G137: 0 | H137: 0 | I137: 0 | J137: 0 | K137: 0 | L137: 0
A138: Trp, fönster | B138: kg CO2-eq/trp | C138: =C16/1000*(C53*$C$6+C54*$C$7+C55*$C$8) -> 0 | D138: 0 | E138: 0 | F138: 0 | G138: 0 | H138: 0 | I138: 0 | J138: 0 | K138: 0 | L138: 0
A139: Trp, dörrar | B139: kg CO2-eq/trp | C139: =C17/1000*(C56*$C$6+C57*$C$7+C58*$C$8) -> 0 | D139: 0 | E139: 0 | F139: 0 | G139: 0 | H139: 0 | I139: 0 | J139: 0 | K139: 0 | L139: 0
A140: Trp, byte uppvärmning | B140: kg CO2-eq/trp | C140: =C18/1000*(C59*$C$6+C60*$C$7+C61*$C$8) -> 0 | D140: 0 | E140: 0 | F140: 0 | G140: 0 | H140: 0 | I140: 0 | J140: 0 | K140: 0 | L140: 0
A141: Trp cirkpump | B141: kg CO2-eq/trp | C141: =C19/1000*(C62*$C$6+C63*$C$7+C64*$C$8) -> 0 | D141: 0 | E141: 0 | F141: 0 | G141: 0 | H141: 0 | I141: 0 | J141: 0 | K141: 0 | L141: 0
A142: Trp vent kanaler | B142: kg CO2-eq/trp | C142: =C20/1000*(C65*$C$6+C66*$C$7+C67*$C$8) -> 0 | D142: 0 | E142: 0 | F142: 0 | G142: 0 | H142: 0 | I142: 0 | J142: 0 | K142: 0 | L142: 0
A143: Trp luftflödesaggregat | B143: kg CO2-eq/trp | C143: =C21/1000*(C68*$C$6+C69*$C$7+C70*$C$8) -> 0 | D143: 0 | E143: 0 | F143: 0 | G143: 0 | H143: 0 | I143: 0 | J143: 0 | K143: 0 | L143: 0
A144: Trp don och dämare | B144: kg CO2-eq/trp | C144: =C22/1000*(C71*$C$6+C72*$C$7+C73*$C$8) -> 0 | D144: 0 | E144: 0 | F144: 0 | G144: 0 | H144: 0 | I144: 0 | J144: 0 | K144: 0 | L144: 0
A145: Trp total ventilation | B145: kg CO2-eq/trp | C145: =SUM(C142:C144) -> 0 | D145: =SUM(D142:D144) -> 0 | E145: 0 | F145: 0 | G145: 0 | H145: 0 | I145: 0 | J145: 0 | K145: 0 | L145: 0
A146: Trp solel | B146: kg CO2-eq/trp | C146: =C23/1000*SUMPRODUCT($C$6:$C$8,C74:C76) -> 0 | D146: =D23/1000*SUMPRODUCT($C$6:$C$8,D74:D76) -> 0 | E146: 0 | F146: 0 | G146: 0 | H146: 0 | I146: 0 | J146: 0 | K146: 0 | L146: 0
A147: Trä konstruktionsvirke | B147: kg CO2-eq/trp | C147: =C24/1000*SUMPRODUCT($C$6:$C$8,C77:C79) -> 0 | D147: =D24/1000*SUMPRODUCT($C$6:$C$8,D77:D79) -> 0 | E147: 0 | F147: 0 | G147: 0 | H147: 0 | I147: 0 | J147: 0 | K147: 0 | L147: 0
A148: Trä målad träfasad | B148: kg CO2-eq/trp | C148: =C25/1000*SUMPRODUCT($C$6:$C$8,C80:C82) -> 0 | D148: =D25/1000*SUMPRODUCT($C$6:$C$8,D80:D82) -> 0 | E148: 0 | F148: 0 | G148: 0 | H148: 0 | I148: 0 | J148: 0 | K148: 0 | L148: 0
A149: Trä invändig träpanel | B149: kg CO2-eq/trp | C149: =C26/1000*SUMPRODUCT($C$6:$C$8,C83:C85) -> 0 | D149: =D26/1000*SUMPRODUCT($C$6:$C$8,D83:D85) -> 0 | E149: 0 | F149: 0 | G149: 0 | H149: 0 | I149: 0 | J149: 0 | K149: 0 | L149: 0
A150: Betong bjälklag | B150: kg CO2-eq/trp | C150: =C27/1000*SUMPRODUCT($C$6:$C$8,C86:C88) -> 0 | D150: =D27/1000*SUMPRODUCT($C$6:$C$8,D86:D88) -> 0 | E150: 0 | F150: 0 | G150: 0 | H150: 0 | I150: 0 | J150: 0 | K150: 0 | L150: 0
A151: Betong bärande ytterväggar | B151: kg CO2-eq/trp | C151: =C28/1000*SUMPRODUCT($C$6:$C$8,C89:C91) -> 0 | D151: =D28/1000*SUMPRODUCT($C$6:$C$8,D89:D91) -> 0 | E151: 0 | F151: 0 | G151: 0 | H151: 0 | I151: 0 | J151: 0 | K151: 0 | L151: 0
A152: Betong icke-bärande ytterväggar | B152: kg CO2-eq/trp | C152: =C29/1000*SUMPRODUCT($C$6:$C$8,C92:C94) -> 0 | D152: =D29/1000*SUMPRODUCT($C$6:$C$8,D92:D94) -> 0 | E152: 0 | F152: 0 | G152: 0 | H152: 0 | I152: 0 | J152: 0 | K152: 0 | L152: 0
A153: Betong innerväggar | B153: kg CO2-eq/trp | C153: =C30/1000*SUMPRODUCT($C$6:$C$8,C95:C97) -> 0 | D153: =D30/1000*SUMPRODUCT($C$6:$C$8,D95:D97) -> 0 | E153: 0 | F153: 0 | G153: 0 | H153: 0 | I153: 0 | J153: 0 | K153: 0 | L153: 0
A154: Puts | B154: kg CO2-eq/trp | C154: =C31/1000*SUMPRODUCT($C$6:$C$8,C98:C100) -> 0 | D154: =D31/1000*SUMPRODUCT($C$6:$C$8,D98:D100) -> 0 | E154: 0 | F154: 0 | G154: 0 | H154: 0 | I154: 0 | J154: 0 | K154: 0 | L154: 0
A155: Gipsskivor | B155: kg CO2-eq/trp | C155: =C32/1000*SUMPRODUCT($C$6:$C$8,C101:C103) -> 0 | D155: =D32/1000*SUMPRODUCT($C$6:$C$8,D101:D103) -> 0 | E155: 0 | F155: 0 | G155: 0 | H155: 0 | I155: 0 | J155: 0 | K155: 0 | L155: 0
A156: Takbeläggning | B156: kg CO2-eq/trp | C156: =C33/1000*SUMPRODUCT($C$6:$C$8,C104:C106) -> 0 | D156: =D33/1000*SUMPRODUCT($C$6:$C$8,D104:D106) -> 0 | E156: 0 | F156: 0 | G156: 0 | H156: 0 | I156: 0 | J156: 0 | K156: 0 | L156: 0
A157: Trp radiatorer | B157: kg CO2-eq/trp | C157: =C34/1000*(C107*$C$6+C108*$C$7+C109*$C$8) -> 0 | D157: 0 | E157: 0 | F157: 0 | G157: 0 | H157: 0 | I157: 0 | J157: 0 | K157: 0 | L157: 0
A158: Trp kopparrör | B158: kg CO2-eq/trp | C158: =C35/1000*(C110*$C$6+C111*$C$7+C112*$C$8) -> 0 | D158: 0 | E158: 0 | F158: 0 | G158: 0 | H158: 0 | I158: 0 | J158: 0 | K158: 0 | L158: 0
A159: Trp PEX-rör | B159: kg CO2-eq/trp | C159: =C36/1000*(C113*$C$6+C114*$C$7+C115*$C$8) -> 0 | D159: 0 | E159: 0 | F159: 0 | G159: 0 | H159: 0 | I159: 0 | J159: 0 | K159: 0 | L159: 0
A160: Trp pp-rör | B160: kg CO2-eq/trp | C160: =C37/1000*(C116*$C$6+C117*$C$7+C118*$C$8) -> 0 | D160: 0 | E160: 0 | F160: 0 | G160: 0 | H160: 0 | I160: 0 | J160: 0 | K160: 0 | L160: 0
A161: Trp järnrör | B161: kg CO2-eq/trp | C161: =C38/1000*(C119*$C$6+C120*$C$7+C121*$C$8) -> 0 | D161: 0 | E161: 0 | F161: 0 | G161: 0 | H161: 0 | I161: 0 | J161: 0 | K161: 0 | L161: 0
A162: Trp stålrör | B162: kg CO2-eq/trp | C162: =C39/1000*(C122*$C$6+C123*$C$7+C124*$C$8) -> 0 | D162: 0 | E162: 0 | F162: 0 | G162: 0 | H162: 0 | I162: 0 | J162: 0 | K162: 0 | L162: 0
A163: Trp Total rör | B163: kg CO2-eq/trp | C163: =SUM(C158:C162) -> 0 | D163: =SUM(D158:D162) -> 0 | E163: 0 | F163: 0 | G163: 0 | H163: 0 | I163: 0 | J163: 0 | K163: 0 | L163: 0
A164: Trp relining | B164: kg CO2-eq/trp | C164: =C40/1000*(C125*$C$6+C126*$C$7+C127*$C$8) -> 0 | D164: 0 | E164: 0 | F164: 0 | G164: 0 | H164: 0 | I164: 0 | J164: 0 | K164: 0 | L164: 0
A165: Trp elledningar | B165: kg CO2-eq/trp | C165: =C41/1000*(C128*$C$6+C129*$C$7+C130*$C$8) -> 0 | D165: =D41/1000*(D128*$C$6+D129*$C$7+D130*$C$8) -> 0 | E165: 0 | F165: 0 | G165: 0 | H165: 0 | I165: 0 | J165: 0 | K165: 0 | L165: 0
A167: Primärenergi
A168: Trp, isolering 1 | B168: kWh/trp | C168: =C13/1000*(C44*$D$6+C45*$D$7+C46*$D$8) -> 0 | D168: 0 | E168: 0 | F168: 0 | G168: 0 | H168: 0 | I168: 0 | J168: 0 | K168: 0 | L168: 0
A169: Trp, isolering 2 | B169: kWh/trp | C169: =C14/1000*(C47*$D$6+C48*$D$7+C49*$D$8) -> 0 | D169: 0 | E169: 0 | F169: 0 | G169: 0 | H169: 0 | I169: 0 | J169: 0 | K169: 0 | L169: 0
A170: Trp, fasad | B170: kWh/trp | C170: =C15/1000*(C50*$D$6+C51*$D$7+C52*$D$8) -> 0 | D170: 0 | E170: 0 | F170: 0 | G170: 0 | H170: 0 | I170: 0 | J170: 0 | K170: 0 | L170: 0
A171: Trp, fönster | B171: kWh/trp | C171: =C16/1000*(C53*$D$6+C54*$D$7+C55*$D$8) -> 0 | D171: 0 | E171: 0 | F171: 0 | G171: 0 | H171: 0 | I171: 0 | J171: 0 | K171: 0 | L171: 0
A172: Trp, dörrar | C172: =C17/1000*(C56*$D$6+C57*$D$7+C58*$D$8) -> 0 | D172: 0 | E172: 0 | F172: 0 | G172: 0 | H172: 0 | I172: 0 | J172: 0 | K172: 0 | L172: 0
A173: Trp, byte uppvärmning | B173: kWh/trp | C173: =C18/1000*(C59*$D$6+C60*$D$7+C61*$D$8) -> 0 | D173: 0 | E173: 0 | F173: 0 | G173: 0 | H173: 0 | I173: 0 | J173: 0 | K173: 0 | L173: 0
A174: Trp cirkpump | B174: kWh/trp | C174: =C19/1000*(C62*$D$6+C63*$D$7+C64*$D$8) -> 0 | D174: 0 | E174: 0 | F174: 0 | G174: 0 | H174: 0 | I174: 0 | J174: 0 | K174: 0 | L174: 0
A175: Trp vent kanaler | B175: kWh/trp | C175: =C20/1000*(C65*$D$6+C66*$D$7+C67*$D$8) -> 0 | D175: 0 | E175: 0 | F175: 0 | G175: 0 | H175: 0 | I175: 0 | J175: 0 | K175: 0 | L175: 0
A176: Trp luftflödesaggregat | B176: kWh/trp | C176: =C21/1000*(C68*$D$6+C69*$D$7+C70*$D$8) -> 0 | D176: 0 | E176: 0 | F176: 0 | G176: 0 | H176: 0 | I176: 0 | J176: 0 | K176: 0 | L176: 0
A177: Trp don och dämare | B177: kWh/trp | C177: =C22/1000*(C71*$D$6+C72*$D$7+C73*$D$8) -> 0 | D177: 0 | E177: 0 | F177: 0 | G177: 0 | H177: 0 | I177: 0 | J177: 0 | K177: 0 | L177: 0
A178: Trp total ventilation | B178: kWh/trp | C178: =SUM(C175:C177) -> 0 | D178: 0 | E178: 0 | F178: 0 | G178: 0 | H178: 0 | I178: 0 | J178: 0 | K178: 0 | L178: 0
A179: Trp solel | B179: kWh/trp | C179: =C23/1000*SUMPRODUCT($D$6:$D$8,C74:C76) -> 0 | D179: =D23/1000*SUMPRODUCT($D$6:$D$8,D76:D78) -> 0 | E179: 0 | F179: 0 | G179: 0 | H179: 0 | I179: 0 | J179: 0 | K179: 0 | L179: 0
A180: Trä konstruktionsvirke | B180: kWh/trp | C180: =C24/1000*SUMPRODUCT($D$6:$D$8,C77:C79) -> 0 | D180: 0 | E180: 0 | F180: 0 | G180: 0 | H180: 0 | I180: 0 | J180: 0 | K180: 0 | L180: 0
A181: Trä målad träfasad | B181: kWh/trp | C181: =C25/1000*SUMPRODUCT($D$6:$D$8,C80:C82) -> 0 | D181: =D25/1000*SUMPRODUCT($D$6:$D$8,D80:D82) -> 0 | E181: 0 | F181: 0 | G181: 0 | H181: 0 | I181: 0 | J181: 0 | K181: 0 | L181: 0
A182: Trä invändig träpanel | B182: kWh/trp | C182: =C26/1000*SUMPRODUCT($D$6:$D$8,C83:C85) -> 0 | D182: =D26/1000*SUMPRODUCT($D$6:$D$8,D83:D85) -> 0 | E182: 0 | F182: 0 | G182: 0 | H182: 0 | I182: 0 | J182: 0 | K182: 0 | L182: 0
A183: Betong bjälklag | B183: kWh/trp | C183: =C27/1000*SUMPRODUCT($D$6:$D$8,C86:C88) -> 0 | D183: =D27/1000*SUMPRODUCT($D$6:$D$8,D86:D88) -> 0 | E183: 0 | F183: 0 | G183: 0 | H183: 0 | I183: 0 | J183: 0 | K183: 0 | L183: 0
A184: Betong bärande ytterväggar | B184: kWh/trp | C184: =C28/1000*SUMPRODUCT($D$6:$D$8,C89:C91) -> 0 | D184: =D28/1000*SUMPRODUCT($D$6:$D$8,D89:D91) -> 0 | E184: 0 | F184: 0 | G184: 0 | H184: 0 | I184: 0 | J184: 0 | K184: 0 | L184: 0
A185: Betong icke-bärande ytterväggar | B185: kWh/trp | C185: =C29/1000*SUMPRODUCT($D$6:$D$8,C92:C94) -> 0 | D185: =D29/1000*SUMPRODUCT($D$6:$D$8,D92:D94) -> 0 | E185: 0 | F185: 0 | G185: 0 | H185: 0 | I185: 0 | J185: 0 | K185: 0 | L185: 0
A186: Betong innerväggar | B186: kWh/trp | C186: =C30/1000*SUMPRODUCT($D$6:$D$8,C95:C97) -> 0 | D186: =D30/1000*SUMPRODUCT($D$6:$D$8,D95:D97) -> 0 | E186: 0 | F186: 0 | G186: 0 | H186: 0 | I186: 0 | J186: 0 | K186: 0 | L186: 0
A187: Puts | B187: kWh/trp | C187: =C31/1000*SUMPRODUCT($D$6:$D$8,C98:C100) -> 0 | D187: =D31/1000*SUMPRODUCT($D$6:$D$8,D98:D100) -> 0 | E187: 0 | F187: 0 | G187: 0 | H187: 0 | I187: 0 | J187: 0 | K187: 0 | L187: 0
A188: Gipsskivor | B188: kWh/trp | C188: =C32/1000*SUMPRODUCT($D$6:$D$8,C101:C103) -> 0 | D188: =D32/1000*SUMPRODUCT($D$6:$D$8,D101:D103) -> 0 | E188: 0 | F188: 0 | G188: 0 | H188: 0 | I188: 0 | J188: 0 | K188: 0 | L188: 0
A189: Takbeläggning | B189: kWh/trp | C189: =C33/1000*SUMPRODUCT($D$6:$D$8,C104:C106) -> 0 | D189: =D33/1000*SUMPRODUCT($D$6:$D$8,D104:D106) -> 0 | E189: 0 | F189: 0 | G189: 0 | H189: 0 | I189: 0 | J189: 0 | K189: 0 | L189: 0
A190: Trp, radiatorer | B190: kWh/trp | C190: =C34/1000*(C107*$D$6+C108*$D$7+C109*$D$8) -> 0 | D190: 0 | E190: 0 | F190: 0 | G190: 0 | H190: 0 | I190: 0 | J190: 0 | K190: 0 | L190: 0
A191: Trp kopparrör | B191: kWh/trp | C191: =C35/1000*(C110*$D$6+C111*$D$7+C112*$D$8) -> 0 | D191: 0 | E191: 0 | F191: 0 | G191: 0 | H191: 0 | I191: 0 | J191: 0 | K191: 0 | L191: 0
A192: Trp PEX-rör | B192: kWh/trp | C192: =C36/1000*(C113*$D$6+C114*$D$7+C115*$D$8) -> 0 | D192: 0 | E192: 0 | F192: 0 | G192: 0 | H192: 0 | I192: 0 | J192: 0 | K192: 0 | L192: 0
A193: Trp pp-rör | B193: kWh/trp | C193: =C37/1000*(C116*$D$6+C117*$D$7+C118*$D$8) -> 0 | D193: 0 | E193: 0 | F193: 0 | G193: 0 | H193: 0 | I193: 0 | J193: 0 | K193: 0 | L193: 0
A194: Trp järnrör | B194: kWh/trp | C194: =C38/1000*(C119*$D$6+C120*$D$7+C121*$D$8) -> 0 | D194: 0 | E194: 0 | F194: 0 | G194: 0 | H194: 0 | I194: 0 | J194: 0 | K194: 0 | L194: 0
A195: Trp stålrör | B195: kWh/trp | C195: =C39/1000*(C122*$D$6+C123*$D$7+C124*$D$8) -> 0 | D195: 0 | E195: 0 | F195: 0 | G195: 0 | H195: 0 | I195: 0 | J195: 0 | K195: 0 | L195: 0
A196: Trp Total rör | B196: kWh/trp | C196: =SUM(C191:C195) -> 0 | D196: =SUM(D191:D195) -> 0 | E196: 0 | F196: =SUM(F191:F195) -> 0 | G196: 0 | H196: =SUM(H191:H195) -> 0 | I196: 0 | J196: 0 | K196: 0 | L196: 0
A197: Trp relining | B197: kWh/trp | C197: =C40/1000*(C125*$D$6+C126*$D$7+C127*$D$8) -> 0 | D197: 0 | E197: 0 | F197: 0 | G197: 0 | H197: 0 | I197: 0 | J197: 0 | K197: 0 | L197: 0
A198: Trp elledningar | B198: kWh/trp | C198: =C41/1000*(C128*$D$6+C129*$D$7+C130*$D$8) -> 0 | D198: 0 | E198: 0 | F198: 0 | G198: 0 | H198: 0 | I198: 0 | J198: 0 | K198: 0 | L198: 0

Sheet Calc (hidden)
A2: 7. Beräkning av ändring i miljöpåverkan
A4: 7.1 Antal investeringar under vald tidsperiod
A5: Isolering 1 | B5: st | C5: =IF(Miljö!C151=TRUE,Miljö!$C$16/Miljö!C152,0) -> 0 | D5: =IF(Miljö!D151=TRUE,Miljö!$C$16/Miljö!D152,0) -> 0 | E5: =IF(Miljö!E151=TRUE,Miljö!$C$16/Miljö!E152,0) -> 0 | F5: =IF(Miljö!F151=TRUE,Miljö!$C$16/Miljö!F152,0) -> 0 | G5: =IF(Miljö!G151=TRUE,Miljö!$C$16/Miljö!G152,0) -> 0 | H5: =IF(Miljö!H151=TRUE,Miljö!$C$16/Miljö!H152,0) -> 0 | I5: =IF(Miljö!I151=TRUE,Miljö!$C$16/Miljö!I152,0) -> 0 | J5: =IF(Miljö!J151=TRUE,Miljö!$C$16/Miljö!J152,0) -> 0 | K5: =IF(Miljö!K151=TRUE,Miljö!$C$16/Miljö!K152,0) -> 0 | L5: =IF(Miljö!L151=TRUE,Miljö!$C$16/Miljö!L152,0) -> 0 | M5: Antalet återinvesteringar som behövs under den valda tidsperioden
A6: Isolering 2 | B6: st | C6: =IF(Miljö!C161=TRUE,Miljö!$C$16/Miljö!C162,0) -> 0 | D6: =IF(Miljö!D161=TRUE,Miljö!$C$16/Miljö!D162,0) -> 0 | E6: =IF(Miljö!E161=TRUE,Miljö!$C$16/Miljö!E162,0) -> 0 | F6: =IF(Miljö!F161=TRUE,Miljö!$C$16/Miljö!F162,0) -> 0 | G6: =IF(Miljö!G161=TRUE,Miljö!$C$16/Miljö!G162,0) -> 0 | H6: =IF(Miljö!H161=TRUE,Miljö!$C$16/Miljö!H162,0) -> 0 | I6: =IF(Miljö!I161=TRUE,Miljö!$C$16/Miljö!I162,0) -> 0 | J6: =IF(Miljö!J161=TRUE,Miljö!$C$16/Miljö!J162,0) -> 0 | K6: =IF(Miljö!K161=TRUE,Miljö!$C$16/Miljö!K162,0) -> 0 | L6: =IF(Miljö!L161=TRUE,Miljö!$C$16/Miljö!L162,0) -> 0 | M6: Antag att samma förutsättningar gäller även vid framtida nyinvesteringar
A7: Fasadsystem | B7: st | C7: =IF(Miljö!C171=TRUE,Miljö!$C$16/Miljö!C172,0) -> 0 | D7: =IF(Miljö!D171=TRUE,Miljö!$C$16/Miljö!D172,0) -> 0 | E7: =IF(Miljö!E171=TRUE,Miljö!$C$16/Miljö!E172,0) -> 0 | F7: =IF(Miljö!F171=TRUE,Miljö!$C$16/Miljö!F172,0) -> 0 | G7: =IF(Miljö!G171=TRUE,Miljö!$C$16/Miljö!G172,0) -> 0 | H7: =IF(Miljö!H171=TRUE,Miljö!$C$16/Miljö!H172,0) -> 0 | I7: =IF(Miljö!I171=TRUE,Miljö!$C$16/Miljö!I172,0) -> 0 | J7: =IF(Miljö!J171=TRUE,Miljö!$C$16/Miljö!J172,0) -> 0 | K7: =IF(Miljö!K171=TRUE,Miljö!$C$16/Miljö!K172,0) -> 0 | L7: =IF(Miljö!L171=TRUE,Miljö!$C$16/Miljö!L172,0) -> 0 | M7: Räkna inte in hela påverkan från sista bytet om det finns "restvärde" (Tidigare avrundades uppåt)
A8: Fönster | B8: st | C8: =IF(Miljö!C181=TRUE,Miljö!$C$16/Miljö!C182,0) -> 0 | D8: =IF(Miljö!D181=TRUE,Miljö!$C$16/Miljö!D182,0) -> 0 | E8: =IF(Miljö!E181=TRUE,Miljö!$C$16/Miljö!E182,0) -> 0 | F8: =IF(Miljö!F181=TRUE,Miljö!$C$16/Miljö!F182,0) -> 0 | G8: =IF(Miljö!G181=TRUE,Miljö!$C$16/Miljö!G182,0) -> 0 | H8: =IF(Miljö!H181=TRUE,Miljö!$C$16/Miljö!H182,0) -> 0 | I8: =IF(Miljö!I181=TRUE,Miljö!$C$16/Miljö!I182,0) -> 0 | J8: =IF(Miljö!J181=TRUE,Miljö!$C$16/Miljö!J182,0) -> 0 | K8: =IF(Miljö!K181=TRUE,Miljö!$C$16/Miljö!K182,0) -> 0 | L8: =IF(Miljö!L181=TRUE,Miljö!$C$16/Miljö!L182,0) -> 0
A9: Dörrar | B9: st | C9: =IF(Miljö!C191=TRUE,Miljö!$C$16/Miljö!C192,0) -> 0 | D9: =IF(Miljö!D191=TRUE,Miljö!$C$16/Miljö!D192,0) -> 0 | E9: =IF(Miljö!E191=TRUE,Miljö!$C$16/Miljö!E192,0) -> 0 | F9: =IF(Miljö!F191=TRUE,Miljö!$C$16/Miljö!F192,0) -> 0 | G9: =IF(Miljö!G191=TRUE,Miljö!$C$16/Miljö!G192,0) -> 0 | H9: =IF(Miljö!H191=TRUE,Miljö!$C$16/Miljö!H192,0) -> 0 | I9: =IF(Miljö!I191=TRUE,Miljö!$C$16/Miljö!I192,0) -> 0 | J9: =IF(Miljö!J191=TRUE,Miljö!$C$16/Miljö!J192,0) -> 0 | K9: =IF(Miljö!K191=TRUE,Miljö!$C$16/Miljö!K192,0) -> 0 | L9: =IF(Miljö!L191=TRUE,Miljö!$C$16/Miljö!L192,0) -> 0
A10: Byte uppvärmningsform | B10: st | C10: =IF(Miljö!C98=TRUE,Miljö!$C$16/Miljö!C99,0) -> 0 | D10: =IF(Miljö!D98=TRUE,Miljö!$C$16/Miljö!D99,0) -> 0 | E10: =IF(Miljö!E98=TRUE,Miljö!$C$16/Miljö!E99,0) -> 0 | F10: =IF(Miljö!F98=TRUE,Miljö!$C$16/Miljö!F99,0) -> 0 | G10: =IF(Miljö!G98=TRUE,Miljö!$C$16/Miljö!G99,0) -> 0 | H10: =IF(Miljö!H98=TRUE,Miljö!$C$16/Miljö!H99,0) -> 0 | I10: =IF(Miljö!I98=TRUE,Miljö!$C$16/Miljö!I99,0) -> 0 | J10: =IF(Miljö!J98=TRUE,Miljö!$C$16/Miljö!J99,0) -> 0 | K10: =IF(Miljö!K98=TRUE,Miljö!$C$16/Miljö!K99,0) -> 0 | L10: =IF(Miljö!L98=TRUE,Miljö!$C$16/Miljö!L99,0) -> 0
A11: Byte uppvärmningsform (kringmaterial borrhål, anslutning fjv etc.) | B11: st | C11: =IF(Miljö!C98=TRUE,IF(Miljö!C94=1, Miljö!$C$16/Uppvärmning!$F$6,IF(Miljö!C94=3,Miljö!$C$16/Uppvärmning!$F$8,IF(Miljö!C94=4,Miljö!$C$16/Uppvärmning!$F$9, IF(Miljö!C94=5,Miljö!$C$16/Uppvärmning!$F$10, 0)))),0) -> 0 | D11: =IF(Miljö!D98=TRUE,IF(Miljö!D94=1, Miljö!$C$16/Uppvärmning!$F$6,IF(Miljö!D94=3,Miljö!$C$16/Uppvärmning!$F$8,IF(Miljö!D94=4,Miljö!$C$16/Uppvärmning!$F$9, IF(Miljö!D94=5,Miljö!$C$16/Uppvärmning!$F$10, 0)))),0) -> 0 | E11: =IF(Miljö!E98=TRUE,IF(Miljö!E94=1, Miljö!$C$16/Uppvärmning!$F$6,IF(Miljö!E94=3,Miljö!$C$16/Uppvärmning!$F$8,IF(Miljö!E94=4,Miljö!$C$16/Uppvärmning!$F$9, IF(Miljö!E94=5,Miljö!$C$16/Uppvärmning!$F$10, 0)))),0) -> 0 | F11: =IF(Miljö!F98=TRUE,IF(Miljö!F94=1, Miljö!$C$16/Uppvärmning!$F$6,IF(Miljö!F94=3,Miljö!$C$16/Uppvärmning!$F$8,IF(Miljö!F94=4,Miljö!$C$16/Uppvärmning!$F$9, IF(Miljö!F94=5,Miljö!$C$16/Uppvärmning!$F$10, 0)))),0) -> 0 | G11: =IF(Miljö!G98=TRUE,IF(Miljö!G94=1, Miljö!$C$16/Uppvärmning!$F$6,IF(Miljö!G94=3,Miljö!$C$16/Uppvärmning!$F$8,IF(Miljö!G94=4,Miljö!$C$16/Uppvärmning!$F$9, IF(Miljö!G94=5,Miljö!$C$16/Uppvärmning!$F$10, 0)))),0) -> 0 | H11: =IF(Miljö!H98=TRUE,IF(Miljö!H94=1, Miljö!$C$16/Uppvärmning!$F$6,IF(Miljö!H94=3,Miljö!$C$16/Uppvärmning!$F$8,IF(Miljö!H94=4,Miljö!$C$16/Uppvärmning!$F$9, IF(Miljö!H94=5,Miljö!$C$16/Uppvärmning!$F$10, 0)))),0) -> 0 | I11: =IF(Miljö!I98=TRUE,IF(Miljö!I94=1, Miljö!$C$16/Uppvärmning!$F$6,IF(Miljö!I94=3,Miljö!$C$16/Uppvärmning!$F$8,IF(Miljö!I94=4,Miljö!$C$16/Uppvärmning!$F$9, IF(Miljö!I94=5,Miljö!$C$16/Uppvärmning!$F$10, 0)))),0) -> 0 | J11: =IF(Miljö!J98=TRUE,IF(Miljö!J94=1, Miljö!$C$16/Uppvärmning!$F$6,IF(Miljö!J94=3,Miljö!$C$16/Uppvärmning!$F$8,IF(Miljö!J94=4,Miljö!$C$16/Uppvärmning!$F$9, IF(Miljö!J94=5,Miljö!$C$16/Uppvärmning!$F$10, 0)))),0) -> 0 | K11: =IF(Miljö!K98=TRUE,IF(Miljö!K94=1, Miljö!$C$16/Uppvärmning!$F$6,IF(Miljö!K94=3,Miljö!$C$16/Uppvärmning!$F$8,IF(Miljö!K94=4,Miljö!$C$16/Uppvärmning!$F$9, IF(Miljö!K94=5,Miljö!$C$16/Uppvärmning!$F$10, 0)))),0) -> 0 | L11: =IF(Miljö!L98=TRUE,IF(Miljö!L94=1, Miljö!$C$16/Uppvärmning!$F$6,IF(Miljö!L94=3,Miljö!$C$16/Uppvärmning!$F$8,IF(Miljö!L94=4,Miljö!$C$16/Uppvärmning!$F$9, IF(Miljö!L94=5,Miljö!$C$16/Uppvärmning!$F$10, 0)))),0) -> 0
A12: Cirkulationspump | B12: st | C12: =IF(Miljö!C111=TRUE,Miljö!$C$16/Miljö!C112,0) -> 0 | D12: =IF(Miljö!D111=TRUE,Miljö!$C$16/Miljö!D112,0) -> 0 | E12: =IF(Miljö!E111=TRUE,Miljö!$C$16/Miljö!E112,0) -> 0 | F12: =IF(Miljö!F111=TRUE,Miljö!$C$16/Miljö!F112,0) -> 0 | G12: =IF(Miljö!G111=TRUE,Miljö!$C$16/Miljö!G112,0) -> 0 | H12: =IF(Miljö!H111=TRUE,Miljö!$C$16/Miljö!H112,0) -> 0 | I12: =IF(Miljö!I111=TRUE,Miljö!$C$16/Miljö!I112,0) -> 0 | J12: =IF(Miljö!J111=TRUE,Miljö!$C$16/Miljö!J112,0) -> 0 | K12: =IF(Miljö!K111=TRUE,Miljö!$C$16/Miljö!K112,0) -> 0 | L12: =IF(Miljö!L111=TRUE,Miljö!$C$16/Miljö!L112,0) -> 0
A13: Ventilationskanaler | B13: st | C13: =IF(Miljö!C365=TRUE,Miljö!$C$16/Miljö!C366,0) -> 0 | D13: =IF(Miljö!D365=TRUE,Miljö!$C$16/Miljö!D366,0) -> 0 | E13: =IF(Miljö!E365=TRUE,Miljö!$C$16/Miljö!E366,0) -> 0 | F13: =IF(Miljö!F365=TRUE,Miljö!$C$16/Miljö!F366,0) -> 0 | G13: =IF(Miljö!G365=TRUE,Miljö!$C$16/Miljö!G366,0) -> 0 | H13: =IF(Miljö!H365=TRUE,Miljö!$C$16/Miljö!H366,0) -> 0 | I13: =IF(Miljö!I365=TRUE,Miljö!$C$16/Miljö!I366,0) -> 0 | J13: =IF(Miljö!J365=TRUE,Miljö!$C$16/Miljö!J366,0) -> 0 | K13: =IF(Miljö!K365=TRUE,Miljö!$C$16/Miljö!K366,0) -> 0 | L13: =IF(Miljö!L365=TRUE,Miljö!$C$16/Miljö!L366,0) -> 0
A14: Luftflödesaggregat | B14: st | C14: =IF(Miljö!C120=TRUE,Miljö!$C$16/Miljö!C121,0) -> 0 | D14: =IF(Miljö!D120=TRUE,Miljö!$C$16/Miljö!D121,0) -> 0 | E14: =IF(Miljö!E120=TRUE,Miljö!$C$16/Miljö!E121,0) -> 0 | F14: =IF(Miljö!F120=TRUE,Miljö!$C$16/Miljö!F121,0) -> 0 | G14: =IF(Miljö!G120=TRUE,Miljö!$C$16/Miljö!G121,0) -> 0 | H14: =IF(Miljö!H120=TRUE,Miljö!$C$16/Miljö!H121,0) -> 0 | I14: =IF(Miljö!I120=TRUE,Miljö!$C$16/Miljö!I121,0) -> 0 | J14: =IF(Miljö!J120=TRUE,Miljö!$C$16/Miljö!J121,0) -> 0 | K14: =IF(Miljö!K120=TRUE,Miljö!$C$16/Miljö!K121,0) -> 0 | L14: =IF(Miljö!L120=TRUE,Miljö!$C$16/Miljö!L121,0) -> 0
A15: Don och dämpare för ventilation | B15: st | C15: =IF(Miljö!C375=TRUE,Miljö!$C$16/Miljö!C376,0) -> 0 | D15: =IF(Miljö!D375=TRUE,Miljö!$C$16/Miljö!D376,0) -> 0 | E15: =IF(Miljö!E375=TRUE,Miljö!$C$16/Miljö!E376,0) -> 0 | F15: =IF(Miljö!F375=TRUE,Miljö!$C$16/Miljö!F376,0) -> 0 | G15: =IF(Miljö!G375=TRUE,Miljö!$C$16/Miljö!G376,0) -> 0 | H15: =IF(Miljö!H375=TRUE,Miljö!$C$16/Miljö!H376,0) -> 0 | I15: =IF(Miljö!I375=TRUE,Miljö!$C$16/Miljö!I376,0) -> 0 | J15: =IF(Miljö!J375=TRUE,Miljö!$C$16/Miljö!J376,0) -> 0 | K15: =IF(Miljö!K375=TRUE,Miljö!$C$16/Miljö!K376,0) -> 0 | L15: =IF(Miljö!L375=TRUE,Miljö!$C$16/Miljö!L376,0) -> 0
A16: Trä konstruktionsvirke | B16: st | C16: =IF(Miljö!C204=TRUE,Miljö!$C$16/Miljö!C205,0) -> 0 | D16: =IF(Miljö!D204=TRUE,Miljö!$C$16/Miljö!D205,0) -> 0 | E16: =IF(Miljö!E204=TRUE,Miljö!$C$16/Miljö!E205,0) -> 0 | F16: =IF(Miljö!F204=TRUE,Miljö!$C$16/Miljö!F205,0) -> 0 | G16: =IF(Miljö!G204=TRUE,Miljö!$C$16/Miljö!G205,0) -> 0 | H16: =IF(Miljö!H204=TRUE,Miljö!$C$16/Miljö!H205,0) -> 0 | I16: =IF(Miljö!I204=TRUE,Miljö!$C$16/Miljö!I205,0) -> 0 | J16: =IF(Miljö!J204=TRUE,Miljö!$C$16/Miljö!J205,0) -> 0 | K16: =IF(Miljö!K204=TRUE,Miljö!$C$16/Miljö!K205,0) -> 0 | L16: =IF(Miljö!L204=TRUE,Miljö!$C$16/Miljö!L205,0) -> 0
A17: Trä målad träfasad | B17: st | C17: =IF(Miljö!C213=TRUE,Miljö!$C$16/Miljö!C214,0) -> 0 | D17: =IF(Miljö!D213=TRUE,Miljö!$C$16/Miljö!D214,0) -> 0 | E17: =IF(Miljö!E213=TRUE,Miljö!$C$16/Miljö!E214,0) -> 0 | F17: =IF(Miljö!F213=TRUE,Miljö!$C$16/Miljö!F214,0) -> 0 | G17: =IF(Miljö!G213=TRUE,Miljö!$C$16/Miljö!G214,0) -> 0 | H17: =IF(Miljö!H213=TRUE,Miljö!$C$16/Miljö!H214,0) -> 0 | I17: =IF(Miljö!I213=TRUE,Miljö!$C$16/Miljö!I214,0) -> 0 | J17: =IF(Miljö!J213=TRUE,Miljö!$C$16/Miljö!J214,0) -> 0 | K17: =IF(Miljö!K213=TRUE,Miljö!$C$16/Miljö!K214,0) -> 0 | L17: =IF(Miljö!L213=TRUE,Miljö!$C$16/Miljö!L214,0) -> 0
A18: Trä invändig träpanel | B18: st | C18: =IF(Miljö!C222=TRUE,Miljö!$C$16/Miljö!C223,0) -> 0 | D18: =IF(Miljö!D222=TRUE,Miljö!$C$16/Miljö!D223,0) -> 0 | E18: =IF(Miljö!E222=TRUE,Miljö!$C$16/Miljö!E223,0) -> 0 | F18: =IF(Miljö!F222=TRUE,Miljö!$C$16/Miljö!F223,0) -> 0 | G18: =IF(Miljö!G222=TRUE,Miljö!$C$16/Miljö!G223,0) -> 0 | H18: =IF(Miljö!H222=TRUE,Miljö!$C$16/Miljö!H223,0) -> 0 | I18: =IF(Miljö!I222=TRUE,Miljö!$C$16/Miljö!I223,0) -> 0 | J18: =IF(Miljö!J222=TRUE,Miljö!$C$16/Miljö!J223,0) -> 0 | K18: =IF(Miljö!K222=TRUE,Miljö!$C$16/Miljö!K223,0) -> 0 | L18: =IF(Miljö!L222=TRUE,Miljö!$C$16/Miljö!L223,0) -> 0
A19: Betong bjälklag | B19: st | C19: =IF(Miljö!C231=TRUE,Miljö!$C$16/Miljö!C232,0) -> 0 | D19: =IF(Miljö!D231=TRUE,Miljö!$C$16/Miljö!D232,0) -> 0 | E19: =IF(Miljö!E231=TRUE,Miljö!$C$16/Miljö!E232,0) -> 0 | F19: =IF(Miljö!F231=TRUE,Miljö!$C$16/Miljö!F232,0) -> 0 | G19: =IF(Miljö!G231=TRUE,Miljö!$C$16/Miljö!G232,0) -> 0 | H19: =IF(Miljö!H231=TRUE,Miljö!$C$16/Miljö!H232,0) -> 0 | I19: =IF(Miljö!I231=TRUE,Miljö!$C$16/Miljö!I232,0) -> 0 | J19: =IF(Miljö!J231=TRUE,Miljö!$C$16/Miljö!J232,0) -> 0 | K19: =IF(Miljö!K231=TRUE,Miljö!$C$16/Miljö!K232,0) -> 0 | L19: =IF(Miljö!L231=TRUE,Miljö!$C$16/Miljö!L232,0) -> 0
A20: Betong bärande ytterväggar | B20: st | C20: =IF(Miljö!C241=TRUE,Miljö!$C$16/Miljö!C242,0) -> 0 | D20: =IF(Miljö!D241=TRUE,Miljö!$C$16/Miljö!D242,0) -> 0 | E20: =IF(Miljö!E241=TRUE,Miljö!$C$16/Miljö!E242,0) -> 0 | F20: =IF(Miljö!F241=TRUE,Miljö!$C$16/Miljö!F242,0) -> 0 | G20: =IF(Miljö!G241=TRUE,Miljö!$C$16/Miljö!G242,0) -> 0 | H20: =IF(Miljö!H241=TRUE,Miljö!$C$16/Miljö!H242,0) -> 0 | I20: =IF(Miljö!I241=TRUE,Miljö!$C$16/Miljö!I242,0) -> 0 | J20: =IF(Miljö!J241=TRUE,Miljö!$C$16/Miljö!J242,0) -> 0 | K20: =IF(Miljö!K241=TRUE,Miljö!$C$16/Miljö!K242,0) -> 0 | L20: =IF(Miljö!L241=TRUE,Miljö!$C$16/Miljö!L242,0) -> 0
A21: Betong icke-bärande ytterväggar | B21: st | C21: =IF(Miljö!C251=TRUE,Miljö!$C$16/Miljö!C252,0) -> 0 | D21: =IF(Miljö!D251=TRUE,Miljö!$C$16/Miljö!D252,0) -> 0 | E21: =IF(Miljö!E251=TRUE,Miljö!$C$16/Miljö!E252,0) -> 0 | F21: =IF(Miljö!F251=TRUE,Miljö!$C$16/Miljö!F252,0) -> 0 | G21: =IF(Miljö!G251=TRUE,Miljö!$C$16/Miljö!G252,0) -> 0 | H21: =IF(Miljö!H251=TRUE,Miljö!$C$16/Miljö!H252,0) -> 0 | I21: =IF(Miljö!I251=TRUE,Miljö!$C$16/Miljö!I252,0) -> 0 | J21: =IF(Miljö!J251=TRUE,Miljö!$C$16/Miljö!J252,0) -> 0 | K21: =IF(Miljö!K251=TRUE,Miljö!$C$16/Miljö!K252,0) -> 0 | L21: =IF(Miljö!L251=TRUE,Miljö!$C$16/Miljö!L252,0) -> 0
A22: Betong innerväggar | B22: st | C22: =IF(Miljö!C260=TRUE,Miljö!$C$16/Miljö!C261,0) -> 0 | D22: =IF(Miljö!D260=TRUE,Miljö!$C$16/Miljö!D261,0) -> 0 | E22: =IF(Miljö!E260=TRUE,Miljö!$C$16/Miljö!E261,0) -> 0 | F22: =IF(Miljö!F260=TRUE,Miljö!$C$16/Miljö!F261,0) -> 0 | G22: =IF(Miljö!G260=TRUE,Miljö!$C$16/Miljö!G261,0) -> 0 | H22: =IF(Miljö!H260=TRUE,Miljö!$C$16/Miljö!H261,0) -> 0 | I22: =IF(Miljö!I260=TRUE,Miljö!$C$16/Miljö!I261,0) -> 0 | J22: =IF(Miljö!J260=TRUE,Miljö!$C$16/Miljö!J261,0) -> 0 | K22: =IF(Miljö!K260=TRUE,Miljö!$C$16/Miljö!K261,0) -> 0 | L22: =IF(Miljö!L260=TRUE,Miljö!$C$16/Miljö!L261,0) -> 0
A23: Puts | B23: st | C23: =IF(Miljö!C270=TRUE,Miljö!$C$16/Miljö!C271,0) -> 0 | D23: =IF(Miljö!D270=TRUE,Miljö!$C$16/Miljö!D271,0) -> 0 | E23: =IF(Miljö!E270=TRUE,Miljö!$C$16/Miljö!E271,0) -> 0 | F23: =IF(Miljö!F270=TRUE,Miljö!$C$16/Miljö!F271,0) -> 0 | G23: =IF(Miljö!G270=TRUE,Miljö!$C$16/Miljö!G271,0) -> 0 | H23: =IF(Miljö!H270=TRUE,Miljö!$C$16/Miljö!H271,0) -> 0 | I23: =IF(Miljö!I270=TRUE,Miljö!$C$16/Miljö!I271,0) -> 0 | J23: =IF(Miljö!J270=TRUE,Miljö!$C$16/Miljö!J271,0) -> 0 | K23: =IF(Miljö!K270=TRUE,Miljö!$C$16/Miljö!K271,0) -> 0 | L23: =IF(Miljö!L270=TRUE,Miljö!$C$16/Miljö!L271,0) -> 0
A24: Gipsskivor | B24: st | C24: =IF(Miljö!C279=TRUE,Miljö!$C$16/Miljö!C280,0) -> 0 | D24: =IF(Miljö!D279=TRUE,Miljö!$C$16/Miljö!D280,0) -> 0 | E24: =IF(Miljö!E279=TRUE,Miljö!$C$16/Miljö!E280,0) -> 0 | F24: =IF(Miljö!F279=TRUE,Miljö!$C$16/Miljö!F280,0) -> 0 | G24: =IF(Miljö!G279=TRUE,Miljö!$C$16/Miljö!G280,0) -> 0 | H24: =IF(Miljö!H279=TRUE,Miljö!$C$16/Miljö!H280,0) -> 0 | I24: =IF(Miljö!I279=TRUE,Miljö!$C$16/Miljö!I280,0) -> 0 | J24: =IF(Miljö!J279=TRUE,Miljö!$C$16/Miljö!J280,0) -> 0 | K24: =IF(Miljö!K279=TRUE,Miljö!$C$16/Miljö!K280,0) -> 0 | L24: =IF(Miljö!L279=TRUE,Miljö!$C$16/Miljö!L280,0) -> 0
A25: Takbeläggning | B25: st | C25: =IF(Miljö!C288=TRUE,Miljö!$C$16/Miljö!C289,0) -> 0 | D25: =IF(Miljö!D288=TRUE,Miljö!$C$16/Miljö!D289,0) -> 0 | E25: =IF(Miljö!E288=TRUE,Miljö!$C$16/Miljö!E289,0) -> 0 | F25: =IF(Miljö!F288=TRUE,Miljö!$C$16/Miljö!F289,0) -> 0 | G25: =IF(Miljö!G288=TRUE,Miljö!$C$16/Miljö!G289,0) -> 0 | H25: =IF(Miljö!H288=TRUE,Miljö!$C$16/Miljö!H289,0) -> 0 | I25: =IF(Miljö!I288=TRUE,Miljö!$C$16/Miljö!I289,0) -> 0 | J25: =IF(Miljö!J288=TRUE,Miljö!$C$16/Miljö!J289,0) -> 0 | K25: =IF(Miljö!K288=TRUE,Miljö!$C$16/Miljö!K289,0) -> 0 | L25: =IF(Miljö!L288=TRUE,Miljö!$C$16/Miljö!L289,0) -> 0
A26: Radiatorer | B26: st | C26: =IF(Miljö!C301=TRUE,Miljö!$C$16/Miljö!C302,0) -> 0 | D26: =IF(Miljö!D301=TRUE,Miljö!$C$16/Miljö!D302,0) -> 0 | E26: =IF(Miljö!E301=TRUE,Miljö!$C$16/Miljö!E302,0) -> 0 | F26: =IF(Miljö!F301=TRUE,Miljö!$C$16/Miljö!F302,0) -> 0 | G26: =IF(Miljö!G301=TRUE,Miljö!$C$16/Miljö!G302,0) -> 0 | H26: =IF(Miljö!H301=TRUE,Miljö!$C$16/Miljö!H302,0) -> 0 | I26: =IF(Miljö!I301=TRUE,Miljö!$C$16/Miljö!I302,0) -> 0 | J26: =IF(Miljö!J301=TRUE,Miljö!$C$16/Miljö!J302,0) -> 0 | K26: =IF(Miljö!K301=TRUE,Miljö!$C$16/Miljö!K302,0) -> 0 | L26: =IF(Miljö!L301=TRUE,Miljö!$C$16/Miljö!L302,0) -> 0
A27: Kopparrör | B27: st | C27: =IF(Miljö!C311=TRUE,Miljö!$C$16/Miljö!C312,0) -> 0 | D27: =IF(Miljö!D311=TRUE,Miljö!$C$16/Miljö!D312,0) -> 0 | E27: =IF(Miljö!E311=TRUE,Miljö!$C$16/Miljö!E312,0) -> 0 | F27: =IF(Miljö!F311=TRUE,Miljö!$C$16/Miljö!F312,0) -> 0 | G27: =IF(Miljö!G311=TRUE,Miljö!$C$16/Miljö!G312,0) -> 0 | H27: =IF(Miljö!H311=TRUE,Miljö!$C$16/Miljö!H312,0) -> 0 | I27: =IF(Miljö!I311=TRUE,Miljö!$C$16/Miljö!I312,0) -> 0 | J27: =IF(Miljö!J311=TRUE,Miljö!$C$16/Miljö!J312,0) -> 0 | K27: =IF(Miljö!K311=TRUE,Miljö!$C$16/Miljö!K312,0) -> 0 | L27: =IF(Miljö!L311=TRUE,Miljö!$C$16/Miljö!L312,0) -> 0
A28: PEX-rör | B28: st | C28: =IF(Miljö!C320=TRUE,Miljö!$C$16/Miljö!C321,0) -> 0 | D28: =IF(Miljö!D320=TRUE,Miljö!$C$16/Miljö!D321,0) -> 0 | E28: =IF(Miljö!E320=TRUE,Miljö!$C$16/Miljö!E321,0) -> 0 | F28: =IF(Miljö!F320=TRUE,Miljö!$C$16/Miljö!F321,0) -> 0 | G28: =IF(Miljö!G320=TRUE,Miljö!$C$16/Miljö!G321,0) -> 0 | H28: =IF(Miljö!H320=TRUE,Miljö!$C$16/Miljö!H321,0) -> 0 | I28: =IF(Miljö!I320=TRUE,Miljö!$C$16/Miljö!I321,0) -> 0 | J28: =IF(Miljö!J320=TRUE,Miljö!$C$16/Miljö!J321,0) -> 0 | K28: =IF(Miljö!K320=TRUE,Miljö!$C$16/Miljö!K321,0) -> 0 | L28: =IF(Miljö!L320=TRUE,Miljö!$C$16/Miljö!L321,0) -> 0
A29: PP-rör | B29: st | C29: =IF(Miljö!C329=TRUE,Miljö!$C$16/Miljö!C330,0) -> 0 | D29: =IF(Miljö!D329=TRUE,Miljö!$C$16/Miljö!D330,0) -> 0 | E29: =IF(Miljö!E329=TRUE,Miljö!$C$16/Miljö!E330,0) -> 0 | F29: =IF(Miljö!F329=TRUE,Miljö!$C$16/Miljö!F330,0) -> 0 | G29: =IF(Miljö!G329=TRUE,Miljö!$C$16/Miljö!G330,0) -> 0 | H29: =IF(Miljö!H329=TRUE,Miljö!$C$16/Miljö!H330,0) -> 0 | I29: =IF(Miljö!I329=TRUE,Miljö!$C$16/Miljö!I330,0) -> 0 | J29: =IF(Miljö!J329=TRUE,Miljö!$C$16/Miljö!J330,0) -> 0 | K29: =IF(Miljö!K329=TRUE,Miljö!$C$16/Miljö!K330,0) -> 0 | L29: =IF(Miljö!L329=TRUE,Miljö!$C$16/Miljö!L330,0) -> 0
A30: Järnrör | B30: st | C30: =IF(Miljö!C338=TRUE,Miljö!$C$16/Miljö!C339,0) -> 0 | D30: =IF(Miljö!D338=TRUE,Miljö!$C$16/Miljö!D339,0) -> 0 | E30: =IF(Miljö!E338=TRUE,Miljö!$C$16/Miljö!E339,0) -> 0 | F30: =IF(Miljö!F338=TRUE,Miljö!$C$16/Miljö!F339,0) -> 0 | G30: =IF(Miljö!G338=TRUE,Miljö!$C$16/Miljö!G339,0) -> 0 | H30: =IF(Miljö!H338=TRUE,Miljö!$C$16/Miljö!H339,0) -> 0 | I30: =IF(Miljö!I338=TRUE,Miljö!$C$16/Miljö!I339,0) -> 0 | J30: =IF(Miljö!J338=TRUE,Miljö!$C$16/Miljö!J339,0) -> 0 | K30: =IF(Miljö!K338=TRUE,Miljö!$C$16/Miljö!K339,0) -> 0 | L30: =IF(Miljö!L338=TRUE,Miljö!$C$16/Miljö!L339,0) -> 0
A31: Stålrör | B31: st | C31: =IF(Miljö!C347=TRUE,Miljö!$C$16/Miljö!C348,0) -> 0 | D31: =IF(Miljö!D347=TRUE,Miljö!$C$16/Miljö!D348,0) -> 0 | E31: =IF(Miljö!E347=TRUE,Miljö!$C$16/Miljö!E348,0) -> 0 | F31: =IF(Miljö!F347=TRUE,Miljö!$C$16/Miljö!F348,0) -> 0 | G31: =IF(Miljö!G347=TRUE,Miljö!$C$16/Miljö!G348,0) -> 0 | H31: =IF(Miljö!H347=TRUE,Miljö!$C$16/Miljö!H348,0) -> 0 | I31: =IF(Miljö!I347=TRUE,Miljö!$C$16/Miljö!I348,0) -> 0 | J31: =IF(Miljö!J347=TRUE,Miljö!$C$16/Miljö!J348,0) -> 0 | K31: =IF(Miljö!K347=TRUE,Miljö!$C$16/Miljö!K348,0) -> 0 | L31: =IF(Miljö!L347=TRUE,Miljö!$C$16/Miljö!L348,0) -> 0
A32: Relining rör | B32: st | C32: =IF(Miljö!C356=TRUE,Miljö!$C$16/Miljö!C357,0) -> 0 | D32: =IF(Miljö!D356=TRUE,Miljö!$C$16/Miljö!D357,0) -> 0 | E32: =IF(Miljö!E356=TRUE,Miljö!$C$16/Miljö!E357,0) -> 0 | F32: =IF(Miljö!F356=TRUE,Miljö!$C$16/Miljö!F357,0) -> 0 | G32: =IF(Miljö!G356=TRUE,Miljö!$C$16/Miljö!G357,0) -> 0 | H32: =IF(Miljö!H356=TRUE,Miljö!$C$16/Miljö!H357,0) -> 0 | I32: =IF(Miljö!I356=TRUE,Miljö!$C$16/Miljö!I357,0) -> 0 | J32: =IF(Miljö!J356=TRUE,Miljö!$C$16/Miljö!J357,0) -> 0 | K32: =IF(Miljö!K356=TRUE,Miljö!$C$16/Miljö!K357,0) -> 0 | L32: =IF(Miljö!L356=TRUE,Miljö!$C$16/Miljö!L357,0) -> 0
A33: Elledning | B33: st | C33: =IF(Miljö!C384=TRUE,Miljö!$C$16/Miljö!C385,0) -> 0 | D33: =IF(Miljö!D384=TRUE,Miljö!$C$16/Miljö!D385,0) -> 0 | E33: =IF(Miljö!E384=TRUE,Miljö!$C$16/Miljö!E385,0) -> 0 | F33: =IF(Miljö!F384=TRUE,Miljö!$C$16/Miljö!F385,0) -> 0 | G33: =IF(Miljö!G384=TRUE,Miljö!$C$16/Miljö!G385,0) -> 0 | H33: =IF(Miljö!H384=TRUE,Miljö!$C$16/Miljö!H385,0) -> 0 | I33: =IF(Miljö!I384=TRUE,Miljö!$C$16/Miljö!I385,0) -> 0 | J33: =IF(Miljö!J384=TRUE,Miljö!$C$16/Miljö!J385,0) -> 0 | K33: =IF(Miljö!K384=TRUE,Miljö!$C$16/Miljö!K385,0) -> 0 | L33: =IF(Miljö!L384=TRUE,Miljö!$C$16/Miljö!L385,0) -> 0
A34: Egen elproduktion | B34: st | C34: =IF(Miljö!C130=TRUE,Miljö!$C$16/Miljö!C131,0) -> 0 | D34: =IF(Miljö!D130=TRUE,Miljö!$C$16/Miljö!D131,0) -> 0 | E34: =IF(Miljö!E130=TRUE,Miljö!$C$16/Miljö!E131,0) -> 0 | F34: =IF(Miljö!F130=TRUE,Miljö!$C$16/Miljö!F131,0) -> 0 | G34: =IF(Miljö!G130=TRUE,Miljö!$C$16/Miljö!G131,0) -> 0 | H34: =IF(Miljö!H130=TRUE,Miljö!$C$16/Miljö!H131,0) -> 0 | I34: =IF(Miljö!I130=TRUE,Miljö!$C$16/Miljö!I131,0) -> 0 | J34: =IF(Miljö!J130=TRUE,Miljö!$C$16/Miljö!J131,0) -> 0 | K34: =IF(Miljö!K130=TRUE,Miljö!$C$16/Miljö!K131,0) -> 0 | L34: =IF(Miljö!L130=TRUE,Miljö!$C$16/Miljö!L131,0) -> 0
A36: 7.2 Klimatpåverkan
A37: 7.2.1 Miljöpåverkan renovering | C37: =Miljö!C91 -> Referensfall | D37: =Miljö!D91 ->  | E37: =Miljö!E91 ->  | F37: =Miljö!F91 ->  | G37: =Miljö!G91 ->  | H37: =Miljö!H91 ->  | I37: =Miljö!I91 ->  | J37: =Miljö!J91 ->  | K37: =Miljö!K91 ->  | L37: =Miljö!L91 -> 
A38: Materialanvändning+trp, isolering 1 | B38: kg CO2-eq | C38: =IF(Miljö!C151=TRUE, INDEX(Material!$A$6:$G$9, MATCH(Miljö!C153,Material!$A6:$A9, 0),4)*Miljö!C154+Trp!C135, 0) -> 0 | D38: =IF(Miljö!D151=TRUE, INDEX(Material!$A$6:$G$9, MATCH(Miljö!D153,Material!$A6:$A9, 0),4)*Miljö!D154+Trp!D135, 0) -> 0 | E38: =IF(Miljö!E151=TRUE, INDEX(Material!$A$6:$G$9, MATCH(Miljö!E153,Material!$A6:$A9, 0),4)*Miljö!E154+Trp!E135, 0) -> 0 | F38: =IF(Miljö!F151=TRUE, INDEX(Material!$A$6:$G$9, MATCH(Miljö!F153,Material!$A6:$A9, 0),4)*Miljö!F154+Trp!F135, 0) -> 0 | G38: =IF(Miljö!G151=TRUE, INDEX(Material!$A$6:$G$9, MATCH(Miljö!G153,Material!$A6:$A9, 0),4)*Miljö!G154+Trp!G135, 0) -> 0 | H38: =IF(Miljö!H151=TRUE, INDEX(Material!$A$6:$G$9, MATCH(Miljö!H153,Material!$A6:$A9, 0),4)*Miljö!H154+Trp!H135, 0) -> 0 | I38: =IF(Miljö!I151=TRUE, INDEX(Material!$A$6:$G$9, MATCH(Miljö!I153,Material!$A6:$A9, 0),4)*Miljö!I154+Trp!I135, 0) -> 0 | J38: =IF(Miljö!J151=TRUE, INDEX(Material!$A$6:$G$9, MATCH(Miljö!J153,Material!$A6:$A9, 0),4)*Miljö!J154+Trp!J135, 0) -> 0 | K38: =IF(Miljö!K151=TRUE, INDEX(Material!$A$6:$G$9, MATCH(Miljö!K153,Material!$A6:$A9, 0),4)*Miljö!K154+Trp!K135, 0) -> 0 | L38: =IF(Miljö!L151=TRUE, INDEX(Material!$A$6:$G$9, MATCH(Miljö!L153,Material!$A6:$A9, 0),4)*Miljö!L154+Trp!L135, 0) -> 0
A39: Materialanvändning+trp, isolering 2 | B39: kg CO2-eq | C39: =IF(Miljö!C161=TRUE, INDEX(Material!$A$6:$G$9, MATCH(Miljö!C163,Material!$A6:$A9, 0),4)*Miljö!C164+Trp!C136, 0) -> 0 | D39: =IF(Miljö!D161=TRUE, INDEX(Material!$A$6:$G$9, MATCH(Miljö!D163,Material!$A6:$A9, 0),4)*Miljö!D164+Trp!D136, 0) -> 0 | E39: =IF(Miljö!E161=TRUE, INDEX(Material!$A$6:$G$9, MATCH(Miljö!E163,Material!$A6:$A9, 0),4)*Miljö!E164+Trp!E136, 0) -> 0 | F39: =IF(Miljö!F161=TRUE, INDEX(Material!$A$6:$G$9, MATCH(Miljö!F163,Material!$A6:$A9, 0),4)*Miljö!F164+Trp!F136, 0) -> 0 | G39: =IF(Miljö!G161=TRUE, INDEX(Material!$A$6:$G$9, MATCH(Miljö!G163,Material!$A6:$A9, 0),4)*Miljö!G164+Trp!G136, 0) -> 0 | H39: =IF(Miljö!H161=TRUE, INDEX(Material!$A$6:$G$9, MATCH(Miljö!H163,Material!$A6:$A9, 0),4)*Miljö!H164+Trp!H136, 0) -> 0 | I39: =IF(Miljö!I161=TRUE, INDEX(Material!$A$6:$G$9, MATCH(Miljö!I163,Material!$A6:$A9, 0),4)*Miljö!I164+Trp!I136, 0) -> 0 | J39: =IF(Miljö!J161=TRUE, INDEX(Material!$A$6:$G$9, MATCH(Miljö!J163,Material!$A6:$A9, 0),4)*Miljö!J164+Trp!J136, 0) -> 0 | K39: =IF(Miljö!K161=TRUE, INDEX(Material!$A$6:$G$9, MATCH(Miljö!K163,Material!$A6:$A9, 0),4)*Miljö!K164+Trp!K136, 0) -> 0 | L39: =IF(Miljö!L161=TRUE, INDEX(Material!$A$6:$G$9, MATCH(Miljö!L163,Material!$A6:$A9, 0),4)*Miljö!L164+Trp!L136, 0) -> 0
A40: Materialanvändning+trp, fasadsystem | B40: kg CO2-eq | C40: =IF(Miljö!C171=TRUE, INDEX(Material!$A33:$G51, MATCH(Miljö!C173,Material!$A33:$A51, 0),4)*Miljö!C174+Trp!C137, 0) -> 0 | D40: =IF(Miljö!D171=TRUE, INDEX(Material!$A33:$G51, MATCH(Miljö!D173,Material!$A33:$A51, 0),4)*Miljö!D174+Trp!D137, 0) -> 0 | E40: =IF(Miljö!E171=TRUE, INDEX(Material!$A33:$G51, MATCH(Miljö!E173,Material!$A33:$A51, 0),4)*Miljö!E174+Trp!E137, 0) -> 0 | F40: =IF(Miljö!F171=TRUE, INDEX(Material!$A33:$G51, MATCH(Miljö!F173,Material!$A33:$A51, 0),4)*Miljö!F174+Trp!F137, 0) -> 0 | G40: =IF(Miljö!G171=TRUE, INDEX(Material!$A33:$G51, MATCH(Miljö!G173,Material!$A33:$A51, 0),4)*Miljö!G174+Trp!G137, 0) -> 0 | H40: =IF(Miljö!H171=TRUE, INDEX(Material!$A33:$G51, MATCH(Miljö!H173,Material!$A33:$A51, 0),4)*Miljö!H174+Trp!H137, 0) -> 0 | I40: =IF(Miljö!I171=TRUE, INDEX(Material!$A33:$G51, MATCH(Miljö!I173,Material!$A33:$A51, 0),4)*Miljö!I174+Trp!I137, 0) -> 0 | J40: =IF(Miljö!J171=TRUE, INDEX(Material!$A33:$G51, MATCH(Miljö!J173,Material!$A33:$A51, 0),4)*Miljö!J174+Trp!J137, 0) -> 0 | K40: =IF(Miljö!K171=TRUE, INDEX(Material!$A33:$G51, MATCH(Miljö!K173,Material!$A33:$A51, 0),4)*Miljö!K174+Trp!K137, 0) -> 0 | L40: =IF(Miljö!L171=TRUE, INDEX(Material!$A33:$G51, MATCH(Miljö!L173,Material!$A33:$A51, 0),4)*Miljö!L174+Trp!L137, 0) -> 0
A41: Materialanvändning+trp, fönster | B41: kg CO2-eq | C41: =IF(Miljö!C181=TRUE, INDEX(Material!$A15:$G18, MATCH(Miljö!C183,Material!$A15:$A18, 0),4)*Miljö!C184+Trp!C138, 0) -> 0 | D41: =IF(Miljö!D181=TRUE, INDEX(Material!$A15:$G18, MATCH(Miljö!D183,Material!$A15:$A18, 0),4)*Miljö!D184+Trp!D138, 0) -> 0 | E41: =IF(Miljö!E181=TRUE, INDEX(Material!$A15:$G18, MATCH(Miljö!E183,Material!$A15:$A18, 0),4)*Miljö!E184+Trp!E138, 0) -> 0 | F41: =IF(Miljö!F181=TRUE, INDEX(Material!$A15:$G18, MATCH(Miljö!F183,Material!$A15:$A18, 0),4)*Miljö!F184+Trp!F138, 0) -> 0 | G41: =IF(Miljö!G181=TRUE, INDEX(Material!$A15:$G18, MATCH(Miljö!G183,Material!$A15:$A18, 0),4)*Miljö!G184+Trp!G138, 0) -> 0 | H41: =IF(Miljö!H181=TRUE, INDEX(Material!$A15:$G18, MATCH(Miljö!H183,Material!$A15:$A18, 0),4)*Miljö!H184+Trp!H138, 0) -> 0 | I41: =IF(Miljö!I181=TRUE, INDEX(Material!$A15:$G18, MATCH(Miljö!I183,Material!$A15:$A18, 0),4)*Miljö!I184+Trp!I138, 0) -> 0 | J41: =IF(Miljö!J181=TRUE, INDEX(Material!$A15:$G18, MATCH(Miljö!J183,Material!$A15:$A18, 0),4)*Miljö!J184+Trp!J138, 0) -> 0 | K41: =IF(Miljö!K181=TRUE, INDEX(Material!$A15:$G18, MATCH(Miljö!K183,Material!$A15:$A18, 0),4)*Miljö!K184+Trp!K138, 0) -> 0 | L41: =IF(Miljö!L181=TRUE, INDEX(Material!$A15:$G18, MATCH(Miljö!L183,Material!$A15:$A18, 0),4)*Miljö!L184+Trp!L138, 0) -> 0
A42: Materialanvändning+trp, dörrar | B42: kg CO2-eq | C42: =IF(Miljö!C191=TRUE, INDEX(Material!$A24:$G27, MATCH(Miljö!C193,Material!$A15:$A18, 0),4)*Miljö!C194+Trp!C139, 0) -> 0 | D42: =IF(Miljö!D191=TRUE, INDEX(Material!$A24:$G27, MATCH(Miljö!D193,Material!$A15:$A18, 0),4)*Miljö!D194+Trp!D139, 0) -> 0 | E42: =IF(Miljö!E191=TRUE, INDEX(Material!$A24:$G27, MATCH(Miljö!E193,Material!$A15:$A18, 0),4)*Miljö!E194+Trp!E139, 0) -> 0 | F42: =IF(Miljö!F191=TRUE, INDEX(Material!$A24:$G27, MATCH(Miljö!F193,Material!$A15:$A18, 0),4)*Miljö!F194+Trp!F139, 0) -> 0 | G42: =IF(Miljö!G191=TRUE, INDEX(Material!$A24:$G27, MATCH(Miljö!G193,Material!$A15:$A18, 0),4)*Miljö!G194+Trp!G139, 0) -> 0 | H42: =IF(Miljö!H191=TRUE, INDEX(Material!$A24:$G27, MATCH(Miljö!H193,Material!$A15:$A18, 0),4)*Miljö!H194+Trp!H139, 0) -> 0 | I42: =IF(Miljö!I191=TRUE, INDEX(Material!$A24:$G27, MATCH(Miljö!I193,Material!$A15:$A18, 0),4)*Miljö!I194+Trp!I139, 0) -> 0 | J42: =IF(Miljö!J191=TRUE, INDEX(Material!$A24:$G27, MATCH(Miljö!J193,Material!$A15:$A18, 0),4)*Miljö!J194+Trp!J139, 0) -> 0 | K42: =IF(Miljö!K191=TRUE, INDEX(Material!$A24:$G27, MATCH(Miljö!K193,Material!$A15:$A18, 0),4)*Miljö!K194+Trp!K139, 0) -> 0 | L42: =IF(Miljö!L191=TRUE, INDEX(Material!$A24:$G27, MATCH(Miljö!L193,Material!$A15:$A18, 0),4)*Miljö!L194+Trp!L139, 0) -> 0
A43: Materialanvändning+trp, byte uppvärmning värmeprod | B43: kg CO2-eq | C43: =IF(Miljö!C98=TRUE,INDEX(Uppvärmning!$A$30:$M$36, MATCH(Miljö!C94,Uppvärmning!$A$30:$A$36, 0),4) +Trp!C140, 0) -> 0 | D43: =IF(Miljö!D98=TRUE,INDEX(Uppvärmning!$A$30:$M$36, MATCH(Miljö!D94,Uppvärmning!$A$30:$A$36, 0),5) +Trp!D140, 0) -> 0 | E43: =IF(Miljö!E98=TRUE,INDEX(Uppvärmning!$A$30:$M$36, MATCH(Miljö!E94,Uppvärmning!$A$30:$A$36, 0),6) +Trp!E140, 0) -> 0 | F43: =IF(Miljö!F98=TRUE,INDEX(Uppvärmning!$A$30:$M$36, MATCH(Miljö!F94,Uppvärmning!$A$30:$A$36, 0),7) +Trp!F140, 0) -> 0 | G43: =IF(Miljö!G98=TRUE,INDEX(Uppvärmning!$A$30:$M$36, MATCH(Miljö!G94,Uppvärmning!$A$30:$A$36, 0),8) +Trp!G140, 0) -> 0 | H43: =IF(Miljö!H98=TRUE,INDEX(Uppvärmning!$A$30:$M$36, MATCH(Miljö!H94,Uppvärmning!$A$30:$A$36, 0),9) +Trp!H140, 0) -> 0 | I43: =IF(Miljö!I98=TRUE,INDEX(Uppvärmning!$A$30:$M$36, MATCH(Miljö!I94,Uppvärmning!$A$30:$A$36, 0),10) +Trp!I140, 0) -> 0 | J43: =IF(Miljö!J98=TRUE,INDEX(Uppvärmning!$A$30:$M$36, MATCH(Miljö!J94,Uppvärmning!$A$30:$A$36, 0),11) +Trp!J140, 0) -> 0 | K43: =IF(Miljö!K98=TRUE,INDEX(Uppvärmning!$A$30:$M$36, MATCH(Miljö!K94,Uppvärmning!$A$30:$A$36, 0),12) +Trp!K140, 0) -> 0 | L43: =IF(Miljö!L98=TRUE,INDEX(Uppvärmning!$A$30:$M$36, MATCH(Miljö!L94,Uppvärmning!$A$30:$A$36, 0),13) +Trp!L140, 0) -> 0
A44: Materialanv.+trp, byte uppvärmningsform kringmaterial | B44: kg CO2-eq | C44: =IF(Miljö!C98=TRUE,IF(Miljö!C94=1,Uppvärmning!D37, IF(Miljö!C94=3,Uppvärmning!D38, IF(Miljö!C94=4,Uppvärmning!D39, IF(Miljö!C94=5,Uppvärmning!D40, 0)))),0) -> 0 | D44: =IF(Miljö!D98=TRUE,IF(Miljö!D94=1,Uppvärmning!E37, IF(Miljö!D94=3,Uppvärmning!E38, IF(Miljö!D94=4,Uppvärmning!E39, IF(Miljö!D94=5,Uppvärmning!E40, 0)))),0) -> 0 | E44: =IF(Miljö!E98=TRUE,IF(Miljö!E94=1,Uppvärmning!F37, IF(Miljö!E94=3,Uppvärmning!F38, IF(Miljö!E94=4,Uppvärmning!F39, IF(Miljö!E94=5,Uppvärmning!F40, 0)))),0) -> 0 | F44: =IF(Miljö!F98=TRUE,IF(Miljö!F94=1,Uppvärmning!G37, IF(Miljö!F94=3,Uppvärmning!G38, IF(Miljö!F94=4,Uppvärmning!G39, IF(Miljö!F94=5,Uppvärmning!G40, 0)))),0) -> 0 | G44: =IF(Miljö!G98=TRUE,IF(Miljö!G94=1,Uppvärmning!H37, IF(Miljö!G94=3,Uppvärmning!H38, IF(Miljö!G94=4,Uppvärmning!H39, IF(Miljö!G94=5,Uppvärmning!H40, 0)))),0) -> 0 | H44: =IF(Miljö!H98=TRUE,IF(Miljö!H94=1,Uppvärmning!I37, IF(Miljö!H94=3,Uppvärmning!I38, IF(Miljö!H94=4,Uppvärmning!I39, IF(Miljö!H94=5,Uppvärmning!I40, 0)))),0) -> 0 | I44: =IF(Miljö!I98=TRUE,IF(Miljö!I94=1,Uppvärmning!J37, IF(Miljö!I94=3,Uppvärmning!J38, IF(Miljö!I94=4,Uppvärmning!J39, IF(Miljö!I94=5,Uppvärmning!J40, 0)))),0) -> 0 | J44: =IF(Miljö!J98=TRUE,IF(Miljö!J94=1,Uppvärmning!K37, IF(Miljö!J94=3,Uppvärmning!K38, IF(Miljö!J94=4,Uppvärmning!K39, IF(Miljö!J94=5,Uppvärmning!K40, 0)))),0) -> 0 | K44: =IF(Miljö!K98=TRUE,IF(Miljö!K94=1,Uppvärmning!L37, IF(Miljö!K94=3,Uppvärmning!L38, IF(Miljö!K94=4,Uppvärmning!L39, IF(Miljö!K94=5,Uppvärmning!L40, 0)))),0) -> 0 | L44: =IF(Miljö!L98=TRUE,IF(Miljö!L94=1,Uppvärmning!M37, IF(Miljö!L94=3,Uppvärmning!M38, IF(Miljö!L94=4,Uppvärmning!M39, IF(Miljö!L94=5,Uppvärmning!M40, 0)))),0) -> 0
A45: Materialanvändning+trp, cirkulationspump | B45: kg CO2-eq | C45: =IF(Miljö!C111=TRUE,Miljö!C$113*Material!$D$138 +Trp!C$141, 0) -> 0 | D45: =IF(Miljö!D111=TRUE,Miljö!D$113*Material!$D$138 +Trp!D$141, 0) -> 0 | E45: =IF(Miljö!E111=TRUE,Miljö!E$113*Material!$D$138 +Trp!E$141, 0) -> 0 | F45: =IF(Miljö!F111=TRUE,Miljö!F$113*Material!$D$138 +Trp!F$141, 0) -> 0 | G45: =IF(Miljö!G111=TRUE,Miljö!G$113*Material!$D$138 +Trp!G$141, 0) -> 0 | H45: =IF(Miljö!H111=TRUE,Miljö!H$113*Material!$D$138 +Trp!H$141, 0) -> 0 | I45: =IF(Miljö!I111=TRUE,Miljö!I$113*Material!$D$138 +Trp!I$141, 0) -> 0 | J45: =IF(Miljö!J111=TRUE,Miljö!J$113*Material!$D$138 +Trp!J$141, 0) -> 0 | K45: =IF(Miljö!K111=TRUE,Miljö!K$113*Material!$D$138 +Trp!K$141, 0) -> 0 | L45: =IF(Miljö!L111=TRUE,Miljö!L$113*Material!$D$138 +Trp!L$141, 0) -> 0
A46: Materialanvändning+trp, ventilationskanaler | B46: kg CO2-eq | C46: =IF(Miljö!C365=TRUE, INDEX(Material!$A110:$G113, MATCH(Miljö!C367,Material!$A110:$A113, 0),4)*Miljö!C368+Trp!C142,0) -> 0 | D46: =IF(Miljö!D365=TRUE, INDEX(Material!$A110:$G113, MATCH(Miljö!D367,Material!$A110:$A113, 0),4)*Miljö!D368+Trp!D142,0) -> 0 | E46: =IF(Miljö!E365=TRUE, INDEX(Material!$A110:$G113, MATCH(Miljö!E367,Material!$A110:$A113, 0),4)*Miljö!E368+Trp!E142,0) -> 0 | F46: =IF(Miljö!F365=TRUE, INDEX(Material!$A110:$G113, MATCH(Miljö!F367,Material!$A110:$A113, 0),4)*Miljö!F368+Trp!F142,0) -> 0 | G46: =IF(Miljö!G365=TRUE, INDEX(Material!$A110:$G113, MATCH(Miljö!G367,Material!$A110:$A113, 0),4)*Miljö!G368+Trp!G142,0) -> 0 | H46: =IF(Miljö!H365=TRUE, INDEX(Material!$A110:$G113, MATCH(Miljö!H367,Material!$A110:$A113, 0),4)*Miljö!H368+Trp!H142,0) -> 0 | I46: =IF(Miljö!I365=TRUE, INDEX(Material!$A110:$G113, MATCH(Miljö!I367,Material!$A110:$A113, 0),4)*Miljö!I368+Trp!I142,0) -> 0 | J46: =IF(Miljö!J365=TRUE, INDEX(Material!$A110:$G113, MATCH(Miljö!J367,Material!$A110:$A113, 0),4)*Miljö!J368+Trp!J142,0) -> 0 | K46: =IF(Miljö!K365=TRUE, INDEX(Material!$A110:$G113, MATCH(Miljö!K367,Material!$A110:$A113, 0),4)*Miljö!K368+Trp!K142,0) -> 0 | L46: =IF(Miljö!L365=TRUE, INDEX(Material!$A110:$G113, MATCH(Miljö!L367,Material!$A110:$A113, 0),4)*Miljö!L368+Trp!L142,0) -> 0
A47: Materialanvändning+trp, luftflödesaggregat | B47: kg CO2-eq | C47: =IF(Miljö!C120=TRUE, INDEX(Material!$A119:$G122, MATCH(Miljö!C122,Material!$A119:$A122, 0),4)*Miljö!C123+Trp!C143,0) -> 0 | D47: =IF(Miljö!D120=TRUE, INDEX(Material!$A119:$G122, MATCH(Miljö!D122,Material!$A119:$A122, 0),4)*Miljö!D123+Trp!D143,0) -> 0 | E47: =IF(Miljö!E120=TRUE, INDEX(Material!$A119:$G122, MATCH(Miljö!E122,Material!$A119:$A122, 0),4)*Miljö!E123+Trp!E143,0) -> 0 | F47: =IF(Miljö!F120=TRUE, INDEX(Material!$A119:$G122, MATCH(Miljö!F122,Material!$A119:$A122, 0),4)*Miljö!F123+Trp!F143,0) -> 0 | G47: =IF(Miljö!G120=TRUE, INDEX(Material!$A119:$G122, MATCH(Miljö!G122,Material!$A119:$A122, 0),4)*Miljö!G123+Trp!G143,0) -> 0 | H47: =IF(Miljö!H120=TRUE, INDEX(Material!$A119:$G122, MATCH(Miljö!H122,Material!$A119:$A122, 0),4)*Miljö!H123+Trp!H143,0) -> 0 | I47: =IF(Miljö!I120=TRUE, INDEX(Material!$A119:$G122, MATCH(Miljö!I122,Material!$A119:$A122, 0),4)*Miljö!I123+Trp!I143,0) -> 0 | J47: =IF(Miljö!J120=TRUE, INDEX(Material!$A119:$G122, MATCH(Miljö!J122,Material!$A119:$A122, 0),4)*Miljö!J123+Trp!J143,0) -> 0 | K47: =IF(Miljö!K120=TRUE, INDEX(Material!$A119:$G122, MATCH(Miljö!K122,Material!$A119:$A122, 0),4)*Miljö!K123+Trp!K143,0) -> 0 | L47: =IF(Miljö!L120=TRUE, INDEX(Material!$A119:$G122, MATCH(Miljö!L122,Material!$A119:$A122, 0),4)*Miljö!L123+Trp!L143,0) -> 0
A48: Materialanvändning+trp, don och dämpare (vent) | B48: kg CO2-eq | C48: =IF(Miljö!C375=TRUE,Material!$D$128*Miljö!C377+Trp!C144,0) -> 0 | D48: =IF(Miljö!D375=TRUE,Material!$D$128*Miljö!D377+Trp!D144,0) -> 0 | E48: =IF(Miljö!E375=TRUE,Material!$D$128*Miljö!E377+Trp!E144,0) -> 0 | F48: =IF(Miljö!F375=TRUE,Material!$D$128*Miljö!F377+Trp!F144,0) -> 0 | G48: =IF(Miljö!G375=TRUE,Material!$D$128*Miljö!G377+Trp!G144,0) -> 0 | H48: =IF(Miljö!H375=TRUE,Material!$D$128*Miljö!H377+Trp!H144,0) -> 0 | I48: =IF(Miljö!I375=TRUE,Material!$D$128*Miljö!I377+Trp!I144,0) -> 0 | J48: =IF(Miljö!J375=TRUE,Material!$D$128*Miljö!J377+Trp!J144,0) -> 0 | K48: =IF(Miljö!K375=TRUE,Material!$D$128*Miljö!K377+Trp!K144,0) -> 0 | L48: =IF(Miljö!L375=TRUE,Material!$D$128*Miljö!L377+Trp!L144,0) -> 0
A49: Trä konstruktionsvirke | B49: kg CO2-eq | C49: =IF(Miljö!C$204=TRUE,Material!$D$57*Miljö!C$206+Trp!C147,0) -> 0 | D49: =IF(Miljö!D$204=TRUE,Material!$D$57*Miljö!D$206+Trp!D147,0) -> 0 | E49: =IF(Miljö!E$204=TRUE,Material!$D$57*Miljö!E$206+Trp!E147,0) -> 0 | F49: =IF(Miljö!F$204=TRUE,Material!$D$57*Miljö!F$206+Trp!F147,0) -> 0 | G49: =IF(Miljö!G$204=TRUE,Material!$D$57*Miljö!G$206+Trp!G147,0) -> 0 | H49: =IF(Miljö!H$204=TRUE,Material!$D$57*Miljö!H$206+Trp!H147,0) -> 0 | I49: =IF(Miljö!I$204=TRUE,Material!$D$57*Miljö!I$206+Trp!I147,0) -> 0 | J49: =IF(Miljö!J$204=TRUE,Material!$D$57*Miljö!J$206+Trp!J147,0) -> 0 | K49: =IF(Miljö!K$204=TRUE,Material!$D$57*Miljö!K$206+Trp!K147,0) -> 0 | L49: =IF(Miljö!L$204=TRUE,Material!$D$57*Miljö!L$206+Trp!L147,0) -> 0
A50: Trä målad träfasad | B50: kg CO2-eq | C50: =IF(Miljö!C$213=TRUE,Material!$D$58*Miljö!C$215+Trp!C148,0) -> 0 | D50: =IF(Miljö!D$213=TRUE,Material!$D$58*Miljö!D$215+Trp!D148,0) -> 0 | E50: =IF(Miljö!E$213=TRUE,Material!$D$58*Miljö!E$215+Trp!E148,0) -> 0 | F50: =IF(Miljö!F$213=TRUE,Material!$D$58*Miljö!F$215+Trp!F148,0) -> 0 | G50: =IF(Miljö!G$213=TRUE,Material!$D$58*Miljö!G$215+Trp!G148,0) -> 0 | H50: =IF(Miljö!H$213=TRUE,Material!$D$58*Miljö!H$215+Trp!H148,0) -> 0 | I50: =IF(Miljö!I$213=TRUE,Material!$D$58*Miljö!I$215+Trp!I148,0) -> 0 | J50: =IF(Miljö!J$213=TRUE,Material!$D$58*Miljö!J$215+Trp!J148,0) -> 0 | K50: =IF(Miljö!K$213=TRUE,Material!$D$58*Miljö!K$215+Trp!K148,0) -> 0 | L50: =IF(Miljö!L$213=TRUE,Material!$D$58*Miljö!L$215+Trp!L148,0) -> 0
A51: Trä invändig träpanel | B51: kg CO2-eq | C51: =IF(Miljö!C$222=TRUE,Material!$D$59*Miljö!C$224+Trp!C149,0) -> 0 | D51: =IF(Miljö!D$222=TRUE,Material!$D$59*Miljö!D$224+Trp!D149,0) -> 0 | E51: =IF(Miljö!E$222=TRUE,Material!$D$59*Miljö!E$224+Trp!E149,0) -> 0 | F51: =IF(Miljö!F$222=TRUE,Material!$D$59*Miljö!F$224+Trp!F149,0) -> 0 | G51: =IF(Miljö!G$222=TRUE,Material!$D$59*Miljö!G$224+Trp!G149,0) -> 0 | H51: =IF(Miljö!H$222=TRUE,Material!$D$59*Miljö!H$224+Trp!H149,0) -> 0 | I51: =IF(Miljö!I$222=TRUE,Material!$D$59*Miljö!I$224+Trp!I149,0) -> 0 | J51: =IF(Miljö!J$222=TRUE,Material!$D$59*Miljö!J$224+Trp!J149,0) -> 0 | K51: =IF(Miljö!K$222=TRUE,Material!$D$59*Miljö!K$224+Trp!K149,0) -> 0 | L51: =IF(Miljö!L$222=TRUE,Material!$D$59*Miljö!L$224+Trp!L149,0) -> 0
A52: Betong bjälklag | B52: kg CO2-eq | C52: =IF(Miljö!C$231=TRUE,INDEX(Material!$A$65:$G$67,MATCH(Miljö!C$233,Material!$A$65:$A$67,0),4)*Miljö!C$234+Trp!C150,0) -> 0 | D52: =IF(Miljö!D$231=TRUE,INDEX(Material!$A$65:$G$67,MATCH(Miljö!D$233,Material!$A$65:$A$67,0),4)*Miljö!D$234+Trp!D150,0) -> 0 | E52: =IF(Miljö!E$231=TRUE,INDEX(Material!$A$65:$G$67,MATCH(Miljö!E$233,Material!$A$65:$A$67,0),4)*Miljö!E$234+Trp!E150,0) -> 0 | F52: =IF(Miljö!F$231=TRUE,INDEX(Material!$A$65:$G$67,MATCH(Miljö!F$233,Material!$A$65:$A$67,0),4)*Miljö!F$234+Trp!F150,0) -> 0 | G52: =IF(Miljö!G$231=TRUE,INDEX(Material!$A$65:$G$67,MATCH(Miljö!G$233,Material!$A$65:$A$67,0),4)*Miljö!G$234+Trp!G150,0) -> 0 | H52: =IF(Miljö!H$231=TRUE,INDEX(Material!$A$65:$G$67,MATCH(Miljö!H$233,Material!$A$65:$A$67,0),4)*Miljö!H$234+Trp!H150,0) -> 0 | I52: =IF(Miljö!I$231=TRUE,INDEX(Material!$A$65:$G$67,MATCH(Miljö!I$233,Material!$A$65:$A$67,0),4)*Miljö!I$234+Trp!I150,0) -> 0 | J52: =IF(Miljö!J$231=TRUE,INDEX(Material!$A$65:$G$67,MATCH(Miljö!J$233,Material!$A$65:$A$67,0),4)*Miljö!J$234+Trp!J150,0) -> 0 | K52: =IF(Miljö!K$231=TRUE,INDEX(Material!$A$65:$G$67,MATCH(Miljö!K$233,Material!$A$65:$A$67,0),4)*Miljö!K$234+Trp!K150,0) -> 0 | L52: =IF(Miljö!L$231=TRUE,INDEX(Material!$A$65:$G$67,MATCH(Miljö!L$233,Material!$A$65:$A$67,0),4)*Miljö!L$234+Trp!L150,0) -> 0
A53: Betong bärande ytterväggar | B53: kg CO2-eq | C53: =IF(Miljö!C$241=TRUE,INDEX(Material!$A$74:$G$75,MATCH(Miljö!C$243,Material!$A$74:$A$75,0),4)*Miljö!C$244+Trp!C151,0) -> 0 | D53: =IF(Miljö!D$241=TRUE,INDEX(Material!$A$74:$G$75,MATCH(Miljö!D$243,Material!$A$74:$A$75,0),4)*Miljö!D$244+Trp!D151,0) -> 0 | E53: =IF(Miljö!E$241=TRUE,INDEX(Material!$A$74:$G$75,MATCH(Miljö!E$243,Material!$A$74:$A$75,0),4)*Miljö!E$244+Trp!E151,0) -> 0 | F53: =IF(Miljö!F$241=TRUE,INDEX(Material!$A$74:$G$75,MATCH(Miljö!F$243,Material!$A$74:$A$75,0),4)*Miljö!F$244+Trp!F151,0) -> 0 | G53: =IF(Miljö!G$241=TRUE,INDEX(Material!$A$74:$G$75,MATCH(Miljö!G$243,Material!$A$74:$A$75,0),4)*Miljö!G$244+Trp!G151,0) -> 0 | H53: =IF(Miljö!H$241=TRUE,INDEX(Material!$A$74:$G$75,MATCH(Miljö!H$243,Material!$A$74:$A$75,0),4)*Miljö!H$244+Trp!H151,0) -> 0 | I53: =IF(Miljö!I$241=TRUE,INDEX(Material!$A$74:$G$75,MATCH(Miljö!I$243,Material!$A$74:$A$75,0),4)*Miljö!I$244+Trp!I151,0) -> 0 | J53: =IF(Miljö!J$241=TRUE,INDEX(Material!$A$74:$G$75,MATCH(Miljö!J$243,Material!$A$74:$A$75,0),4)*Miljö!J$244+Trp!J151,0) -> 0 | K53: =IF(Miljö!K$241=TRUE,INDEX(Material!$A$74:$G$75,MATCH(Miljö!K$243,Material!$A$74:$A$75,0),4)*Miljö!K$244+Trp!K151,0) -> 0 | L53: =IF(Miljö!L$241=TRUE,INDEX(Material!$A$74:$G$75,MATCH(Miljö!L$243,Material!$A$74:$A$75,0),4)*Miljö!L$244+Trp!L151,0) -> 0
A54: Betong icke-bärande ytterväggar | B54: kg CO2-eq | C54: =IF(Miljö!C$251=TRUE,Material!$D$77*Miljö!C$253+Trp!C152,0) -> 0 | D54: =IF(Miljö!D$251=TRUE,Material!$D$77*Miljö!D$253+Trp!D152,0) -> 0 | E54: =IF(Miljö!E$251=TRUE,Material!$D$77*Miljö!E$253+Trp!E152,0) -> 0 | F54: =IF(Miljö!F$251=TRUE,Material!$D$77*Miljö!F$253+Trp!F152,0) -> 0 | G54: =IF(Miljö!G$251=TRUE,Material!$D$77*Miljö!G$253+Trp!G152,0) -> 0 | H54: =IF(Miljö!H$251=TRUE,Material!$D$77*Miljö!H$253+Trp!H152,0) -> 0 | I54: =IF(Miljö!I$251=TRUE,Material!$D$77*Miljö!I$253+Trp!I152,0) -> 0 | J54: =IF(Miljö!J$251=TRUE,Material!$D$77*Miljö!J$253+Trp!J152,0) -> 0 | K54: =IF(Miljö!K$251=TRUE,Material!$D$77*Miljö!K$253+Trp!K152,0) -> 0 | L54: =IF(Miljö!L$251=TRUE,Material!$D$77*Miljö!L$253+Trp!L152,0) -> 0
A55: Betong innerväggar | B55: kg CO2-eq | C55: =IF(Miljö!C$260=TRUE,INDEX(Material!$A$84:$G$85,MATCH(Miljö!C$262,Material!$A$84:$A$85,0),4)*Miljö!C$263+Trp!C153,0) -> 0 | D55: =IF(Miljö!D$260=TRUE,INDEX(Material!$A$84:$G$85,MATCH(Miljö!D$262,Material!$A$84:$A$85,0),4)*Miljö!D$263+Trp!D153,0) -> 0 | E55: =IF(Miljö!E$260=TRUE,INDEX(Material!$A$84:$G$85,MATCH(Miljö!E$262,Material!$A$84:$A$85,0),4)*Miljö!E$263+Trp!E153,0) -> 0 | F55: =IF(Miljö!F$260=TRUE,INDEX(Material!$A$84:$G$85,MATCH(Miljö!F$262,Material!$A$84:$A$85,0),4)*Miljö!F$263+Trp!F153,0) -> 0 | G55: =IF(Miljö!G$260=TRUE,INDEX(Material!$A$84:$G$85,MATCH(Miljö!G$262,Material!$A$84:$A$85,0),4)*Miljö!G$263+Trp!G153,0) -> 0 | H55: =IF(Miljö!H$260=TRUE,INDEX(Material!$A$84:$G$85,MATCH(Miljö!H$262,Material!$A$84:$A$85,0),4)*Miljö!H$263+Trp!H153,0) -> 0 | I55: =IF(Miljö!I$260=TRUE,INDEX(Material!$A$84:$G$85,MATCH(Miljö!I$262,Material!$A$84:$A$85,0),4)*Miljö!I$263+Trp!I153,0) -> 0 | J55: =IF(Miljö!J$260=TRUE,INDEX(Material!$A$84:$G$85,MATCH(Miljö!J$262,Material!$A$84:$A$85,0),4)*Miljö!J$263+Trp!J153,0) -> 0 | K55: =IF(Miljö!K$260=TRUE,INDEX(Material!$A$84:$G$85,MATCH(Miljö!K$262,Material!$A$84:$A$85,0),4)*Miljö!K$263+Trp!K153,0) -> 0 | L55: =IF(Miljö!L$260=TRUE,INDEX(Material!$A$84:$G$85,MATCH(Miljö!L$262,Material!$A$84:$A$85,0),4)*Miljö!L$263+Trp!L153,0) -> 0
A56: Puts | B56: kg CO2-eq | C56: =IF(Miljö!C$270=TRUE,Material!$D$90*Miljö!C$272+Trp!C154,0) -> 0 | D56: =IF(Miljö!D$270=TRUE,Material!$D$90*Miljö!D$272+Trp!D154,0) -> 0 | E56: =IF(Miljö!E$270=TRUE,Material!$D$90*Miljö!E$272+Trp!E154,0) -> 0 | F56: =IF(Miljö!F$270=TRUE,Material!$D$90*Miljö!F$272+Trp!F154,0) -> 0 | G56: =IF(Miljö!G$270=TRUE,Material!$D$90*Miljö!G$272+Trp!G154,0) -> 0 | H56: =IF(Miljö!H$270=TRUE,Material!$D$90*Miljö!H$272+Trp!H154,0) -> 0 | I56: =IF(Miljö!I$270=TRUE,Material!$D$90*Miljö!I$272+Trp!I154,0) -> 0 | J56: =IF(Miljö!J$270=TRUE,Material!$D$90*Miljö!J$272+Trp!J154,0) -> 0 | K56: =IF(Miljö!K$270=TRUE,Material!$D$90*Miljö!K$272+Trp!K154,0) -> 0 | L56: =IF(Miljö!L$270=TRUE,Material!$D$90*Miljö!L$272+Trp!L154,0) -> 0
A57: Gipsskivor | B57: kg CO2-eq | C57: =IF(Miljö!C$279=TRUE,Material!$D$91*Miljö!C$281+Trp!C155,0) -> 0 | D57: =IF(Miljö!D$279=TRUE,Material!$D$91*Miljö!D$281+Trp!D155,0) -> 0 | E57: =IF(Miljö!E$279=TRUE,Material!$D$91*Miljö!E$281+Trp!E155,0) -> 0 | F57: =IF(Miljö!F$279=TRUE,Material!$D$91*Miljö!F$281+Trp!F155,0) -> 0 | G57: =IF(Miljö!G$279=TRUE,Material!$D$91*Miljö!G$281+Trp!G155,0) -> 0 | H57: =IF(Miljö!H$279=TRUE,Material!$D$91*Miljö!H$281+Trp!H155,0) -> 0 | I57: =IF(Miljö!I$279=TRUE,Material!$D$91*Miljö!I$281+Trp!I155,0) -> 0 | J57: =IF(Miljö!J$279=TRUE,Material!$D$91*Miljö!J$281+Trp!J155,0) -> 0 | K57: =IF(Miljö!K$279=TRUE,Material!$D$91*Miljö!K$281+Trp!K155,0) -> 0 | L57: =IF(Miljö!L$279=TRUE,Material!$D$91*Miljö!L$281+Trp!L155,0) -> 0
A58: Takbeläggning | B58: kg CO2-eq | C58: =IF(Miljö!C$288=TRUE,INDEX(Material!$A$98:$G$102,MATCH(Miljö!C$290,Material!$A$98:$A$102,0),4)*Miljö!C$291+Trp!C156,0) -> 0 | D58: =IF(Miljö!D$288=TRUE,INDEX(Material!$A$98:$G$102,MATCH(Miljö!D$290,Material!$A$98:$A$102,0),4)*Miljö!D$291+Trp!D156,0) -> 0 | E58: =IF(Miljö!E$288=TRUE,INDEX(Material!$A$98:$G$102,MATCH(Miljö!E$290,Material!$A$98:$A$102,0),4)*Miljö!E$291+Trp!E156,0) -> 0 | F58: =IF(Miljö!F$288=TRUE,INDEX(Material!$A$98:$G$102,MATCH(Miljö!F$290,Material!$A$98:$A$102,0),4)*Miljö!F$291+Trp!F156,0) -> 0 | G58: =IF(Miljö!G$288=TRUE,INDEX(Material!$A$98:$G$102,MATCH(Miljö!G$290,Material!$A$98:$A$102,0),4)*Miljö!G$291+Trp!G156,0) -> 0 | H58: =IF(Miljö!H$288=TRUE,INDEX(Material!$A$98:$G$102,MATCH(Miljö!H$290,Material!$A$98:$A$102,0),4)*Miljö!H$291+Trp!H156,0) -> 0 | I58: =IF(Miljö!I$288=TRUE,INDEX(Material!$A$98:$G$102,MATCH(Miljö!I$290,Material!$A$98:$A$102,0),4)*Miljö!I$291+Trp!I156,0) -> 0 | J58: =IF(Miljö!J$288=TRUE,INDEX(Material!$A$98:$G$102,MATCH(Miljö!J$290,Material!$A$98:$A$102,0),4)*Miljö!J$291+Trp!J156,0) -> 0 | K58: =IF(Miljö!K$288=TRUE,INDEX(Material!$A$98:$G$102,MATCH(Miljö!K$290,Material!$A$98:$A$102,0),4)*Miljö!K$291+Trp!K156,0) -> 0 | L58: =IF(Miljö!L$288=TRUE,INDEX(Material!$A$98:$G$102,MATCH(Miljö!L$290,Material!$A$98:$A$102,0),4)*Miljö!L$291+Trp!L156,0) -> 0
A59: Materialanvändning+trp, radiatorer | B59: kg CO2-eq | C59: =IF(Miljö!C301=TRUE, INDEX(Material!$A$146:$G$149, MATCH(Miljö!C303,Material!$A$146:$A$149, 0),4)*Miljö!C304+Trp!C157, 0) -> 0 | D59: =IF(Miljö!D301=TRUE, INDEX(Material!$A$146:$G$149, MATCH(Miljö!D303,Material!$A$146:$A$149, 0),4)*Miljö!D304+Trp!D157, 0) -> 0 | E59: =IF(Miljö!E301=TRUE, INDEX(Material!$A$146:$G$149, MATCH(Miljö!E303,Material!$A$146:$A$149, 0),4)*Miljö!E304+Trp!E157, 0) -> 0 | F59: =IF(Miljö!F301=TRUE, INDEX(Material!$A$146:$G$149, MATCH(Miljö!F303,Material!$A$146:$A$149, 0),4)*Miljö!F304+Trp!F157, 0) -> 0 | G59: =IF(Miljö!G301=TRUE, INDEX(Material!$A$146:$G$149, MATCH(Miljö!G303,Material!$A$146:$A$149, 0),4)*Miljö!G304+Trp!G157, 0) -> 0 | H59: =IF(Miljö!H301=TRUE, INDEX(Material!$A$146:$G$149, MATCH(Miljö!H303,Material!$A$146:$A$149, 0),4)*Miljö!H304+Trp!H157, 0) -> 0 | I59: =IF(Miljö!I301=TRUE, INDEX(Material!$A$146:$G$149, MATCH(Miljö!I303,Material!$A$146:$A$149, 0),4)*Miljö!I304+Trp!I157, 0) -> 0 | J59: =IF(Miljö!J301=TRUE, INDEX(Material!$A$146:$G$149, MATCH(Miljö!J303,Material!$A$146:$A$149, 0),4)*Miljö!J304+Trp!J157, 0) -> 0 | K59: =IF(Miljö!K301=TRUE, INDEX(Material!$A$146:$G$149, MATCH(Miljö!K303,Material!$A$146:$A$149, 0),4)*Miljö!K304+Trp!K157, 0) -> 0 | L59: =IF(Miljö!L301=TRUE, INDEX(Material!$A$146:$G$149, MATCH(Miljö!L303,Material!$A$146:$A$149, 0),4)*Miljö!L304+Trp!L157, 0) -> 0
A60: Materialanvändning+trp, kopparrör | B60: kg CO2-eq | C60: =IF(Miljö!C311=TRUE,Miljö!C313*Material!$D$155+Trp!C158,0) -> 0 | D60: =IF(Miljö!D311=TRUE,Miljö!D313*Material!$D$155+Trp!D158,0) -> 0 | E60: =IF(Miljö!E311=TRUE,Miljö!E313*Material!$D$155+Trp!E158,0) -> 0 | F60: =IF(Miljö!F311=TRUE,Miljö!F313*Material!$D$155+Trp!F158,0) -> 0 | G60: =IF(Miljö!G311=TRUE,Miljö!G313*Material!$D$155+Trp!G158,0) -> 0 | H60: =IF(Miljö!H311=TRUE,Miljö!H313*Material!$D$155+Trp!H158,0) -> 0 | I60: =IF(Miljö!I311=TRUE,Miljö!I313*Material!$D$155+Trp!I158,0) -> 0 | J60: =IF(Miljö!J311=TRUE,Miljö!J313*Material!$D$155+Trp!J158,0) -> 0 | K60: =IF(Miljö!K311=TRUE,Miljö!K313*Material!$D$155+Trp!K158,0) -> 0 | L60: =IF(Miljö!L311=TRUE,Miljö!L313*Material!$D$155+Trp!L158,0) -> 0
A61: Materialanvändning+trp, PEX-rör | B61: kg CO2-eq | C61: =IF(Miljö!C320=TRUE,Miljö!C322*Material!$D$156+Trp!C159,0) -> 0 | D61: =IF(Miljö!D320=TRUE,Miljö!D322*Material!$D$156+Trp!D159,0) -> 0 | E61: =IF(Miljö!E320=TRUE,Miljö!E322*Material!$D$156+Trp!E159,0) -> 0 | F61: =IF(Miljö!F320=TRUE,Miljö!F322*Material!$D$156+Trp!F159,0) -> 0 | G61: =IF(Miljö!G320=TRUE,Miljö!G322*Material!$D$156+Trp!G159,0) -> 0 | H61: =IF(Miljö!H320=TRUE,Miljö!H322*Material!$D$156+Trp!H159,0) -> 0 | I61: =IF(Miljö!I320=TRUE,Miljö!I322*Material!$D$156+Trp!I159,0) -> 0 | J61: =IF(Miljö!J320=TRUE,Miljö!J322*Material!$D$156+Trp!J159,0) -> 0 | K61: =IF(Miljö!K320=TRUE,Miljö!K322*Material!$D$156+Trp!K159,0) -> 0 | L61: =IF(Miljö!L320=TRUE,Miljö!L322*Material!$D$156+Trp!L159,0) -> 0
A62: Materialanvändning+trp, PP-rör | B62: kg CO2-eq | C62: =IF(Miljö!C329=TRUE,Miljö!C331*Material!$D$157+Trp!C160,0) -> 0 | D62: =IF(Miljö!D329=TRUE,Miljö!D331*Material!$D$157+Trp!D160,0) -> 0 | E62: =IF(Miljö!E329=TRUE,Miljö!E331*Material!$D$157+Trp!E160,0) -> 0 | F62: =IF(Miljö!F329=TRUE,Miljö!F331*Material!$D$157+Trp!F160,0) -> 0 | G62: =IF(Miljö!G329=TRUE,Miljö!G331*Material!$D$157+Trp!G160,0) -> 0 | H62: =IF(Miljö!H329=TRUE,Miljö!H331*Material!$D$157+Trp!H160,0) -> 0 | I62: =IF(Miljö!I329=TRUE,Miljö!I331*Material!$D$157+Trp!I160,0) -> 0 | J62: =IF(Miljö!J329=TRUE,Miljö!J331*Material!$D$157+Trp!J160,0) -> 0 | K62: =IF(Miljö!K329=TRUE,Miljö!K331*Material!$D$157+Trp!K160,0) -> 0 | L62: =IF(Miljö!L329=TRUE,Miljö!L331*Material!$D$157+Trp!L160,0) -> 0
A63: Materialanvändning+trp, järnrör | B63: kg CO2-eq | C63: =IF(Miljö!C338=TRUE,Miljö!C340*Material!$D$158+Trp!C161,0) -> 0 | D63: =IF(Miljö!D338=TRUE,Miljö!D340*Material!$D$158+Trp!D161,0) -> 0 | E63: =IF(Miljö!E338=TRUE,Miljö!E340*Material!$D$158+Trp!E161,0) -> 0 | F63: =IF(Miljö!F338=TRUE,Miljö!F340*Material!$D$158+Trp!F161,0) -> 0 | G63: =IF(Miljö!G338=TRUE,Miljö!G340*Material!$D$158+Trp!G161,0) -> 0 | H63: =IF(Miljö!H338=TRUE,Miljö!H340*Material!$D$158+Trp!H161,0) -> 0 | I63: =IF(Miljö!I338=TRUE,Miljö!I340*Material!$D$158+Trp!I161,0) -> 0 | J63: =IF(Miljö!J338=TRUE,Miljö!J340*Material!$D$158+Trp!J161,0) -> 0 | K63: =IF(Miljö!K338=TRUE,Miljö!K340*Material!$D$158+Trp!K161,0) -> 0 | L63: =IF(Miljö!L338=TRUE,Miljö!L340*Material!$D$158+Trp!L161,0) -> 0
A64: Materialanvändning+trp, stålrör | B64: kg CO2-eq | C64: =IF(Miljö!C347=TRUE,Miljö!C349*Material!$D$159+Trp!C162,0) -> 0 | D64: =IF(Miljö!D347=TRUE,Miljö!D349*Material!$D$159+Trp!D162,0) -> 0 | E64: =IF(Miljö!E347=TRUE,Miljö!E349*Material!$D$159+Trp!E162,0) -> 0 | F64: =IF(Miljö!F347=TRUE,Miljö!F349*Material!$D$159+Trp!F162,0) -> 0 | G64: =IF(Miljö!G347=TRUE,Miljö!G349*Material!$D$159+Trp!G162,0) -> 0 | H64: =IF(Miljö!H347=TRUE,Miljö!H349*Material!$D$159+Trp!H162,0) -> 0 | I64: =IF(Miljö!I347=TRUE,Miljö!I349*Material!$D$159+Trp!I162,0) -> 0 | J64: =IF(Miljö!J347=TRUE,Miljö!J349*Material!$D$159+Trp!J162,0) -> 0 | K64: =IF(Miljö!K347=TRUE,Miljö!K349*Material!$D$159+Trp!K162,0) -> 0 | L64: =IF(Miljö!L347=TRUE,Miljö!L349*Material!$D$159+Trp!L162,0) -> 0
A65: Materialanvändning+trp, relining rör | B65: kg CO2-eq | C65: =IF(Miljö!C356=TRUE,Miljö!C358*Material!$D$165+Trp!C164,0) -> 0 | D65: =IF(Miljö!D356=TRUE,Miljö!D358*Material!$D$165+Trp!D164,0) -> 0 | E65: =IF(Miljö!E356=TRUE,Miljö!E358*Material!$D$165+Trp!E164,0) -> 0 | F65: =IF(Miljö!F356=TRUE,Miljö!F358*Material!$D$165+Trp!F164,0) -> 0 | G65: =IF(Miljö!G356=TRUE,Miljö!G358*Material!$D$165+Trp!G164,0) -> 0 | H65: =IF(Miljö!H356=TRUE,Miljö!H358*Material!$D$165+Trp!H164,0) -> 0 | I65: =IF(Miljö!I356=TRUE,Miljö!I358*Material!$D$165+Trp!I164,0) -> 0 | J65: =IF(Miljö!J356=TRUE,Miljö!J358*Material!$D$165+Trp!J164,0) -> 0 | K65: =IF(Miljö!K356=TRUE,Miljö!K358*Material!$D$165+Trp!K164,0) -> 0 | L65: =IF(Miljö!L356=TRUE,Miljö!L358*Material!$D$165+Trp!L164,0) -> 0
A66: Materialanvändning+trp, elledning | B66: kg CO2-eq | C66: =IF(Miljö!C384=TRUE,Miljö!C386*Material!$D$174+Trp!C165,0) -> 0 | D66: =IF(Miljö!D384=TRUE,Miljö!D386*Material!$D$174+Trp!D165,0) -> 0 | E66: =IF(Miljö!E384=TRUE,Miljö!E386*Material!$D$174+Trp!E165,0) -> 0 | F66: =IF(Miljö!F384=TRUE,Miljö!F386*Material!$D$174+Trp!F165,0) -> 0 | G66: =IF(Miljö!G384=TRUE,Miljö!G386*Material!$D$174+Trp!G165,0) -> 0 | H66: =IF(Miljö!H384=TRUE,Miljö!H386*Material!$D$174+Trp!H165,0) -> 0 | I66: =IF(Miljö!I384=TRUE,Miljö!I386*Material!$D$174+Trp!I165,0) -> 0 | J66: =IF(Miljö!J384=TRUE,Miljö!J386*Material!$D$174+Trp!J165,0) -> 0 | K66: =IF(Miljö!K384=TRUE,Miljö!K386*Material!$D$174+Trp!K165,0) -> 0 | L66: =IF(Miljö!L384=TRUE,Miljö!L386*Material!$D$174+Trp!L165,0) -> 0
A67: Materialanvändning, Egen elproduktion | B67: kg CO2-eq | C67: =IF(Miljö!C130=TRUE,INDEX(Material!$A$183:$G$186,MATCH(Miljö!C132,Material!$A$183:$A$186,0),4)*Miljö!C133+Trp!C146,0) -> 0 | D67: =IF(Miljö!D130=TRUE,INDEX(Material!$A$183:$G$186,MATCH(Miljö!D132,Material!$A$183:$A$186,0),4)*Miljö!D133+Trp!D146,0) -> 0 | E67: =IF(Miljö!E130=TRUE,INDEX(Material!$A$183:$G$186,MATCH(Miljö!E132,Material!$A$183:$A$186,0),4)*Miljö!E133+Trp!E146,0) -> 0 | F67: =IF(Miljö!F130=TRUE,INDEX(Material!$A$183:$G$186,MATCH(Miljö!F132,Material!$A$183:$A$186,0),4)*Miljö!F133+Trp!F146,0) -> 0 | G67: =IF(Miljö!G130=TRUE,INDEX(Material!$A$183:$G$186,MATCH(Miljö!G132,Material!$A$183:$A$186,0),4)*Miljö!G133+Trp!G146,0) -> 0 | H67: =IF(Miljö!H130=TRUE,INDEX(Material!$A$183:$G$186,MATCH(Miljö!H132,Material!$A$183:$A$186,0),4)*Miljö!H133+Trp!H146,0) -> 0 | I67: =IF(Miljö!I130=TRUE,INDEX(Material!$A$183:$G$186,MATCH(Miljö!I132,Material!$A$183:$A$186,0),4)*Miljö!I133+Trp!I146,0) -> 0 | J67: =IF(Miljö!J130=TRUE,INDEX(Material!$A$183:$G$186,MATCH(Miljö!J132,Material!$A$183:$A$186,0),4)*Miljö!J133+Trp!J146,0) -> 0 | K67: =IF(Miljö!K130=TRUE,INDEX(Material!$A$183:$G$186,MATCH(Miljö!K132,Material!$A$183:$A$186,0),4)*Miljö!K133+Trp!K146,0) -> 0 | L67: =IF(Miljö!L130=TRUE,INDEX(Material!$A$183:$G$186,MATCH(Miljö!L132,Material!$A$183:$A$186,0),4)*Miljö!L133+Trp!L146,0) -> 0
A68: Total miljöpåverkan renovering | B68: kg CO2-eq | C68: =SUM(C38:C67) -> 0 | D68: =SUM(D38:D67) -> 0 | E68: 0 | F68: 0 | G68: 0 | H68: 0 | I68: 0 | J68: 0 | K68: 0 | L68: 0
A70: 7.2.2 Årlig miljöpåverkan efter renovering | B70: Negativa värden visar en miljöbesparing jämfört med referensfallet där ingen renovering görs
A71: Årlig miljöpåverkan, ändrat värmebehov | B71: kg CO2-eq/år | C71: =INDEX(Uppvärmning!$A6:$I12, MATCH(Miljö!C93,Uppvärmning!$A6:$A12, 0),3)*Miljö!C144 ->  | D71: =INDEX(Uppvärmning!$A6:$I12, MATCH(Miljö!D93,Uppvärmning!$A6:$A12, 0),3)*Miljö!D144 -> 0 | E71: =INDEX(Uppvärmning!$A6:$I12, MATCH(Miljö!E93,Uppvärmning!$A6:$A12, 0),3)*Miljö!E144 -> 0 | F71: =INDEX(Uppvärmning!$A6:$I12, MATCH(Miljö!F93,Uppvärmning!$A6:$A12, 0),3)*Miljö!F144 -> 0 | G71: =INDEX(Uppvärmning!$A6:$I12, MATCH(Miljö!G93,Uppvärmning!$A6:$A12, 0),3)*Miljö!G144 -> 0 | H71: =INDEX(Uppvärmning!$A6:$I12, MATCH(Miljö!H93,Uppvärmning!$A6:$A12, 0),3)*Miljö!H144 -> 0 | I71: =INDEX(Uppvärmning!$A6:$I12, MATCH(Miljö!I93,Uppvärmning!$A6:$A12, 0),3)*Miljö!I144 -> 0 | J71: =INDEX(Uppvärmning!$A6:$I12, MATCH(Miljö!J93,Uppvärmning!$A6:$A12, 0),3)*Miljö!J144 -> 0 | K71: =INDEX(Uppvärmning!$A6:$I12, MATCH(Miljö!K93,Uppvärmning!$A6:$A12, 0),3)*Miljö!K144 -> 0 | L71: =INDEX(Uppvärmning!$A6:$I12, MATCH(Miljö!L93,Uppvärmning!$A6:$A12, 0),3)*Miljö!L144 -> 0
A72: Årlig miljöpåverkan, ändrat elbehov | B72: kg CO2-eq/år | C72: =Uppvärmning!$C$11*Miljö!C145 -> 0 | D72: =Miljö!D145*Uppvärmning!$C$11 -> 0 | E72: =Miljö!E145*Uppvärmning!$C$11 -> 0 | F72: =Miljö!F145*Uppvärmning!$C$11 -> 0 | G72: =Miljö!G145*Uppvärmning!$C$11 -> 0 | H72: =Miljö!H145*Uppvärmning!$C$11 -> 0 | I72: =Miljö!I145*Uppvärmning!$C$11 -> 0 | J72: =Miljö!J145*Uppvärmning!$C$11 -> 0 | K72: =Miljö!K145*Uppvärmning!$C$11 -> 0 | L72: =Miljö!L145*Uppvärmning!$C$11 -> 0
A73: Årlig miljöpåverkan, byte uppvärmning värmeprod | B73: kg CO2-eq/år | C73: =IF(Miljö!C98=TRUE,Miljö!C95*Uppvärmning!D$58,0) -> 0 | D73: =IF(Miljö!D98=TRUE,Miljö!D95*Uppvärmning!E$58,0) -> 0 | E73: =IF(Miljö!E98=TRUE,Miljö!E95*Uppvärmning!F$58,0) -> 0 | F73: =IF(Miljö!F98=TRUE,Miljö!F95*Uppvärmning!G$58,0) -> 0 | G73: =IF(Miljö!G98=TRUE,Miljö!G95*Uppvärmning!H$58,0) -> 0 | H73: =IF(Miljö!H98=TRUE,Miljö!H95*Uppvärmning!I$58,0) -> 0 | I73: =IF(Miljö!I98=TRUE,Miljö!I95*Uppvärmning!J$58,0) -> 0 | J73: =IF(Miljö!J98=TRUE,Miljö!J95*Uppvärmning!K$58,0) -> 0 | K73: =IF(Miljö!K98=TRUE,Miljö!K95*Uppvärmning!L$58,0) -> 0 | L73: =IF(Miljö!L98=TRUE,Miljö!L95*Uppvärmning!M$58,0) -> 0
A74: Årlig miljöpåverkan, Egen elproduktion | B74: kg CO2-eq/år | C74: =-Uppvärmning!$C$11*Miljö!C134 -> 0 | D74: =-Uppvärmning!$C$11*Miljö!D134 -> 0 | E74: =-Uppvärmning!$C$11*Miljö!E134 -> 0 | F74: =-Uppvärmning!$C$11*Miljö!F134 -> 0 | G74: =-Uppvärmning!$C$11*Miljö!G134 -> 0 | H74: =-Uppvärmning!$C$11*Miljö!H134 -> 0 | I74: =-Uppvärmning!$C$11*Miljö!I134 -> 0 | J74: =-Uppvärmning!$C$11*Miljö!J134 -> 0 | K74: =-Uppvärmning!$C$11*Miljö!K134 -> 0 | L74: =-Uppvärmning!$C$11*Miljö!L134 -> 0
A75: Total miljöpåverkan per år | B75: kg CO2-eq/år | C75: =SUM(C71:C74) ->  | D75: =SUM(D71:D74) -> 0 | E75: 0 | F75: 0 | G75: 0 | H75: 0 | I75: 0 | J75: 0 | K75: 0 | L75: 0
A77: 7.2.3 Miljöpåverkan avfallshantering | B77: Negativa värden visar en miljöbesparing jämfört med referensfallet där ingen renovering görs
A78: Miljöpåverkan avfallshantering, isolering 1 | B78: kg CO2-eq | C78: =IF(Miljö!C151=TRUE, INDEX(Material!$A$6:$G$9, MATCH(Miljö!C153,Material!$A6:$A9, 0),6)*Miljö!C154, 0) -> 0 | D78: =IF(Miljö!D151=TRUE, INDEX(Material!$A$6:$G$9, MATCH(Miljö!D153,Material!$A6:$A9, 0),6)*Miljö!D154, 0) -> 0 | E78: =IF(Miljö!E151=TRUE, INDEX(Material!$A$6:$G$9, MATCH(Miljö!E153,Material!$A6:$A9, 0),6)*Miljö!E154, 0) -> 0 | F78: =IF(Miljö!F151=TRUE, INDEX(Material!$A$6:$G$9, MATCH(Miljö!F153,Material!$A6:$A9, 0),6)*Miljö!F154, 0) -> 0 | G78: =IF(Miljö!G151=TRUE, INDEX(Material!$A$6:$G$9, MATCH(Miljö!G153,Material!$A6:$A9, 0),6)*Miljö!G154, 0) -> 0 | H78: =IF(Miljö!H151=TRUE, INDEX(Material!$A$6:$G$9, MATCH(Miljö!H153,Material!$A6:$A9, 0),6)*Miljö!H154, 0) -> 0 | I78: =IF(Miljö!I151=TRUE, INDEX(Material!$A$6:$G$9, MATCH(Miljö!I153,Material!$A6:$A9, 0),6)*Miljö!I154, 0) -> 0 | J78: =IF(Miljö!J151=TRUE, INDEX(Material!$A$6:$G$9, MATCH(Miljö!J153,Material!$A6:$A9, 0),6)*Miljö!J154, 0) -> 0 | K78: =IF(Miljö!K151=TRUE, INDEX(Material!$A$6:$G$9, MATCH(Miljö!K153,Material!$A6:$A9, 0),6)*Miljö!K154, 0) -> 0 | L78: =IF(Miljö!L151=TRUE, INDEX(Material!$A$6:$G$9, MATCH(Miljö!L153,Material!$A6:$A9, 0),6)*Miljö!L154, 0) -> 0
A79: Miljöpåverkan avfallshantering, isolering 2 | B79: kg CO2-eq | C79: =IF(Miljö!C161=TRUE, INDEX(Material!$A$6:$G$9, MATCH(Miljö!C163,Material!$A6:$A9, 0),6)*Miljö!C164, 0) -> 0 | D79: =IF(Miljö!D161=TRUE, INDEX(Material!$A$6:$G$9, MATCH(Miljö!D163,Material!$A6:$A9, 0),6)*Miljö!D164, 0) -> 0 | E79: =IF(Miljö!E161=TRUE, INDEX(Material!$A$6:$G$9, MATCH(Miljö!E163,Material!$A6:$A9, 0),6)*Miljö!E164, 0) -> 0 | F79: =IF(Miljö!F161=TRUE, INDEX(Material!$A$6:$G$9, MATCH(Miljö!F163,Material!$A6:$A9, 0),6)*Miljö!F164, 0) -> 0 | G79: =IF(Miljö!G161=TRUE, INDEX(Material!$A$6:$G$9, MATCH(Miljö!G163,Material!$A6:$A9, 0),6)*Miljö!G164, 0) -> 0 | H79: =IF(Miljö!H161=TRUE, INDEX(Material!$A$6:$G$9, MATCH(Miljö!H163,Material!$A6:$A9, 0),6)*Miljö!H164, 0) -> 0 | I79: =IF(Miljö!I161=TRUE, INDEX(Material!$A$6:$G$9, MATCH(Miljö!I163,Material!$A6:$A9, 0),6)*Miljö!I164, 0) -> 0 | J79: =IF(Miljö!J161=TRUE, INDEX(Material!$A$6:$G$9, MATCH(Miljö!J163,Material!$A6:$A9, 0),6)*Miljö!J164, 0) -> 0 | K79: =IF(Miljö!K161=TRUE, INDEX(Material!$A$6:$G$9, MATCH(Miljö!K163,Material!$A6:$A9, 0),6)*Miljö!K164, 0) -> 0 | L79: =IF(Miljö!L161=TRUE, INDEX(Material!$A$6:$G$9, MATCH(Miljö!L163,Material!$A6:$A9, 0),6)*Miljö!L164, 0) -> 0
A80: Miljöpåverkan avfallshantering, fasadsystem | B80: kg CO2-eq | C80: =IF(Miljö!C171=TRUE, INDEX(Material!$A33:$G51, MATCH(Miljö!C173,Material!$A33:$A51, 0),6)*Miljö!C174, 0) -> 0 | D80: =IF(Miljö!D171=TRUE, INDEX(Material!$A33:$G51, MATCH(Miljö!D173,Material!$A33:$A51, 0),6)*Miljö!D174, 0) -> 0 | E80: =IF(Miljö!E171=TRUE, INDEX(Material!$A33:$G51, MATCH(Miljö!E173,Material!$A33:$A51, 0),6)*Miljö!E174, 0) -> 0 | F80: =IF(Miljö!F171=TRUE, INDEX(Material!$A33:$G51, MATCH(Miljö!F173,Material!$A33:$A51, 0),6)*Miljö!F174, 0) -> 0 | G80: =IF(Miljö!G171=TRUE, INDEX(Material!$A33:$G51, MATCH(Miljö!G173,Material!$A33:$A51, 0),6)*Miljö!G174, 0) -> 0 | H80: =IF(Miljö!H171=TRUE, INDEX(Material!$A33:$G51, MATCH(Miljö!H173,Material!$A33:$A51, 0),6)*Miljö!H174, 0) -> 0 | I80: =IF(Miljö!I171=TRUE, INDEX(Material!$A33:$G51, MATCH(Miljö!I173,Material!$A33:$A51, 0),6)*Miljö!I174, 0) -> 0 | J80: =IF(Miljö!J171=TRUE, INDEX(Material!$A33:$G51, MATCH(Miljö!J173,Material!$A33:$A51, 0),6)*Miljö!J174, 0) -> 0 | K80: =IF(Miljö!K171=TRUE, INDEX(Material!$A33:$G51, MATCH(Miljö!K173,Material!$A33:$A51, 0),6)*Miljö!K174, 0) -> 0 | L80: =IF(Miljö!L171=TRUE, INDEX(Material!$A33:$G51, MATCH(Miljö!L173,Material!$A33:$A51, 0),6)*Miljö!L174, 0) -> 0
A81: Miljöpåverkan avfallshantering, fönster | B81: kg CO2-eq | C81: =IF(Miljö!C181=TRUE, INDEX(Material!$A15:$G18, MATCH(Miljö!C183,Material!$A15:$A18, 0),6)*Miljö!C184, 0) -> 0 | D81: =IF(Miljö!D181=TRUE, INDEX(Material!$A15:$G18, MATCH(Miljö!D183,Material!$A15:$A18, 0),6)*Miljö!D184, 0) -> 0 | E81: =IF(Miljö!E181=TRUE, INDEX(Material!$A15:$G18, MATCH(Miljö!E183,Material!$A15:$A18, 0),6)*Miljö!E184, 0) -> 0 | F81: =IF(Miljö!F181=TRUE, INDEX(Material!$A15:$G18, MATCH(Miljö!F183,Material!$A15:$A18, 0),6)*Miljö!F184, 0) -> 0 | G81: =IF(Miljö!G181=TRUE, INDEX(Material!$A15:$G18, MATCH(Miljö!G183,Material!$A15:$A18, 0),6)*Miljö!G184, 0) -> 0 | H81: =IF(Miljö!H181=TRUE, INDEX(Material!$A15:$G18, MATCH(Miljö!H183,Material!$A15:$A18, 0),6)*Miljö!H184, 0) -> 0 | I81: =IF(Miljö!I181=TRUE, INDEX(Material!$A15:$G18, MATCH(Miljö!I183,Material!$A15:$A18, 0),6)*Miljö!I184, 0) -> 0 | J81: =IF(Miljö!J181=TRUE, INDEX(Material!$A15:$G18, MATCH(Miljö!J183,Material!$A15:$A18, 0),6)*Miljö!J184, 0) -> 0 | K81: =IF(Miljö!K181=TRUE, INDEX(Material!$A15:$G18, MATCH(Miljö!K183,Material!$A15:$A18, 0),6)*Miljö!K184, 0) -> 0 | L81: =IF(Miljö!L181=TRUE, INDEX(Material!$A15:$G18, MATCH(Miljö!L183,Material!$A15:$A18, 0),6)*Miljö!L184, 0) -> 0
A82: Miljöpåverkan avfallshantering, dörrar | B82: kg CO2-eq | C82: =IF(Miljö!C191=TRUE, INDEX(Material!$A24:$G27, MATCH(Miljö!C193,Material!$A15:$A18, 0),6)*Miljö!C194, 0) -> 0 | D82: =IF(Miljö!D191=TRUE, INDEX(Material!$A24:$G27, MATCH(Miljö!D193,Material!$A15:$A18, 0),6)*Miljö!D194, 0) -> 0 | E82: =IF(Miljö!E191=TRUE, INDEX(Material!$A24:$G27, MATCH(Miljö!E193,Material!$A15:$A18, 0),6)*Miljö!E194, 0) -> 0 | F82: =IF(Miljö!F191=TRUE, INDEX(Material!$A24:$G27, MATCH(Miljö!F193,Material!$A15:$A18, 0),6)*Miljö!F194, 0) -> 0 | G82: =IF(Miljö!G191=TRUE, INDEX(Material!$A24:$G27, MATCH(Miljö!G193,Material!$A15:$A18, 0),6)*Miljö!G194, 0) -> 0 | H82: =IF(Miljö!H191=TRUE, INDEX(Material!$A24:$G27, MATCH(Miljö!H193,Material!$A15:$A18, 0),6)*Miljö!H194, 0) -> 0 | I82: =IF(Miljö!I191=TRUE, INDEX(Material!$A24:$G27, MATCH(Miljö!I193,Material!$A15:$A18, 0),6)*Miljö!I194, 0) -> 0 | J82: =IF(Miljö!J191=TRUE, INDEX(Material!$A24:$G27, MATCH(Miljö!J193,Material!$A15:$A18, 0),6)*Miljö!J194, 0) -> 0 | K82: =IF(Miljö!K191=TRUE, INDEX(Material!$A24:$G27, MATCH(Miljö!K193,Material!$A15:$A18, 0),6)*Miljö!K194, 0) -> 0 | L82: =IF(Miljö!L191=TRUE, INDEX(Material!$A24:$G27, MATCH(Miljö!L193,Material!$A15:$A18, 0),6)*Miljö!L194, 0) -> 0
A83: Miljöpåverkan avfallshantering, byte uppvärmningsform | B83: kg CO2-eq | C83: =IF(Miljö!C98=TRUE,INDEX(Uppvärmning!$A$66:$M$72, MATCH(Miljö!C94,Uppvärmning!$A$66:$A$72, 0),4), 0) -> 0 | D83: =IF(Miljö!D98=TRUE,INDEX(Uppvärmning!$A$66:$M$72, MATCH(Miljö!D94,Uppvärmning!$A$66:$A$72, 0),5), 0) -> 0 | E83: =IF(Miljö!E98=TRUE,INDEX(Uppvärmning!$A$66:$M$72, MATCH(Miljö!E94,Uppvärmning!$A$66:$A$72, 0),6), 0) -> 0 | F83: =IF(Miljö!F98=TRUE,INDEX(Uppvärmning!$A$66:$M$72, MATCH(Miljö!F94,Uppvärmning!$A$66:$A$72, 0),7), 0) -> 0 | G83: =IF(Miljö!G98=TRUE,INDEX(Uppvärmning!$A$66:$M$72, MATCH(Miljö!G94,Uppvärmning!$A$66:$A$72, 0),8), 0) -> 0 | H83: =IF(Miljö!H98=TRUE,INDEX(Uppvärmning!$A$66:$M$72, MATCH(Miljö!H94,Uppvärmning!$A$66:$A$72, 0),9), 0) -> 0 | I83: =IF(Miljö!I98=TRUE,INDEX(Uppvärmning!$A$66:$M$72, MATCH(Miljö!I94,Uppvärmning!$A$66:$A$72, 0),10), 0) -> 0 | J83: =IF(Miljö!J98=TRUE,INDEX(Uppvärmning!$A$66:$M$72, MATCH(Miljö!J94,Uppvärmning!$A$66:$A$72, 0),11), 0) -> 0 | K83: =IF(Miljö!K98=TRUE,INDEX(Uppvärmning!$A$66:$M$72, MATCH(Miljö!K94,Uppvärmning!$A$66:$A$72, 0),12), 0) -> 0 | L83: =IF(Miljö!L98=TRUE,INDEX(Uppvärmning!$A$66:$M$72, MATCH(Miljö!L94,Uppvärmning!$A$66:$A$72, 0),13), 0) -> 0 | M83: Avfallshantering av kringutrustning (t.ex. borrhål och oljetank) ej inkluderad
A84: Miljöpåverkan avfallshantering, cirkulationspump | B84: kg CO2-eq | C84: =IF(Miljö!C111=TRUE,Miljö!C$113*Material!$F$138, 0) -> 0 | D84: =IF(Miljö!D111=TRUE,Miljö!D$113*Material!$F$138, 0) -> 0 | E84: =IF(Miljö!E111=TRUE,Miljö!E$113*Material!$F$138, 0) -> 0 | F84: =IF(Miljö!F111=TRUE,Miljö!F$113*Material!$F$138, 0) -> 0 | G84: =IF(Miljö!G111=TRUE,Miljö!G$113*Material!$F$138, 0) -> 0 | H84: =IF(Miljö!H111=TRUE,Miljö!H$113*Material!$F$138, 0) -> 0 | I84: =IF(Miljö!I111=TRUE,Miljö!I$113*Material!$F$138, 0) -> 0 | J84: =IF(Miljö!J111=TRUE,Miljö!J$113*Material!$F$138, 0) -> 0 | K84: =IF(Miljö!K111=TRUE,Miljö!K$113*Material!$F$138, 0) -> 0 | L84: =IF(Miljö!L111=TRUE,Miljö!L$113*Material!$F$138, 0) -> 0
A85: Miljöpåverkan avfallshantering, ventilationskanaler | B85: kg CO2-eq | C85: =IF(Miljö!C365=TRUE, INDEX(Material!$A110:$G113, MATCH(Miljö!C367,Material!$A110:$A113, 0),6)*Miljö!C368,0) -> 0 | D85: =IF(Miljö!D365=TRUE, INDEX(Material!$A110:$G113, MATCH(Miljö!D367,Material!$A110:$A113, 0),6)*Miljö!D368,0) -> 0 | E85: =IF(Miljö!E365=TRUE, INDEX(Material!$A110:$G113, MATCH(Miljö!E367,Material!$A110:$A113, 0),6)*Miljö!E368,0) -> 0 | F85: =IF(Miljö!F365=TRUE, INDEX(Material!$A110:$G113, MATCH(Miljö!F367,Material!$A110:$A113, 0),6)*Miljö!F368,0) -> 0 | G85: =IF(Miljö!G365=TRUE, INDEX(Material!$A110:$G113, MATCH(Miljö!G367,Material!$A110:$A113, 0),6)*Miljö!G368,0) -> 0 | H85: =IF(Miljö!H365=TRUE, INDEX(Material!$A110:$G113, MATCH(Miljö!H367,Material!$A110:$A113, 0),6)*Miljö!H368,0) -> 0 | I85: =IF(Miljö!I365=TRUE, INDEX(Material!$A110:$G113, MATCH(Miljö!I367,Material!$A110:$A113, 0),6)*Miljö!I368,0) -> 0 | J85: =IF(Miljö!J365=TRUE, INDEX(Material!$A110:$G113, MATCH(Miljö!J367,Material!$A110:$A113, 0),6)*Miljö!J368,0) -> 0 | K85: =IF(Miljö!K365=TRUE, INDEX(Material!$A110:$G113, MATCH(Miljö!K367,Material!$A110:$A113, 0),6)*Miljö!K368,0) -> 0 | L85: =IF(Miljö!L365=TRUE, INDEX(Material!$A110:$G113, MATCH(Miljö!L367,Material!$A110:$A113, 0),6)*Miljö!L368,0) -> 0
A86: Miljöpåverkan avfallshantering, luftflödesaggregat | B86: kg CO2-eq | C86: =IF(Miljö!C120=TRUE,INDEX(Material!$A119:$G122, MATCH(Miljö!C122,Material!$A119:$A122, 0),6)*Miljö!C123,0) -> 0 | D86: =IF(Miljö!D120=TRUE,INDEX(Material!$A119:$G122, MATCH(Miljö!D122,Material!$A119:$A122, 0),6)*Miljö!D123,0) -> 0 | E86: =IF(Miljö!E120=TRUE,INDEX(Material!$A119:$G122, MATCH(Miljö!E122,Material!$A119:$A122, 0),6)*Miljö!E123,0) -> 0 | F86: =IF(Miljö!F120=TRUE,INDEX(Material!$A119:$G122, MATCH(Miljö!F122,Material!$A119:$A122, 0),6)*Miljö!F123,0) -> 0 | G86: =IF(Miljö!G120=TRUE,INDEX(Material!$A119:$G122, MATCH(Miljö!G122,Material!$A119:$A122, 0),6)*Miljö!G123,0) -> 0 | H86: =IF(Miljö!H120=TRUE,INDEX(Material!$A119:$G122, MATCH(Miljö!H122,Material!$A119:$A122, 0),6)*Miljö!H123,0) -> 0 | I86: =IF(Miljö!I120=TRUE,INDEX(Material!$A119:$G122, MATCH(Miljö!I122,Material!$A119:$A122, 0),6)*Miljö!I123,0) -> 0 | J86: =IF(Miljö!J120=TRUE,INDEX(Material!$A119:$G122, MATCH(Miljö!J122,Material!$A119:$A122, 0),6)*Miljö!J123,0) -> 0 | K86: =IF(Miljö!K120=TRUE,INDEX(Material!$A119:$G122, MATCH(Miljö!K122,Material!$A119:$A122, 0),6)*Miljö!K123,0) -> 0 | L86: =IF(Miljö!L120=TRUE,INDEX(Material!$A119:$G122, MATCH(Miljö!L122,Material!$A119:$A122, 0),6)*Miljö!L123,0) -> 0
A87: Miljöpåverkan avfallshantering, don och dämpare (vent) | B87: kg CO2-eq | C87: =IF(Miljö!C375=TRUE,Material!$F$128*Miljö!C377,0) -> 0 | D87: =IF(Miljö!D375=TRUE,Material!$F$128*Miljö!D377,0) -> 0 | E87: =IF(Miljö!E375=TRUE,Material!$F$128*Miljö!E377,0) -> 0 | F87: =IF(Miljö!F375=TRUE,Material!$F$128*Miljö!F377,0) -> 0 | G87: =IF(Miljö!G375=TRUE,Material!$F$128*Miljö!G377,0) -> 0 | H87: =IF(Miljö!H375=TRUE,Material!$F$128*Miljö!H377,0) -> 0 | I87: =IF(Miljö!I375=TRUE,Material!$F$128*Miljö!I377,0) -> 0 | J87: =IF(Miljö!J375=TRUE,Material!$F$128*Miljö!J377,0) -> 0 | K87: =IF(Miljö!K375=TRUE,Material!$F$128*Miljö!K377,0) -> 0 | L87: =IF(Miljö!L375=TRUE,Material!$F$128*Miljö!L377,0) -> 0
A88: Trä konstruktionsvirke | B88: kg CO2-eq | C88: =IF(Miljö!C$204=TRUE,Material!$F$57*Miljö!C$206,0) -> 0 | D88: =IF(Miljö!D$204=TRUE,Material!$F$57*Miljö!D$206,0) -> 0 | E88: =IF(Miljö!E$204=TRUE,Material!$F$57*Miljö!E$206,0) -> 0 | F88: =IF(Miljö!F$204=TRUE,Material!$F$57*Miljö!F$206,0) -> 0 | G88: =IF(Miljö!G$204=TRUE,Material!$F$57*Miljö!G$206,0) -> 0 | H88: =IF(Miljö!H$204=TRUE,Material!$F$57*Miljö!H$206,0) -> 0 | I88: =IF(Miljö!I$204=TRUE,Material!$F$57*Miljö!I$206,0) -> 0 | J88: =IF(Miljö!J$204=TRUE,Material!$F$57*Miljö!J$206,0) -> 0 | K88: =IF(Miljö!K$204=TRUE,Material!$F$57*Miljö!K$206,0) -> 0 | L88: =IF(Miljö!L$204=TRUE,Material!$F$57*Miljö!L$206,0) -> 0
A89: Trä målad träfasad | B89: kg CO2-eq | C89: =IF(Miljö!C$213=TRUE,Material!$F$58*Miljö!C$215,0) -> 0 | D89: =IF(Miljö!D$213=TRUE,Material!$F$58*Miljö!D$215,0) -> 0 | E89: =IF(Miljö!E$213=TRUE,Material!$F$58*Miljö!E$215,0) -> 0 | F89: =IF(Miljö!F$213=TRUE,Material!$F$58*Miljö!F$215,0) -> 0 | G89: =IF(Miljö!G$213=TRUE,Material!$F$58*Miljö!G$215,0) -> 0 | H89: =IF(Miljö!H$213=TRUE,Material!$F$58*Miljö!H$215,0) -> 0 | I89: =IF(Miljö!I$213=TRUE,Material!$F$58*Miljö!I$215,0) -> 0 | J89: =IF(Miljö!J$213=TRUE,Material!$F$58*Miljö!J$215,0) -> 0 | K89: =IF(Miljö!K$213=TRUE,Material!$F$58*Miljö!K$215,0) -> 0 | L89: =IF(Miljö!L$213=TRUE,Material!$F$58*Miljö!L$215,0) -> 0
A90: Trä invändig träpanel | B90: kg CO2-eq | C90: =IF(Miljö!C$222=TRUE,Material!$F$59*Miljö!C$224,0) -> 0 | D90: =IF(Miljö!D$222=TRUE,Material!$F$59*Miljö!D$224,0) -> 0 | E90: =IF(Miljö!E$222=TRUE,Material!$F$59*Miljö!E$224,0) -> 0 | F90: =IF(Miljö!F$222=TRUE,Material!$F$59*Miljö!F$224,0) -> 0 | G90: =IF(Miljö!G$222=TRUE,Material!$F$59*Miljö!G$224,0) -> 0 | H90: =IF(Miljö!H$222=TRUE,Material!$F$59*Miljö!H$224,0) -> 0 | I90: =IF(Miljö!I$222=TRUE,Material!$F$59*Miljö!I$224,0) -> 0 | J90: =IF(Miljö!J$222=TRUE,Material!$F$59*Miljö!J$224,0) -> 0 | K90: =IF(Miljö!K$222=TRUE,Material!$F$59*Miljö!K$224,0) -> 0 | L90: =IF(Miljö!L$222=TRUE,Material!$F$59*Miljö!L$224,0) -> 0
A91: Betong bjälklag | B91: kg CO2-eq | C91: =IF(Miljö!C$231=TRUE,INDEX(Material!$A$65:$G$67,MATCH(Miljö!C$233,Material!$A$65:$A$67,0),6)*Miljö!C$234,0) -> 0 | D91: =IF(Miljö!D$231=TRUE,INDEX(Material!$A$65:$G$67,MATCH(Miljö!D$233,Material!$A$65:$A$67,0),6)*Miljö!D$234,0) -> 0 | E91: =IF(Miljö!E$231=TRUE,INDEX(Material!$A$65:$G$67,MATCH(Miljö!E$233,Material!$A$65:$A$67,0),6)*Miljö!E$234,0) -> 0 | F91: =IF(Miljö!F$231=TRUE,INDEX(Material!$A$65:$G$67,MATCH(Miljö!F$233,Material!$A$65:$A$67,0),6)*Miljö!F$234,0) -> 0 | G91: =IF(Miljö!G$231=TRUE,INDEX(Material!$A$65:$G$67,MATCH(Miljö!G$233,Material!$A$65:$A$67,0),6)*Miljö!G$234,0) -> 0 | H91: =IF(Miljö!H$231=TRUE,INDEX(Material!$A$65:$G$67,MATCH(Miljö!H$233,Material!$A$65:$A$67,0),6)*Miljö!H$234,0) -> 0 | I91: =IF(Miljö!I$231=TRUE,INDEX(Material!$A$65:$G$67,MATCH(Miljö!I$233,Material!$A$65:$A$67,0),6)*Miljö!I$234,0) -> 0 | J91: =IF(Miljö!J$231=TRUE,INDEX(Material!$A$65:$G$67,MATCH(Miljö!J$233,Material!$A$65:$A$67,0),6)*Miljö!J$234,0) -> 0 | K91: =IF(Miljö!K$231=TRUE,INDEX(Material!$A$65:$G$67,MATCH(Miljö!K$233,Material!$A$65:$A$67,0),6)*Miljö!K$234,0) -> 0 | L91: =IF(Miljö!L$231=TRUE,INDEX(Material!$A$65:$G$67,MATCH(Miljö!L$233,Material!$A$65:$A$67,0),6)*Miljö!L$234,0) -> 0
A92: Betong bärande ytterväggar | B92: kg CO2-eq | C92: =IF(Miljö!C$241=TRUE,INDEX(Material!$A$74:$G$75,MATCH(Miljö!C$243,Material!$A$74:$A$75,0),6)*Miljö!C$244,0) -> 0 | D92: =IF(Miljö!D$241=TRUE,INDEX(Material!$A$74:$G$75,MATCH(Miljö!D$243,Material!$A$74:$A$75,0),6)*Miljö!D$244,0) -> 0 | E92: =IF(Miljö!E$241=TRUE,INDEX(Material!$A$74:$G$75,MATCH(Miljö!E$243,Material!$A$74:$A$75,0),6)*Miljö!E$244,0) -> 0 | F92: =IF(Miljö!F$241=TRUE,INDEX(Material!$A$74:$G$75,MATCH(Miljö!F$243,Material!$A$74:$A$75,0),6)*Miljö!F$244,0) -> 0 | G92: =IF(Miljö!G$241=TRUE,INDEX(Material!$A$74:$G$75,MATCH(Miljö!G$243,Material!$A$74:$A$75,0),6)*Miljö!G$244,0) -> 0 | H92: =IF(Miljö!H$241=TRUE,INDEX(Material!$A$74:$G$75,MATCH(Miljö!H$243,Material!$A$74:$A$75,0),6)*Miljö!H$244,0) -> 0 | I92: =IF(Miljö!I$241=TRUE,INDEX(Material!$A$74:$G$75,MATCH(Miljö!I$243,Material!$A$74:$A$75,0),6)*Miljö!I$244,0) -> 0 | J92: =IF(Miljö!J$241=TRUE,INDEX(Material!$A$74:$G$75,MATCH(Miljö!J$243,Material!$A$74:$A$75,0),6)*Miljö!J$244,0) -> 0 | K92: =IF(Miljö!K$241=TRUE,INDEX(Material!$A$74:$G$75,MATCH(Miljö!K$243,Material!$A$74:$A$75,0),6)*Miljö!K$244,0) -> 0 | L92: =IF(Miljö!L$241=TRUE,INDEX(Material!$A$74:$G$75,MATCH(Miljö!L$243,Material!$A$74:$A$75,0),6)*Miljö!L$244,0) -> 0
A93: Betong icke-bärande ytterväggar | B93: kg CO2-eq | C93: =IF(Miljö!C$251=TRUE,Material!$F$77*Miljö!C$253,0) -> 0 | D93: =IF(Miljö!D$251=TRUE,Material!$F$77*Miljö!D$253,0) -> 0 | E93: =IF(Miljö!E$251=TRUE,Material!$F$77*Miljö!E$253,0) -> 0 | F93: =IF(Miljö!F$251=TRUE,Material!$F$77*Miljö!F$253,0) -> 0 | G93: =IF(Miljö!G$251=TRUE,Material!$F$77*Miljö!G$253,0) -> 0 | H93: =IF(Miljö!H$251=TRUE,Material!$F$77*Miljö!H$253,0) -> 0 | I93: =IF(Miljö!I$251=TRUE,Material!$F$77*Miljö!I$253,0) -> 0 | J93: =IF(Miljö!J$251=TRUE,Material!$F$77*Miljö!J$253,0) -> 0 | K93: =IF(Miljö!K$251=TRUE,Material!$F$77*Miljö!K$253,0) -> 0 | L93: =IF(Miljö!L$251=TRUE,Material!$F$77*Miljö!L$253,0) -> 0
A94: Betong innerväggar | B94: kg CO2-eq | C94: =IF(Miljö!C$260=TRUE,INDEX(Material!$A$84:$G$85,MATCH(Miljö!C$262,Material!$A$84:$A$85,0),6)*Miljö!C$263,0) -> 0 | D94: =IF(Miljö!D$260=TRUE,INDEX(Material!$A$84:$G$85,MATCH(Miljö!D$262,Material!$A$84:$A$85,0),6)*Miljö!D$263,0) -> 0 | E94: =IF(Miljö!E$260=TRUE,INDEX(Material!$A$84:$G$85,MATCH(Miljö!E$262,Material!$A$84:$A$85,0),6)*Miljö!E$263,0) -> 0 | F94: =IF(Miljö!F$260=TRUE,INDEX(Material!$A$84:$G$85,MATCH(Miljö!F$262,Material!$A$84:$A$85,0),6)*Miljö!F$263,0) -> 0 | G94: =IF(Miljö!G$260=TRUE,INDEX(Material!$A$84:$G$85,MATCH(Miljö!G$262,Material!$A$84:$A$85,0),6)*Miljö!G$263,0) -> 0 | H94: =IF(Miljö!H$260=TRUE,INDEX(Material!$A$84:$G$85,MATCH(Miljö!H$262,Material!$A$84:$A$85,0),6)*Miljö!H$263,0) -> 0 | I94: =IF(Miljö!I$260=TRUE,INDEX(Material!$A$84:$G$85,MATCH(Miljö!I$262,Material!$A$84:$A$85,0),6)*Miljö!I$263,0) -> 0 | J94: =IF(Miljö!J$260=TRUE,INDEX(Material!$A$84:$G$85,MATCH(Miljö!J$262,Material!$A$84:$A$85,0),6)*Miljö!J$263,0) -> 0 | K94: =IF(Miljö!K$260=TRUE,INDEX(Material!$A$84:$G$85,MATCH(Miljö!K$262,Material!$A$84:$A$85,0),6)*Miljö!K$263,0) -> 0 | L94: =IF(Miljö!L$260=TRUE,INDEX(Material!$A$84:$G$85,MATCH(Miljö!L$262,Material!$A$84:$A$85,0),6)*Miljö!L$263,0) -> 0
A95: Puts | B95: kg CO2-eq | C95: =IF(Miljö!C$270=TRUE,Material!$F$90*Miljö!C$272,0) -> 0 | D95: =IF(Miljö!D$270=TRUE,Material!$F$90*Miljö!D$272,0) -> 0 | E95: =IF(Miljö!E$270=TRUE,Material!$F$90*Miljö!E$272,0) -> 0 | F95: =IF(Miljö!F$270=TRUE,Material!$F$90*Miljö!F$272,0) -> 0 | G95: =IF(Miljö!G$270=TRUE,Material!$F$90*Miljö!G$272,0) -> 0 | H95: =IF(Miljö!H$270=TRUE,Material!$F$90*Miljö!H$272,0) -> 0 | I95: =IF(Miljö!I$270=TRUE,Material!$F$90*Miljö!I$272,0) -> 0 | J95: =IF(Miljö!J$270=TRUE,Material!$F$90*Miljö!J$272,0) -> 0 | K95: =IF(Miljö!K$270=TRUE,Material!$F$90*Miljö!K$272,0) -> 0 | L95: =IF(Miljö!L$270=TRUE,Material!$F$90*Miljö!L$272,0) -> 0
A96: Gipsskivor | B96: kg CO2-eq | C96: =IF(Miljö!C$279=TRUE,Material!$F$91*Miljö!C$281,0) -> 0 | D96: =IF(Miljö!D$279=TRUE,Material!$F$91*Miljö!D$281,0) -> 0 | E96: =IF(Miljö!E$279=TRUE,Material!$F$91*Miljö!E$281,0) -> 0 | F96: =IF(Miljö!F$279=TRUE,Material!$F$91*Miljö!F$281,0) -> 0 | G96: =IF(Miljö!G$279=TRUE,Material!$F$91*Miljö!G$281,0) -> 0 | H96: =IF(Miljö!H$279=TRUE,Material!$F$91*Miljö!H$281,0) -> 0 | I96: =IF(Miljö!I$279=TRUE,Material!$F$91*Miljö!I$281,0) -> 0 | J96: =IF(Miljö!J$279=TRUE,Material!$F$91*Miljö!J$281,0) -> 0 | K96: =IF(Miljö!K$279=TRUE,Material!$F$91*Miljö!K$281,0) -> 0 | L96: =IF(Miljö!L$279=TRUE,Material!$F$91*Miljö!L$281,0) -> 0
A97: Takbeläggning | B97: kg CO2-eq | C97: =IF(Miljö!C$288=TRUE,INDEX(Material!$A$98:$G$102,MATCH(Miljö!C$290,Material!$A$98:$A$102,0),6)*Miljö!C$291,0) -> 0 | D97: =IF(Miljö!D$288=TRUE,INDEX(Material!$A$98:$G$102,MATCH(Miljö!D$290,Material!$A$98:$A$102,0),6)*Miljö!D$291,0) -> 0 | E97: =IF(Miljö!E$288=TRUE,INDEX(Material!$A$98:$G$102,MATCH(Miljö!E$290,Material!$A$98:$A$102,0),6)*Miljö!E$291,0) -> 0 | F97: =IF(Miljö!F$288=TRUE,INDEX(Material!$A$98:$G$102,MATCH(Miljö!F$290,Material!$A$98:$A$102,0),6)*Miljö!F$291,0) -> 0 | G97: =IF(Miljö!G$288=TRUE,INDEX(Material!$A$98:$G$102,MATCH(Miljö!G$290,Material!$A$98:$A$102,0),6)*Miljö!G$291,0) -> 0 | H97: =IF(Miljö!H$288=TRUE,INDEX(Material!$A$98:$G$102,MATCH(Miljö!H$290,Material!$A$98:$A$102,0),6)*Miljö!H$291,0) -> 0 | I97: =IF(Miljö!I$288=TRUE,INDEX(Material!$A$98:$G$102,MATCH(Miljö!I$290,Material!$A$98:$A$102,0),6)*Miljö!I$291,0) -> 0 | J97: =IF(Miljö!J$288=TRUE,INDEX(Material!$A$98:$G$102,MATCH(Miljö!J$290,Material!$A$98:$A$102,0),6)*Miljö!J$291,0) -> 0 | K97: =IF(Miljö!K$288=TRUE,INDEX(Material!$A$98:$G$102,MATCH(Miljö!K$290,Material!$A$98:$A$102,0),6)*Miljö!K$291,0) -> 0 | L97: =IF(Miljö!L$288=TRUE,INDEX(Material!$A$98:$G$102,MATCH(Miljö!L$290,Material!$A$98:$A$102,0),6)*Miljö!L$291,0) -> 0
A98: Miljöpåverkan avfallshantering, radiatorer | B98: kg CO2-eq | C98: =IF(Miljö!C301=TRUE, INDEX(Material!$A$146:$G$149, MATCH(Miljö!C303,Material!$A$146:$A$149, 0),6)*Miljö!C304, 0) -> 0 | D98: =IF(Miljö!D301=TRUE, INDEX(Material!$A$146:$G$149, MATCH(Miljö!D303,Material!$A$146:$A$149, 0),6)*Miljö!D304, 0) -> 0 | E98: =IF(Miljö!E301=TRUE, INDEX(Material!$A$146:$G$149, MATCH(Miljö!E303,Material!$A$146:$A$149, 0),6)*Miljö!E304, 0) -> 0 | F98: =IF(Miljö!F301=TRUE, INDEX(Material!$A$146:$G$149, MATCH(Miljö!F303,Material!$A$146:$A$149, 0),6)*Miljö!F304, 0) -> 0 | G98: =IF(Miljö!G301=TRUE, INDEX(Material!$A$146:$G$149, MATCH(Miljö!G303,Material!$A$146:$A$149, 0),6)*Miljö!G304, 0) -> 0 | H98: =IF(Miljö!H301=TRUE, INDEX(Material!$A$146:$G$149, MATCH(Miljö!H303,Material!$A$146:$A$149, 0),6)*Miljö!H304, 0) -> 0 | I98: =IF(Miljö!I301=TRUE, INDEX(Material!$A$146:$G$149, MATCH(Miljö!I303,Material!$A$146:$A$149, 0),6)*Miljö!I304, 0) -> 0 | J98: =IF(Miljö!J301=TRUE, INDEX(Material!$A$146:$G$149, MATCH(Miljö!J303,Material!$A$146:$A$149, 0),6)*Miljö!J304, 0) -> 0 | K98: =IF(Miljö!K301=TRUE, INDEX(Material!$A$146:$G$149, MATCH(Miljö!K303,Material!$A$146:$A$149, 0),6)*Miljö!K304, 0) -> 0 | L98: =IF(Miljö!L301=TRUE, INDEX(Material!$A$146:$G$149, MATCH(Miljö!L303,Material!$A$146:$A$149, 0),6)*Miljö!L304, 0) -> 0
A99: Miljöpåverkan avfallshantering, kopparrör | B99: kg CO2-eq | C99: =IF(Miljö!C311=TRUE,Miljö!C313*Material!$F$155,0) -> 0 | D99: =IF(Miljö!D311=TRUE,Miljö!D313*Material!$F$155,0) -> 0 | E99: =IF(Miljö!E311=TRUE,Miljö!E313*Material!$F$155,0) -> 0 | F99: =IF(Miljö!F311=TRUE,Miljö!F313*Material!$F$155,0) -> 0 | G99: =IF(Miljö!G311=TRUE,Miljö!G313*Material!$F$155,0) -> 0 | H99: =IF(Miljö!H311=TRUE,Miljö!H313*Material!$F$155,0) -> 0 | I99: =IF(Miljö!I311=TRUE,Miljö!I313*Material!$F$155,0) -> 0 | J99: =IF(Miljö!J311=TRUE,Miljö!J313*Material!$F$155,0) -> 0 | K99: =IF(Miljö!K311=TRUE,Miljö!K313*Material!$F$155,0) -> 0 | L99: =IF(Miljö!L311=TRUE,Miljö!L313*Material!$F$155,0) -> 0
A100: Miljöpåverkan avfallshantering, PEX-rör | B100: kg CO2-eq | C100: =IF(Miljö!C320=TRUE,Miljö!C322*Material!$F$156,0) -> 0 | D100: =IF(Miljö!D320=TRUE,Miljö!D322*Material!$F$156,0) -> 0 | E100: =IF(Miljö!E320=TRUE,Miljö!E322*Material!$F$156,0) -> 0 | F100: =IF(Miljö!F320=TRUE,Miljö!F322*Material!$F$156,0) -> 0 | G100: =IF(Miljö!G320=TRUE,Miljö!G322*Material!$F$156,0) -> 0 | H100: =IF(Miljö!H320=TRUE,Miljö!H322*Material!$F$156,0) -> 0 | I100: =IF(Miljö!I320=TRUE,Miljö!I322*Material!$F$156,0) -> 0 | J100: =IF(Miljö!J320=TRUE,Miljö!J322*Material!$F$156,0) -> 0 | K100: =IF(Miljö!K320=TRUE,Miljö!K322*Material!$F$156,0) -> 0 | L100: =IF(Miljö!L320=TRUE,Miljö!L322*Material!$F$156,0) -> 0
A101: Miljöpåverkan avfallshantering, PP-rör | B101: kg CO2-eq | C101: =IF(Miljö!C329=TRUE,Miljö!C331*Material!$F$157,0) -> 0 | D101: =IF(Miljö!D329=TRUE,Miljö!D331*Material!$F$157,0) -> 0 | E101: =IF(Miljö!E329=TRUE,Miljö!E331*Material!$F$157,0) -> 0 | F101: =IF(Miljö!F329=TRUE,Miljö!F331*Material!$F$157,0) -> 0 | G101: =IF(Miljö!G329=TRUE,Miljö!G331*Material!$F$157,0) -> 0 | H101: =IF(Miljö!H329=TRUE,Miljö!H331*Material!$F$157,0) -> 0 | I101: =IF(Miljö!I329=TRUE,Miljö!I331*Material!$F$157,0) -> 0 | J101: =IF(Miljö!J329=TRUE,Miljö!J331*Material!$F$157,0) -> 0 | K101: =IF(Miljö!K329=TRUE,Miljö!K331*Material!$F$157,0) -> 0 | L101: =IF(Miljö!L329=TRUE,Miljö!L331*Material!$F$157,0) -> 0
A102: Miljöpåverkan avfallshantering, järnrör | B102: kg CO2-eq | C102: =IF(Miljö!C338=TRUE,Miljö!C340*Material!$F$158,0) -> 0 | D102: =IF(Miljö!D338=TRUE,Miljö!D340*Material!$F$158,0) -> 0 | E102: =IF(Miljö!E338=TRUE,Miljö!E340*Material!$F$158,0) -> 0 | F102: =IF(Miljö!F338=TRUE,Miljö!F340*Material!$F$158,0) -> 0 | G102: =IF(Miljö!G338=TRUE,Miljö!G340*Material!$F$158,0) -> 0 | H102: =IF(Miljö!H338=TRUE,Miljö!H340*Material!$F$158,0) -> 0 | I102: =IF(Miljö!I338=TRUE,Miljö!I340*Material!$F$158,0) -> 0 | J102: =IF(Miljö!J338=TRUE,Miljö!J340*Material!$F$158,0) -> 0 | K102: =IF(Miljö!K338=TRUE,Miljö!K340*Material!$F$158,0) -> 0 | L102: =IF(Miljö!L338=TRUE,Miljö!L340*Material!$F$158,0) -> 0
A103: Miljöpåverkan avfallshantering, stålrör | B103: kg CO2-eq | C103: =IF(Miljö!C347=TRUE,Miljö!C349*Material!$F$159,0) -> 0 | D103: =IF(Miljö!D347=TRUE,Miljö!D349*Material!$F$159,0) -> 0 | E103: =IF(Miljö!E347=TRUE,Miljö!E349*Material!$F$159,0) -> 0 | F103: =IF(Miljö!F347=TRUE,Miljö!F349*Material!$F$159,0) -> 0 | G103: =IF(Miljö!G347=TRUE,Miljö!G349*Material!$F$159,0) -> 0 | H103: =IF(Miljö!H347=TRUE,Miljö!H349*Material!$F$159,0) -> 0 | I103: =IF(Miljö!I347=TRUE,Miljö!I349*Material!$F$159,0) -> 0 | J103: =IF(Miljö!J347=TRUE,Miljö!J349*Material!$F$159,0) -> 0 | K103: =IF(Miljö!K347=TRUE,Miljö!K349*Material!$F$159,0) -> 0 | L103: =IF(Miljö!L347=TRUE,Miljö!L349*Material!$F$159,0) -> 0
A104: Miljöpåverkan avfallshantering, relining rör | B104: kg CO2-eq | C104: =IF(Miljö!C356=TRUE,Miljö!C358*Material!$F$165,0) -> 0 | D104: =IF(Miljö!D356=TRUE,Miljö!D358*Material!$F$165,0) -> 0 | E104: =IF(Miljö!E356=TRUE,Miljö!E358*Material!$F$165,0) -> 0 | F104: =IF(Miljö!F356=TRUE,Miljö!F358*Material!$F$165,0) -> 0 | G104: =IF(Miljö!G356=TRUE,Miljö!G358*Material!$F$165,0) -> 0 | H104: =IF(Miljö!H356=TRUE,Miljö!H358*Material!$F$165,0) -> 0 | I104: =IF(Miljö!I356=TRUE,Miljö!I358*Material!$F$165,0) -> 0 | J104: =IF(Miljö!J356=TRUE,Miljö!J358*Material!$F$165,0) -> 0 | K104: =IF(Miljö!K356=TRUE,Miljö!K358*Material!$F$165,0) -> 0 | L104: =IF(Miljö!L356=TRUE,Miljö!L358*Material!$F$165,0) -> 0
A105: Miljöpåverkan avfallshantering, elledning | B105: kg CO2-eq | C105: =IF(Miljö!C384=TRUE,Miljö!C386*Material!$F$174,0) -> 0 | D105: =IF(Miljö!D384=TRUE,Miljö!D386*Material!$F$174,0) -> 0 | E105: =IF(Miljö!E384=TRUE,Miljö!E386*Material!$F$174,0) -> 0 | F105: =IF(Miljö!F384=TRUE,Miljö!F386*Material!$F$174,0) -> 0 | G105: =IF(Miljö!G384=TRUE,Miljö!G386*Material!$F$174,0) -> 0 | H105: =IF(Miljö!H384=TRUE,Miljö!H386*Material!$F$174,0) -> 0 | I105: =IF(Miljö!I384=TRUE,Miljö!I386*Material!$F$174,0) -> 0 | J105: =IF(Miljö!J384=TRUE,Miljö!J386*Material!$F$174,0) -> 0 | K105: =IF(Miljö!K384=TRUE,Miljö!K386*Material!$F$174,0) -> 0 | L105: =IF(Miljö!L384=TRUE,Miljö!L386*Material!$F$174,0) -> 0
A106: Miljöpåverkan avfallshantering, Egen elproduktion | B106: kg CO2-eq | C106: 0 | D106: 0 | E106: 0 | F106: 0 | G106: 0 | H106: 0 | I106: 0 | J106: 0 | K106: 0 | L106: 0 | M106: inkl i tillverkningsdata
A107: Total miljöpåverkan avfallshantering | B107: kg CO2-eq | C107: =SUM(C78:C106) -> 0 | D107: =SUM(D78:D106) -> 0 | E107: 0 | F107: 0 | G107: 0 | H107: 0 | I107: 0 | J107: 0 | K107: 0 | L107: =SUM(L78:L106) -> 0
A110: 7.2.4 Total miljöpåverkan under tidsperioden | B110: Negativa värden visar en miljöbesparing jämfört med referensfallet där ingen renovering görs
A111: Total miljöpåverkan, isolering 1 | B111: kg CO2-eq | C111: =C38*C5+C78*C5 -> 0 | D111: 0 | E111: 0 | F111: 0 | G111: 0 | H111: 0 | I111: 0 | J111: 0 | K111: 0 | L111: 0
A112: Total miljöpåverkan, isolering 2 | B112: kg CO2-eq | C112: 0 | D112: 0 | E112: 0 | F112: 0 | G112: 0 | H112: 0 | I112: 0 | J112: 0 | K112: 0 | L112: 0
A113: Total miljöpåverkan, fasadsystem | B113: kg CO2-eq | C113: 0 | D113: 0 | E113: 0 | F113: 0 | G113: 0 | H113: 0 | I113: 0 | J113: 0 | K113: 0 | L113: 0
A114: Total miljöpåverkan, fönster | B114: kg CO2-eq | C114: 0 | D114: 0 | E114: 0 | F114: 0 | G114: 0 | H114: 0 | I114: 0 | J114: 0 | K114: 0 | L114: 0
A115: Total miljöpåverkan, dörrar | B115: kg CO2-eq | C115: 0 | D115: 0 | E115: 0 | F115: 0 | G115: 0 | H115: 0 | I115: 0 | J115: 0 | K115: 0 | L115: 0
A116: Total miljöpåverkan, byte uppvärmningsform (material) | B116: kg CO2-eq | C116: =C43*C10+C83*C10+C44*C11 -> 0 | D116: 0 | E116: 0 | F116: 0 | G116: 0 | H116: 0 | I116: 0 | J116: 0 | K116: 0 | L116: 0
A117: Total miljöpåverkan, cirkulationspump | B117: kg CO2-eq | C117: =C45*C12+C84*C12 -> 0 | D117: 0 | E117: 0 | F117: 0 | G117: 0 | H117: 0 | I117: 0 | J117: 0 | K117: 0 | L117: 0
A118: Total miljöpåverkan, ventilation (material) | B118: kg CO2-eq | C118: =C46*C13+C85*C13 +C47*C14+C86*C14 +C48*C15+C87*C15 -> 0 | D118: 0 | E118: 0 | F118: 0 | G118: 0 | H118: 0 | I118: 0 | J118: 0 | K118: 0 | L118: 0
A119: Trä konstruktionsvirke | B119: kg CO2-eq | C119: =C49*C16+C88*C16 -> 0 | D119: =D49*D16+D88*D16 -> 0 | E119: 0 | F119: 0 | G119: 0 | H119: 0 | I119: 0 | J119: 0 | K119: 0 | L119: 0
A120: Trä målad träfasad | B120: kg CO2-eq | C120: =C50*C17+C89*C17 -> 0 | D120: 0 | E120: 0 | F120: 0 | G120: 0 | H120: 0 | I120: 0 | J120: 0 | K120: 0 | L120: 0
A121: Trä invändig träpanel | B121: kg CO2-eq | C121: 0 | D121: 0 | E121: 0 | F121: 0 | G121: 0 | H121: 0 | I121: 0 | J121: 0 | K121: 0 | L121: 0
A122: Betong bjälklag | B122: kg CO2-eq | C122: 0 | D122: 0 | E122: 0 | F122: 0 | G122: 0 | H122: 0 | I122: 0 | J122: 0 | K122: 0 | L122: 0
A123: Betong bärande ytterväggar | B123: kg CO2-eq | C123: 0 | D123: 0 | E123: 0 | F123: 0 | G123: 0 | H123: 0 | I123: 0 | J123: 0 | K123: 0 | L123: 0
A124: Betong icke-bärande ytterväggar | B124: kg CO2-eq | C124: 0 | D124: 0 | E124: 0 | F124: 0 | G124: 0 | H124: 0 | I124: 0 | J124: 0 | K124: 0 | L124: 0
A125: Betong innerväggar | B125: kg CO2-eq | C125: 0 | D125: 0 | E125: 0 | F125: 0 | G125: 0 | H125: 0 | I125: 0 | J125: 0 | K125: 0 | L125: 0
A126: Puts | B126: kg CO2-eq | C126: 0 | D126: 0 | E126: 0 | F126: 0 | G126: 0 | H126: 0 | I126: 0 | J126: 0 | K126: 0 | L126: 0
A127: Gipsskivor | B127: kg CO2-eq | C127: 0 | D127: 0 | E127: 0 | F127: 0 | G127: 0 | H127: 0 | I127: 0 | J127: 0 | K127: 0 | L127: 0
A128: Takbeläggning | B128: kg CO2-eq | C128: =C58*C25+C97*C25 -> 0 | D128: 0 | E128: 0 | F128: 0 | G128: 0 | H128: 0 | I128: 0 | J128: 0 | K128: 0 | L128: 0
A129: Total miljöpåverkan, radiatorer | B129: kg CO2-eq | C129: =C59*C26+C98*C26 -> 0 | D129: 0 | E129: 0 | F129: 0 | G129: 0 | H129: 0 | I129: 0 | J129: 0 | K129: 0 | L129: 0
A130: Total miljöpåverkan, kopparrör | B130: kg CO2-eq | C130: 0 | D130: 0 | E130: 0 | F130: 0 | G130: 0 | H130: 0 | I130: 0 | J130: 0 | K130: 0 | L130: 0
A131: Total miljöpåverkan, PEX-rör | B131: kg CO2-eq | C131: 0 | D131: 0 | E131: 0 | F131: 0 | G131: 0 | H131: 0 | I131: 0 | J131: 0 | K131: 0 | L131: 0
A132: Total miljöpåverkan, PP-rör | B132: kg CO2-eq | C132: 0 | D132: 0 | E132: 0 | F132: 0 | G132: 0 | H132: 0 | I132: 0 | J132: 0 | K132: 0 | L132: 0
A133: Total miljöpåverkan, järnrör | B133: kg CO2-eq | C133: 0 | D133: 0 | E133: 0 | F133: 0 | G133: 0 | H133: 0 | I133: 0 | J133: 0 | K133: 0 | L133: 0
A134: Total miljöpåverkan, stålrör | B134: kg CO2-eq | C134: 0 | D134: 0 | E134: 0 | F134: 0 | G134: 0 | H134: 0 | I134: 0 | J134: 0 | K134: 0 | L134: 0
A135: Total miljöpåverkan, relining rör | B135: kg CO2-eq | C135: 0 | D135: 0 | E135: 0 | F135: 0 | G135: 0 | H135: 0 | I135: 0 | J135: 0 | K135: 0 | L135: 0
A136: Total miljöpåverkan, elledning | B136: kg CO2-eq | C136: 0 | D136: 0 | E136: 0 | F136: 0 | G136: 0 | H136: 0 | I136: 0 | J136: 0 | K136: 0 | L136: 0
A137: Total miljöpåverkan, egen elproduktion | B137: kg CO2-eq | C137: =C67*C34+C106*C34 -> 0 | D137: 0 | E137: 0 | F137: 0 | G137: 0 | H137: 0 | I137: 0 | J137: 0 | K137: 0 | L137: 0
A138: Total miljöpåverkan, drift (värme, kyla, egen elprod) | B138: kg CO2-eq | C138: =C75*Miljö!$C$16 ->  | D138: =D75*Miljö!$C$16 -> 0 | E138: =E75*Miljö!$C$16 -> 0 | F138: =F75*Miljö!$C$16 -> 0 | G138: =G75*Miljö!$C$16 -> 0 | H138: =H75*Miljö!$C$16 -> 0 | I138: =I75*Miljö!$C$16 -> 0 | J138: =J75*Miljö!$C$16 -> 0 | K138: =K75*Miljö!$C$16 -> 0 | L138: =L75*Miljö!$C$16 -> 0
A139: Total miljöpåverkan av renoveringen | B139: kg CO2-eq | C139: =SUM(C111:C138)+Miljö!C396 ->  | D139: =SUM(D111:D138)+Miljö!D396 -> 0 | E139: =SUM(E111:E138)+Miljö!E396 -> 0 | F139: =SUM(F111:F138)+Miljö!F396 -> 0 | G139: =SUM(G111:G138)+Miljö!G396 -> 0 | H139: =SUM(H111:H138)+Miljö!H396 -> 0 | I139: =SUM(I111:I138)+Miljö!I396 -> 0 | J139: =SUM(J111:J138)+Miljö!J396 -> 0 | K139: =SUM(K111:K138)+Miljö!K396 -> 0 | L139: =SUM(L111:L138)+Miljö!L396 -> 0
A140: Pay-back-tid (Klimatpåverkan) | B140: år | C140: =-(C68+C107)/C75 ->  | D140: =-(D68+D107)/D75 -> 
A143: 7.3 Primärenergi
A144: 7.3.1 Miljöpåverkan renovering
A145: Materialanvändning+trp, isolering 1 | B145: kWh | C145: =IF(Miljö!C151=TRUE, INDEX(Material!$A6:$G9, MATCH(Miljö!C153,Material!$A6:$A9, 0),5)*Miljö!C154+Trp!C168, 0) -> 0 | D145: =IF(Miljö!D151=TRUE, INDEX(Material!$A6:$G9, MATCH(Miljö!D153,Material!$A6:$A9, 0),5)*Miljö!D154+Trp!D168, 0) -> 0 | E145: =IF(Miljö!E151=TRUE, INDEX(Material!$A6:$G9, MATCH(Miljö!E153,Material!$A6:$A9, 0),5)*Miljö!E154+Trp!E168, 0) -> 0 | F145: =IF(Miljö!F151=TRUE, INDEX(Material!$A6:$G9, MATCH(Miljö!F153,Material!$A6:$A9, 0),5)*Miljö!F154+Trp!F168, 0) -> 0 | G145: =IF(Miljö!G151=TRUE, INDEX(Material!$A6:$G9, MATCH(Miljö!G153,Material!$A6:$A9, 0),5)*Miljö!G154+Trp!G168, 0) -> 0 | H145: =IF(Miljö!H151=TRUE, INDEX(Material!$A6:$G9, MATCH(Miljö!H153,Material!$A6:$A9, 0),5)*Miljö!H154+Trp!H168, 0) -> 0 | I145: =IF(Miljö!I151=TRUE, INDEX(Material!$A6:$G9, MATCH(Miljö!I153,Material!$A6:$A9, 0),5)*Miljö!I154+Trp!I168, 0) -> 0 | J145: =IF(Miljö!J151=TRUE, INDEX(Material!$A6:$G9, MATCH(Miljö!J153,Material!$A6:$A9, 0),5)*Miljö!J154+Trp!J168, 0) -> 0 | K145: =IF(Miljö!K151=TRUE, INDEX(Material!$A6:$G9, MATCH(Miljö!K153,Material!$A6:$A9, 0),5)*Miljö!K154+Trp!K168, 0) -> 0 | L145: =IF(Miljö!L151=TRUE, INDEX(Material!$A6:$G9, MATCH(Miljö!L153,Material!$A6:$A9, 0),5)*Miljö!L154+Trp!L168, 0) -> 0
A146: Materialanvändning+trp, isolering 2 | B146: kWh | C146: =IF(Miljö!C161=TRUE, INDEX(Material!$A6:$G9, MATCH(Miljö!C163,Material!$A6:$A9, 0),5)*Miljö!C164+Trp!C169, 0) -> 0 | D146: =IF(Miljö!D161=TRUE, INDEX(Material!$A6:$G9, MATCH(Miljö!D163,Material!$A6:$A9, 0),5)*Miljö!D164+Trp!D169, 0) -> 0 | E146: =IF(Miljö!E161=TRUE, INDEX(Material!$A6:$G9, MATCH(Miljö!E163,Material!$A6:$A9, 0),5)*Miljö!E164+Trp!E169, 0) -> 0 | F146: =IF(Miljö!F161=TRUE, INDEX(Material!$A6:$G9, MATCH(Miljö!F163,Material!$A6:$A9, 0),5)*Miljö!F164+Trp!F169, 0) -> 0 | G146: =IF(Miljö!G161=TRUE, INDEX(Material!$A6:$G9, MATCH(Miljö!G163,Material!$A6:$A9, 0),5)*Miljö!G164+Trp!G169, 0) -> 0 | H146: =IF(Miljö!H161=TRUE, INDEX(Material!$A6:$G9, MATCH(Miljö!H163,Material!$A6:$A9, 0),5)*Miljö!H164+Trp!H169, 0) -> 0 | I146: =IF(Miljö!I161=TRUE, INDEX(Material!$A6:$G9, MATCH(Miljö!I163,Material!$A6:$A9, 0),5)*Miljö!I164+Trp!I169, 0) -> 0 | J146: =IF(Miljö!J161=TRUE, INDEX(Material!$A6:$G9, MATCH(Miljö!J163,Material!$A6:$A9, 0),5)*Miljö!J164+Trp!J169, 0) -> 0 | K146: =IF(Miljö!K161=TRUE, INDEX(Material!$A6:$G9, MATCH(Miljö!K163,Material!$A6:$A9, 0),5)*Miljö!K164+Trp!K169, 0) -> 0 | L146: =IF(Miljö!L161=TRUE, INDEX(Material!$A6:$G9, MATCH(Miljö!L163,Material!$A6:$A9, 0),5)*Miljö!L164+Trp!L169, 0) -> 0
A147: Materialanvändning+trp, fasadsystem | B147: kWh | C147: =IF(Miljö!C171=TRUE, INDEX(Material!$A33:$G51, MATCH(Miljö!C173,Material!$A33:$A51, 0),5)*Miljö!C174+Trp!C170, 0) -> 0 | D147: =IF(Miljö!D171=TRUE, INDEX(Material!$A33:$G51, MATCH(Miljö!D173,Material!$A33:$A51, 0),5)*Miljö!D174+Trp!D170, 0) -> 0 | E147: =IF(Miljö!E171=TRUE, INDEX(Material!$A33:$G51, MATCH(Miljö!E173,Material!$A33:$A51, 0),5)*Miljö!E174+Trp!E170, 0) -> 0 | F147: =IF(Miljö!F171=TRUE, INDEX(Material!$A33:$G51, MATCH(Miljö!F173,Material!$A33:$A51, 0),5)*Miljö!F174+Trp!F170, 0) -> 0 | G147: =IF(Miljö!G171=TRUE, INDEX(Material!$A33:$G51, MATCH(Miljö!G173,Material!$A33:$A51, 0),5)*Miljö!G174+Trp!G170, 0) -> 0 | H147: =IF(Miljö!H171=TRUE, INDEX(Material!$A33:$G51, MATCH(Miljö!H173,Material!$A33:$A51, 0),5)*Miljö!H174+Trp!H170, 0) -> 0 | I147: =IF(Miljö!I171=TRUE, INDEX(Material!$A33:$G51, MATCH(Miljö!I173,Material!$A33:$A51, 0),5)*Miljö!I174+Trp!I170, 0) -> 0 | J147: =IF(Miljö!J171=TRUE, INDEX(Material!$A33:$G51, MATCH(Miljö!J173,Material!$A33:$A51, 0),5)*Miljö!J174+Trp!J170, 0) -> 0 | K147: =IF(Miljö!K171=TRUE, INDEX(Material!$A33:$G51, MATCH(Miljö!K173,Material!$A33:$A51, 0),5)*Miljö!K174+Trp!K170, 0) -> 0 | L147: =IF(Miljö!L171=TRUE, INDEX(Material!$A33:$G51, MATCH(Miljö!L173,Material!$A33:$A51, 0),5)*Miljö!L174+Trp!L170, 0) -> 0
A148: Materialanvändning+trp, fönster | B148: kWh | C148: =IF(Miljö!C181=TRUE, INDEX(Material!$A15:$G18, MATCH(Miljö!C183,Material!$A15:$A18, 0),5)*Miljö!C184+Trp!C171, 0) -> 0 | D148: =IF(Miljö!D181=TRUE, INDEX(Material!$A15:$G18, MATCH(Miljö!D183,Material!$A15:$A18, 0),5)*Miljö!D184+Trp!D171, 0) -> 0 | E148: =IF(Miljö!E181=TRUE, INDEX(Material!$A15:$G18, MATCH(Miljö!E183,Material!$A15:$A18, 0),5)*Miljö!E184+Trp!E171, 0) -> 0 | F148: =IF(Miljö!F181=TRUE, INDEX(Material!$A15:$G18, MATCH(Miljö!F183,Material!$A15:$A18, 0),5)*Miljö!F184+Trp!F171, 0) -> 0 | G148: =IF(Miljö!G181=TRUE, INDEX(Material!$A15:$G18, MATCH(Miljö!G183,Material!$A15:$A18, 0),5)*Miljö!G184+Trp!G171, 0) -> 0 | H148: =IF(Miljö!H181=TRUE, INDEX(Material!$A15:$G18, MATCH(Miljö!H183,Material!$A15:$A18, 0),5)*Miljö!H184+Trp!H171, 0) -> 0 | I148: =IF(Miljö!I181=TRUE, INDEX(Material!$A15:$G18, MATCH(Miljö!I183,Material!$A15:$A18, 0),5)*Miljö!I184+Trp!I171, 0) -> 0 | J148: =IF(Miljö!J181=TRUE, INDEX(Material!$A15:$G18, MATCH(Miljö!J183,Material!$A15:$A18, 0),5)*Miljö!J184+Trp!J171, 0) -> 0 | K148: =IF(Miljö!K181=TRUE, INDEX(Material!$A15:$G18, MATCH(Miljö!K183,Material!$A15:$A18, 0),5)*Miljö!K184+Trp!K171, 0) -> 0 | L148: =IF(Miljö!L181=TRUE, INDEX(Material!$A15:$G18, MATCH(Miljö!L183,Material!$A15:$A18, 0),5)*Miljö!L184+Trp!L171, 0) -> 0
A149: Materialanvändning+trp, dörrar | B149: kWh | C149: =IF(Miljö!C191=TRUE, INDEX(Material!$A24:$G27, MATCH(Miljö!C193,Material!$A15:$A18, 0),5)*Miljö!C194+Trp!C172, 0) -> 0 | D149: =IF(Miljö!D191=TRUE, INDEX(Material!$A24:$G27, MATCH(Miljö!D193,Material!$A15:$A18, 0),5)*Miljö!D194+Trp!D172, 0) -> 0 | E149: =IF(Miljö!E191=TRUE, INDEX(Material!$A24:$G27, MATCH(Miljö!E193,Material!$A15:$A18, 0),5)*Miljö!E194+Trp!E172, 0) -> 0 | F149: =IF(Miljö!F191=TRUE, INDEX(Material!$A24:$G27, MATCH(Miljö!F193,Material!$A15:$A18, 0),5)*Miljö!F194+Trp!F172, 0) -> 0 | G149: =IF(Miljö!G191=TRUE, INDEX(Material!$A24:$G27, MATCH(Miljö!G193,Material!$A15:$A18, 0),5)*Miljö!G194+Trp!G172, 0) -> 0 | H149: =IF(Miljö!H191=TRUE, INDEX(Material!$A24:$G27, MATCH(Miljö!H193,Material!$A15:$A18, 0),5)*Miljö!H194+Trp!H172, 0) -> 0 | I149: =IF(Miljö!I191=TRUE, INDEX(Material!$A24:$G27, MATCH(Miljö!I193,Material!$A15:$A18, 0),5)*Miljö!I194+Trp!I172, 0) -> 0 | J149: =IF(Miljö!J191=TRUE, INDEX(Material!$A24:$G27, MATCH(Miljö!J193,Material!$A15:$A18, 0),5)*Miljö!J194+Trp!J172, 0) -> 0 | K149: =IF(Miljö!K191=TRUE, INDEX(Material!$A24:$G27, MATCH(Miljö!K193,Material!$A15:$A18, 0),5)*Miljö!K194+Trp!K172, 0) -> 0 | L149: =IF(Miljö!L191=TRUE, INDEX(Material!$A24:$G27, MATCH(Miljö!L193,Material!$A15:$A18, 0),5)*Miljö!L194+Trp!L172, 0) -> 0
A150: Materialanvändning+trp, uppvärmning värmprod | B150: kWh | C150: =IF(Miljö!C98=TRUE,INDEX(Uppvärmning!$A$43:$M$49, MATCH(Miljö!C94,Uppvärmning!$A$43:$A$49, 0),4) +Trp!C173, 0) -> 0 | D150: =IF(Miljö!D98=TRUE,INDEX(Uppvärmning!$A$43:$M$49, MATCH(Miljö!D94,Uppvärmning!$A$43:$A$49, 0),5) +Trp!D173, 0) -> 0 | E150: =IF(Miljö!E98=TRUE,INDEX(Uppvärmning!$A$43:$M$49, MATCH(Miljö!E94,Uppvärmning!$A$43:$A$49, 0),6) +Trp!E173, 0) -> 0 | F150: =IF(Miljö!F98=TRUE,INDEX(Uppvärmning!$A$43:$M$49, MATCH(Miljö!F94,Uppvärmning!$A$43:$A$49, 0),7) +Trp!F173, 0) -> 0 | G150: =IF(Miljö!G98=TRUE,INDEX(Uppvärmning!$A$43:$M$49, MATCH(Miljö!G94,Uppvärmning!$A$43:$A$49, 0),8) +Trp!G173, 0) -> 0 | H150: =IF(Miljö!H98=TRUE,INDEX(Uppvärmning!$A$43:$M$49, MATCH(Miljö!H94,Uppvärmning!$A$43:$A$49, 0),9) +Trp!H173, 0) -> 0 | I150: =IF(Miljö!I98=TRUE,INDEX(Uppvärmning!$A$43:$M$49, MATCH(Miljö!I94,Uppvärmning!$A$43:$A$49, 0),10) +Trp!I173, 0) -> 0 | J150: =IF(Miljö!J98=TRUE,INDEX(Uppvärmning!$A$43:$M$49, MATCH(Miljö!J94,Uppvärmning!$A$43:$A$49, 0),11) +Trp!J173, 0) -> 0 | K150: =IF(Miljö!K98=TRUE,INDEX(Uppvärmning!$A$43:$M$49, MATCH(Miljö!K94,Uppvärmning!$A$43:$A$49, 0),12) +Trp!K173, 0) -> 0 | L150: =IF(Miljö!L98=TRUE,INDEX(Uppvärmning!$A$43:$M$49, MATCH(Miljö!L94,Uppvärmning!$A$43:$A$49, 0),13) +Trp!L173, 0) -> 0
A151: Materialanv.+trp, byte uppvärmningsform kringmaterial | B151: kWh | C151: =IF(Miljö!C98=TRUE,IF(Miljö!C94=1,Uppvärmning!D50, IF(Miljö!C94=3,Uppvärmning!D51, IF(Miljö!C94=4,Uppvärmning!D52, IF(Miljö!C94=5,Uppvärmning!D53, 0)))),0) -> 0 | D151: =IF(Miljö!D98=TRUE,IF(Miljö!D94=1,Uppvärmning!E50, IF(Miljö!D94=3,Uppvärmning!E51, IF(Miljö!D94=4,Uppvärmning!E52, IF(Miljö!D94=5,Uppvärmning!E53, 0)))),0) -> 0 | E151: =IF(Miljö!E98=TRUE,IF(Miljö!E94=1,Uppvärmning!F50, IF(Miljö!E94=3,Uppvärmning!F51, IF(Miljö!E94=4,Uppvärmning!F52, IF(Miljö!E94=5,Uppvärmning!F53, 0)))),0) -> 0 | F151: =IF(Miljö!F98=TRUE,IF(Miljö!F94=1,Uppvärmning!G50, IF(Miljö!F94=3,Uppvärmning!G51, IF(Miljö!F94=4,Uppvärmning!G52, IF(Miljö!F94=5,Uppvärmning!G53, 0)))),0) -> 0 | G151: =IF(Miljö!G98=TRUE,IF(Miljö!G94=1,Uppvärmning!H50, IF(Miljö!G94=3,Uppvärmning!H51, IF(Miljö!G94=4,Uppvärmning!H52, IF(Miljö!G94=5,Uppvärmning!H53, 0)))),0) -> 0 | H151: =IF(Miljö!H98=TRUE,IF(Miljö!H94=1,Uppvärmning!I50, IF(Miljö!H94=3,Uppvärmning!I51, IF(Miljö!H94=4,Uppvärmning!I52, IF(Miljö!H94=5,Uppvärmning!I53, 0)))),0) -> 0 | I151: =IF(Miljö!I98=TRUE,IF(Miljö!I94=1,Uppvärmning!J50, IF(Miljö!I94=3,Uppvärmning!J51, IF(Miljö!I94=4,Uppvärmning!J52, IF(Miljö!I94=5,Uppvärmning!J53, 0)))),0) -> 0 | J151: =IF(Miljö!J98=TRUE,IF(Miljö!J94=1,Uppvärmning!K50, IF(Miljö!J94=3,Uppvärmning!K51, IF(Miljö!J94=4,Uppvärmning!K52, IF(Miljö!J94=5,Uppvärmning!K53, 0)))),0) -> 0 | K151: =IF(Miljö!K98=TRUE,IF(Miljö!K94=1,Uppvärmning!L50, IF(Miljö!K94=3,Uppvärmning!L51, IF(Miljö!K94=4,Uppvärmning!L52, IF(Miljö!K94=5,Uppvärmning!L53, 0)))),0) -> 0 | L151: =IF(Miljö!L98=TRUE,IF(Miljö!L94=1,Uppvärmning!M50, IF(Miljö!L94=3,Uppvärmning!M51, IF(Miljö!L94=4,Uppvärmning!M52, IF(Miljö!L94=5,Uppvärmning!M53, 0)))),0) -> 0
A152: Materialanvändning+trp, cirkulationspump | B152: kWh | C152: =IF(Miljö!C111=TRUE,Miljö!C$113*Material!$E$138 +Trp!C$174, 0) -> 0 | D152: =IF(Miljö!D111=TRUE,Miljö!D$113*Material!$E$138 +Trp!D$174, 0) -> 0 | E152: =IF(Miljö!E111=TRUE,Miljö!E$113*Material!$E$138 +Trp!E$174, 0) -> 0 | F152: =IF(Miljö!F111=TRUE,Miljö!F$113*Material!$E$138 +Trp!F$174, 0) -> 0 | G152: =IF(Miljö!G111=TRUE,Miljö!G$113*Material!$E$138 +Trp!G$174, 0) -> 0 | H152: =IF(Miljö!H111=TRUE,Miljö!H$113*Material!$E$138 +Trp!H$174, 0) -> 0 | I152: =IF(Miljö!I111=TRUE,Miljö!I$113*Material!$E$138 +Trp!I$174, 0) -> 0 | J152: =IF(Miljö!J111=TRUE,Miljö!J$113*Material!$E$138 +Trp!J$174, 0) -> 0 | K152: =IF(Miljö!K111=TRUE,Miljö!K$113*Material!$E$138 +Trp!K$174, 0) -> 0 | L152: =IF(Miljö!L111=TRUE,Miljö!L$113*Material!$E$138 +Trp!L$174, 0) -> 0
A153: Materialanvändning+trp, ventilationskanaler | B153: kWh | C153: =IF(Miljö!C365=TRUE, INDEX(Material!$A110:$G113, MATCH(Miljö!C367,Material!$A110:$A113, 0),5)*Miljö!C368+Trp!C175,0) -> 0 | D153: =IF(Miljö!D365=TRUE, INDEX(Material!$A110:$G113, MATCH(Miljö!D367,Material!$A110:$A113, 0),5)*Miljö!D368+Trp!D175,0) -> 0 | E153: =IF(Miljö!E365=TRUE, INDEX(Material!$A110:$G113, MATCH(Miljö!E367,Material!$A110:$A113, 0),5)*Miljö!E368+Trp!E175,0) -> 0 | F153: =IF(Miljö!F365=TRUE, INDEX(Material!$A110:$G113, MATCH(Miljö!F367,Material!$A110:$A113, 0),5)*Miljö!F368+Trp!F175,0) -> 0 | G153: =IF(Miljö!G365=TRUE, INDEX(Material!$A110:$G113, MATCH(Miljö!G367,Material!$A110:$A113, 0),5)*Miljö!G368+Trp!G175,0) -> 0 | H153: =IF(Miljö!H365=TRUE, INDEX(Material!$A110:$G113, MATCH(Miljö!H367,Material!$A110:$A113, 0),5)*Miljö!H368+Trp!H175,0) -> 0 | I153: =IF(Miljö!I365=TRUE, INDEX(Material!$A110:$G113, MATCH(Miljö!I367,Material!$A110:$A113, 0),5)*Miljö!I368+Trp!I175,0) -> 0 | J153: =IF(Miljö!J365=TRUE, INDEX(Material!$A110:$G113, MATCH(Miljö!J367,Material!$A110:$A113, 0),5)*Miljö!J368+Trp!J175,0) -> 0 | K153: =IF(Miljö!K365=TRUE, INDEX(Material!$A110:$G113, MATCH(Miljö!K367,Material!$A110:$A113, 0),5)*Miljö!K368+Trp!K175,0) -> 0 | L153: =IF(Miljö!L365=TRUE, INDEX(Material!$A110:$G113, MATCH(Miljö!L367,Material!$A110:$A113, 0),5)*Miljö!L368+Trp!L175,0) -> 0
A154: Materialanvändning+trp, luftflödesaggregat | B154: kWh | C154: =IF(Miljö!C120=TRUE, INDEX(Material!$A119:$G122, MATCH(Miljö!C122,Material!$A119:$A122, 0),5)*Miljö!C123+Trp!C176,0) -> 0 | D154: =IF(Miljö!D120=TRUE, INDEX(Material!$A119:$G122, MATCH(Miljö!D122,Material!$A119:$A122, 0),5)*Miljö!D123+Trp!D176,0) -> 0 | E154: =IF(Miljö!E120=TRUE, INDEX(Material!$A119:$G122, MATCH(Miljö!E122,Material!$A119:$A122, 0),5)*Miljö!E123+Trp!E176,0) -> 0 | F154: =IF(Miljö!F120=TRUE, INDEX(Material!$A119:$G122, MATCH(Miljö!F122,Material!$A119:$A122, 0),5)*Miljö!F123+Trp!F176,0) -> 0 | G154: =IF(Miljö!G120=TRUE, INDEX(Material!$A119:$G122, MATCH(Miljö!G122,Material!$A119:$A122, 0),5)*Miljö!G123+Trp!G176,0) -> 0 | H154: =IF(Miljö!H120=TRUE, INDEX(Material!$A119:$G122, MATCH(Miljö!H122,Material!$A119:$A122, 0),5)*Miljö!H123+Trp!H176,0) -> 0 | I154: =IF(Miljö!I120=TRUE, INDEX(Material!$A119:$G122, MATCH(Miljö!I122,Material!$A119:$A122, 0),5)*Miljö!I123+Trp!I176,0) -> 0 | J154: =IF(Miljö!J120=TRUE, INDEX(Material!$A119:$G122, MATCH(Miljö!J122,Material!$A119:$A122, 0),5)*Miljö!J123+Trp!J176,0) -> 0 | K154: =IF(Miljö!K120=TRUE, INDEX(Material!$A119:$G122, MATCH(Miljö!K122,Material!$A119:$A122, 0),5)*Miljö!K123+Trp!K176,0) -> 0 | L154: =IF(Miljö!L120=TRUE, INDEX(Material!$A119:$G122, MATCH(Miljö!L122,Material!$A119:$A122, 0),5)*Miljö!L123+Trp!L176,0) -> 0
A155: Materialanvändning+trp, don och dämpare (vent) | B155: kWh | C155: =IF(Miljö!C375=TRUE,Material!$E$128*Miljö!C377+Trp!C177,0) -> 0 | D155: =IF(Miljö!D375=TRUE,Material!$E$128*Miljö!D377+Trp!D177,0) -> 0 | E155: =IF(Miljö!E375=TRUE,Material!$E$128*Miljö!E377+Trp!E177,0) -> 0 | F155: =IF(Miljö!F375=TRUE,Material!$E$128*Miljö!F377+Trp!F177,0) -> 0 | G155: =IF(Miljö!G375=TRUE,Material!$E$128*Miljö!G377+Trp!G177,0) -> 0 | H155: =IF(Miljö!H375=TRUE,Material!$E$128*Miljö!H377+Trp!H177,0) -> 0 | I155: =IF(Miljö!I375=TRUE,Material!$E$128*Miljö!I377+Trp!I177,0) -> 0 | J155: =IF(Miljö!J375=TRUE,Material!$E$128*Miljö!J377+Trp!J177,0) -> 0 | K155: =IF(Miljö!K375=TRUE,Material!$E$128*Miljö!K377+Trp!K177,0) -> 0 | L155: =IF(Miljö!L375=TRUE,Material!$E$128*Miljö!L377+Trp!L177,0) -> 0
A156: Trä konstruktionsvirke | B156: kWh | C156: =IF(Miljö!C$204=TRUE,Material!$E$57*Miljö!C$206+Trp!C180,0) -> 0 | D156: =IF(Miljö!D$204=TRUE,Material!$E$57*Miljö!D$206+Trp!D180,0) -> 0 | E156: =IF(Miljö!E$204=TRUE,Material!$E$57*Miljö!E$206+Trp!E180,0) -> 0 | F156: =IF(Miljö!F$204=TRUE,Material!$E$57*Miljö!F$206+Trp!F180,0) -> 0 | G156: =IF(Miljö!G$204=TRUE,Material!$E$57*Miljö!G$206+Trp!G180,0) -> 0 | H156: =IF(Miljö!H$204=TRUE,Material!$E$57*Miljö!H$206+Trp!H180,0) -> 0 | I156: =IF(Miljö!I$204=TRUE,Material!$E$57*Miljö!I$206+Trp!I180,0) -> 0 | J156: =IF(Miljö!J$204=TRUE,Material!$E$57*Miljö!J$206+Trp!J180,0) -> 0 | K156: =IF(Miljö!K$204=TRUE,Material!$E$57*Miljö!K$206+Trp!K180,0) -> 0 | L156: =IF(Miljö!L$204=TRUE,Material!$E$57*Miljö!L$206+Trp!L180,0) -> 0
A157: Trä målad träfasad | B157: kWh | C157: =IF(Miljö!C$213=TRUE,Material!$E$58*Miljö!C$215+Trp!C181,0) -> 0 | D157: =IF(Miljö!D$213=TRUE,Material!$E$58*Miljö!D$215+Trp!D181,0) -> 0 | E157: =IF(Miljö!E$213=TRUE,Material!$E$58*Miljö!E$215+Trp!E181,0) -> 0 | F157: =IF(Miljö!F$213=TRUE,Material!$E$58*Miljö!F$215+Trp!F181,0) -> 0 | G157: =IF(Miljö!G$213=TRUE,Material!$E$58*Miljö!G$215+Trp!G181,0) -> 0 | H157: =IF(Miljö!H$213=TRUE,Material!$E$58*Miljö!H$215+Trp!H181,0) -> 0 | I157: =IF(Miljö!I$213=TRUE,Material!$E$58*Miljö!I$215+Trp!I181,0) -> 0 | J157: =IF(Miljö!J$213=TRUE,Material!$E$58*Miljö!J$215+Trp!J181,0) -> 0 | K157: =IF(Miljö!K$213=TRUE,Material!$E$58*Miljö!K$215+Trp!K181,0) -> 0 | L157: =IF(Miljö!L$213=TRUE,Material!$E$58*Miljö!L$215+Trp!L181,0) -> 0
A158: Trä invändig träpanel | B158: kWh | C158: =IF(Miljö!C$222=TRUE,Material!$E$59*Miljö!C$224+Trp!C182,0) -> 0 | D158: =IF(Miljö!D$222=TRUE,Material!$E$59*Miljö!D$224+Trp!D182,0) -> 0 | E158: =IF(Miljö!E$222=TRUE,Material!$E$59*Miljö!E$224+Trp!E182,0) -> 0 | F158: =IF(Miljö!F$222=TRUE,Material!$E$59*Miljö!F$224+Trp!F182,0) -> 0 | G158: =IF(Miljö!G$222=TRUE,Material!$E$59*Miljö!G$224+Trp!G182,0) -> 0 | H158: =IF(Miljö!H$222=TRUE,Material!$E$59*Miljö!H$224+Trp!H182,0) -> 0 | I158: =IF(Miljö!I$222=TRUE,Material!$E$59*Miljö!I$224+Trp!I182,0) -> 0 | J158: =IF(Miljö!J$222=TRUE,Material!$E$59*Miljö!J$224+Trp!J182,0) -> 0 | K158: =IF(Miljö!K$222=TRUE,Material!$E$59*Miljö!K$224+Trp!K182,0) -> 0 | L158: =IF(Miljö!L$222=TRUE,Material!$E$59*Miljö!L$224+Trp!L182,0) -> 0
A159: Betong bjälklag | B159: kWh | C159: =IF(Miljö!C$231=TRUE,INDEX(Material!$A$65:$G$67,MATCH(Miljö!C$233,Material!$A$65:$A$67,0),5)*Miljö!C$234+Trp!C183,0) -> 0 | D159: =IF(Miljö!D$231=TRUE,INDEX(Material!$A$65:$G$67,MATCH(Miljö!D$233,Material!$A$65:$A$67,0),5)*Miljö!D$234+Trp!D183,0) -> 0 | E159: =IF(Miljö!E$231=TRUE,INDEX(Material!$A$65:$G$67,MATCH(Miljö!E$233,Material!$A$65:$A$67,0),5)*Miljö!E$234+Trp!E183,0) -> 0 | F159: =IF(Miljö!F$231=TRUE,INDEX(Material!$A$65:$G$67,MATCH(Miljö!F$233,Material!$A$65:$A$67,0),5)*Miljö!F$234+Trp!F183,0) -> 0 | G159: =IF(Miljö!G$231=TRUE,INDEX(Material!$A$65:$G$67,MATCH(Miljö!G$233,Material!$A$65:$A$67,0),5)*Miljö!G$234+Trp!G183,0) -> 0 | H159: =IF(Miljö!H$231=TRUE,INDEX(Material!$A$65:$G$67,MATCH(Miljö!H$233,Material!$A$65:$A$67,0),5)*Miljö!H$234+Trp!H183,0) -> 0 | I159: =IF(Miljö!I$231=TRUE,INDEX(Material!$A$65:$G$67,MATCH(Miljö!I$233,Material!$A$65:$A$67,0),5)*Miljö!I$234+Trp!I183,0) -> 0 | J159: =IF(Miljö!J$231=TRUE,INDEX(Material!$A$65:$G$67,MATCH(Miljö!J$233,Material!$A$65:$A$67,0),5)*Miljö!J$234+Trp!J183,0) -> 0 | K159: =IF(Miljö!K$231=TRUE,INDEX(Material!$A$65:$G$67,MATCH(Miljö!K$233,Material!$A$65:$A$67,0),5)*Miljö!K$234+Trp!K183,0) -> 0 | L159: =IF(Miljö!L$231=TRUE,INDEX(Material!$A$65:$G$67,MATCH(Miljö!L$233,Material!$A$65:$A$67,0),5)*Miljö!L$234+Trp!L183,0) -> 0
A160: Betong bärande ytterväggar | B160: kWh | C160: =IF(Miljö!C$241=TRUE,INDEX(Material!$A$74:$G$75,MATCH(Miljö!C$243,Material!$A$74:$A$75,0),5)*Miljö!C$244+Trp!C184,0) -> 0 | D160: =IF(Miljö!D$241=TRUE,INDEX(Material!$A$74:$G$75,MATCH(Miljö!D$243,Material!$A$74:$A$75,0),5)*Miljö!D$244+Trp!D184,0) -> 0 | E160: =IF(Miljö!E$241=TRUE,INDEX(Material!$A$74:$G$75,MATCH(Miljö!E$243,Material!$A$74:$A$75,0),5)*Miljö!E$244+Trp!E184,0) -> 0 | F160: =IF(Miljö!F$241=TRUE,INDEX(Material!$A$74:$G$75,MATCH(Miljö!F$243,Material!$A$74:$A$75,0),5)*Miljö!F$244+Trp!F184,0) -> 0 | G160: =IF(Miljö!G$241=TRUE,INDEX(Material!$A$74:$G$75,MATCH(Miljö!G$243,Material!$A$74:$A$75,0),5)*Miljö!G$244+Trp!G184,0) -> 0 | H160: =IF(Miljö!H$241=TRUE,INDEX(Material!$A$74:$G$75,MATCH(Miljö!H$243,Material!$A$74:$A$75,0),5)*Miljö!H$244+Trp!H184,0) -> 0 | I160: =IF(Miljö!I$241=TRUE,INDEX(Material!$A$74:$G$75,MATCH(Miljö!I$243,Material!$A$74:$A$75,0),5)*Miljö!I$244+Trp!I184,0) -> 0 | J160: =IF(Miljö!J$241=TRUE,INDEX(Material!$A$74:$G$75,MATCH(Miljö!J$243,Material!$A$74:$A$75,0),5)*Miljö!J$244+Trp!J184,0) -> 0 | K160: =IF(Miljö!K$241=TRUE,INDEX(Material!$A$74:$G$75,MATCH(Miljö!K$243,Material!$A$74:$A$75,0),5)*Miljö!K$244+Trp!K184,0) -> 0 | L160: =IF(Miljö!L$241=TRUE,INDEX(Material!$A$74:$G$75,MATCH(Miljö!L$243,Material!$A$74:$A$75,0),5)*Miljö!L$244+Trp!L184,0) -> 0
A161: Betong icke-bärande ytterväggar | B161: kWh | C161: =IF(Miljö!C$251=TRUE,Material!$E$77*Miljö!C$253+Trp!C185,0) -> 0 | D161: =IF(Miljö!D$251=TRUE,Material!$E$77*Miljö!D$253+Trp!D185,0) -> 0 | E161: =IF(Miljö!E$251=TRUE,Material!$E$77*Miljö!E$253+Trp!E185,0) -> 0 | F161: =IF(Miljö!F$251=TRUE,Material!$E$77*Miljö!F$253+Trp!F185,0) -> 0 | G161: =IF(Miljö!G$251=TRUE,Material!$E$77*Miljö!G$253+Trp!G185,0) -> 0 | H161: =IF(Miljö!H$251=TRUE,Material!$E$77*Miljö!H$253+Trp!H185,0) -> 0 | I161: =IF(Miljö!I$251=TRUE,Material!$E$77*Miljö!I$253+Trp!I185,0) -> 0 | J161: =IF(Miljö!J$251=TRUE,Material!$E$77*Miljö!J$253+Trp!J185,0) -> 0 | K161: =IF(Miljö!K$251=TRUE,Material!$E$77*Miljö!K$253+Trp!K185,0) -> 0 | L161: =IF(Miljö!L$251=TRUE,Material!$E$77*Miljö!L$253+Trp!L185,0) -> 0
A162: Betong innerväggar | B162: kWh | C162: =IF(Miljö!C$260=TRUE,INDEX(Material!$A$84:$G$85,MATCH(Miljö!C$262,Material!$A$84:$A$85,0),5)*Miljö!C$263+Trp!C186,0) -> 0 | D162: =IF(Miljö!D$260=TRUE,INDEX(Material!$A$84:$G$85,MATCH(Miljö!D$262,Material!$A$84:$A$85,0),5)*Miljö!D$263+Trp!D186,0) -> 0 | E162: =IF(Miljö!E$260=TRUE,INDEX(Material!$A$84:$G$85,MATCH(Miljö!E$262,Material!$A$84:$A$85,0),5)*Miljö!E$263+Trp!E186,0) -> 0 | F162: =IF(Miljö!F$260=TRUE,INDEX(Material!$A$84:$G$85,MATCH(Miljö!F$262,Material!$A$84:$A$85,0),5)*Miljö!F$263+Trp!F186,0) -> 0 | G162: =IF(Miljö!G$260=TRUE,INDEX(Material!$A$84:$G$85,MATCH(Miljö!G$262,Material!$A$84:$A$85,0),5)*Miljö!G$263+Trp!G186,0) -> 0 | H162: =IF(Miljö!H$260=TRUE,INDEX(Material!$A$84:$G$85,MATCH(Miljö!H$262,Material!$A$84:$A$85,0),5)*Miljö!H$263+Trp!H186,0) -> 0 | I162: =IF(Miljö!I$260=TRUE,INDEX(Material!$A$84:$G$85,MATCH(Miljö!I$262,Material!$A$84:$A$85,0),5)*Miljö!I$263+Trp!I186,0) -> 0 | J162: =IF(Miljö!J$260=TRUE,INDEX(Material!$A$84:$G$85,MATCH(Miljö!J$262,Material!$A$84:$A$85,0),5)*Miljö!J$263+Trp!J186,0) -> 0 | K162: =IF(Miljö!K$260=TRUE,INDEX(Material!$A$84:$G$85,MATCH(Miljö!K$262,Material!$A$84:$A$85,0),5)*Miljö!K$263+Trp!K186,0) -> 0 | L162: =IF(Miljö!L$260=TRUE,INDEX(Material!$A$84:$G$85,MATCH(Miljö!L$262,Material!$A$84:$A$85,0),5)*Miljö!L$263+Trp!L186,0) -> 0
A163: Puts | B163: kWh | C163: =IF(Miljö!C$270=TRUE,Material!$E$90*Miljö!C$272+Trp!C187,0) -> 0 | D163: =IF(Miljö!D$270=TRUE,Material!$E$90*Miljö!D$272+Trp!D187,0) -> 0 | E163: =IF(Miljö!E$270=TRUE,Material!$E$90*Miljö!E$272+Trp!E187,0) -> 0 | F163: =IF(Miljö!F$270=TRUE,Material!$E$90*Miljö!F$272+Trp!F187,0) -> 0 | G163: =IF(Miljö!G$270=TRUE,Material!$E$90*Miljö!G$272+Trp!G187,0) -> 0 | H163: =IF(Miljö!H$270=TRUE,Material!$E$90*Miljö!H$272+Trp!H187,0) -> 0 | I163: =IF(Miljö!I$270=TRUE,Material!$E$90*Miljö!I$272+Trp!I187,0) -> 0 | J163: =IF(Miljö!J$270=TRUE,Material!$E$90*Miljö!J$272+Trp!J187,0) -> 0 | K163: =IF(Miljö!K$270=TRUE,Material!$E$90*Miljö!K$272+Trp!K187,0) -> 0 | L163: =IF(Miljö!L$270=TRUE,Material!$E$90*Miljö!L$272+Trp!L187,0) -> 0
A164: Gipsskivor | B164: kWh | C164: =IF(Miljö!C$279=TRUE,Material!$E$91*Miljö!C$281+Trp!C188,0) -> 0 | D164: =IF(Miljö!D$279=TRUE,Material!$E$91*Miljö!D$281+Trp!D188,0) -> 0 | E164: =IF(Miljö!E$279=TRUE,Material!$E$91*Miljö!E$281+Trp!E188,0) -> 0 | F164: =IF(Miljö!F$279=TRUE,Material!$E$91*Miljö!F$281+Trp!F188,0) -> 0 | G164: =IF(Miljö!G$279=TRUE,Material!$E$91*Miljö!G$281+Trp!G188,0) -> 0 | H164: =IF(Miljö!H$279=TRUE,Material!$E$91*Miljö!H$281+Trp!H188,0) -> 0 | I164: =IF(Miljö!I$279=TRUE,Material!$E$91*Miljö!I$281+Trp!I188,0) -> 0 | J164: =IF(Miljö!J$279=TRUE,Material!$E$91*Miljö!J$281+Trp!J188,0) -> 0 | K164: =IF(Miljö!K$279=TRUE,Material!$E$91*Miljö!K$281+Trp!K188,0) -> 0 | L164: =IF(Miljö!L$279=TRUE,Material!$E$91*Miljö!L$281+Trp!L188,0) -> 0
A165: Takbeläggning | B165: kWh | C165: =IF(Miljö!C$288=TRUE,INDEX(Material!$A$98:$G$102,MATCH(Miljö!C$290,Material!$A$98:$A$102,0),5)*Miljö!C$291+Trp!C189,0) -> 0 | D165: =IF(Miljö!D$288=TRUE,INDEX(Material!$A$98:$G$102,MATCH(Miljö!D$290,Material!$A$98:$A$102,0),5)*Miljö!D$291+Trp!D189,0) -> 0 | E165: =IF(Miljö!E$288=TRUE,INDEX(Material!$A$98:$G$102,MATCH(Miljö!E$290,Material!$A$98:$A$102,0),5)*Miljö!E$291+Trp!E189,0) -> 0 | F165: =IF(Miljö!F$288=TRUE,INDEX(Material!$A$98:$G$102,MATCH(Miljö!F$290,Material!$A$98:$A$102,0),5)*Miljö!F$291+Trp!F189,0) -> 0 | G165: =IF(Miljö!G$288=TRUE,INDEX(Material!$A$98:$G$102,MATCH(Miljö!G$290,Material!$A$98:$A$102,0),5)*Miljö!G$291+Trp!G189,0) -> 0 | H165: =IF(Miljö!H$288=TRUE,INDEX(Material!$A$98:$G$102,MATCH(Miljö!H$290,Material!$A$98:$A$102,0),5)*Miljö!H$291+Trp!H189,0) -> 0 | I165: =IF(Miljö!I$288=TRUE,INDEX(Material!$A$98:$G$102,MATCH(Miljö!I$290,Material!$A$98:$A$102,0),5)*Miljö!I$291+Trp!I189,0) -> 0 | J165: =IF(Miljö!J$288=TRUE,INDEX(Material!$A$98:$G$102,MATCH(Miljö!J$290,Material!$A$98:$A$102,0),5)*Miljö!J$291+Trp!J189,0) -> 0 | K165: =IF(Miljö!K$288=TRUE,INDEX(Material!$A$98:$G$102,MATCH(Miljö!K$290,Material!$A$98:$A$102,0),5)*Miljö!K$291+Trp!K189,0) -> 0 | L165: =IF(Miljö!L$288=TRUE,INDEX(Material!$A$98:$G$102,MATCH(Miljö!L$290,Material!$A$98:$A$102,0),5)*Miljö!L$291+Trp!L189,0) -> 0
A166: Materialanvändning+trp, radiatorer | B166: kWh | C166: =IF(Miljö!C301=TRUE, INDEX(Material!$A$146:$G$149, MATCH(Miljö!C303,Material!$A$146:$A$149, 0),5)*Miljö!C304+Trp!C190, 0) -> 0 | D166: =IF(Miljö!D301=TRUE, INDEX(Material!$A$146:$G$149, MATCH(Miljö!D303,Material!$A$146:$A$149, 0),5)*Miljö!D304+Trp!D190, 0) -> 0 | E166: =IF(Miljö!E301=TRUE, INDEX(Material!$A$146:$G$149, MATCH(Miljö!E303,Material!$A$146:$A$149, 0),5)*Miljö!E304+Trp!E190, 0) -> 0 | F166: =IF(Miljö!F301=TRUE, INDEX(Material!$A$146:$G$149, MATCH(Miljö!F303,Material!$A$146:$A$149, 0),5)*Miljö!F304+Trp!F190, 0) -> 0 | G166: =IF(Miljö!G301=TRUE, INDEX(Material!$A$146:$G$149, MATCH(Miljö!G303,Material!$A$146:$A$149, 0),5)*Miljö!G304+Trp!G190, 0) -> 0 | H166: =IF(Miljö!H301=TRUE, INDEX(Material!$A$146:$G$149, MATCH(Miljö!H303,Material!$A$146:$A$149, 0),5)*Miljö!H304+Trp!H190, 0) -> 0 | I166: =IF(Miljö!I301=TRUE, INDEX(Material!$A$146:$G$149, MATCH(Miljö!I303,Material!$A$146:$A$149, 0),5)*Miljö!I304+Trp!I190, 0) -> 0 | J166: =IF(Miljö!J301=TRUE, INDEX(Material!$A$146:$G$149, MATCH(Miljö!J303,Material!$A$146:$A$149, 0),5)*Miljö!J304+Trp!J190, 0) -> 0 | K166: =IF(Miljö!K301=TRUE, INDEX(Material!$A$146:$G$149, MATCH(Miljö!K303,Material!$A$146:$A$149, 0),5)*Miljö!K304+Trp!K190, 0) -> 0 | L166: =IF(Miljö!L301=TRUE, INDEX(Material!$A$146:$G$149, MATCH(Miljö!L303,Material!$A$146:$A$149, 0),5)*Miljö!L304+Trp!L190, 0) -> 0
A167: Materialanvändning+trp, kopparrör | B167: kWh | C167: =IF(Miljö!C311=TRUE,Miljö!C313*Material!$E$155+Trp!C191,0) -> 0 | D167: =IF(Miljö!D311=TRUE,Miljö!D313*Material!$E$155+Trp!D191,0) -> 0 | E167: =IF(Miljö!E311=TRUE,Miljö!E313*Material!$E$155+Trp!E191,0) -> 0 | F167: =IF(Miljö!F311=TRUE,Miljö!F313*Material!$E$155+Trp!F191,0) -> 0 | G167: =IF(Miljö!G311=TRUE,Miljö!G313*Material!$E$155+Trp!G191,0) -> 0 | H167: =IF(Miljö!H311=TRUE,Miljö!H313*Material!$E$155+Trp!H191,0) -> 0 | I167: =IF(Miljö!I311=TRUE,Miljö!I313*Material!$E$155+Trp!I191,0) -> 0 | J167: =IF(Miljö!J311=TRUE,Miljö!J313*Material!$E$155+Trp!J191,0) -> 0 | K167: =IF(Miljö!K311=TRUE,Miljö!K313*Material!$E$155+Trp!K191,0) -> 0 | L167: =IF(Miljö!L311=TRUE,Miljö!L313*Material!$E$155+Trp!L191,0) -> 0
A168: Materialanvändning+trp, PEX-rör | B168: kWh | C168: =IF(Miljö!C320=TRUE,Miljö!C322*Material!$E$156+Trp!C192,0) -> 0 | D168: =IF(Miljö!D320=TRUE,Miljö!D322*Material!$E$156+Trp!D192,0) -> 0 | E168: =IF(Miljö!E320=TRUE,Miljö!E322*Material!$E$156+Trp!E192,0) -> 0 | F168: =IF(Miljö!F320=TRUE,Miljö!F322*Material!$E$156+Trp!F192,0) -> 0 | G168: =IF(Miljö!G320=TRUE,Miljö!G322*Material!$E$156+Trp!G192,0) -> 0 | H168: =IF(Miljö!H320=TRUE,Miljö!H322*Material!$E$156+Trp!H192,0) -> 0 | I168: =IF(Miljö!I320=TRUE,Miljö!I322*Material!$E$156+Trp!I192,0) -> 0 | J168: =IF(Miljö!J320=TRUE,Miljö!J322*Material!$E$156+Trp!J192,0) -> 0 | K168: =IF(Miljö!K320=TRUE,Miljö!K322*Material!$E$156+Trp!K192,0) -> 0 | L168: =IF(Miljö!L320=TRUE,Miljö!L322*Material!$E$156+Trp!L192,0) -> 0
A169: Materialanvändning+trp, PP-rör | B169: kWh | C169: =IF(Miljö!C329=TRUE,Miljö!C331*Material!$E$157+Trp!C193,0) -> 0 | D169: =IF(Miljö!D329=TRUE,Miljö!D331*Material!$E$157+Trp!D193,0) -> 0 | E169: =IF(Miljö!E329=TRUE,Miljö!E331*Material!$E$157+Trp!E193,0) -> 0 | F169: =IF(Miljö!F329=TRUE,Miljö!F331*Material!$E$157+Trp!F193,0) -> 0 | G169: =IF(Miljö!G329=TRUE,Miljö!G331*Material!$E$157+Trp!G193,0) -> 0 | H169: =IF(Miljö!H329=TRUE,Miljö!H331*Material!$E$157+Trp!H193,0) -> 0 | I169: =IF(Miljö!I329=TRUE,Miljö!I331*Material!$E$157+Trp!I193,0) -> 0 | J169: =IF(Miljö!J329=TRUE,Miljö!J331*Material!$E$157+Trp!J193,0) -> 0 | K169: =IF(Miljö!K329=TRUE,Miljö!K331*Material!$E$157+Trp!K193,0) -> 0 | L169: =IF(Miljö!L329=TRUE,Miljö!L331*Material!$E$157+Trp!L193,0) -> 0
A170: Materialanvändning+trp, järnrör | B170: kWh | C170: =IF(Miljö!C338=TRUE,Miljö!C340*Material!$E$158+Trp!C194,0) -> 0 | D170: =IF(Miljö!D338=TRUE,Miljö!D340*Material!$E$158+Trp!D194,0) -> 0 | E170: =IF(Miljö!E338=TRUE,Miljö!E340*Material!$E$158+Trp!E194,0) -> 0 | F170: =IF(Miljö!F338=TRUE,Miljö!F340*Material!$E$158+Trp!F194,0) -> 0 | G170: =IF(Miljö!G338=TRUE,Miljö!G340*Material!$E$158+Trp!G194,0) -> 0 | H170: =IF(Miljö!H338=TRUE,Miljö!H340*Material!$E$158+Trp!H194,0) -> 0 | I170: =IF(Miljö!I338=TRUE,Miljö!I340*Material!$E$158+Trp!I194,0) -> 0 | J170: =IF(Miljö!J338=TRUE,Miljö!J340*Material!$E$158+Trp!J194,0) -> 0 | K170: =IF(Miljö!K338=TRUE,Miljö!K340*Material!$E$158+Trp!K194,0) -> 0 | L170: =IF(Miljö!L338=TRUE,Miljö!L340*Material!$E$158+Trp!L194,0) -> 0
A171: Materialanvändning+trp, stålrör | B171: kWh | C171: =IF(Miljö!C347=TRUE,Miljö!C349*Material!$E$159+Trp!C195,0) -> 0 | D171: =IF(Miljö!D347=TRUE,Miljö!D349*Material!$E$159+Trp!D195,0) -> 0 | E171: =IF(Miljö!E347=TRUE,Miljö!E349*Material!$E$159+Trp!E195,0) -> 0 | F171: =IF(Miljö!F347=TRUE,Miljö!F349*Material!$E$159+Trp!F195,0) -> 0 | G171: =IF(Miljö!G347=TRUE,Miljö!G349*Material!$E$159+Trp!G195,0) -> 0 | H171: =IF(Miljö!H347=TRUE,Miljö!H349*Material!$E$159+Trp!H195,0) -> 0 | I171: =IF(Miljö!I347=TRUE,Miljö!I349*Material!$E$159+Trp!I195,0) -> 0 | J171: =IF(Miljö!J347=TRUE,Miljö!J349*Material!$E$159+Trp!J195,0) -> 0 | K171: =IF(Miljö!K347=TRUE,Miljö!K349*Material!$E$159+Trp!K195,0) -> 0 | L171: =IF(Miljö!L347=TRUE,Miljö!L349*Material!$E$159+Trp!L195,0) -> 0
A172: Materialanvändning+trp, relining rör | B172: kWh | C172: =IF(Miljö!C356=TRUE,Miljö!C358*Material!$E$174+Trp!C197,0) -> 0 | D172: =IF(Miljö!D356=TRUE,Miljö!D358*Material!$E$174+Trp!D197,0) -> 0 | E172: =IF(Miljö!E356=TRUE,Miljö!E358*Material!$E$174+Trp!E197,0) -> 0 | F172: =IF(Miljö!F356=TRUE,Miljö!F358*Material!$E$174+Trp!F197,0) -> 0 | G172: =IF(Miljö!G356=TRUE,Miljö!G358*Material!$E$174+Trp!G197,0) -> 0 | H172: =IF(Miljö!H356=TRUE,Miljö!H358*Material!$E$174+Trp!H197,0) -> 0 | I172: =IF(Miljö!I356=TRUE,Miljö!I358*Material!$E$174+Trp!I197,0) -> 0 | J172: =IF(Miljö!J356=TRUE,Miljö!J358*Material!$E$174+Trp!J197,0) -> 0 | K172: =IF(Miljö!K356=TRUE,Miljö!K358*Material!$E$174+Trp!K197,0) -> 0 | L172: =IF(Miljö!L356=TRUE,Miljö!L358*Material!$E$174+Trp!L197,0) -> 0
A173: Materialanvändning+trp, elledning | B173: kWh | C173: =IF(Miljö!C384=TRUE,Miljö!C386*Material!$E$174+Trp!C198,0) -> 0 | D173: =IF(Miljö!D384=TRUE,Miljö!D386*Material!$E$174+Trp!D198,0) -> 0 | E173: =IF(Miljö!E384=TRUE,Miljö!E386*Material!$E$174+Trp!E198,0) -> 0 | F173: =IF(Miljö!F384=TRUE,Miljö!F386*Material!$E$174+Trp!F198,0) -> 0 | G173: =IF(Miljö!G384=TRUE,Miljö!G386*Material!$E$174+Trp!G198,0) -> 0 | H173: =IF(Miljö!H384=TRUE,Miljö!H386*Material!$E$174+Trp!H198,0) -> 0 | I173: =IF(Miljö!I384=TRUE,Miljö!I386*Material!$E$174+Trp!I198,0) -> 0 | J173: =IF(Miljö!J384=TRUE,Miljö!J386*Material!$E$174+Trp!J198,0) -> 0 | K173: =IF(Miljö!K384=TRUE,Miljö!K386*Material!$E$174+Trp!K198,0) -> 0 | L173: =IF(Miljö!L384=TRUE,Miljö!L386*Material!$E$174+Trp!L198,0) -> 0
A174: Materialanvädning, Egen elproduktion | B174: kWh | C174: =IF(Miljö!C130=TRUE,INDEX(Material!$A$183:$G$186,MATCH(Miljö!C132,Material!$A$183:$A$186,0),5)*Miljö!C133+Trp!C179,0) -> 0 | D174: =IF(Miljö!D130=TRUE,INDEX(Material!$A$183:$G$186,MATCH(Miljö!D132,Material!$A$183:$A$186,0),5)*Miljö!D133+Trp!D179,0) -> 0 | E174: =IF(Miljö!E130=TRUE,INDEX(Material!$A$183:$G$186,MATCH(Miljö!E132,Material!$A$183:$A$186,0),5)*Miljö!E133+Trp!E179,0) -> 0 | F174: =IF(Miljö!F130=TRUE,INDEX(Material!$A$183:$G$186,MATCH(Miljö!F132,Material!$A$183:$A$186,0),5)*Miljö!F133+Trp!F179,0) -> 0 | G174: =IF(Miljö!G130=TRUE,INDEX(Material!$A$183:$G$186,MATCH(Miljö!G132,Material!$A$183:$A$186,0),5)*Miljö!G133+Trp!G179,0) -> 0 | H174: =IF(Miljö!H130=TRUE,INDEX(Material!$A$183:$G$186,MATCH(Miljö!H132,Material!$A$183:$A$186,0),5)*Miljö!H133+Trp!H179,0) -> 0 | I174: =IF(Miljö!I130=TRUE,INDEX(Material!$A$183:$G$186,MATCH(Miljö!I132,Material!$A$183:$A$186,0),5)*Miljö!I133+Trp!I179,0) -> 0 | J174: =IF(Miljö!J130=TRUE,INDEX(Material!$A$183:$G$186,MATCH(Miljö!J132,Material!$A$183:$A$186,0),5)*Miljö!J133+Trp!J179,0) -> 0 | K174: =IF(Miljö!K130=TRUE,INDEX(Material!$A$183:$G$186,MATCH(Miljö!K132,Material!$A$183:$A$186,0),5)*Miljö!K133+Trp!K179,0) -> 0 | L174: =IF(Miljö!L130=TRUE,INDEX(Material!$A$183:$G$186,MATCH(Miljö!L132,Material!$A$183:$A$186,0),5)*Miljö!L133+Trp!L179,0) -> 0
A175: Total miljöpåverkan renovering | B175: kWh | C175: =SUM(C145:C174) -> 0 | D175: =SUM(D145:D174) -> 0 | E175: 0 | F175: 0 | G175: 0 | H175: 0 | I175: 0 | J175: =SUM(J145:J174) -> 0 | K175: 0 | L175: 0
A177: 7.3.2 Årlig miljöpåverkan efter renovering | B177: Negativa värden visar en miljöbesparing jämfört med referensfallet där ingen renovering görs
A178: Årlig miljöpåverkan, ändrat värmebehov | B178: kWh/år | C178: =INDEX(Uppvärmning!$A6:$I12, MATCH(Miljö!C93,Uppvärmning!$A6:$A12, 0),4)*Miljö!C144 ->  | D178: =INDEX(Uppvärmning!$A6:$I12, MATCH(Miljö!D93,Uppvärmning!$A6:$A12, 0),4)*Miljö!D144 -> 0 | E178: =INDEX(Uppvärmning!$A6:$I12, MATCH(Miljö!E93,Uppvärmning!$A6:$A12, 0),4)*Miljö!E144 -> 0 | F178: =INDEX(Uppvärmning!$A6:$I12, MATCH(Miljö!F93,Uppvärmning!$A6:$A12, 0),4)*Miljö!F144 -> 0 | G178: =INDEX(Uppvärmning!$A6:$I12, MATCH(Miljö!G93,Uppvärmning!$A6:$A12, 0),4)*Miljö!G144 -> 0 | H178: =INDEX(Uppvärmning!$A6:$I12, MATCH(Miljö!H93,Uppvärmning!$A6:$A12, 0),4)*Miljö!H144 -> 0 | I178: =INDEX(Uppvärmning!$A6:$I12, MATCH(Miljö!I93,Uppvärmning!$A6:$A12, 0),4)*Miljö!I144 -> 0 | J178: =INDEX(Uppvärmning!$A6:$I12, MATCH(Miljö!J93,Uppvärmning!$A6:$A12, 0),4)*Miljö!J144 -> 0 | K178: =INDEX(Uppvärmning!$A6:$I12, MATCH(Miljö!K93,Uppvärmning!$A6:$A12, 0),4)*Miljö!K144 -> 0 | L178: =INDEX(Uppvärmning!$A6:$I12, MATCH(Miljö!L93,Uppvärmning!$A6:$A12, 0),4)*Miljö!L144 -> 0
A179: Årlig miljöpåverkan, ändrat elbehov | B179: kWh/år | C179: =Uppvärmning!$D$11*Miljö!C145 -> 0 | D179: =Uppvärmning!$D$11*Miljö!D145 -> 0 | E179: =Uppvärmning!$D$11*Miljö!E145 -> 0 | F179: =Uppvärmning!$D$11*Miljö!F145 -> 0 | G179: =Uppvärmning!$D$11*Miljö!G145 -> 0 | H179: =Uppvärmning!$D$11*Miljö!H145 -> 0 | I179: =Uppvärmning!$D$11*Miljö!I145 -> 0 | J179: =Uppvärmning!$D$11*Miljö!J145 -> 0 | K179: =Uppvärmning!$D$11*Miljö!K145 -> 0 | L179: =Uppvärmning!$D$11*Miljö!L145 -> 0
A180: Årlig miljöpåverkan, byte uppvärmning | B180: kWh/år | C180: =IF(Miljö!C98=TRUE,Miljö!C95*Uppvärmning!D63,0) -> 0 | D180: =IF(Miljö!D98=TRUE,Miljö!D95*Uppvärmning!E63,0) -> 0 | E180: =IF(Miljö!E98=TRUE,Miljö!E95*Uppvärmning!F63,0) -> 0 | F180: =IF(Miljö!F98=TRUE,Miljö!F95*Uppvärmning!G63,0) -> 0 | G180: =IF(Miljö!G98=TRUE,Miljö!G95*Uppvärmning!H63,0) -> 0 | H180: =IF(Miljö!H98=TRUE,Miljö!H95*Uppvärmning!I63,0) -> 0 | I180: =IF(Miljö!I98=TRUE,Miljö!I95*Uppvärmning!J63,0) -> 0 | J180: =IF(Miljö!J98=TRUE,Miljö!J95*Uppvärmning!K63,0) -> 0 | K180: =IF(Miljö!K98=TRUE,Miljö!K95*Uppvärmning!L63,0) -> 0 | L180: =IF(Miljö!L98=TRUE,Miljö!L95*Uppvärmning!M63,0) -> 0
A181: Årlig miljöpåverkan, Egen elproduktion | B181: kWh/år | C181: =-Uppvärmning!$D$11*Miljö!C134 -> 0 | D181: =-Uppvärmning!$D$11*Miljö!D134 -> 0 | E181: =-Uppvärmning!$D$11*Miljö!E134 -> 0 | F181: =-Uppvärmning!$D$11*Miljö!F134 -> 0 | G181: =-Uppvärmning!$D$11*Miljö!G134 -> 0 | H181: =-Uppvärmning!$D$11*Miljö!H134 -> 0 | I181: =-Uppvärmning!$D$11*Miljö!I134 -> 0 | J181: =-Uppvärmning!$D$11*Miljö!J134 -> 0 | K181: =-Uppvärmning!$D$11*Miljö!K134 -> 0 | L181: =-Uppvärmning!$D$11*Miljö!L134 -> 0
A182: Total miljöpåverkan per år | B182: kWh/år | C182: =SUM(C178:C181) ->  | D182: 0 | E182: 0 | F182: 0 | G182: 0 | H182: 0 | I182: 0 | J182: 0 | K182: 0 | L182: 0
A184: 7.3.3 Miljöpåverkan avfallshantering | B184: Negativa värden visar en miljöbesparing jämfört med referensfallet där ingen renovering görs
A185: Miljöpåverkan avfallshantering, isolering 1 | B185: kWh | C185: =IF(Miljö!C151=TRUE, INDEX(Material!$A$6:$G$9, MATCH(Miljö!C153,Material!$A6:$A9, 0),7)*Miljö!C154, 0) -> 0 | D185: =IF(Miljö!D151=TRUE, INDEX(Material!$A$6:$G$9, MATCH(Miljö!D153,Material!$A6:$A9, 0),7)*Miljö!D154, 0) -> 0 | E185: =IF(Miljö!E151=TRUE, INDEX(Material!$A$6:$G$9, MATCH(Miljö!E153,Material!$A6:$A9, 0),7)*Miljö!E154, 0) -> 0 | F185: =IF(Miljö!F151=TRUE, INDEX(Material!$A$6:$G$9, MATCH(Miljö!F153,Material!$A6:$A9, 0),7)*Miljö!F154, 0) -> 0 | G185: =IF(Miljö!G151=TRUE, INDEX(Material!$A$6:$G$9, MATCH(Miljö!G153,Material!$A6:$A9, 0),7)*Miljö!G154, 0) -> 0 | H185: =IF(Miljö!H151=TRUE, INDEX(Material!$A$6:$G$9, MATCH(Miljö!H153,Material!$A6:$A9, 0),7)*Miljö!H154, 0) -> 0 | I185: =IF(Miljö!I151=TRUE, INDEX(Material!$A$6:$G$9, MATCH(Miljö!I153,Material!$A6:$A9, 0),7)*Miljö!I154, 0) -> 0 | J185: =IF(Miljö!J151=TRUE, INDEX(Material!$A$6:$G$9, MATCH(Miljö!J153,Material!$A6:$A9, 0),7)*Miljö!J154, 0) -> 0 | K185: =IF(Miljö!K151=TRUE, INDEX(Material!$A$6:$G$9, MATCH(Miljö!K153,Material!$A6:$A9, 0),7)*Miljö!K154, 0) -> 0 | L185: =IF(Miljö!L151=TRUE, INDEX(Material!$A$6:$G$9, MATCH(Miljö!L153,Material!$A6:$A9, 0),7)*Miljö!L154, 0) -> 0
A186: Miljöpåverkan avfallshantering, isolering 2 | B186: kWh | C186: =IF(Miljö!C161=TRUE, INDEX(Material!$A$6:$G$9, MATCH(Miljö!C163,Material!$A6:$A9, 0),7)*Miljö!C164, 0) -> 0 | D186: =IF(Miljö!D161=TRUE, INDEX(Material!$A$6:$G$9, MATCH(Miljö!D163,Material!$A6:$A9, 0),7)*Miljö!D164, 0) -> 0 | E186: =IF(Miljö!E161=TRUE, INDEX(Material!$A$6:$G$9, MATCH(Miljö!E163,Material!$A6:$A9, 0),7)*Miljö!E164, 0) -> 0 | F186: =IF(Miljö!F161=TRUE, INDEX(Material!$A$6:$G$9, MATCH(Miljö!F163,Material!$A6:$A9, 0),7)*Miljö!F164, 0) -> 0 | G186: =IF(Miljö!G161=TRUE, INDEX(Material!$A$6:$G$9, MATCH(Miljö!G163,Material!$A6:$A9, 0),7)*Miljö!G164, 0) -> 0 | H186: =IF(Miljö!H161=TRUE, INDEX(Material!$A$6:$G$9, MATCH(Miljö!H163,Material!$A6:$A9, 0),7)*Miljö!H164, 0) -> 0 | I186: =IF(Miljö!I161=TRUE, INDEX(Material!$A$6:$G$9, MATCH(Miljö!I163,Material!$A6:$A9, 0),7)*Miljö!I164, 0) -> 0 | J186: =IF(Miljö!J161=TRUE, INDEX(Material!$A$6:$G$9, MATCH(Miljö!J163,Material!$A6:$A9, 0),7)*Miljö!J164, 0) -> 0 | K186: =IF(Miljö!K161=TRUE, INDEX(Material!$A$6:$G$9, MATCH(Miljö!K163,Material!$A6:$A9, 0),7)*Miljö!K164, 0) -> 0 | L186: =IF(Miljö!L161=TRUE, INDEX(Material!$A$6:$G$9, MATCH(Miljö!L163,Material!$A6:$A9, 0),7)*Miljö!L164, 0) -> 0
A187: Miljöpåverkan avfallshantering, fasadsystem | B187: kWh | C187: =IF(Miljö!C171=TRUE, INDEX(Material!$A33:$G51, MATCH(Miljö!C173,Material!$A33:$A51, 0),7)*Miljö!C174, 0) -> 0 | D187: =IF(Miljö!D171=TRUE, INDEX(Material!$A33:$G51, MATCH(Miljö!D173,Material!$A33:$A51, 0),7)*Miljö!D174, 0) -> 0 | E187: =IF(Miljö!E171=TRUE, INDEX(Material!$A33:$G51, MATCH(Miljö!E173,Material!$A33:$A51, 0),7)*Miljö!E174, 0) -> 0 | F187: =IF(Miljö!F171=TRUE, INDEX(Material!$A33:$G51, MATCH(Miljö!F173,Material!$A33:$A51, 0),7)*Miljö!F174, 0) -> 0 | G187: =IF(Miljö!G171=TRUE, INDEX(Material!$A33:$G51, MATCH(Miljö!G173,Material!$A33:$A51, 0),7)*Miljö!G174, 0) -> 0 | H187: =IF(Miljö!H171=TRUE, INDEX(Material!$A33:$G51, MATCH(Miljö!H173,Material!$A33:$A51, 0),7)*Miljö!H174, 0) -> 0 | I187: =IF(Miljö!I171=TRUE, INDEX(Material!$A33:$G51, MATCH(Miljö!I173,Material!$A33:$A51, 0),7)*Miljö!I174, 0) -> 0 | J187: =IF(Miljö!J171=TRUE, INDEX(Material!$A33:$G51, MATCH(Miljö!J173,Material!$A33:$A51, 0),7)*Miljö!J174, 0) -> 0 | K187: =IF(Miljö!K171=TRUE, INDEX(Material!$A33:$G51, MATCH(Miljö!K173,Material!$A33:$A51, 0),7)*Miljö!K174, 0) -> 0 | L187: =IF(Miljö!L171=TRUE, INDEX(Material!$A33:$G51, MATCH(Miljö!L173,Material!$A33:$A51, 0),7)*Miljö!L174, 0) -> 0
A188: Miljöpåverkan avfallshantering, fönster | B188: kWh | C188: =IF(Miljö!C181=TRUE, INDEX(Material!$A15:$G18, MATCH(Miljö!C183,Material!$A15:$A18, 0),7)*Miljö!C184, 0) -> 0 | D188: =IF(Miljö!D181=TRUE, INDEX(Material!$A15:$G18, MATCH(Miljö!D183,Material!$A15:$A18, 0),7)*Miljö!D184, 0) -> 0 | E188: =IF(Miljö!E181=TRUE, INDEX(Material!$A15:$G18, MATCH(Miljö!E183,Material!$A15:$A18, 0),7)*Miljö!E184, 0) -> 0 | F188: =IF(Miljö!F181=TRUE, INDEX(Material!$A15:$G18, MATCH(Miljö!F183,Material!$A15:$A18, 0),7)*Miljö!F184, 0) -> 0 | G188: =IF(Miljö!G181=TRUE, INDEX(Material!$A15:$G18, MATCH(Miljö!G183,Material!$A15:$A18, 0),7)*Miljö!G184, 0) -> 0 | H188: =IF(Miljö!H181=TRUE, INDEX(Material!$A15:$G18, MATCH(Miljö!H183,Material!$A15:$A18, 0),7)*Miljö!H184, 0) -> 0 | I188: =IF(Miljö!I181=TRUE, INDEX(Material!$A15:$G18, MATCH(Miljö!I183,Material!$A15:$A18, 0),7)*Miljö!I184, 0) -> 0 | J188: =IF(Miljö!J181=TRUE, INDEX(Material!$A15:$G18, MATCH(Miljö!J183,Material!$A15:$A18, 0),7)*Miljö!J184, 0) -> 0 | K188: =IF(Miljö!K181=TRUE, INDEX(Material!$A15:$G18, MATCH(Miljö!K183,Material!$A15:$A18, 0),7)*Miljö!K184, 0) -> 0 | L188: =IF(Miljö!L181=TRUE, INDEX(Material!$A15:$G18, MATCH(Miljö!L183,Material!$A15:$A18, 0),7)*Miljö!L184, 0) -> 0
A189: Miljöpåverkan avfallshantering, dörrar | B189: kWh | C189: =IF(Miljö!C191=TRUE, INDEX(Material!$A24:$G27, MATCH(Miljö!C193,Material!$A15:$A18, 0),7)*Miljö!C194, 0) -> 0 | D189: =IF(Miljö!D191=TRUE, INDEX(Material!$A24:$G27, MATCH(Miljö!D193,Material!$A15:$A18, 0),7)*Miljö!D194, 0) -> 0 | E189: =IF(Miljö!E191=TRUE, INDEX(Material!$A24:$G27, MATCH(Miljö!E193,Material!$A15:$A18, 0),7)*Miljö!E194, 0) -> 0 | F189: =IF(Miljö!F191=TRUE, INDEX(Material!$A24:$G27, MATCH(Miljö!F193,Material!$A15:$A18, 0),7)*Miljö!F194, 0) -> 0 | G189: =IF(Miljö!G191=TRUE, INDEX(Material!$A24:$G27, MATCH(Miljö!G193,Material!$A15:$A18, 0),7)*Miljö!G194, 0) -> 0 | H189: =IF(Miljö!H191=TRUE, INDEX(Material!$A24:$G27, MATCH(Miljö!H193,Material!$A15:$A18, 0),7)*Miljö!H194, 0) -> 0 | I189: =IF(Miljö!I191=TRUE, INDEX(Material!$A24:$G27, MATCH(Miljö!I193,Material!$A15:$A18, 0),7)*Miljö!I194, 0) -> 0 | J189: =IF(Miljö!J191=TRUE, INDEX(Material!$A24:$G27, MATCH(Miljö!J193,Material!$A15:$A18, 0),7)*Miljö!J194, 0) -> 0 | K189: =IF(Miljö!K191=TRUE, INDEX(Material!$A24:$G27, MATCH(Miljö!K193,Material!$A15:$A18, 0),7)*Miljö!K194, 0) -> 0 | L189: =IF(Miljö!L191=TRUE, INDEX(Material!$A24:$G27, MATCH(Miljö!L193,Material!$A15:$A18, 0),7)*Miljö!L194, 0) -> 0
A190: Miljöpåverkan avfallshantering, byte uppvärmning | B190: kWh | C190: =IF(Miljö!C98=TRUE,INDEX(Uppvärmning!$A$75:$M$81, MATCH(Miljö!C94,Uppvärmning!$A$75:$A$81, 0),4), 0) -> 0 | D190: =IF(Miljö!D98=TRUE,INDEX(Uppvärmning!$A$75:$M$81, MATCH(Miljö!D94,Uppvärmning!$A$75:$A$81, 0),5), 0) -> 0 | E190: =IF(Miljö!E98=TRUE,INDEX(Uppvärmning!$A$75:$M$81, MATCH(Miljö!E94,Uppvärmning!$A$75:$A$81, 0),6), 0) -> 0 | F190: =IF(Miljö!F98=TRUE,INDEX(Uppvärmning!$A$75:$M$81, MATCH(Miljö!F94,Uppvärmning!$A$75:$A$81, 0),7), 0) -> 0 | G190: =IF(Miljö!G98=TRUE,INDEX(Uppvärmning!$A$75:$M$81, MATCH(Miljö!G94,Uppvärmning!$A$75:$A$81, 0),8), 0) -> 0 | H190: =IF(Miljö!H98=TRUE,INDEX(Uppvärmning!$A$75:$M$81, MATCH(Miljö!H94,Uppvärmning!$A$75:$A$81, 0),9), 0) -> 0 | I190: =IF(Miljö!I98=TRUE,INDEX(Uppvärmning!$A$75:$M$81, MATCH(Miljö!I94,Uppvärmning!$A$75:$A$81, 0),10), 0) -> 0 | J190: =IF(Miljö!J98=TRUE,INDEX(Uppvärmning!$A$75:$M$81, MATCH(Miljö!J94,Uppvärmning!$A$75:$A$81, 0),11), 0) -> 0 | K190: =IF(Miljö!K98=TRUE,INDEX(Uppvärmning!$A$75:$M$81, MATCH(Miljö!K94,Uppvärmning!$A$75:$A$81, 0),12), 0) -> 0 | L190: =IF(Miljö!L98=TRUE,INDEX(Uppvärmning!$A$75:$M$81, MATCH(Miljö!L94,Uppvärmning!$A$75:$A$81, 0),13), 0) -> 0 | M190: Avfallshantering av kringutrustning (t.ex. borrhål och oljetank) ej inkluderad
A191: Miljöpåverkan avfallshantering, cirkulationspump | B191: kWh | C191: =IF(Miljö!C111=TRUE,Miljö!C$113*Material!$G$138, 0) -> 0 | D191: =IF(Miljö!D111=TRUE,Miljö!D$113*Material!$G$138, 0) -> 0 | E191: =IF(Miljö!E111=TRUE,Miljö!E$113*Material!$G$138, 0) -> 0 | F191: =IF(Miljö!F111=TRUE,Miljö!F$113*Material!$G$138, 0) -> 0 | G191: =IF(Miljö!G111=TRUE,Miljö!G$113*Material!$G$138, 0) -> 0 | H191: =IF(Miljö!H111=TRUE,Miljö!H$113*Material!$G$138, 0) -> 0 | I191: =IF(Miljö!I111=TRUE,Miljö!I$113*Material!$G$138, 0) -> 0 | J191: =IF(Miljö!J111=TRUE,Miljö!J$113*Material!$G$138, 0) -> 0 | K191: =IF(Miljö!K111=TRUE,Miljö!K$113*Material!$G$138, 0) -> 0 | L191: =IF(Miljö!L111=TRUE,Miljö!L$113*Material!$G$138, 0) -> 0
A192: Miljöpåverkan avfallshantering, ventilationskanaler | B192: kWh | C192: =IF(Miljö!C365=TRUE, INDEX(Material!$A110:$G113, MATCH(Miljö!C367,Material!$A110:$A113, 0),7)*Miljö!C368,0) -> 0 | D192: =IF(Miljö!D365=TRUE, INDEX(Material!$A110:$G113, MATCH(Miljö!D367,Material!$A110:$A113, 0),7)*Miljö!D368,0) -> 0 | E192: =IF(Miljö!E365=TRUE, INDEX(Material!$A110:$G113, MATCH(Miljö!E367,Material!$A110:$A113, 0),7)*Miljö!E368,0) -> 0 | F192: =IF(Miljö!F365=TRUE, INDEX(Material!$A110:$G113, MATCH(Miljö!F367,Material!$A110:$A113, 0),7)*Miljö!F368,0) -> 0 | G192: =IF(Miljö!G365=TRUE, INDEX(Material!$A110:$G113, MATCH(Miljö!G367,Material!$A110:$A113, 0),7)*Miljö!G368,0) -> 0 | H192: =IF(Miljö!H365=TRUE, INDEX(Material!$A110:$G113, MATCH(Miljö!H367,Material!$A110:$A113, 0),7)*Miljö!H368,0) -> 0 | I192: =IF(Miljö!I365=TRUE, INDEX(Material!$A110:$G113, MATCH(Miljö!I367,Material!$A110:$A113, 0),7)*Miljö!I368,0) -> 0 | J192: =IF(Miljö!J365=TRUE, INDEX(Material!$A110:$G113, MATCH(Miljö!J367,Material!$A110:$A113, 0),7)*Miljö!J368,0) -> 0 | K192: =IF(Miljö!K365=TRUE, INDEX(Material!$A110:$G113, MATCH(Miljö!K367,Material!$A110:$A113, 0),7)*Miljö!K368,0) -> 0 | L192: =IF(Miljö!L365=TRUE, INDEX(Material!$A110:$G113, MATCH(Miljö!L367,Material!$A110:$A113, 0),7)*Miljö!L368,0) -> 0
A193: Miljöpåverkan avfallshantering, luftflödesaggregat | B193: kWh | C193: =IF(Miljö!C120=TRUE,INDEX(Material!$A119:$G122, MATCH(Miljö!C122,Material!$A119:$A122, 0),7)*Miljö!C123,0) -> 0 | D193: =IF(Miljö!D120=TRUE,INDEX(Material!$A119:$G122, MATCH(Miljö!D122,Material!$A119:$A122, 0),7)*Miljö!D123,0) -> 0 | E193: =IF(Miljö!E120=TRUE,INDEX(Material!$A119:$G122, MATCH(Miljö!E122,Material!$A119:$A122, 0),7)*Miljö!E123,0) -> 0 | F193: =IF(Miljö!F120=TRUE,INDEX(Material!$A119:$G122, MATCH(Miljö!F122,Material!$A119:$A122, 0),7)*Miljö!F123,0) -> 0 | G193: =IF(Miljö!G120=TRUE,INDEX(Material!$A119:$G122, MATCH(Miljö!G122,Material!$A119:$A122, 0),7)*Miljö!G123,0) -> 0 | H193: =IF(Miljö!H120=TRUE,INDEX(Material!$A119:$G122, MATCH(Miljö!H122,Material!$A119:$A122, 0),7)*Miljö!H123,0) -> 0 | I193: =IF(Miljö!I120=TRUE,INDEX(Material!$A119:$G122, MATCH(Miljö!I122,Material!$A119:$A122, 0),7)*Miljö!I123,0) -> 0 | J193: =IF(Miljö!J120=TRUE,INDEX(Material!$A119:$G122, MATCH(Miljö!J122,Material!$A119:$A122, 0),7)*Miljö!J123,0) -> 0 | K193: =IF(Miljö!K120=TRUE,INDEX(Material!$A119:$G122, MATCH(Miljö!K122,Material!$A119:$A122, 0),7)*Miljö!K123,0) -> 0 | L193: =IF(Miljö!L120=TRUE,INDEX(Material!$A119:$G122, MATCH(Miljö!L122,Material!$A119:$A122, 0),7)*Miljö!L123,0) -> 0
A194: Miljöpåverkan avfallshantering, don och dämpare (vent) | B194: kWh | C194: =IF(Miljö!C375=TRUE,Material!$G$128*Miljö!C377,0) -> 0 | D194: =IF(Miljö!D375=TRUE,Material!$G$128*Miljö!D377,0) -> 0 | E194: =IF(Miljö!E375=TRUE,Material!$G$128*Miljö!E377,0) -> 0 | F194: =IF(Miljö!F375=TRUE,Material!$G$128*Miljö!F377,0) -> 0 | G194: =IF(Miljö!G375=TRUE,Material!$G$128*Miljö!G377,0) -> 0 | H194: =IF(Miljö!H375=TRUE,Material!$G$128*Miljö!H377,0) -> 0 | I194: =IF(Miljö!I375=TRUE,Material!$G$128*Miljö!I377,0) -> 0 | J194: =IF(Miljö!J375=TRUE,Material!$G$128*Miljö!J377,0) -> 0 | K194: =IF(Miljö!K375=TRUE,Material!$G$128*Miljö!K377,0) -> 0 | L194: =IF(Miljö!L375=TRUE,Material!$G$128*Miljö!L377,0) -> 0
A195: Trä konstruktionsvirke | B195: kWh | C195: =IF(Miljö!C$204=TRUE,Material!$G$57*Miljö!C$206,0) -> 0 | D195: =IF(Miljö!D$204=TRUE,Material!$G$57*Miljö!D$206,0) -> 0 | E195: =IF(Miljö!E$204=TRUE,Material!$G$57*Miljö!E$206,0) -> 0 | F195: =IF(Miljö!F$204=TRUE,Material!$G$57*Miljö!F$206,0) -> 0 | G195: =IF(Miljö!G$204=TRUE,Material!$G$57*Miljö!G$206,0) -> 0 | H195: =IF(Miljö!H$204=TRUE,Material!$G$57*Miljö!H$206,0) -> 0 | I195: =IF(Miljö!I$204=TRUE,Material!$G$57*Miljö!I$206,0) -> 0 | J195: =IF(Miljö!J$204=TRUE,Material!$G$57*Miljö!J$206,0) -> 0 | K195: =IF(Miljö!K$204=TRUE,Material!$G$57*Miljö!K$206,0) -> 0 | L195: =IF(Miljö!L$204=TRUE,Material!$G$57*Miljö!L$206,0) -> 0
A196: Trä målad träfasad | B196: kWh | C196: =IF(Miljö!C$213=TRUE,Material!$G$58*Miljö!C$215,0) -> 0 | D196: =IF(Miljö!D$213=TRUE,Material!$G$58*Miljö!D$215,0) -> 0 | E196: =IF(Miljö!E$213=TRUE,Material!$G$58*Miljö!E$215,0) -> 0 | F196: =IF(Miljö!F$213=TRUE,Material!$G$58*Miljö!F$215,0) -> 0 | G196: =IF(Miljö!G$213=TRUE,Material!$G$58*Miljö!G$215,0) -> 0 | H196: =IF(Miljö!H$213=TRUE,Material!$G$58*Miljö!H$215,0) -> 0 | I196: =IF(Miljö!I$213=TRUE,Material!$G$58*Miljö!I$215,0) -> 0 | J196: =IF(Miljö!J$213=TRUE,Material!$G$58*Miljö!J$215,0) -> 0 | K196: =IF(Miljö!K$213=TRUE,Material!$G$58*Miljö!K$215,0) -> 0 | L196: =IF(Miljö!L$213=TRUE,Material!$G$58*Miljö!L$215,0) -> 0
A197: Trä invändig träpanel | B197: kWh | C197: =IF(Miljö!C$222=TRUE,Material!$G$59*Miljö!C$224,0) -> 0 | D197: =IF(Miljö!D$222=TRUE,Material!$G$59*Miljö!D$224,0) -> 0 | E197: =IF(Miljö!E$222=TRUE,Material!$G$59*Miljö!E$224,0) -> 0 | F197: =IF(Miljö!F$222=TRUE,Material!$G$59*Miljö!F$224,0) -> 0 | G197: =IF(Miljö!G$222=TRUE,Material!$G$59*Miljö!G$224,0) -> 0 | H197: =IF(Miljö!H$222=TRUE,Material!$G$59*Miljö!H$224,0) -> 0 | I197: =IF(Miljö!I$222=TRUE,Material!$G$59*Miljö!I$224,0) -> 0 | J197: =IF(Miljö!J$222=TRUE,Material!$G$59*Miljö!J$224,0) -> 0 | K197: =IF(Miljö!K$222=TRUE,Material!$G$59*Miljö!K$224,0) -> 0 | L197: =IF(Miljö!L$222=TRUE,Material!$G$59*Miljö!L$224,0) -> 0
A198: Betong bjälklag | B198: kWh | C198: =IF(Miljö!C$231=TRUE,INDEX(Material!$A$65:$G$67,MATCH(Miljö!C$233,Material!$A$65:$A$67,0),7)*Miljö!C$234,0) -> 0 | D198: =IF(Miljö!D$231=TRUE,INDEX(Material!$A$65:$G$67,MATCH(Miljö!D$233,Material!$A$65:$A$67,0),7)*Miljö!D$234,0) -> 0 | E198: =IF(Miljö!E$231=TRUE,INDEX(Material!$A$65:$G$67,MATCH(Miljö!E$233,Material!$A$65:$A$67,0),7)*Miljö!E$234,0) -> 0 | F198: =IF(Miljö!F$231=TRUE,INDEX(Material!$A$65:$G$67,MATCH(Miljö!F$233,Material!$A$65:$A$67,0),7)*Miljö!F$234,0) -> 0 | G198: =IF(Miljö!G$231=TRUE,INDEX(Material!$A$65:$G$67,MATCH(Miljö!G$233,Material!$A$65:$A$67,0),7)*Miljö!G$234,0) -> 0 | H198: =IF(Miljö!H$231=TRUE,INDEX(Material!$A$65:$G$67,MATCH(Miljö!H$233,Material!$A$65:$A$67,0),7)*Miljö!H$234,0) -> 0 | I198: =IF(Miljö!I$231=TRUE,INDEX(Material!$A$65:$G$67,MATCH(Miljö!I$233,Material!$A$65:$A$67,0),7)*Miljö!I$234,0) -> 0 | J198: =IF(Miljö!J$231=TRUE,INDEX(Material!$A$65:$G$67,MATCH(Miljö!J$233,Material!$A$65:$A$67,0),7)*Miljö!J$234,0) -> 0 | K198: =IF(Miljö!K$231=TRUE,INDEX(Material!$A$65:$G$67,MATCH(Miljö!K$233,Material!$A$65:$A$67,0),7)*Miljö!K$234,0) -> 0 | L198: =IF(Miljö!L$231=TRUE,INDEX(Material!$A$65:$G$67,MATCH(Miljö!L$233,Material!$A$65:$A$67,0),7)*Miljö!L$234,0) -> 0
A199: Betong bärande ytterväggar | B199: kWh | C199: =IF(Miljö!C$241=TRUE,INDEX(Material!$A$74:$G$75,MATCH(Miljö!C$243,Material!$A$74:$A$75,0),7)*Miljö!C$244,0) -> 0 | D199: =IF(Miljö!D$241=TRUE,INDEX(Material!$A$74:$G$75,MATCH(Miljö!D$243,Material!$A$74:$A$75,0),7)*Miljö!D$244,0) -> 0 | E199: =IF(Miljö!E$241=TRUE,INDEX(Material!$A$74:$G$75,MATCH(Miljö!E$243,Material!$A$74:$A$75,0),7)*Miljö!E$244,0) -> 0 | F199: =IF(Miljö!F$241=TRUE,INDEX(Material!$A$74:$G$75,MATCH(Miljö!F$243,Material!$A$74:$A$75,0),7)*Miljö!F$244,0) -> 0 | G199: =IF(Miljö!G$241=TRUE,INDEX(Material!$A$74:$G$75,MATCH(Miljö!G$243,Material!$A$74:$A$75,0),7)*Miljö!G$244,0) -> 0 | H199: =IF(Miljö!H$241=TRUE,INDEX(Material!$A$74:$G$75,MATCH(Miljö!H$243,Material!$A$74:$A$75,0),7)*Miljö!H$244,0) -> 0 | I199: =IF(Miljö!I$241=TRUE,INDEX(Material!$A$74:$G$75,MATCH(Miljö!I$243,Material!$A$74:$A$75,0),7)*Miljö!I$244,0) -> 0 | J199: =IF(Miljö!J$241=TRUE,INDEX(Material!$A$74:$G$75,MATCH(Miljö!J$243,Material!$A$74:$A$75,0),7)*Miljö!J$244,0) -> 0 | K199: =IF(Miljö!K$241=TRUE,INDEX(Material!$A$74:$G$75,MATCH(Miljö!K$243,Material!$A$74:$A$75,0),7)*Miljö!K$244,0) -> 0 | L199: =IF(Miljö!L$241=TRUE,INDEX(Material!$A$74:$G$75,MATCH(Miljö!L$243,Material!$A$74:$A$75,0),7)*Miljö!L$244,0) -> 0
A200: Betong icke-bärande ytterväggar | B200: kWh | C200: =IF(Miljö!C$251=TRUE,Material!$G$77*Miljö!C$253,0) -> 0 | D200: =IF(Miljö!D$251=TRUE,Material!$G$77*Miljö!D$253,0) -> 0 | E200: =IF(Miljö!E$251=TRUE,Material!$G$77*Miljö!E$253,0) -> 0 | F200: =IF(Miljö!F$251=TRUE,Material!$G$77*Miljö!F$253,0) -> 0 | G200: =IF(Miljö!G$251=TRUE,Material!$G$77*Miljö!G$253,0) -> 0 | H200: =IF(Miljö!H$251=TRUE,Material!$G$77*Miljö!H$253,0) -> 0 | I200: =IF(Miljö!I$251=TRUE,Material!$G$77*Miljö!I$253,0) -> 0 | J200: =IF(Miljö!J$251=TRUE,Material!$G$77*Miljö!J$253,0) -> 0 | K200: =IF(Miljö!K$251=TRUE,Material!$G$77*Miljö!K$253,0) -> 0 | L200: =IF(Miljö!L$251=TRUE,Material!$G$77*Miljö!L$253,0) -> 0
A201: Betong innerväggar | B201: kWh | C201: =IF(Miljö!C$260=TRUE,INDEX(Material!$A$84:$G$85,MATCH(Miljö!C$262,Material!$A$84:$A$85,0),7)*Miljö!C$263,0) -> 0 | D201: =IF(Miljö!D$260=TRUE,INDEX(Material!$A$84:$G$85,MATCH(Miljö!D$262,Material!$A$84:$A$85,0),7)*Miljö!D$263,0) -> 0 | E201: =IF(Miljö!E$260=TRUE,INDEX(Material!$A$84:$G$85,MATCH(Miljö!E$262,Material!$A$84:$A$85,0),7)*Miljö!E$263,0) -> 0 | F201: =IF(Miljö!F$260=TRUE,INDEX(Material!$A$84:$G$85,MATCH(Miljö!F$262,Material!$A$84:$A$85,0),7)*Miljö!F$263,0) -> 0 | G201: =IF(Miljö!G$260=TRUE,INDEX(Material!$A$84:$G$85,MATCH(Miljö!G$262,Material!$A$84:$A$85,0),7)*Miljö!G$263,0) -> 0 | H201: =IF(Miljö!H$260=TRUE,INDEX(Material!$A$84:$G$85,MATCH(Miljö!H$262,Material!$A$84:$A$85,0),7)*Miljö!H$263,0) -> 0 | I201: =IF(Miljö!I$260=TRUE,INDEX(Material!$A$84:$G$85,MATCH(Miljö!I$262,Material!$A$84:$A$85,0),7)*Miljö!I$263,0) -> 0 | J201: =IF(Miljö!J$260=TRUE,INDEX(Material!$A$84:$G$85,MATCH(Miljö!J$262,Material!$A$84:$A$85,0),7)*Miljö!J$263,0) -> 0 | K201: =IF(Miljö!K$260=TRUE,INDEX(Material!$A$84:$G$85,MATCH(Miljö!K$262,Material!$A$84:$A$85,0),7)*Miljö!K$263,0) -> 0 | L201: =IF(Miljö!L$260=TRUE,INDEX(Material!$A$84:$G$85,MATCH(Miljö!L$262,Material!$A$84:$A$85,0),7)*Miljö!L$263,0) -> 0
A202: Puts | B202: kWh | C202: =IF(Miljö!C$270=TRUE,Material!$G$90*Miljö!C$272,0) -> 0 | D202: =IF(Miljö!D$270=TRUE,Material!$G$90*Miljö!D$272,0) -> 0 | E202: =IF(Miljö!E$270=TRUE,Material!$G$90*Miljö!E$272,0) -> 0 | F202: =IF(Miljö!F$270=TRUE,Material!$G$90*Miljö!F$272,0) -> 0 | G202: =IF(Miljö!G$270=TRUE,Material!$G$90*Miljö!G$272,0) -> 0 | H202: =IF(Miljö!H$270=TRUE,Material!$G$90*Miljö!H$272,0) -> 0 | I202: =IF(Miljö!I$270=TRUE,Material!$G$90*Miljö!I$272,0) -> 0 | J202: =IF(Miljö!J$270=TRUE,Material!$G$90*Miljö!J$272,0) -> 0 | K202: =IF(Miljö!K$270=TRUE,Material!$G$90*Miljö!K$272,0) -> 0 | L202: =IF(Miljö!L$270=TRUE,Material!$G$90*Miljö!L$272,0) -> 0
A203: Gipsskivor | B203: kWh | C203: =IF(Miljö!C$279=TRUE,Material!$G$91*Miljö!C$281,0) -> 0 | D203: =IF(Miljö!D$279=TRUE,Material!$G$91*Miljö!D$281,0) -> 0 | E203: =IF(Miljö!E$279=TRUE,Material!$G$91*Miljö!E$281,0) -> 0 | F203: =IF(Miljö!F$279=TRUE,Material!$G$91*Miljö!F$281,0) -> 0 | G203: =IF(Miljö!G$279=TRUE,Material!$G$91*Miljö!G$281,0) -> 0 | H203: =IF(Miljö!H$279=TRUE,Material!$G$91*Miljö!H$281,0) -> 0 | I203: =IF(Miljö!I$279=TRUE,Material!$G$91*Miljö!I$281,0) -> 0 | J203: =IF(Miljö!J$279=TRUE,Material!$G$91*Miljö!J$281,0) -> 0 | K203: =IF(Miljö!K$279=TRUE,Material!$G$91*Miljö!K$281,0) -> 0 | L203: =IF(Miljö!L$279=TRUE,Material!$G$91*Miljö!L$281,0) -> 0
A204: Takbeläggning | B204: kWh | C204: =IF(Miljö!C$288=TRUE,INDEX(Material!$A$98:$G$102,MATCH(Miljö!C$290,Material!$A$98:$A$102,0),7)*Miljö!C$291,0) -> 0 | D204: =IF(Miljö!D$288=TRUE,INDEX(Material!$A$98:$G$102,MATCH(Miljö!D$290,Material!$A$98:$A$102,0),7)*Miljö!D$291,0) -> 0 | E204: =IF(Miljö!E$288=TRUE,INDEX(Material!$A$98:$G$102,MATCH(Miljö!E$290,Material!$A$98:$A$102,0),7)*Miljö!E$291,0) -> 0 | F204: =IF(Miljö!F$288=TRUE,INDEX(Material!$A$98:$G$102,MATCH(Miljö!F$290,Material!$A$98:$A$102,0),7)*Miljö!F$291,0) -> 0 | G204: =IF(Miljö!G$288=TRUE,INDEX(Material!$A$98:$G$102,MATCH(Miljö!G$290,Material!$A$98:$A$102,0),7)*Miljö!G$291,0) -> 0 | H204: =IF(Miljö!H$288=TRUE,INDEX(Material!$A$98:$G$102,MATCH(Miljö!H$290,Material!$A$98:$A$102,0),7)*Miljö!H$291,0) -> 0 | I204: =IF(Miljö!I$288=TRUE,INDEX(Material!$A$98:$G$102,MATCH(Miljö!I$290,Material!$A$98:$A$102,0),7)*Miljö!I$291,0) -> 0 | J204: =IF(Miljö!J$288=TRUE,INDEX(Material!$A$98:$G$102,MATCH(Miljö!J$290,Material!$A$98:$A$102,0),7)*Miljö!J$291,0) -> 0 | K204: =IF(Miljö!K$288=TRUE,INDEX(Material!$A$98:$G$102,MATCH(Miljö!K$290,Material!$A$98:$A$102,0),7)*Miljö!K$291,0) -> 0 | L204: =IF(Miljö!L$288=TRUE,INDEX(Material!$A$98:$G$102,MATCH(Miljö!L$290,Material!$A$98:$A$102,0),7)*Miljö!L$291,0) -> 0
A205: Miljöpåverkan avfallshantering, radiatorer | B205: kWh | C205: =IF(Miljö!C301=TRUE, INDEX(Material!$A$146:$G$149, MATCH(Miljö!C303,Material!$A$146:$A$149, 0),7)*Miljö!C304, 0) -> 0 | D205: =IF(Miljö!D301=TRUE, INDEX(Material!$A$146:$G$149, MATCH(Miljö!D303,Material!$A$146:$A$149, 0),7)*Miljö!D304, 0) -> 0 | E205: =IF(Miljö!E301=TRUE, INDEX(Material!$A$146:$G$149, MATCH(Miljö!E303,Material!$A$146:$A$149, 0),7)*Miljö!E304, 0) -> 0 | F205: =IF(Miljö!F301=TRUE, INDEX(Material!$A$146:$G$149, MATCH(Miljö!F303,Material!$A$146:$A$149, 0),7)*Miljö!F304, 0) -> 0 | G205: =IF(Miljö!G301=TRUE, INDEX(Material!$A$146:$G$149, MATCH(Miljö!G303,Material!$A$146:$A$149, 0),7)*Miljö!G304, 0) -> 0 | H205: =IF(Miljö!H301=TRUE, INDEX(Material!$A$146:$G$149, MATCH(Miljö!H303,Material!$A$146:$A$149, 0),7)*Miljö!H304, 0) -> 0 | I205: =IF(Miljö!I301=TRUE, INDEX(Material!$A$146:$G$149, MATCH(Miljö!I303,Material!$A$146:$A$149, 0),7)*Miljö!I304, 0) -> 0 | J205: =IF(Miljö!J301=TRUE, INDEX(Material!$A$146:$G$149, MATCH(Miljö!J303,Material!$A$146:$A$149, 0),7)*Miljö!J304, 0) -> 0 | K205: =IF(Miljö!K301=TRUE, INDEX(Material!$A$146:$G$149, MATCH(Miljö!K303,Material!$A$146:$A$149, 0),7)*Miljö!K304, 0) -> 0 | L205: =IF(Miljö!L301=TRUE, INDEX(Material!$A$146:$G$149, MATCH(Miljö!L303,Material!$A$146:$A$149, 0),7)*Miljö!L304, 0) -> 0
A206: Miljöpåverkan avfallshantering, kopparrör | B206: kWh | C206: =IF(Miljö!C311=TRUE,Miljö!C313*Material!$G$155,0) -> 0 | D206: =IF(Miljö!D311=TRUE,Miljö!D313*Material!$G$155,0) -> 0 | E206: =IF(Miljö!E311=TRUE,Miljö!E313*Material!$G$155,0) -> 0 | F206: =IF(Miljö!F311=TRUE,Miljö!F313*Material!$G$155,0) -> 0 | G206: =IF(Miljö!G311=TRUE,Miljö!G313*Material!$G$155,0) -> 0 | H206: =IF(Miljö!H311=TRUE,Miljö!H313*Material!$G$155,0) -> 0 | I206: =IF(Miljö!I311=TRUE,Miljö!I313*Material!$G$155,0) -> 0 | J206: =IF(Miljö!J311=TRUE,Miljö!J313*Material!$G$155,0) -> 0 | K206: =IF(Miljö!K311=TRUE,Miljö!K313*Material!$G$155,0) -> 0 | L206: =IF(Miljö!L311=TRUE,Miljö!L313*Material!$G$155,0) -> 0
A207: Miljöpåverkan avfallshantering, PEX-rör | B207: kWh | C207: =IF(Miljö!C320=TRUE,Miljö!C322*Material!$G$156,0) -> 0 | D207: =IF(Miljö!D320=TRUE,Miljö!D322*Material!$G$156,0) -> 0 | E207: =IF(Miljö!E320=TRUE,Miljö!E322*Material!$G$156,0) -> 0 | F207: =IF(Miljö!F320=TRUE,Miljö!F322*Material!$G$156,0) -> 0 | G207: =IF(Miljö!G320=TRUE,Miljö!G322*Material!$G$156,0) -> 0 | H207: =IF(Miljö!H320=TRUE,Miljö!H322*Material!$G$156,0) -> 0 | I207: =IF(Miljö!I320=TRUE,Miljö!I322*Material!$G$156,0) -> 0 | J207: =IF(Miljö!J320=TRUE,Miljö!J322*Material!$G$156,0) -> 0 | K207: =IF(Miljö!K320=TRUE,Miljö!K322*Material!$G$156,0) -> 0 | L207: =IF(Miljö!L320=TRUE,Miljö!L322*Material!$G$156,0) -> 0
A208: Miljöpåverkan avfallshantering, PP-rör | B208: kWh | C208: =IF(Miljö!C329=TRUE,Miljö!C331*Material!$G$157,0) -> 0 | D208: =IF(Miljö!D329=TRUE,Miljö!D331*Material!$G$157,0) -> 0 | E208: =IF(Miljö!E329=TRUE,Miljö!E331*Material!$G$157,0) -> 0 | F208: =IF(Miljö!F329=TRUE,Miljö!F331*Material!$G$157,0) -> 0 | G208: =IF(Miljö!G329=TRUE,Miljö!G331*Material!$G$157,0) -> 0 | H208: =IF(Miljö!H329=TRUE,Miljö!H331*Material!$G$157,0) -> 0 | I208: =IF(Miljö!I329=TRUE,Miljö!I331*Material!$G$157,0) -> 0 | J208: =IF(Miljö!J329=TRUE,Miljö!J331*Material!$G$157,0) -> 0 | K208: =IF(Miljö!K329=TRUE,Miljö!K331*Material!$G$157,0) -> 0 | L208: =IF(Miljö!L329=TRUE,Miljö!L331*Material!$G$157,0) -> 0
A209: Miljöpåverkan avfallshantering, järnrör | B209: kWh | C209: =IF(Miljö!C338=TRUE,Miljö!C340*Material!$G$158,0) -> 0 | D209: =IF(Miljö!D338=TRUE,Miljö!D340*Material!$G$158,0) -> 0 | E209: =IF(Miljö!E338=TRUE,Miljö!E340*Material!$G$158,0) -> 0 | F209: =IF(Miljö!F338=TRUE,Miljö!F340*Material!$G$158,0) -> 0 | G209: =IF(Miljö!G338=TRUE,Miljö!G340*Material!$G$158,0) -> 0 | H209: =IF(Miljö!H338=TRUE,Miljö!H340*Material!$G$158,0) -> 0 | I209: =IF(Miljö!I338=TRUE,Miljö!I340*Material!$G$158,0) -> 0 | J209: =IF(Miljö!J338=TRUE,Miljö!J340*Material!$G$158,0) -> 0 | K209: =IF(Miljö!K338=TRUE,Miljö!K340*Material!$G$158,0) -> 0 | L209: =IF(Miljö!L338=TRUE,Miljö!L340*Material!$G$158,0) -> 0
A210: Miljöpåverkan avfallshantering, stålrör | B210: kWh | C210: =IF(Miljö!C347=TRUE,Miljö!C349*Material!$G$159,0) -> 0 | D210: =IF(Miljö!D347=TRUE,Miljö!D349*Material!$G$159,0) -> 0 | E210: =IF(Miljö!E347=TRUE,Miljö!E349*Material!$G$159,0) -> 0 | F210: =IF(Miljö!F347=TRUE,Miljö!F349*Material!$G$159,0) -> 0 | G210: =IF(Miljö!G347=TRUE,Miljö!G349*Material!$G$159,0) -> 0 | H210: =IF(Miljö!H347=TRUE,Miljö!H349*Material!$G$159,0) -> 0 | I210: =IF(Miljö!I347=TRUE,Miljö!I349*Material!$G$159,0) -> 0 | J210: =IF(Miljö!J347=TRUE,Miljö!J349*Material!$G$159,0) -> 0 | K210: =IF(Miljö!K347=TRUE,Miljö!K349*Material!$G$159,0) -> 0 | L210: =IF(Miljö!L347=TRUE,Miljö!L349*Material!$G$159,0) -> 0
A211: Miljöpåverkan avfallshantering, relining rör | B211: kWh | C211: =IF(Miljö!C356=TRUE,Miljö!C358*Material!$G$165,0) -> 0 | D211: =IF(Miljö!D356=TRUE,Miljö!D358*Material!$G$165,0) -> 0 | E211: =IF(Miljö!E356=TRUE,Miljö!E358*Material!$G$165,0) -> 0 | F211: =IF(Miljö!F356=TRUE,Miljö!F358*Material!$G$165,0) -> 0 | G211: =IF(Miljö!G356=TRUE,Miljö!G358*Material!$G$165,0) -> 0 | H211: =IF(Miljö!H356=TRUE,Miljö!H358*Material!$G$165,0) -> 0 | I211: =IF(Miljö!I356=TRUE,Miljö!I358*Material!$G$165,0) -> 0 | J211: =IF(Miljö!J356=TRUE,Miljö!J358*Material!$G$165,0) -> 0 | K211: =IF(Miljö!K356=TRUE,Miljö!K358*Material!$G$165,0) -> 0 | L211: =IF(Miljö!L356=TRUE,Miljö!L358*Material!$G$165,0) -> 0
... 34 more rows

Sheet Socialt
B1: Social hållbarhetsanalys
A2: Detta blad används för social hållbarhetsanalys.
A5: Så här fungerar det: | D5: Kort beskrivning av alternativen
D6: Namn | E6: Info
A7: Diskutera och besvara frågorna (anteckna hur ni har resonerat under rubriken "Motivering"). | D7: ='Börja här'!Q19 -> Referensfall
A8: Reflektera över resultatet och besvara utvärderingsfrågorna. | D8: =IF('Börja här'!Q20="","",'Börja här'!Q20) -> 
D9: =IF('Börja här'!Q21="","",'Börja här'!Q21) ->  | P9: Beräkning
D10: =IF('Börja här'!Q22="","",'Börja här'!Q22) ->  | P10: Alt 1 | Q10: Alt 2 | R10: Alt 3 | S10: Alt 4 | T10: Alt 5 | U10: Alt 6 | V10: Alt 7 | W10: Alt 8 | X10: Alt 9 | Y10: Alt 10
D11: =IF('Börja här'!Q23="","",'Börja här'!Q23) -> 
D12: =IF('Börja här'!Q24="","",'Börja här'!Q24) -> 
D13: =IF('Börja här'!Q25="","",'Börja här'!Q25) -> 
D14: =IF('Börja här'!Q26="","",'Börja här'!Q26) -> 
D15: =IF('Börja här'!Q27="","",'Börja här'!Q27) -> 
D16: =IF('Börja här'!Q28="","",'Börja här'!Q28) -> 
A17: Resultat
E19: =D7 -> Referensfall | F19: =IF(D8="","",D8) ->  | G19: =IF(D9="","",D9) ->  | H19: =IF(D10="","",D10) ->  | I19: =IF(D11="","",D11) ->  | J19: =IF(D12="","",D12) ->  | K19: =IF(D13="","",D13) ->  | L19: =IF(D14="","",D14) ->  | M19: =IF(D15="","",D15) ->  | N19: =IF(D16="","",D16) -> 
D20: 1. Insatser utomhus | E20: =IF(SUM(P48:P78)=0,"0",SUM(P48:P78)) -> -11 | F20: =IF(SUM(Q48:Q78)=0,"0",SUM(Q48:Q78)) -> -11 | G20: =IF(SUM(R48:R78)=0,"0",SUM(R48:R78)) -> -11 | H20: -11 | I20: -11 | J20: -11 | K20: -11 | L20: -11 | M20: -11 | N20: -11
D21: 1.1. Friyta | E21: =IF(SUM(P48:P49)=0,"0",SUM(P48:P49)) -> -6 | F21: =IF(SUM(Q42:Q47)=0,"0",SUM(Q42:Q47)) -> -6 | G21: -6 | H21: -6 | I21: -6 | J21: -6 | K21: -6 | L21: -6 | M21: -6 | N21: -6
D22: 1.2 Rumslig utformning | E22: =IF(SUM(P50:P51)=0,"0",SUM(P50:P51)) -> -1 | F22: -1 | G22: -1 | H22: -1 | I22: -1 | J22: -1 | K22: -1 | L22: -1 | M22: -1 | N22: -1
D23: 1.3 Växtlighet och topografi | E23: =IF(SUM(P57:P58)=0,"0",SUM(P57:P58)) -> -1 | F23: -1 | G23: -1 | H23: -1 | I23: -1 | J23: -1 | K23: -1 | L23: -1 | M23: -1 | N23: -1
D24: 1.4 Lek, umgänge och vila | E24: =IF(SUM(P63:P64)=0,"0",SUM(P63:P64)) -> -1 | F24: -1 | G24: -1 | H24: -1 | I24: -1 | J24: -1 | K24: -1 | L24: -1 | M24: -1 | N24: -1
D25: 1.5 Lärande i utemiljö | E25: =IF(SUM(P71:P72)=0,"0",SUM(P71:P72)) -> -1 | F25: -1 | G25: -1 | H25: -1 | I25: -1 | J25: -1 | K25: -1 | L25: -1 | M25: -1 | N25: -1
D26: 1.6 Material och uthållighet | E26: =IF(SUM(P78:P79)=0,"0",SUM(P78:P79)) -> -1 | F26: -1 | G26: -1 | H26: -1 | I26: -1 | J26: -1 | K26: -1 | L26: -1 | M26: -1 | N26: -1
D27: 2. Insatser inomhus | E27: =IF(SUM(P88:P110)=0,"0",SUM(P88:P110)) -> -4 | F27: =IF(SUM(Q87:Q110)=0,"0",SUM(Q87:Q110)) -> -4 | G27: -4 | H27: -4 | I27: -4 | J27: -4 | K27: -4 | L27: -4 | M27: -4 | N27: -4
D28: 2.1 Material och miljö | E28: =IF(SUM(P88:P89)=0,"0",SUM(P88:P89)) -> -1 | F28: =IF(SUM(Q88:Q89)=0,"0",SUM(Q88:Q89)) -> -1 | G28: =IF(SUM(R88:R89)=0,"0",SUM(R88:R89)) -> -1 | H28: =IF(SUM(S88:S89)=0,"0",SUM(S88:S89)) -> -1 | I28: =IF(SUM(T88:T89)=0,"0",SUM(T88:T89)) -> -1 | J28: -1 | K28: -1 | L28: -1 | M28: -1 | N28: -1
D29: 2.2 Rumslig utformning | E29: =IF(SUM(P96:P97)=0,"0",SUM(P96:P97)) -> -1 | F29: =IF(SUM(Q95:Q96)=0,"0",SUM(Q95:Q96)) -> -1 | G29: =IF(SUM(R95:R96)=0,"0",SUM(R95:R96)) -> -1 | H29: =IF(SUM(S95:S96)=0,"0",SUM(S95:S96)) -> -1 | I29: =IF(SUM(T95:T96)=0,"0",SUM(T95:T96)) -> -1 | J29: =IF(SUM(U95:U96)=0,"0",SUM(U95:U96)) -> -1 | K29: -1 | L29: -1 | M29: =IF(SUM(X95:X96)=0,"0",SUM(X95:X96)) -> -1 | N29: =IF(SUM(Y95:Y96)=0,"0",SUM(Y95:Y96)) -> -1
D30: 2.3 Samspel med naturen | E30: =IF(SUM(P104:P105)=0,"0",SUM(P104:P105)) -> -1 | F30: =IF(SUM(Q104:Q105)=0,"0",SUM(Q104:Q105)) -> -1 | G30: =IF(SUM(R104:R105)=0,"0",SUM(R104:R105)) -> -1 | H30: =IF(SUM(S104:S105)=0,"0",SUM(S104:S105)) -> -1 | I30: =IF(SUM(T104:T105)=0,"0",SUM(T104:T105)) -> -1 | J30: -1 | K30: -1 | L30: -1 | M30: -1 | N30: -1
D31: 2.4 Ägandeskap och stimulans | E31: =IF(SUM(P110:P111)=0,"0",SUM(P110:P111)) -> -1 | F31: =IF(SUM(Q110:Q111)=0,"0",SUM(Q110:Q111)) -> -1 | G31: =IF(SUM(R110:R111)=0,"0",SUM(R110:R111)) -> -1 | H31: =IF(SUM(S110:S111)=0,"0",SUM(S110:S111)) -> -1 | I31: =IF(SUM(T110:T111)=0,"0",SUM(T110:T111)) -> -1 | J31: -1 | K31: -1 | L31: -1 | M31: -1 | N31: -1
D32: Summa | E32: =IF(E19="","",E20+E27) -> -15 | F32: =IF(F19="","",F20+F27) ->  | H32: =IF(H19="","",H20+H27) ->  | J32: =IF(J19="","",J20+J27) ->  | M32: =IF(M19="","",M20+M27) -> 
A35: Utvärderingsfråga: | B35: Information: | C35: Viktning | D35: Svar:
A36: Ger de olika alternativen olika resultat och i så fall varför? | B36: Ta hjälp av stapeldiagrammet (ovan till vänster) för att utläsa poäng som givits per renoveringsalternativ. Se tabellen (ovan till höger) för att utläsa hur många poäng som tilldelats varje underkategori.
A37: Finns det någonting mer ni kan åtgärda? Om ja, hur? | B37: Tänk på: insatser av olika slag kan ge olika mycket plus- och minuspoäng, eftersom det läggs extra stor vikt vid vissa insatser i forskningen.
A38: Har ni behövt göra prioriteringar under arbetets gång? Om ja, hur har ni motiverat dessa?
A39: 1. Insatser utomhus
